Workbook

Sheet Mode d'emploi
A1: Mode d'emploi | D1: Le fichier contient des macros, dès lors l'option macros doit être activée avant l'utilisation (voir ci-dessous). | N1: Agroscope , ARYV, 2014
A3: Ce fichier-programme se base sur les équations éditées dans le Livre Vert, il permet de calculer les valeurs nutritives des aliments simples à partir des compositions chimiques analysées.
A4: Il reprend les coefficients de digestibilité, dégradabilité et autres facteurs à partir des aliments de références issus du Livre Vert que vous choisissez dans le menu déroulant qui apprait losrqu'on clique dans la cellule des aliments de référence
A5: Si les teneurs en nutriments analysées s'éloignent trop des valeurs de l'aliment de référence, les valeurs nutritives calculées risquent d'être erronées par l'utilisation de coefficients ne correspondant plus.
A6: Le programme est traduit en allemand resp. en français, cependant une fois le choix de l'aliment de référence fait le changement de langue engendrera des erreurs, dès lors il faut choisir l'aliment de référence dans la langue utilisée.
A8: Les définitions des nutriments sont disponibles en plaçant le pointeur sur le triangle rouge (commentaire) à droite de l'abréviation
A9: Les définitions des valeurs nutritives sont données et peuvent être masquées si nécessaires
A11: Le programme offre la possibilité de rassembler les valeurs données et calculées dans une feuille d'exportation et de composer un mélange à partir de celles-ci.
A15: Feuille de travail: Aliments Futermittel | F15: cellule aliment de référence,
F16: cliquez dans la cellule pour accéder au menu déroulant | K16: bouton définitions des valeurs nutritives pour les masquer/afficher
B19: cellule libre pour texte >
A36: valeurs du Livre Vert de l'aliment de
A37: référence >
A39: bouton choix des langues >
A41: bouton EXPORT pour rassembler
A42: les données et composer un mélange
A44: bouton RESTORE pour initialiser la page
D49: MA | E49: 116 | F49: g/kg MS
D50: MG | E50: 16 | F50: g/kg MS
D51: CB | E51: 51 | F51: g/kg MS | G51: Les cellules avec l'écriture rouge sont destinées aux valeurs analysées,
D52: CE | E52: 26 | F52: g/kg MS | G52: avec RESTORE vous initialisez les cellules modifiées qui retrouvent un état "vide".
D53: ENA | E53: 791 | F53: g/kg MS | G53: Les cellules avec l'écriture blanche contiennent des formules qui calculent ou reprennent des valeurs de références, elles peuvent recevoir
D54: MO | E54: 974 | F54: g/kg MS | G54: d'autres valeurs, avec RESTORE vous initialisez les cellules modifiées qui retrouvent les formules ou les références d'origine.
D55: MDS | E55: 0 | F55: g/kg MS
D56: AM | E56: 0 | F56: g/kg MS
D57: Pf | E57: 0 | F57: g/kg MS
A59: comment procéder…
A60: 0 | B60: Le fichier contient des macros, dès lors l'option macros doit être active avant de l'ouvrir.
B61: sous excel cliquer le bouton office (en haut à gauche), dans la fenêtre qui s'ouvre cliquer sur option excel (en bas à droite), puis sur centre de la gestion de la confidentialité, et paramètres du centre de la confidentialité,
B62: puis paramètres des macros,et enfin activer toutes les macros et OK. Ouvrir le fichier AlimentsSimplesComposés20010 après l'activation. Cette opération est unique, elle reste active par la suite.
A64: 1 | B64: Choisir la langue, française ou allemande avec les boutons en bas à gauche
A65: 2 | B65: Possibilité de mettre une désignation personnelle dans la cellule située dans l'angle supérieur gauche, en-dessus des teneurs à donner. (facultatif)
A66: 3 | B66: Choisir un aliment de référence, en cliquant dans la cellule aliment de référence une liste déroulante apparait, cliquez sur l'aliment correspondant à votre produit
A67: 4 | B67: Introduire les valeurs pour la matière azotée, la cellulose brute et les cendres, ainsi que la graisse, l'amidon et les produits fermentaires s'ils sont connus et nécessaires
A68: 5 | B68: Les valeurs de l'aliment de référence apparaissent en gris au-dessus du bouton EXPORT
A69: 6 | B69: Une page d'impression sans coloration est automatiquement éditée, l'aperçu avant impression en permet le contrôle
A70: 7 | B70: Faites RESTORE pour un nouvel aliment et reprenez au point 2, ou donnez de nouvelles valeurs si l'aliment de référence reste le même
A71: 8 | B71: Vous avez la possibilité avec le bouton EXPORT de rassembler vos résultats dans la feuille EXPORT et de les reprendre comme valeurs excel
A103: 9 | B103: Avec la fonction EXPORT pour pouvez reconstituer des aliments composés à partir des aliments simples que vous avez calculés (max. 20), il suffit de donner la part dans le mélange dans la feuille FORMULE.
B104: dans la feuille FORMULE vous retrouver les coefficents de digestibilité, de dégradabilité pondérés en fonction des taux dans le mélange.
A105: 10 | B105: Pour calculer la valeur d'un mélange analysé dont les ingrédients sont connus, composez d'abord votre mélange avec la fonction EXPORT aliment après aliments en donnant les valeurs de références
B106: afin d'en obtenir les coefficients de digestibilité, de dégradabilité pondérés (base nutriments digestibles ou dégradés, par ex. pour dMO pondération par la MOD, excepté dAAA pondération par MS).
B107: Copiez les valeurs (dMO, dMA, dMG, dCB… deAM) pondérées obtenues dans la feuille FORMULE et collez les ( ! collage spéciale valeurs) dans la feuille aliments simples puis complétez avec les valeurs d'analyses.
A108: 11 | B108: En cliquant le bouton RESTORE dans la feuille FORMULE vous initialisez (videz) automatiquement les feuilles FORMULE et EXPORT
A110: réalisation AGROSCOPE ALP | D110: Yves.Arrigo@alp.admin.ch

Sheet Einführung
A1: Gebrauchsanleitung | D1: Die Datei enthält Makros. Vor der Anwendung des Berechnungsprogramms sind Makros unter Excel Optionen zu aktivieren (siehe weiter unten). | P1: Agroscope, ARYV, 2014
A3: Dieses Berechnungsprogramm stützt sich auf die im Grünen Buch publizierten Gleichungen. Damit können die Nährwerte von Einzelfuttermitteln auf der Grundlage ihrer chemischen Zusammensetzung berechnet werden.
A4: Die hinterlegten Verdaulichkeitskoeffizienten, Abbaubarkeiten und weitere Faktoren werden von Referenzfuttermitteln des Grünen Buches übernommen, die sie in der Dropdown Liste auswählen können. Diese erscheint, sobald das Feld
A5: Einzelfuttermittel Referenz angeklickt wird. Das Programm ist auf Deutsch und Französisch übersetzt. Ist allerdings ein Referenzfutter bereits ausgewählt, wird bei einem Sprachwechsel ein Fehler verursacht. In diesem Fall ist das Referenzfutter
A6: in der vom Benutzer definierten Sprache erneut anzuwählen.
A7: Hinweis: Falls sich analysierte Nährstoffgehalte zu stark von den Werten des Referenzfutters unterscheiden,können die berechneten Nährwerte ungenau werden, da die verwendeten Verdaulichkeitskoeffizienten nicht beliebig übertragbar sind.
A8: Die Definitionen der Nährstoffe sind abrufbar, indem der Mauszeiger auf das rote Dreieck (Kommentar) rechts der Abkürzung plaziert wird.
A9: Die Definitionen zu den Nährwerten sind angegeben. Diese können, falls gewünscht, ausgeblendet werden.
A11: Das Programm bietet die Möglichkeit, berechnete Werte in einem Exportblatt zusammenzufassen und daraus ein Mischfutter zusammenzustellen.
F13: Feld für Referenzfutter,
A14: Arbeitsblatt: Aliments Futtermittel | F14: Zelle anklicken, um zur Dropdown Liste zu gelangen | K14: Definitionen der Nährwerte ausblenden/anzeigen
B17: freies Textfeld >
A35: Nährwertangaben des Referenzfutters
A36: Basis Grünes Buch >
A39: Sprachauswahl >
A41: Mit der EXPORT Schaltfläche, werden
A42: Daten zusanmmengefasst, um
A43: Mischfutter zusanmmenzustellen
A45: Die RESTORE Schaltfläche setzt alle
A46: Auswahlfelder in die Ausgangslage
A47: zurück
D51: RP | E51: 116 | F51: g/kg TS
D52: RL | E52: 16 | F52: g/kg TS
D53: RF | E53: 51 | F53: g/kg TS | G53: Die Zellen mit roter Schrift sind für Analysenwerte vorgesehen.
D54: RA | E54: 26 | F54: g/kg TS | G54: mit RESTORE werden überschriebene Zellen auf "leer" gesetzt.
D55: NfE | E55: 791 | F55: g/kg TS | G55: Die Zellen mit weisser Schrift enthalten Formeln, die Refernzwerte berechnen oder übernehmen. Sie können geändert werden.
D56: OS | E56: 974 | F56: g/kg TS | G56: Mit RESTORE werden die überschriebenen Zellen wieder mit den ursprünglichen Formeln oder Refernzwerten versehen.
D57: MDS | E57: 0 | F57: g/kg TS
D58: ST | E58: 0 | F58: g/kg TS
D59: FP | E59: 0 | F59: g/kg TS
A61: wie vorgehen…
A62: 0 | B62: Das Programm enthält Makros. Bevor sie das Programm öffnen, stellen sie sicher, dass die Option Makros aktiviert ist.
B63: Unter Excel die Office Schaltfläche anklicken (oben links), im erscheinenden Fenster Excel-Optionen anklicken (unten rechts), dann weiter auf Vertrauensstellungscenter, und Einstellungen für Vertrauensstellungscenter,
B64: dann Einstellungen für Makros, und zuletzt alle Makros aktivieren und OK. Nach der Aktivierung die Datei Einzelfutter_Mischfutter2010 öffnen. Dieser Vorgang muss nur einmal gemacht werden, die Einstellung bleibt aktiv.
A66: 1 | B66: Sprache, Deutsch oder Französisch, über Schaltfläche unten links auswählen
A67: 2 | B67: In der oberen linken Ecke kann ein Eintrag in die Zelle oberhalb der einzutragenden Gehaltswerte gemacht werden (fakultativ)
A68: 3 | B68: Refernzfutter auswählen, indem in das Feld Referenzfutter geklickt wird. In der erscheinenden Dropdown Liste das Futter anklicken, das ihrem Produkt entspricht.
A69: 4 | B69: Gehaltswerte für Rohprotein, Rohfaser, Rohasche, Rohfett, Stärke und Fermentionsprodukte (falls bekannt und nötig) eintragen.
A70: 5 | B70: Die Nährwertangaben des Refernzfutters erscheinen in grau oberhalb der EXPORT Schaltfläche.
A71: 6 | B71: Eine Druckversion ohne Einfärbung wird automatisch generiert. In der Druckansicht kann das Resultat überprüft werden.
A72: 7 | B72: Mit RESTORE kann ein neues Futter gemäss Punkt 2ff berechnet werden oder neue Gehaltswerte werden eingetragen, wenn das Referenzfutter gleich bleibt.
A73: 8 | B73: Mit EXPORT können die Ergebnisse im Blatt EXPORT zusammengefasst und als Excel-Werte übernommen werden.
A105: 9 | B105: Mit der EXPORT Funktion können Mischfutter anhand der berechneten Einzelfutter wieder zusammengestellt werden (max 20). Dazu muss nur der Mischungsanteil im Blatt FORMULE angegeben werden.
B106: Im Blatt FORMULE sind die gewichteten Verdaulichkeitskoeffizenten und Abbaubarkeiten in Abhängigkeit des Mischunganteiles angegeben.
A107: 10 | B107: Um den Nährwert einer analysierten Futtermischung mit bekannten Rohkomponenten und Mischungsanteilen zu berechnen, zuerst die Mischung mit der EXPORT Funktion Einzelfutter für Einzelfutter
B108: mit den entsprechenden Referenzwerten zusammenstellen, um gewichtete Verdaulichkeitskoeffizienten und Abbaubarkeiten auf der Basis der verdaulichen Nährstoffe zu erhalten (Ausnahme: vASF Gewichtung auf Basis TS).
B109: Zum Beispiel wird die vOS über die VOS gewichtet. Die gewichteten Werte (vOS, vRP, vRL, vRF… aRP) im Blatt FORMULE kopieren und im Blatt Einzelfutter einfügen (! Einfügen Inhalte_Werte)
B110: und als letzter Schritt die analysierten Gehalte eintragen.
A111: 11 | B111: Durch Anklicken der RESTORE Schaltfläche im Blatt FORMULE werden die Blätter FORMULE und EXPORT automatisch inititialisiert, d.h. auf leer gesetzt.
A113: Programmierung AGROSCOPE | D113: yves.arrigo@agroscope.admin.ch

Sheet Aliments Futtermittel
A1: =IF(H42=1,"Aliment simple","Einzelfuttermittel") -> Aliment simple | D1: =IF(H42=1,"Référence:","Referenz:") -> Référence: | E1: Avoine, grain | O1: =IF(H42=1,"version 8.01.2014","Version 8.01.2014") -> version 8.01.2014 | V1: =A1 -> Aliment simple | Z1: =E1 -> Avoine, grain | AG1: =O1 -> version 8.01.2014 | AI1: Yves.Arrigo@alp.admin.ch
A2: =E1 -> Avoine, grain | E2: =IF(J45="T",IF(H42=1,"choisissez une référence en français ^","Wählen Sie eine Referenz auf Deutsch ^"),"") ->  | V2: =A2 -> Avoine, grain | AR2: =AV1 -> 0
A4: =IF($H$42=1,"MS","TS") -> MS | C4: 1000 | D4: =IF(C4>1000,"MS>","g") -> g | I4: NEL | J4: =IF($H$32<12,"",C64*$C$4/1000) -> 6.726001652 | K4: =IF(C4<>1000,"MJ/kg",IF(H42=1,"MJ/kg MS","MJ/kg TS")) -> MJ/kg MS | L4: =IF($K$32=FALSE,"",J33) -> énergie nette lait | V4: =A4 -> MS | X4: =C4 -> 1000 | Y4: g | AE4: =I4 -> NEL | AF4: 6.726001652 | AG4: MJ/kg MS | AH4: énergie nette lait | AR4: =IF($H$42=1,"MS","TS") -> MS | AT4: 1000 | AU4: =IF(AT4>1000,"MS>","g") -> g | AZ4: =IF($H$42=1,"MS","TS") -> MS | BB4: 1000 | BC4: =IF(BB4>1000,"MS>","g") -> g
I5: NEV | J5: =IF($H$32<12,"",C69*$C$4/1000) -> 7.020801726 | K5: =K4 -> MJ/kg MS | L5: énergie nette viande | AE5: NEV | AF5: 7.020801726 | AG5: MJ/kg MS | AH5: énergie nette viande
A6: =IF($H$42=1,"MA","RP") -> MA | C6: =VLOOKUP($E$1,listealim,9,FALSE) -> 119.4 | D6: =IF($C$4<>1000,"g/kg",IF(H42=1,"g/kg MS","g/kg TS")) -> g/kg MS | E6: =IF($H$42=1,"dMO","vOS") -> dMO | G6: =VLOOKUP($E$1,listealim,21,FALSE) -> 72 | H6: % | I6: =IF($H$42=1,"PAIE","APDE") -> PAIE | J6: =IF($H$32<12,"",C72*$C$4/1000) -> 78.933138 | K6: =D6 -> g/kg MS | L6: protéines absorbables dans l'intestin synthétisées à partir de l'énergie disponible | V6: =A6 -> MA | X6: =C6 -> 119.4 | Y6: =D6 -> g/kg MS | AA6: =E6 -> dMO | AB6: =G6 -> 72 | AC6: % | AE6: PAIE | AF6: 78.933138 | AG6: g/kg MS | AH6: protéines absorbables dans l'intestin synthétisées à partir de l'énergie disponible | AR6: =IF($H$42=1,"MA","RP") -> MA | AT6: =VLOOKUP($E$1,listealim,9,FALSE) -> 119.4 | AU6: =IF($C$4<>1000,"g/kg",IF(AY42=1,"g/kg MS","g/kg TS")) -> g/kg TS | AV6: =IF($H$42=1,"dMO","vOS") -> dMO | AX6: =VLOOKUP($E$1,listealim,21,FALSE) -> 72 | AZ6: =IF($H$42=1,"MA","RP") -> MA | BB6: =VLOOKUP($E$1,listealim,9,FALSE) -> 119.4 | BC6: =IF($C$4<>1000,"g/kg",IF(BG42=1,"g/kg MS","g/kg TS")) -> g/kg TS | BD6: =IF($H$42=1,"dMO","vOS") -> dMO | BF6: =VLOOKUP($E$1,listealim,21,FALSE) -> 72
A7: =IF($H$42=1,"MG","RL") -> MG | C7: =VLOOKUP($E$1,listealim,10,FALSE) -> 50.4 | D7: =D6 -> g/kg MS | E7: =IF($H$42=1,"dMA","vRP") -> dMA | G7: =VLOOKUP($E$1,listealim,22,FALSE) -> 78 | H7: % | I7: =IF($H$42=1,"PAIN","APDN") -> PAIN | J7: =IF($H$32<12,"",C74*$C$4/1000) -> 77.34732 | K7: =K6 -> g/kg MS | L7: protéines absorbables dans l'intestin, synthétisées à partir de la matière azotée dégradée | V7: =A7 -> MG | X7: =C7 -> 50.4 | Y7: =D7 -> g/kg MS | AA7: dMA | AB7: 78 | AC7: % | AE7: PAIN | AF7: 77.34732 | AG7: g/kg MS | AH7: protéines absorbables dans l'intestin, synthétisées à partir de la matière azotée dégradée | AR7: =IF($H$42=1,"MG","RL") -> MG | AT7: =VLOOKUP($E$1,listealim,10,FALSE) -> 50.4 | AU7: =AU6 -> g/kg TS | AV7: =IF($H$42=1,"dMA","vRP") -> dMA | AX7: =VLOOKUP($E$1,listealim,22,FALSE) -> 78 | AZ7: =IF($H$42=1,"MG","RL") -> MG | BB7: =VLOOKUP($E$1,listealim,10,FALSE) -> 50.4 | BC7: =BC6 -> g/kg TS | BD7: =IF($H$42=1,"dMA","vRP") -> dMA | BF7: =VLOOKUP($E$1,listealim,22,FALSE) -> 78
A8: =IF($H$42=1,"CB","RF") -> CB | C8: =VLOOKUP($E$1,listealim,11,FALSE) -> 118.8 | D8: =D7 -> g/kg MS | E8: =IF($H$42=1,"dMG","vRL") -> dMG | G8: =VLOOKUP($E$1,listealim,23,FALSE) -> 81 | H8: % | I8: PME | J8: =IF($H$32<12,"",C75*$C$4/1000) -> 85.87277 | K8: =K7 -> g/kg MS | L8: quantité de protéines microbiennes être synthétisées à partir de l'énergie fermentescible | V8: CB | X8: 118.8 | Y8: g/kg MS | AA8: dMG | AB8: 81 | AC8: % | AR8: =IF($H$42=1,"CB","RF") -> CB | AT8: =VLOOKUP($E$1,listealim,11,FALSE) -> 118.8 | AU8: =AU7 -> g/kg TS | AV8: =IF($H$42=1,"dMG","vRL") -> dMG | AX8: =VLOOKUP($E$1,listealim,23,FALSE) -> 81 | AZ8: =IF($H$42=1,"CB","RF") -> CB | BB8: =VLOOKUP($E$1,listealim,11,FALSE) -> 118.8 | BC8: =BC7 -> g/kg TS | BD8: =IF($H$42=1,"dMG","vRL") -> dMG | BF8: =VLOOKUP($E$1,listealim,23,FALSE) -> 81
A9: =IF($H$42=1,"CE","RA") -> CE | C9: =VLOOKUP($E$1,listealim,15,FALSE) -> 29.4 | D9: g/kg MS | E9: =IF($H$42=1,"dCB","vRF") -> dCB | G9: =VLOOKUP($E$1,listealim,24,FALSE) -> 31 | H9: % | I9: PMN | J9: =IF($H$32<12,"",C76*$C$4/1000) -> 92.8932 | K9: g/kg MS | L9: quantité de protéines microbiennes être synthétisées à partir de la matière azotée dégradable | V9: CE | X9: 29.4 | Y9: g/kg MS | AA9: dCB | AB9: 31 | AC9: % | AE9: =I8 -> PME | AF9: 85.87277 | AG9: g/kg MS | AH9: quantité de protéines microbiennes être synthétisées à partir de l'énergie fermentescible | AR9: =IF($H$42=1,"CE","RA") -> CE | AT9: =VLOOKUP($E$1,listealim,15,FALSE) -> 29.4 | AU9: g/kg TS | AV9: =IF($H$42=1,"dCB","vRFL") -> dCB | AX9: =VLOOKUP($E$1,listealim,24,FALSE) -> 31 | AZ9: =IF($H$42=1,"CE","RA") -> CE | BB9: =VLOOKUP($E$1,listealim,15,FALSE) -> 29.4 | BC9: g/kg TS | BD9: =IF($H$42=1,"dCB","vRFL") -> dCB | BF9: =VLOOKUP($E$1,listealim,24,FALSE) -> 31
A10: =IF($H$42=1,"ENA","NfE") -> ENA | C10: =C53*C4/1000 -> 682 | D10: g/kg MS | E10: =IF($H$42=1,"dENA","vNfE") -> dENA | G10: =VLOOKUP($E$1,listealim,25,FALSE) -> 78 | H10: % | V10: ENA | X10: 682 | Y10: g/kg MS | AA10: dENA | AB10: 78 | AC10: % | AE10: PMN | AF10: 92.8932 | AG10: g/kg MS | AH10: quantité de protéines microbiennes être synthétisées à partir de la matière azotée dégradable | AR10: =IF($H$42=1,"ENA","NfE") -> ENA | AT10: =AT53*AT4/1000 -> 0 | AU10: g/kg TS | AV10: =IF($H$42=1,"dENA","vNfE") -> dENA | AX10: =VLOOKUP($E$1,listealim,25,FALSE) -> 78 | AZ10: =IF($H$42=1,"ENA","NfE") -> ENA | BB10: =BB53*BB4/1000 -> 0 | BC10: g/kg TS | BD10: =IF($H$42=1,"dENA","vNfE") -> dENA | BF10: =VLOOKUP($E$1,listealim,25,FALSE) -> 78
A11: =IF($H$42=1,"MO","OS") -> MO | C11: =C52*C4/1000 -> 970.6 | D11: g/kg MS | E11: =IF($H$42=1,"deMA","aRP") -> deMA | G11: =VLOOKUP($E$1,listealim,26,FALSE) -> 80 | H11: % | I11: =IF($H$42=1,"PAIA","APDF") -> PAIA | J11: =IF($H$32<12,"",C77*$C$4/1000) -> 23.85612 | K11: =K9 -> g/kg MS | L11: =IF($K$32=FALSE,"",J40) -> protéines alimentaires absorbables dans l'intestin d'origine alimentaire | V11: MO | X11: 970.6 | Y11: g/kg MS | AA11: deMA | AB11: 80 | AC11: % | AE11: =I11 -> PAIA | AF11: 23.85612 | AG11: g/kg MS | AH11: protéines alimentaires absorbables dans l'intestin d'origine alimentaire | AR11: =IF($H$42=1,"MO","OS") -> MO | AT11: =AT52*AT4/1000 -> 0 | AU11: g/kg TS | AV11: =IF($H$42=1,"deMA","aRP") -> deMA | AX11: =VLOOKUP($E$1,listealim,26,FALSE) -> 80 | AZ11: =IF($H$42=1,"MO","OS") -> MO | BB11: =BB52*BB4/1000 -> 0 | BC11: g/kg TS | BD11: =IF($H$42=1,"deMA","aRP") -> deMA | BF11: =VLOOKUP($E$1,listealim,26,FALSE) -> 80
A12: MDS | B12: 1 | C12: 0 | D12: g/kg MS | E12: =IF($H$42=1,"dAAA","vASF") -> dAAA | G12: =VLOOKUP($E$1,listealim,27,FALSE) -> 90 | H12: % | I12: =IF($H$42=1,"PAIM","APDM") -> PAIM | J12: =IF($H$32<12,"",C78*$C$4/1000) -> 55.077018 | K12: g/kg MS | L12: =IF($K$32=FALSE,"",J41) -> protéines absorbables dans l'intestin d'origine microbienne | V12: MDS | W12: 1 | X12: 0 | Y12: g/kg MS | AA12: dAAA | AB12: 90 | AC12: % | AE12: PAIM | AF12: 55.077018 | AG12: g/kg MS | AH12: protéines absorbables dans l'intestin d'origine microbienne | AR12: MDS | AS12: 1 | AT12: 0 | AU12: g/kg TS | AV12: =IF($H$42=1,"dAAA","vASF") -> dAAA | AX12: =VLOOKUP($E$1,listealim,27,FALSE) -> 90 | AZ12: MDS | BA12: 1 | BB12: 0 | BC12: g/kg TS | BD12: =IF($H$42=1,"dAAA","vASF") -> dAAA | BF12: =VLOOKUP($E$1,listealim,27,FALSE) -> 90
A13: =IF($H$42=1,"AM","ST") -> AM | B13: 2 | C13: =VLOOKUP($E$1,listealim,28,FALSE) -> 461.8 | D13: g/kg MS | E13: =IF($H$42=1,"deAM","aST") -> deAM | F13: 2 | G13: =VLOOKUP($E$1,listealim,29,FALSE) -> 93 | H13: % | I13: =IF($H$42=1,"PAIMN","APDMN") -> PAIMN | J13: =IF($H$32<12,"",C79*$C$4/1000) -> 53.4912 | K13: g/kg MS | L13: =IF($K$32=FALSE,"",J42) -> protéines absorbables dans l'intestin synthétisées à partir de la matière azotée dégradable | V13: AM | W13: 2 | X13: 461.8 | Y13: g/kg MS | AA13: deAM | AB13: 93 | AC13: % | AE13: PAIMN | AF13: 53.4912 | AG13: g/kg MS | AH13: protéines absorbables dans l'intestin synthétisées à partir de la matière azotée dégradable | AR13: =IF($H$42=1,"AM","ST") -> AM | AS13: 2 | AT13: =VLOOKUP($E$1,listealim,28,FALSE) -> 461.8 | AU13: g/kg TS | AV13: =IF($H$42=1,"deAM","aST") -> deAM | AW13: 2 | AX13: =VLOOKUP($E$1,listealim,29,FALSE) -> 93 | AZ13: =IF($H$42=1,"AM","ST") -> AM | BA13: 2 | BB13: =VLOOKUP($E$1,listealim,28,FALSE) -> 461.8 | BC13: g/kg TS | BD13: =IF($H$42=1,"deAM","aST") -> deAM | BE13: 2 | BF13: =VLOOKUP($E$1,listealim,29,FALSE) -> 93
A14: =IF($H$42=1,"Pf","FP") -> Pf | B14: 3 | C14: =VLOOKUP($E$1,listealim,20,FALSE) -> 0 | D14: g/kg MS | I14: =IF($H$42=1,"EM","UE") -> EM | J14: =IF($H$32<12,"",C61*$C$4/1000) -> 11.347902 | K14: =K4 -> MJ/kg MS | L14: =IF($K$32=FALSE,"",J43) -> énergie métabolisable | V14: Pf | W14: 3 | X14: 0 | Y14: g/kg MS | AE14: EM | AF14: 11.347902 | AG14: MJ/kg MS | AH14: énergie métabolisable | AR14: =IF($H$42=1,"Pf","FP") -> Pf | AS14: 3 | AT14: =VLOOKUP($E$1,listealim,20,FALSE) -> 0 | AU14: g/kg TS | AZ14: =IF($H$42=1,"Pf","FP") -> Pf | BA14: 3 | BB14: =VLOOKUP($E$1,listealim,20,FALSE) -> 0 | BC14: g/kg TS
I15: =IF($H$42=1,"EB","BE") -> EB | J15: =IF($H$32<12,"",C60*$C$4/1000) -> 18.81104 | K15: =K14 -> MJ/kg MS | L15: =IF($K$32=FALSE,"",J44) -> énergie brute | AE15: EB | AF15: 18.81104 | AG15: MJ/kg MS | AH15: énergie brute
B16: 1 | C16: =IF(H42=1," MDS = Mono- et dissacharides prod. laitiers à prendre en considération que si >= 80 g/kg MS (lactose)","Mono- und Disaccharide nur bei Milchprodukten zu berücksichtigen falls >80 g/kg TS") -> MDS = Mono- et dissacharides prod. laitiers à prendre en considération que si >= 80 g/kg MS (lactose)
B17: 2 | C17: =IF(H42=1,"Que pour aliment riche en amidon, avec une dégradabilité de l'amidon <=85%","nur bei stärkereichen Füttermitteln wenn die Abbaubarkeit <=85% beträgt") -> Que pour aliment riche en amidon, avec une dégradabilité de l'amidon <=85% | X17: =C16 -> MDS = Mono- et dissacharides prod. laitiers à prendre en considération que si >= 80 g/kg MS (lactose)
B18: 3 | C18: =IF(H42=1,"Produits de fermentation, acide lactique, acides gras volatils et les alcools.","Die Fermentationsprodukte der Silagen setzen sich zusammen aus Milchsäure, flüchtigen Fettsäuren, Alkoholen") -> Produits de fermentation, acide lactique, acides gras volatils et les alcools. | X18: =C17 -> Que pour aliment riche en amidon, avec une dégradabilité de l'amidon <=85%
A19: =IF(H42=1,"valeurs tables 11","Tabellenwerte 11") -> valeurs tables 11 | C19: =CONCATENATE(A43,ROUND(VLOOKUP($E$1,listealim,9,FALSE),0)) -> MA: 119 | D19: =CONCATENATE(A44,ROUND(VLOOKUP($E$1,listealim,11,FALSE),0)) -> CB: 119 | E19: =CONCATENATE(A45,ROUND(VLOOKUP($E$1,listealim,15,FALSE),0)) -> CE: 29 | G19: =CONCATENATE("NEL: ",ROUND(VLOOKUP($E$1,listealim,3,FALSE),1)) -> NEL: 6.7 | H19: =CONCATENATE("NEV: ",ROUND(VLOOKUP($E$1,listealim,4,FALSE),1)) -> NEV: 7 | I19: =CONCATENATE(C43," ",ROUND(VLOOKUP($E$1,listealim,5,FALSE),0)) -> PAIE 82 | J19: =CONCATENATE(C44," ",ROUND(VLOOKUP($E$1,listealim,6,FALSE),0)) -> PAIN 77 | X19: =C18 -> Produits de fermentation, acide lactique, acides gras volatils et les alcools.
E21: =IF(H32<12,IF(H42=1,"Données incomplètes pour les calculs !","fehlende Daten für die Berchnungen !"),"") -> 
E23: =E45 -> 
L25: yves.arrigo@agroscope.admin.ch
A32: valeurs incomplètes | H32: =SUM(C33:C36,G33:G40) -> 12 | J32: définitions | K32: TRUE | L32: oui=vrai; non=faux
A33: MA | C33: =IF(ISBLANK(C6),0,1) -> 1 | E33: dMO | G33: =IF(ISBLANK(G6),0,1) -> 1 | I33: NEL | J33: =IF($H$42=1,Q33,Y33) -> énergie nette lait | Q33: énergie nette lait | X33: NEL | Y33: Netto-Energie Milch (Laktation)
A34: MG | C34: =IF(ISBLANK(C7),0,1) -> 1 | E34: dMA | G34: =IF(ISBLANK(G7),0,1) -> 1 | I34: NEV | J34: =IF($H$42=1,Q34,Y34) -> énergie nette viande | Q34: énergie nette viande | X34: NEV | Y34: Netto-Energie Mast (Wachstum)
A35: CB | C35: 1 | E35: dMG | G35: 1 | I35: PAIE | J35: protéines absorbables dans l'intestin synthétisées à partir de l'énergie disponible | Q35: protéines absorbables dans l'intestin synthétisées à partir de l'énergie disponible | X35: APDE | Y35: Absorbierbares Protein im Darm, das auf Grund der verfügbaren Energiemengen aufgebaut werden kann
A36: CE | C36: 1 | E36: dCB | G36: 1 | I36: PAIN | J36: protéines absorbables dans l'intestin, synthétisées à partir de la matière azotée dégradée | Q36: protéines absorbables dans l'intestin, synthétisées à partir de la matière azotée dégradée | X36: APDN | Y36: Absorbierbares Protein im Darm, das auf Grund des abgebauten Rohproteins aufgebaut werden kann
E37: dENA | G37: 1 | I37: PME | J37: quantité de protéines microbiennes être synthétisées à partir de l'énergie fermentescible | Q37: quantité de protéines microbiennes être synthétisées à partir de l'énergie fermentescible | X37: PME | Y37: Mikroorganismen-Protein aus fermenttierbarer Energie
E38: deMA | G38: 1 | I38: PMN | J38: quantité de protéines microbiennes être synthétisées à partir de la matière azotée dégradable | Q38: quantité de protéines microbiennes être synthétisées à partir de la matière azotée dégradable | X38: PMN | Y38: Mikroorganismen-Protein aus abbaubarem Rohprotein
E39: dAAA | G39: 1
E40: deAM | G40: 1 | I40: PAIA | J40: protéines alimentaires absorbables dans l'intestin d'origine alimentaire | Q40: protéines alimentaires absorbables dans l'intestin d'origine alimentaire | X40: APDF | Y40: Absorbierbares Protein im Darm aus dem Futter
I41: PAIM | J41: protéines absorbables dans l'intestin d'origine microbienne | Q41: protéines absorbables dans l'intestin d'origine microbienne | X41: APDM | Y41: Mikrobielles absorbierbares Protein im Darm
A42: langue | C42: français=1, deutch=2 | H42: 1 | I42: PAIMN | J42: protéines absorbables dans l'intestin synthétisées à partir de la matière azotée dégradable | Q42: protéines absorbables dans l'intestin synthétisées à partir de la matière azotée dégradable | X42: APDMN | Y42: Absorbierbares Protein im Darm, das aus dem abbaubaren Rohprotein aufgebaut werden kann
A43: =IF($H$42=1,"MA: ", "RP: ") -> MA: | C43: =IF(H42=1,"PAIE","APDE") -> PAIE | I43: EM | J43: énergie métabolisable | Q43: énergie métabolisable | X43: UE | Y43: Umsetzbare Energie
A44: =IF($H$42=1,"CB: ", "RF: ") -> CB: | C44: =IF(H42=1,"PAIN","APDN") -> PAIN | I44: EB | J44: énergie brute | Q44: énergie brute | X44: BE | Y44: Bruttoenergie
A45: =IF($H$42=1,"CE: ", "RA: ") -> CE: | E45: =IF(H42=1,IF(G7="néant *","voir feuille Annexe1!",""),IF(G7="keine *","sehe Blatt Annexe1!","")) ->  | J45: =IFERROR(C7,"T") -> 50.4
A47: teneurs de base | E47: teneurs digestibles
A48: MA, g/kg MS | C48: =C6/C4*1000 -> 119.4 | D48: > | E48: =C48*G7/100 -> 93.132 | G48: MAD, g/kg MS
A49: MG, g/kg MS | C49: =C7/C4*1000 -> 50.4 | D49: > | E49: =C49*G8/100 -> 40.824 | G49: MGD,g/kg MS
A50: CB, g/kg MS | C50: =C8/C4*1000 -> 118.8 | D50: > | E50: =C50*G9/100 -> 36.828 | G50: CBD, g/kg MS
A51: CE, g/kg MS | C51: =C9/C4*1000 -> 29.4
A52: MO, g/kg MS | C52: =1000-C51 -> 970.6 | D52: > | E52: =C52*G6/100 -> 698.832 | G52: MOD, g/kg MS
A53: ENA, g/kg MS | C53: =C52-C48-C49-C50 -> 682 | D53: > | E53: =C53*G10/100 -> 531.96 | G53: ENAD, g/kg MS
A54: MDS | C54: =C12/C4*1000 -> 0
A55: AM | C55: =C13/C4*1000 -> 461.8
A56: PF | C56: =C14 -> 0
E59: formules Lv
A60: EB | C60: =0.0242*C48+0.0366*C49+0.0209*C50+0.017*C53-0.00063*C54 -> 18.81104 | D60: < | E60: EB | G60: = 0.0242 MA + 0.0366 MG + 0.0209 CB + 0.0170 ENA – 0.00063 MDSa)
A61: EM | C61: =0.0159*E48+0.0377*E49+0.0138*E50+0.0147*E53-0.00063*C54 -> 11.347902 | D61: < | E61: EM | G61: = 0.0159 MAD + 0.0377 MGD + 0.0138 CBD + 0.0147 ENAD – 0.00063 MDSa)
A62: q | C62: =C61/C60 -> 0.6032575551 | D62: < | E62: q | G62: =EM/EB
A63: KL | C63: =0.463 + 0.24*C62 -> 0.6077818132 | D63: < | E63: KL | G63: = 0.463 + 0.24 q
A64: NEL | C64: =0.9752*C63*C61 -> 6.726001652 | D64: < | E64: NEL | G64: = 0.9752 x kL x EM
A66: KEn | C66: =0.554 + 0.287*C62 -> 0.7271349183 | D66: < | E66: KEn | G66: = 0.554 + 0.287 q
A67: KV | C67: =0.006 + 0.78*C62 -> 0.476540893 | D67: < | E67: KV | G67: = 0.006 + 0.78 q
A68: KEnV | C68: =(1.5*C66*C67)/((0.5*C66)+C67) -> 0.618687201 | D68: < | E68: KEnV | G68: = (1.5 x kEn x kV) / ([0.5 x kEn] + kV)
A69: NEV | C69: =C68*C61 -> 7.020801726 | D69: < | E69: NEV | G69: = kEnV x EM
A71: MOF | C71: =C52*G6/100-C48*(1-G11/100)-C49-C55*(1-G13/100)-(C14*0.5) -> 592.226 | D71: < | E71: MOF | G71: = MO x dMO/100 – MA x (1 – deMA/100 ) – MGa) – AMb) x (1- deAMI/100) –(PFc) x 0.5)
A72: PAIE | C72: =0.093*C71+C48*(1.11*(1-G11/100))*G12/100 -> 78.933138 | D72: < | E72: PAIE | G72: = 0.093 x MOF + MA x (1.11 x (1- deMA/100)) x dAAA/100
A74: PAIN | C74: =C48*(G11/100-0.1)*0.64+C48*(1.11*(1-G11/100))*G12/100 -> 77.34732 | D74: < | E74: PAIN | G74: = MA x (deMA/100 – 0.10) x 0.64 + MA x (1.11 x [ 1–deMA/100]) x dAAA/100
A75: PME | C75: =0.145*C71 -> 85.87277 | D75: < | E75: PME | G75: =0.145 x MOF
A76: PMN | C76: =C48*(1-(1.11*(1-G11/100))) -> 92.8932 | D76: < | E76: PMN | G76: =MA x (1-(1.11 x (1-deMA/100)))
A77: PAIA | C77: =C48*(1.11*(1-G11/100))*G12/100 -> 23.85612 | D77: < | E77: PAIA | G77: =MA x (1.11 x (1-deMA/100)) x dAAA/100
A78: PAIM | C78: =0.093*C71 -> 55.077018 | D78: < | E78: PAIM | G78: =0.093 x MOF
A79: PAIMN | C79: =C48*(G11/100-0.1)*0.64 -> 53.4912 | D79: < | E79: PAIMN | G79: =MA x (deMA/100 - 0.1) x 0.64
A83: reprise des données pour les ajouter à la feuille EXPORT
A84: =IF(H42=1,"aliments","Futtermittel") -> aliments | B84: =IF(H42=1,"% dans le mélange","% in der Mischung") -> % dans le mélange | C84: =A4 -> MS | D84: =A6 -> MA | E84: =A7 -> MG | F84: =A8 -> CB | G84: =A9 -> CE | H84: =A10 -> ENA | I84: =A11 -> MO | J84: =A12 -> MDS | K84: =A13 -> AM | L84: =A14 -> Pf | M84: =E6 -> dMO | N84: =E7 -> dMA | O84: =E8 -> dMG | P84: =E9 -> dCB | Q84: =E10 -> dENA | R84: =E11 -> deMA | S84: =E12 -> dAAA | T84: =E13 -> deAM | U84: =I4 -> NEL | V84: =I5 -> NEV | W84: =I6 -> PAIE | X84: =I7 -> PAIN | Y84: =I8 -> PME | Z84: =I9 -> PMN | AA84: =I11 -> PAIA | AB84: =I12 -> PAIM | AC84: =I13 -> PAIMN | AD84: =I14 -> EM | AE84: =I15 -> EB | AF84: =IF($H$42=1,"NEL réf.","NEL Ref.") -> NEL réf. | AG84: =IF($H$42=1,"NEV réf.","NEV Ref.") -> NEV réf. | AH84: =IF($H$42=1,"PAIE réf.","APDE Ref.") -> PAIE réf. | AI84: =IF($H$42=1,"PAIN réf.","APDN Ref.") -> PAIN réf. | AJ84: =IF($H$42=1,"EM réf.","UE Ref.") -> EM réf. | AK84: =IF($H$42=1,"EB réf.","BE Ref.") -> EB réf.
A85: =A2 -> Avoine, grain | C85: =C4 -> 1000 | D85: =C6 -> 119.4 | E85: =C7 -> 50.4 | F85: =C8 -> 118.8 | G85: =C9 -> 29.4 | H85: =C10 -> 682 | I85: =C11 -> 970.6 | J85: =C12 -> 0 | K85: =C13 -> 461.8 | L85: =C14 -> 0 | M85: =G6 -> 72 | N85: =G7 -> 78 | O85: =G8 -> 81 | P85: =G9 -> 31 | Q85: =G10 -> 78 | R85: =G11 -> 80 | S85: =G12 -> 90 | T85: =G13 -> 93 | U85: =J4 -> 6.726001652 | V85: =J5 -> 7.020801726 | W85: =J6 -> 78.933138 | X85: =J7 -> 77.34732 | Y85: =J8 -> 85.87277 | Z85: =J9 -> 92.8932 | AA85: =J11 -> 23.85612 | AB85: =J12 -> 55.077018 | AC85: =J13 -> 53.4912 | AD85: =J14 -> 11.347902 | AE85: =J15 -> 18.81104 | AF85: =VLOOKUP($E$1,listealim,3,FALSE) -> 6.73 | AG85: =VLOOKUP($E$1,listealim,4,FALSE) -> 7.02 | AH85: =VLOOKUP($E$1,listealim,5,FALSE) -> 81.9 | AI85: =VLOOKUP($E$1,listealim,6,FALSE) -> 77.4
AG98: No | AH98: Aliment | AI98: MS | AJ98: NEL | AK98: NEV | AL98: PAIE | AM98: PAIN | AN98: PME | AO98: PMN | AP98: MA | AQ98: MG | AR98: CB | AS98: ENA | AT98: SU | AU98: MO | AV98: CE | AW98: Ca | AX98: P | AY98: Mg | AZ98: K | BA98: PF | BB98: dMO | BC98: dMA | BD98: dMG | BE98: dCB | BF98: dENA | BG98: deMA | BH98: dAA | BI98: amidon | BJ98: deAM | BL98: Aliment | BM98: MS | BN98: NEL | BO98: NEV | BP98: PAIE | BQ98: PAIN | BR98: PME | BS98: PMN | BT98: MA | BU98: MG | BV98: CB | BW98: ENA | BX98: SU | BY98: MO | BZ98: CE | CA98: Ca | CB98: P | CC98: Mg | CD98: PF | CE98: K | CF98: dMO | CG98: dMA | CH98: dMG | CI98: dCB | CJ98: dENA | CK98: deMA | CL98: dAA | CM98: amidon | CN98: deAM
C99: 1 | D99: 2 | E99: 3 | F99: 4 | G99: 5 | H99: 6 | I99: 7 | J99: 8 | K99: 9 | L99: 10 | M99: 11 | N99: 12 | O99: 13 | P99: 14 | Q99: 15 | R99: 16 | S99: 17 | T99: 18 | U99: 19 | V99: 20 | W99: 21 | X99: 22 | Y99: 23 | Z99: 24 | AA99: 25 | AB99: 26 | AC99: 27 | AD99: 28 | AE99: 29 | AF99: 30 | AG99: 1 | AH99: 2 | AI99: 3 | AJ99: 4 | AK99: 5 | AL99: 6 | AM99: 7 | AN99: 8 | AO99: 9 | AP99: 10 | AQ99: 11 | AR99: 12 | AS99: 13 | AT99: 14 | AU99: 15 | AV99: 16 | AW99: 17 | AX99: 18 | AY99: 19 | AZ99: 20 | BA99: 21 | BB99: 22 | BC99: 23 | BD99: 24 | BE99: 25 | BF99: 26 | BG99: 27 | BH99: 28 | BI99: 29 | BJ99: 30 | BK99: 1 | BL99: 2 | BM99: 3 | BN99: 4 | BO99: 5 | BP99: 6 | BQ99: 7 | BR99: 8 | BS99: 9 | BT99: 10 | BU99: 11 | BV99: 12 | BW99: 13 | BX99: 14 | BY99: 15 | BZ99: 16 | CA99: 17 | CB99: 18 | CC99: 19 | CD99: 20 | CE99: 21 | CF99: 22 | CG99: 23 | CH99: 24 | CI99: 25 | CJ99: 26 | CK99: 27 | CL99: 28 | CM99: 29 | CN99: 30
A100: No | C100: Aliment | D100: MS | E100: NEL | F100: NEV | G100: PAIE | H100: PAIN | I100: PME | J100: PMN | K100: MA | L100: MG | M100: CB | N100: ENA | O100: SU | P100: MO | Q100: CE | R100: Ca | S100: P | T100: Mg | U100: K | V100: PF | W100: dMO | X100: dMA | Y100: dMG | Z100: dCB | AA100: dENA | AB100: deMA | AC100: dAA | AD100: amidon | AE100: deAM | AG100: No | AH100: Aliment | AI100: MS | AJ100: NEL | AK100: NEV | AL100: PAIE | AM100: PAIN | AN100: PME | AO100: PMN | AP100: MA | AQ100: MG | AR100: CB | AS100: ENA | AT100: SU | AU100: MO | AV100: CE | AW100: Ca | AX100: P | AY100: Mg | AZ100: K | BA100: PF | BB100: dMO | BC100: dMA | BD100: dMG | BE100: dCB | BF100: dENA | BG100: deMA | BH100: dAA | BI100: amidon | BJ100: deAM | BK100: Fut | BL100: Futtermittel | BM100: TS | BN100: NEL | BO100: NEV | BP100: APD | BQ100: APDN | BR100: PME | BS100: PMN | BT100: RP | BU100: RL | BV100: RF | BW100: NfE | BX100: Zu | BY100: OS | BZ100: RA | CA100: Ca | CB100: P | CC100: Mg | CD100: K | CE100: FP | CF100: vOS | CG100: vRP | CH100: vRL | CI100: vRF | CJ100: vNfE | CK100: aRP | CL100: vASF | CM100: ST | CN100: aST
A101: =IF($H$42=1,AG101,BK101) -> 1 | C101: =IF($H$42=1,AH101,BL101) -> Agrumes, pulpe séchée | D101: =IF($H$42=1,AI101,BM101) -> 1000 | E101: =IF($H$42=1,AJ101,BN101) -> 7.55 | F101: =IF($H$42=1,AK101,BO101) -> 8.23 | G101: =IF($H$42=1,AL101,BP101) -> 90.9 | H101: =IF($H$42=1,AM101,BQ101) -> 47.7 | I101: =IF($H$42=1,AN101,BR101) -> 106.9 | J101: =IF($H$42=1,AO101,BS101) -> 44 | K101: =IF($H$42=1,AP101,BT101) -> 72 | L101: =IF($H$42=1,AQ101,BU101) -> 34 | M101: =IF($H$42=1,AR101,BV101) -> 140 | N101: =IF($H$42=1,AS101,BW101) -> 691 | O101: =IF($H$42=1,AT101,BX101) -> 241 | P101: =IF($H$42=1,AU101,BY101) -> 937 | Q101: =IF($H$42=1,AV101,BZ101) -> 63 | R101: =IF($H$42=1,AW101,CA101) -> 18.9 | S101: =IF($H$42=1,AX101,CB101) -> 1.3 | T101: =IF($H$42=1,AY101,CC101) -> 1.5 | U101: =IF($H$42=1,BA101,CD101) -> 0 | V101: =IF($H$42=1,BA101,CE101) -> 0 | W101: 85 | X101: 50 | Y101: 80 | Z101: 80 | AA101: 90 | AB101: 65 | AC101: 80 | AD101: 69.1 | AE101: 0 | AG101: 1 | AH101: Agrumes, pulpe séchée | AI101: 1000 | AJ101: 7.55 | AK101: 8.23 | AL101: 90.9 | AM101: 47.7 | AN101: 106.9 | AO101: 44 | AP101: 72 | AQ101: 34 | AR101: 140 | AS101: 691 | AT101: 241 | AU101: 937 | AV101: 63 | AW101: 18.9 | AX101: 1.3 | AY101: 1.5 | AZ101: 9 | BB101: 85 | BC101: 50 | BD101: 80 | BE101: 80 | BF101: 90 | BG101: 65 | BH101: 80 | BI101: 69.1 | BJ101: 0 | BK101: 59 | BL101: Ackerbohne, Samen | BM101: 1000 | BN101: 7.29 | BO101: 7.73 | BP101: 126 | BQ101: 191.7 | BR101: 104.2 | BS101: 230.3 | BT101: 296 | BU101: 17.8 | BV101: 94.8 | BW101: 550.3 | BX101: 41 | BY101: 958.9 | BZ101: 41.1 | CA101: 1 | CB101: 6.9 | CC101: 1.8 | CD101: 13 | CE101: 0 | CF101: 83 | CG101: 75 | CH101: 70 | CI101: 60 | CJ101: 91 | CK101: 80 | CL101: 90 | CM101: 420.7 | CN101: 75
A102: 2 | C102: Amidon de céréales | D102: 1000 | E102: 8.8 | F102: 10 | G102: 69 | H102: 13 | I102: 99 | J102: 13 | K102: 19 | L102: 1 | M102: 4 | N102: 968 | O102: 0 | P102: 992 | Q102: 8 | R102: 0.3 | S102: 1.4 | T102: 0.2 | U102: 0 | V102: =IF($H$42=1,BA102,CE102) -> 0 | W102: =IF($H$42=1,BB102,CF102) -> 94 | X102: =IF($H$42=1,BC102,CG102) -> 60 | Y102: =IF($H$42=1,BD102,CH102) -> 60 | Z102: =IF($H$42=1,BE102,CI102) -> 30 | AA102: =IF($H$42=1,BF102,CJ102) -> 95 | AB102: =IF($H$42=1,BG102,CK102) -> 70 | AC102: =IF($H$42=1,BH102,CL102) -> 90 | AD102: =IF($H$42=1,BI102,CM102) -> 967 | AE102: =IF($H$42=1,BJ102,CN102) -> 75 | AG102: 2 | AH102: Amidon de céréales | AI102: 1000 | AJ102: 8.8 | AK102: 10 | AL102: 69 | AM102: 13 | AN102: 99 | AO102: 13 | AP102: 19 | AQ102: 1 | AR102: 4 | AS102: 968 | AT102: 0 | AU102: 992 | AV102: 8 | AW102: 0.3 | AX102: 1.4 | AY102: 0.2 | AZ102: 1 | BB102: 94 | BC102: 60 | BD102: 60 | BE102: 30 | BF102: 95 | BG102: 70 | BH102: 90 | BI102: 967 | BJ102: 75 | BK102: 117 | BL102: Apfel frisch | BM102: 1000 | BN102: 8.11 | BO102: 9 | BP102: 82.7 | BQ102: 13.4 | BR102: 124.2 | BS102: 17.9 | BT102: 23 | BU102: 19 | BV102: 104 | BW102: 832 | BX102: 554 | BY102: 978 | BZ102: 22 | CA102: 0.6 | CB102: 0.7 | CC102: 0.5 | CD102: 9 | CE102: 0 | CF102: 90 | CG102: 60 | CH102: 30 | CI102: 65 | CJ102: 95 | CK102: 80 | CL102: 60 | CM102: 0 | CN102: 0
A103: 3 | C103: Arachide, tourteau de pression | D103: 1000 | E103: 8.65 | F103: 9.25 | G103: 196.4 | H103: 373.1 | I103: 88.3 | J103: 405.1 | K103: 552.3 | L103: 78 | M103: 65.7 | N103: 257.2 | O103: 0 | P103: 953.2 | Q103: 46.8 | R103: 0 | S103: 0 | T103: 0 | U103: 0 | V103: 0 | W103: 86 | X103: 90 | Y103: 90 | Z103: 40 | AA103: 90 | AB103: 76 | AC103: 95 | AD103: 0 | AE103: 0 | AG103: 3 | AH103: Arachide, tourteau de pression | AI103: 1000 | AJ103: 8.65 | AK103: 9.25 | AL103: 196.4 | AM103: 373.1 | AN103: 88.3 | AO103: 405.1 | AP103: 552.3 | AQ103: 78 | AR103: 65.7 | AS103: 257.2 | AU103: 953.2 | AV103: 46.8 | BB103: 86 | BC103: 90 | BD103: 90 | BE103: 40 | BF103: 90 | BG103: 76 | BH103: 95 | BI103: 0 | BJ103: 0 | BK103: 92 | BL103: Apfeltrester getrocknet, entpektinisiert | BM103: 1000 | BN103: 4.41 | BO103: 4.09 | BP103: 57.3 | BQ103: 23.3 | BR103: 61.1 | BS103: 9.1 | BT103: 81.3 | BU103: 37.1 | BV103: 317.5 | BW103: 499.6 | BX103: 160 | BY103: 935.5 | BZ103: 64.5 | CA103: 13.1 | CB103: 1.2 | CC103: 0.3 | CD103: 1 | CE103: 0 | CF103: 56 | CG103: 40 | CH103: 39 | CI103: 49 | CJ103: 65 | CK103: 20 | CL103: 25 | CM103: 0 | CN103: 0
A104: 4 | C104: Arachide, tourteau de pression, décortiquée | D104: 1000 | E104: 8.5 | F104: 9.1 | G104: 194 | H104: 366 | I104: 88 | J104: 398 | K104: 542 | L104: 77 | M104: 70 | N104: 255 | O104: 73 | P104: 944 | Q104: 56 | R104: 1.5 | S104: 6.6 | T104: 3.6 | U104: 0 | V104: 0 | W104: 86 | X104: 90 | Y104: 90 | Z104: 40 | AA104: 90 | AB104: 76 | AC104: 95 | AD104: 42.2 | AE104: 0 | AG104: 4 | AH104: Arachide, tourteau de pression, décortiquée | AI104: 1000 | AJ104: 8.5 | AK104: 9.1 | AL104: 194 | AM104: 366 | AN104: 88 | AO104: 398 | AP104: 542 | AQ104: 77 | AR104: 70 | AS104: 255 | AT104: 73 | AU104: 944 | AV104: 56 | AW104: 1.5 | AX104: 6.6 | AY104: 3.6 | AZ104: 14 | BB104: 86 | BC104: 90 | BD104: 90 | BE104: 40 | BF104: 90 | BG104: 76 | BH104: 95 | BI104: 42.2 | BJ104: 0 | BK104: 93 | BL104: Apfeltrester getrocknet, nicht entpektinisiert | BM104: 1000 | BN104: 5.69 | BO104: 5.72 | BP104: 65.6 | BQ104: 14.2 | BR104: 85.2 | BS104: 5.5 | BT104: 49.5 | BU104: 22.3 | BV104: 199.2 | BW104: 713.1 | BX104: 218 | BY104: 984.1 | BZ104: 15.9 | CA104: 1.3 | CB104: 1.4 | CC104: 0.6 | CD104: 6 | CE104: 0 | CF104: 66 | CG104: 40 | CH104: 39 | CI104: 49 | CJ104: 75 | CK104: 20 | CL104: 25 | CM104: 0 | CN104: 0
A105: 5 | C105: Arachide, tourteau d'extraction, décortiquée | D105: 1000 | E105: 7.6 | F105: 8 | G105: 205 | H105: 388 | I105: 92 | J105: 422 | K105: 575 | L105: 22 | M105: 74 | N105: 270 | O105: 107 | P105: 941 | Q105: 59 | R105: 1.5 | S105: 7.2 | T105: 3.7 | U105: 0 | V105: 0 | W105: 86 | X105: 90 | Y105: 80 | Z105: 40 | AA105: 90 | AB105: 76 | AC105: 95 | AD105: 88.5 | AE105: 0 | AG105: 5 | AH105: Arachide, tourteau d'extraction, décortiquée | AI105: 1000 | AJ105: 7.6 | AK105: 8 | AL105: 205 | AM105: 388 | AN105: 92 | AO105: 422 | AP105: 575 | AQ105: 22 | AR105: 74 | AS105: 270 | AT105: 107 | AU105: 941 | AV105: 59 | AW105: 1.5 | AX105: 7.2 | AY105: 3.7 | AZ105: 13 | BB105: 86 | BC105: 90 | BD105: 80 | BE105: 40 | BF105: 90 | BG105: 76 | BH105: 95 | BI105: 88.5 | BJ105: 0 | BK105: 22 | BL105: Auswuchsweizen | BM105: 1000 | BN105: 7.61 | BO105: 8.27 | BP105: 100.1 | BQ105: 93.2 | BR105: 111 | BS105: 111.7 | BT105: 147.7 | BU105: 16.6 | BV105: 22.3 | BW105: 795.2 | BX105: 32 | BY105: 981.8 | BZ105: 18.2 | CA105: 0.5 | CB105: 4.4 | CC105: 1.2 | CD105: 3 | CE105: 0 | CF105: 83 | CG105: 72 | CH105: 76 | CI105: 35 | CJ105: 87 | CK105: 78 | CL105: 80 | CM105: 664.3 | CN105: 94
A106: 6 | C106: Avoine floconnée non décortiquée | D106: 1000 | E106: 7.03 | F106: 7.42 | G106: 85.3 | H106: 83.6 | I106: 92.8 | J106: 100.4 | K106: 129 | L106: 54.1 | M106: 101.7 | N106: 687.9 | O106: 0 | P106: 972.7 | Q106: 27.3 | R106: 0 | S106: 0 | T106: 0 | U106: 0 | V106: 0 | W106: 74 | X106: 78 | Y106: 81 | Z106: 31 | AA106: 80 | AB106: 80 | AC106: 90 | AD106: 0 | AE106: 0 | AG106: 6 | AH106: Avoine floconnée non décortiquée | AI106: 1000 | AJ106: 7.03 | AK106: 7.42 | AL106: 85.3 | AM106: 83.6 | AN106: 92.8 | AO106: 100.4 | AP106: 129 | AQ106: 54.1 | AR106: 101.7 | AS106: 687.9 | AU106: 972.7 | AV106: 27.3 | BB106: 74 | BC106: 78 | BD106: 81 | BE106: 31 | BF106: 80 | BG106: 80 | BH106: 90 | BI106: 0 | BJ106: 0 | BK106: 32 | BL106: Backabfälle (Brotabfälle) | BM106: 1000 | BN106: 8.4 | BO106: 9.4 | BP106: 114 | BQ106: 98 | BR106: 115 | BS106: 100 | BT106: 150 | BU106: 26 | BV106: 9 | BW106: 784 | BX106: 58 | BY106: 969 | BZ106: 31 | CA106: 0.4 | CB106: 2.3 | CC106: 1 | CD106: 4 | CE106: 0 | CF106: 90 | CG106: 85 | CH106: 82 | CI106: 47 | CJ106: 92 | CK106: 70 | CL106: 80 | CM106: 594.1 | CN106: 94
A107: 7 | C107: Avoine floconnée partiellement décortiquée | D107: 1000 | E107: 8.27 | F107: 9.15 | G107: 98.5 | H107: 81.7 | I107: 114.2 | J107: 98.1 | K107: 126.2 | L107: 27 | M107: 38.8 | N107: 786.5 | O107: 0 | P107: 978.5 | Q107: 21.5 | R107: 0 | S107: 0 | T107: 0 | U107: 0 | V107: 0 | W107: 85.9 | X107: 78 | Y107: 81 | Z107: 50 | AA107: 92 | AB107: 80 | AC107: 90 | AD107: 0 | AE107: 0 | AG107: 7 | AH107: Avoine floconnée partiellement décortiquée | AI107: 1000 | AJ107: 8.27 | AK107: 9.15 | AL107: 98.5 | AM107: 81.7 | AN107: 114.2 | AO107: 98.1 | AP107: 126.2 | AQ107: 27 | AR107: 38.8 | AS107: 786.5 | AU107: 978.5 | AV107: 21.5 | BB107: 85.9 | BC107: 78 | BD107: 81 | BE107: 50 | BF107: 92 | BG107: 80 | BH107: 90 | BI107: 0 | BJ107: 0 | BK107: 51 | BL107: Baumwollextraktionsschrot, nicht entschält | BM107: 1000 | BN107: 5.19 | BO107: 4.98 | BP107: 158 | BQ107: 212 | BR107: 67.5 | BS107: 169 | BT107: 304 | BU107: 13 | BV107: 262 | BW107: 359 | BX107: 51 | BY107: 938 | BZ107: 62 | CA107: 1.9 | CB107: 10.7 | CC107: 4.9 | CD107: 14 | CE107: 0 | CF107: 64 | CG107: 74 | CH107: 65 | CI107: 45 | CJ107: 70 | CK107: 60 | CL107: 85 | CM107: 0 | CN107: 0
A108: 8 | C108: Avoine, farine de déchets (issues) | D108: 1000 | E108: 3.93 | F108: 3.49 | G108: 53.6 | H108: 55.9 | I108: 60 | J108: 70.7 | K108: 90.9 | L108: 30.4 | M108: 217.3 | N108: 625 | O108: 12 | P108: 963.6 | Q108: 36.4 | R108: 1.6 | S108: 4 | T108: 1.1 | U108: 0 | V108: 0 | W108: 48 | X108: 40 | Y108: 78 | Z108: 48 | AA108: 47 | AB108: 80 | AC108: 75 | AD108: 0 | AE108: 0 | AG108: 8 | AH108: Avoine, farine de déchets (issues) | AI108: 1000 | AJ108: 3.93 | AK108: 3.49 | AL108: 53.6 | AM108: 55.9 | AN108: 60 | AO108: 70.7 | AP108: 90.9 | AQ108: 30.4 | AR108: 217.3 | AS108: 625 | AT108: 12 | AU108: 963.6 | AV108: 36.4 | AW108: 1.6 | AX108: 4 | AY108: 1.1 | AZ108: 5 | BB108: 48 | BC108: 40 | BD108: 78 | BE108: 48 | BF108: 47 | BG108: 80 | BH108: 75 | BI108: 0 | BJ108: 0 | BK108: 52 | BL108: Baumwollextraktionsschrot, teilentschält | BM108: 1000 | BN108: 6.25 | BO108: 6.29 | BP108: 214.5 | BQ108: 311 | BR108: 71.9 | BS108: 248 | BT108: 446 | BU108: 16 | BV108: 148 | BW108: 323 | BX108: 54 | BY108: 933 | BZ108: 67 | CA108: 2.3 | CB108: 12 | CC108: 5.4 | CD108: 15 | CE108: 0 | CF108: 74 | CG108: 84 | CH108: 65 | CI108: 37 | CJ108: 78 | CK108: 60 | CL108: 85 | CM108: 0 | CN108: 0
A109: 9 | C109: Avoine, farine fourragère | D109: 1000 | E109: 7.7 | F109: 8.2 | G109: 89 | H109: 95 | I109: 93 | J109: 114 | K109: 146 | L109: 76 | M109: 71 | N109: 677 | O109: 19 | P109: 970 | Q109: 30 | R109: 1 | S109: 5.4 | T109: 1.7 | U109: 0 | V109: 0 | W109: 77 | X109: 79 | Y109: 91 | Z109: 36 | AA109: 79 | AB109: 80 | AC109: 90 | AD109: 551.3 | AE109: 93 | AG109: 9 | AH109: Avoine, farine fourragère | AI109: 1000 | AJ109: 7.7 | AK109: 8.2 | AL109: 89 | AM109: 95 | AN109: 93 | AO109: 114 | AP109: 146 | AQ109: 76 | AR109: 71 | AS109: 677 | AT109: 19 | AU109: 970 | AV109: 30 | AW109: 1 | AX109: 5.4 | AY109: 1.7 | AZ109: 5 | BB109: 77 | BC109: 79 | BD109: 91 | BE109: 36 | BF109: 79 | BG109: 80 | BH109: 90 | BI109: 551.3 | BJ109: 93 | BK109: 50 | BL109: Baumwollsamen, ganz {Baumwollsaat) | BM109: 1000 | BN109: 7.98 | BO109: 8.25 | BP109: 85.1 | BQ109: 151.9 | BR109: 47 | BS109: 168.3 | BT109: 233 | BU109: 220 | BV109: 232 | BW109: 271 | BX109: 40 | BY109: 956 | BZ109: 44 | CA109: 1.7 | CB109: 6.9 | CC109: 3.9 | CD109: 12 | CE109: 0 | CF109: 63 | CG109: 74 | CH109: 90 | CI109: 30 | CJ109: 60 | CK109: 75 | CL109: 85 | CM109: 0 | CN109: 0
A110: 10 | C110: Avoine, flocons | D110: 1000 | E110: 9.39 | F110: 10.56 | G110: 101.2 | H110: 94.7 | I110: 115.9 | J110: 117.8 | K110: 151.4 | L110: 70.5 | M110: 14.2 | N110: 742.3 | O110: 18 | P110: 978.4 | Q110: 21.6 | R110: 0.9 | S110: 5 | T110: 1.4 | U110: 0 | V110: 0 | W110: 92 | X110: 80 | Y110: 90 | Z110: 80 | AA110: 95 | AB110: 80 | AC110: 80 | AD110: 656 | AE110: 75 | AG110: 10 | AH110: Avoine, flocons | AI110: 1000 | AJ110: 9.39 | AK110: 10.56 | AL110: 101.2 | AM110: 94.7 | AN110: 115.9 | AO110: 117.8 | AP110: 151.4 | AQ110: 70.5 | AR110: 14.2 | AS110: 742.3 | AT110: 18 | AU110: 978.4 | AV110: 21.6 | AW110: 0.9 | AX110: 5 | AY110: 1.4 | AZ110: 4 | BB110: 92 | BC110: 80 | BD110: 90 | BE110: 80 | BF110: 95 | BG110: 80 | BH110: 80 | BI110: 656 | BJ110: 75 | BK110: 70 | BL110: Bierhefe getrocknet | BM110: 1000 | BN110: 7.35 | BO110: 7.74 | BP110: 143.1 | BQ110: 304.2 | BR110: 94.6 | BS110: 385.1 | BT110: 495 | BU110: 28.1 | BV110: 2 | BW110: 402.7 | BX110: 23 | BY110: 927.8 | BZ110: 72.2 | CA110: 2.6 | CB110: 15 | CC110: 2.2 | CD110: 24 | CE110: 0 | CF110: 84 | CG110: 82 | CH110: 61 | CI110: 50 | CJ110: 88 | CK110: 80 | CL110: 75 | CM110: 0 | CN110: 0
A111: 11 | C111: Avoine, grain | D111: 1000 | E111: 6.73 | F111: 7.02 | G111: 81.9 | H111: 77.4 | I111: 90.6 | J111: 92.9 | K111: 119.4 | L111: 50.4 | M111: 118.8 | N111: 682 | O111: 0 | P111: 970.6 | Q111: 29.4 | R111: 0 | S111: 0 | T111: 0 | U111: 0 | V111: 0 | W111: 72 | X111: 78 | Y111: 81 | Z111: 31 | AA111: 78 | AB111: 80 | AC111: 90 | AD111: 461.8 | AE111: 93 | AG111: 11 | AH111: Avoine, grain | AI111: 1000 | AJ111: 6.73 | AK111: 7.02 | AL111: 81.9 | AM111: 77.4 | AN111: 90.6 | AO111: 92.9 | AP111: 119.4 | AQ111: 50.4 | AR111: 118.8 | AS111: 682 | AU111: 970.6 | AV111: 29.4 | BB111: 72 | BC111: 78 | BD111: 81 | BE111: 31 | BF111: 78 | BG111: 80 | BH111: 90 | BI111: 461.8 | BJ111: 93 | BK111: 55 | BL111: Biertreber frisch | BM111: 1000 | BN111: 6.41 | BO111: 6.45 | BP111: 130.7 | BQ111: 176.8 | BR111: 58.9 | BS111: 145.5 | BT111: 261.8 | BU111: 87.1 | BV111: 164.6 | BW111: 444.7 | BX111: 13 | BY111: 958.2 | BZ111: 41.8 | CA111: 3.8 | CB111: 6.7 | CC111: 2.5 | CD111: 1 | CE111: 0 | CF111: 64 | CG111: 74 | CH111: 90 | CI111: 44 | CJ111: 62 | CK111: 60 | CL111: 80 | CM111: 36.5 | CN111: 0
A112: 12 | C112: Avoine, grain décortiqué | D112: 1000 | E112: 8.23 | F112: 9.01 | G112: 88.3 | H112: 87.1 | I112: 95.8 | J112: 104.6 | K112: 134.5 | L112: 54.3 | M112: 89.2 | N112: 695.6 | O112: 0 | P112: 973.6 | Q112: 26.4 | R112: 0 | S112: 0 | T112: 0 | U112: 0 | V112: 0 | W112: 76.2 | X112: 78 | Y112: 81 | Z112: 50 | AA112: 92 | AB112: 80 | AC112: 90 | AD112: 540.8 | AE112: 93 | AG112: 12 | AH112: Avoine, grain décortiqué | AI112: 1000 | AJ112: 8.23 | AK112: 9.01 | AL112: 88.3 | AM112: 87.1 | AN112: 95.8 | AO112: 104.6 | AP112: 134.5 | AQ112: 54.3 | AR112: 89.2 | AS112: 695.6 | AU112: 973.6 | AV112: 26.4 | BB112: 76.2 | BC112: 78 | BD112: 81 | BE112: 50 | BF112: 92 | BG112: 80 | BH112: 90 | BI112: 540.8 | BJ112: 93 | BK112: 56 | BL112: Biertreber getrocknet | BM112: 1000 | BN112: 6.57 | BO112: 6.64 | BP112: 148.7 | BQ112: 178.8 | BR112: 55.1 | BS112: 113.7 | BT112: 255.4 | BU112: 104 | BV112: 162.2 | BW112: 433.7 | BX112: 10 | BY112: 955.3 | BZ112: 44.7 | CA112: 3.2 | CB112: 5.3 | CC112: 1.6 | CD112: 1 | CE112: 0 | CF112: 64 | CG112: 74 | CH112: 90 | CI112: 44 | CJ112: 60 | CK112: 50 | CL112: 80 | CM112: 36.5 | CN112: 0
A113: 13 | C113: Avoine, grain, léger (42-49 kg/hl) | D113: 1000 | E113: 6.6 | F113: 6.9 | G113: 82 | H113: 72 | I113: 93 | J113: 86 | K113: 111 | L113: 42 | M113: 123 | N113: 693 | O113: 16 | P113: 969 | Q113: 31 | R113: 0.9 | S113: 4.1 | T113: 1.2 | U113: 0 | V113: 0 | W113: =IF($H$42=1,BB113,CF113) -> 72 | X113: =IF($H$42=1,BC113,CG113) -> 78 | Y113: =IF($H$42=1,BD113,CH113) -> 81 | Z113: =IF($H$42=1,BE113,CI113) -> 31 | AA113: =IF($H$42=1,BF113,CJ113) -> 78 | AB113: =IF($H$42=1,BG113,CK113) -> 80 | AC113: =IF($H$42=1,BH113,CL113) -> 90 | AD113: =IF($H$42=1,BI113,CM113) -> 461.8 | AE113: =IF($H$42=1,BJ113,CN113) -> 93 | AG113: 13 | AH113: Avoine, grain, léger (42-49 kg/hl) | AI113: 1000 | AJ113: 6.6 | AK113: 6.9 | AL113: 82 | AM113: 72 | AN113: 93 | AO113: 86 | AP113: 111 | AQ113: 42 | AR113: 123 | AS113: 693 | AT113: 16 | AU113: 969 | AV113: 31 | AW113: 0.9 | AX113: 4.1 | AY113: 1.2 | AZ113: 5 | BB113: 72 | BC113: 78 | BD113: 81 | BE113: 31 | BF113: 78 | BG113: 80 | BH113: 90 | BI113: 461.8 | BJ113: 93 | BK113: 54 | BL113: Biertreber siliert | BM113: 1000 | BN113: 6.35 | BO113: 6.36 | BP113: 114.7 | BQ113: 166.5 | BR113: 57.1 | BS113: 153.6 | BT113: 251.2 | BU113: 97.1 | BV113: 178.3 | BW113: 433.4 | BX113: 38 | BY113: 960 | BZ113: 40 | CA113: 3.5 | CB113: 6 | CC113: 2.3 | CD113: 1 | CE113: 50 | CF113: 62 | CG113: 74 | CH113: 90 | CI113: 44 | CJ113: 58 | CK113: 65 | CL113: 80 | CM113: 26 | CN113: 0
A114: 14 | C114: Avoine, grain, moyen à lourd (50-57 kg/hl) | D114: 1000 | E114: 6.9 | F114: 7.2 | G114: 84 | H114: 73 | I114: 96 | J114: 87 | K114: 112 | L114: 47 | M114: 109 | N114: 701 | O114: 17 | P114: 969 | Q114: 31 | R114: 0.9 | S114: 4.1 | T114: 1.2 | U114: 0 | V114: 0 | W114: 74 | X114: 78 | Y114: 81 | Z114: 31 | AA114: 80 | AB114: 80 | AC114: 90 | AD114: 461.8 | AE114: 93 | AG114: 14 | AH114: Avoine, grain, moyen à lourd (50-57 kg/hl) | AI114: 1000 | AJ114: 6.9 | AK114: 7.2 | AL114: 84 | AM114: 73 | AN114: 96 | AO114: 87 | AP114: 112 | AQ114: 47 | AR114: 109 | AS114: 701 | AT114: 17 | AU114: 969 | AV114: 31 | AW114: 0.9 | AX114: 4.1 | AY114: 1.2 | AZ114: 5 | BB114: 74 | BC114: 78 | BD114: 81 | BE114: 31 | BF114: 80 | BG114: 80 | BH114: 90 | BI114: 461.8 | BJ114: 93 | BK114: 111 | BL114: Birne frisch | BM114: 1000 | BN114: 7.95 | BO114: 8.79 | BP114: 82.1 | BQ114: 11 | BR114: 124.1 | BS114: 14.8 | BT114: 19 | BU114: 11 | BV114: 151 | BW114: 797 | BX114: 529 | BY114: 978 | BZ114: 22 | CA114: 0.7 | CB114: 0.6 | CC114: 0.5 | CD114: 5 | CE114: 0 | CF114: 89 | CG114: 60 | CH114: 30 | CI114: 65 | CJ114: 95 | CK114: 80 | CL114: 60 | CM114: 0 | CN114: 0
A115: 15 | C115: Babeurre frais | D115: 1000 | E115: 8.45 | F115: 9.36 | G115: 99.9 | H115: 189.8 | I115: 107.4 | J115: 275.7 | K115: 310.2 | L115: 60.1 | M115: 0 | N115: 533.8 | O115: 469 | P115: 904.1 | Q115: 96 | R115: 11 | S115: 9.7 | T115: 1.1 | U115: 0 | V115: 0 | W115: 92 | X115: 90 | Y115: 90 | Z115: 0 | AA115: 94 | AB115: 90 | AC115: 90 | AD115: 0 | AE115: 0 | AG115: 15 | AH115: Babeurre frais | AI115: 1000 | AJ115: 8.45 | AK115: 9.36 | AL115: 99.9 | AM115: 189.8 | AN115: 107.4 | AO115: 275.7 | AP115: 310.2 | AQ115: 60.1 | AR115: 0 | AS115: 533.8 | AT115: 469 | AU115: 904.1 | AV115: 96 | AW115: 11 | AX115: 9.7 | AY115: 1.1 | AZ115: 17 | BB115: 92 | BC115: 90 | BD115: 90 | BE115: 0 | BF115: 94 | BG115: 90 | BH115: 90 | BI115: 0 | BJ115: 0 | BK115: 91 | BL115: Birnentrester getrocknet | BM115: 1000 | BN115: 4.16 | BO115: 3.75 | BP115: 54 | BQ115: 12.7 | BR115: 68.8 | BS115: 5 | BT115: 44.6 | BU115: 13.5 | BV115: 372.3 | BW115: 558.2 | BX115: 188 | BY115: 988.6 | BZ115: 11.4 | CA115: 1 | CB115: 0.9 | CC115: 0.3 | CD115: 4 | CE115: 0 | CF115: 53 | CG115: 40 | CH115: 39 | CI115: 35 | CJ115: 65 | CK115: 20 | CL115: 25 | CM115: 0 | CN115: 0
A116: 16 | C116: Babeurre, poudre | D116: 1000 | E116: 8.45 | F116: 9.36 | G116: 99.9 | H116: 189.8 | I116: 107.4 | J116: 275.7 | K116: 310.2 | L116: 60.1 | M116: 0 | N116: 533.8 | O116: 421 | P116: 887 | Q116: 113 | R116: 11 | S116: 9.5 | T116: 1 | U116: 0 | V116: 0 | W116: 92 | X116: 90 | Y116: 90 | Z116: 0 | AA116: 94 | AB116: 90 | AC116: 90 | AD116: 0 | AE116: 0 | AG116: 16 | AH116: Babeurre, poudre | AI116: 1000 | AJ116: 8.45 | AK116: 9.36 | AL116: 99.9 | AM116: 189.8 | AN116: 107.4 | AO116: 275.7 | AP116: 310.2 | AQ116: 60.1 | AR116: 0 | AS116: 533.8 | AT116: 421 | AU116: 887 | AV116: 113 | AW116: 11 | AX116: 9.5 | AY116: 1 | AZ116: 17 | BB116: 92 | BC116: 90 | BD116: 90 | BE116: 0 | BF116: 94 | BG116: 90 | BH116: 90 | BI116: 0 | BJ116: 0 | BK116: 132 | BL116: Blutmehl | BM116: 1000 | BN116: 7.64 | BO116: 7.79 | BP116: 643.6 | BQ116: 725.8 | BR116: 14.5 | BS116: 159.5 | BT116: 952.5 | BU116: 6.5 | BV116: 2.7 | BW116: 3.7 | BX116: 0 | BY116: 965.4 | BZ116: 34.6 | CA116: 1.7 | CB116: 1.7 | CC116: 0.3 | CD116: 3 | CE116: 0 | CF116: 85 | CG116: 85 | CH116: 90 | CI116: 0 | CJ116: 50 | CK116: 25 | CL116: 80 | CM116: 0 | CN116: 0
A117: 17 | C117: Betterave fourragère, fraîche | D117: 1000 | E117: 7.65 | F117: 8.49 | G117: 84.9 | H117: 40.7 | I117: 117.8 | J117: 54.5 | K117: 70 | L117: 3.7 | M117: 47 | N117: 812.3 | O117: 596 | P117: 933 | Q117: 67 | R117: 2.1 | S117: 2.2 | T117: 1.3 | U117: 0 | V117: 0 | W117: 89 | X117: 55 | Y117: 40 | Z117: 75 | AA117: 93 | AB117: 80 | AC117: 60 | AD117: 0 | AE117: 0 | AG117: 17 | AH117: Betterave fourragère, fraîche | AI117: 1000 | AJ117: 7.65 | AK117: 8.49 | AL117: 84.9 | AM117: 40.7 | AN117: 117.8 | AO117: 54.5 | AP117: 70 | AQ117: 3.7 | AR117: 47 | AS117: 812.3 | AT117: 596 | AU117: 933 | AV117: 67 | AW117: 2.1 | AX117: 2.2 | AY117: 1.3 | AZ117: 18 | BB117: 89 | BC117: 55 | BD117: 40 | BE117: 75 | BF117: 93 | BG117: 80 | BH117: 60 | BI117: 0 | BJ117: 0 | BK117: 60 | BL117: Bohne, Samen, getoastet | BM117: 1000 | BN117: 7.7 | BO117: 8.35 | BP117: 147.5 | BQ117: 173.8 | BR117: 105.2 | BS117: 162.9 | BT117: 257 | BU117: 17 | BV117: 53 | BW117: 624 | BX117: 53 | BY117: 951 | BZ117: 49 | CA117: 1.6 | CB117: 5.3 | CC117: 1.8 | CD117: 15 | CE117: 0 | CF117: 87 | CG117: 85 | CH117: 70 | CI117: 60 | CJ117: 90 | CK117: 67 | CL117: 85 | CM117: 403.6 | CN117: 75
A118: 18 | C118: Betterave sucrière, fraîche | D118: 1000 | E118: 7.71 | F118: 8.58 | G118: 84.4 | H118: 33.1 | I118: 119.8 | J118: 44.3 | K118: 57 | L118: 2 | M118: 47 | N118: 827 | O118: 676 | P118: 933 | Q118: 67 | R118: 2.1 | S118: 1.5 | T118: 1.3 | U118: 0 | V118: 0 | W118: 90 | X118: 55 | Y118: 30 | Z118: 75 | AA118: 93 | AB118: 80 | AC118: 60 | AD118: 0 | AE118: 0 | AG118: 18 | AH118: Betterave sucrière, fraîche | AI118: 1000 | AJ118: 7.71 | AK118: 8.58 | AL118: 84.4 | AM118: 33.1 | AN118: 119.8 | AO118: 44.3 | AP118: 57 | AQ118: 2 | AR118: 47 | AS118: 827 | AT118: 676 | AU118: 933 | AV118: 67 | AW118: 2.1 | AX118: 1.5 | AY118: 1.3 | AZ118: 9 | BB118: 90 | BC118: 55 | BD118: 30 | BE118: 75 | BF118: 93 | BG118: 80 | BH118: 60 | BI118: 0 | BJ118: 0 | BK118: 129 | BL118: Bruchreis | BM118: 1000 | BN118: 8.56 | BO118: 9.6 | BP118: 89.7 | BQ118: 60.5 | BR118: 84.9 | BS118: 44.1 | BT118: 88 | BU118: 9.9 | BV118: 3.2 | BW118: 890.9 | BX118: 48 | BY118: 992 | BZ118: 8 | CA118: 0.1 | CB118: 1.4 | CC118: 0.4 | CD118: 1 | CE118: 0 | CF118: 92 | CG118: 71 | CH118: 67 | CI118: 30 | CJ118: 94 | CK118: 55 | CL118: 80 | CM118: 840.5 | CN118: 75
A119: 19 | C119: Betteraves, pulpe, ensilée | D119: 1000 | E119: 7.17 | F119: 7.71 | G119: 105.6 | H119: 66.3 | I119: 106.2 | J119: 50.1 | K119: 100.1 | L119: 10 | M119: 211.8 | N119: 621.1 | O119: 18 | P119: 943 | Q119: 57 | R119: 7.5 | S119: 1.2 | T119: 2.6 | U119: 95 | V119: 95 | W119: 85 | X119: 60 | Y119: 30 | Z119: 80 | AA119: 92 | AB119: 55 | AC119: 75 | AD119: 0 | AE119: 0 | AG119: 19 | AH119: Betteraves, pulpe, ensilée | AI119: 1000 | AJ119: 7.17 | AK119: 7.71 | AL119: 105.6 | AM119: 66.3 | AN119: 106.2 | AO119: 50.1 | AP119: 100.1 | AQ119: 10 | AR119: 211.8 | AS119: 621.1 | AT119: 18 | AU119: 943 | AV119: 57 | AW119: 7.5 | AX119: 1.2 | AY119: 2.6 | AZ119: 7 | BA119: 95 | BB119: 85 | BC119: 60 | BD119: 30 | BE119: 80 | BF119: 92 | BG119: 55 | BH119: 75 | BI119: 0 | BJ119: 0 | BK119: 15 | BL119: Buttermilch frisch | BM119: 1000 | BN119: 8.45 | BO119: 9.36 | BP119: 99.9 | BQ119: 189.8 | BR119: 107.4 | BS119: 275.7 | BT119: 310.2 | BU119: 60.1 | BV119: 0 | BW119: 533.8 | BX119: 469 | BY119: 904.1 | BZ119: 96 | CA119: 11 | CB119: 9.7 | CC119: 1.1 | CD119: 17 | CE119: 0 | CF119: 92 | CG119: 90 | CH119: 90 | CI119: 0 | CJ119: 94 | CK119: 90 | CL119: 90 | CM119: 0 | CN119: 0
A120: 20 | C120: Betteraves, pulpe, séchée | D120: 1000 | E120: 7.24 | F120: 7.82 | G120: 109.8 | H120: 63.2 | I120: 108.7 | J120: 40.2 | K120: 90.2 | L120: 8.5 | M120: 206 | N120: 640.5 | O120: 66 | P120: 945.2 | Q120: 54.8 | R120: 7.8 | S120: 1 | T120: 2.1 | U120: 0 | V120: 0 | W120: 85 | X120: 60 | Y120: 30 | Z120: 80 | AA120: 92 | AB120: 50 | AC120: 80 | AD120: 0 | AE120: 0 | AG120: 20 | AH120: Betteraves, pulpe, séchée | AI120: 1000 | AJ120: 7.24 | AK120: 7.82 | AL120: 109.8 | AM120: 63.2 | AN120: 108.7 | AO120: 40.2 | AP120: 90.2 | AQ120: 8.5 | AR120: 206 | AS120: 640.5 | AT120: 66 | AU120: 945.2 | AV120: 54.8 | AW120: 7.8 | AX120: 1 | AY120: 2.1 | AZ120: 7 | BB120: 85 | BC120: 60 | BD120: 30 | BE120: 80 | BF120: 92 | BG120: 50 | BH120: 80 | BI120: 0 | BJ120: 0 | BK120: 16 | BL120: Buttermilchpulver | BM120: 1000 | BN120: 8.45 | BO120: 9.36 | BP120: 99.9 | BQ120: 189.8 | BR120: 107.4 | BS120: 275.7 | BT120: 310.2 | BU120: 60.1 | BV120: 0 | BW120: 533.8 | BX120: 421 | BY120: 887 | BZ120: 113 | CA120: 11 | CB120: 9.5 | CC120: 1 | CD120: 17 | CE120: 0 | CF120: 92 | CG120: 90 | CH120: 90 | CI120: 0 | CJ120: 94 | CK120: 90 | CL120: 90 | CM120: 0 | CN120: 0
A121: 21 | C121: Blé fourrager, grain | D121: 1000 | E121: 8.57 | F121: 9.57 | G121: 114 | H121: 91.8 | I121: 122.5 | J121: 98 | K121: 135.6 | L121: 15.7 | M121: 21.1 | N121: 810.7 | O121: 0 | P121: 983.1 | Q121: 17 | R121: 0 | S121: 0 | T121: 0 | U121: 0 | V121: 0 | W121: 91 | X121: 78 | Y121: 83 | Z121: 51 | AA121: 95 | AB121: 75 | AC121: 94 | AD121: 677.2 | AE121: 94 | AG121: 21 | AH121: Blé fourrager, grain | AI121: 1000 | AJ121: 8.57 | AK121: 9.57 | AL121: 114 | AM121: 91.8 | AN121: 122.5 | AO121: 98 | AP121: 135.6 | AQ121: 15.7 | AR121: 21.1 | AS121: 810.7 | AU121: 983.1 | AV121: 17 | BB121: 91 | BC121: 78 | BD121: 83 | BE121: 51 | BF121: 95 | BG121: 75 | BH121: 94 | BI121: 677.2 | BJ121: 94 | BK121: 122 | BL121: Ca-Kaseinpulver | BM121: 1000 | BN121: 8.83 | BO121: 9.35 | BP121: 168.5 | BQ121: 577.2 | BR121: 115.8 | BS121: 838.6 | BT121: 943.3 | BU121: 14.3 | BV121: 0 | BW121: 0 | BX121: 0 | BY121: 955 | BZ121: 45.1 | CA121: 0 | CB121: 0 | CC121: 0 | CD121: 0 | CE121: 0 | CF121: 95 | CG121: 95 | CH121: 90 | CI121: 0 | CJ121: 95 | CK121: 90 | CL121: 90 | CM121: 0 | CN121: 0
A122: 22 | C122: Blé germé, grain | D122: 1000 | E122: 7.61 | F122: 8.27 | G122: 100.1 | H122: 93.2 | I122: 111 | J122: 111.7 | K122: 147.7 | L122: 16.6 | M122: 22.3 | N122: 795.2 | O122: 32 | P122: 981.8 | Q122: 18.2 | R122: 0.5 | S122: 4.4 | T122: 1.2 | U122: 0 | V122: 0 | W122: 83 | X122: 72 | Y122: 76 | Z122: 35 | AA122: 87 | AB122: 78 | AC122: 80 | AD122: 664.3 | AE122: 94 | AG122: 22 | AH122: Blé germé, grain | AI122: 1000 | AJ122: 7.61 | AK122: 8.27 | AL122: 100.1 | AM122: 93.2 | AN122: 111 | AO122: 111.7 | AP122: 147.7 | AQ122: 16.6 | AR122: 22.3 | AS122: 795.2 | AT122: 32 | AU122: 981.8 | AV122: 18.2 | AW122: 0.5 | AX122: 4.4 | AY122: 1.2 | AZ122: 3 | BB122: 83 | BC122: 72 | BD122: 76 | BE122: 35 | BF122: 87 | BG122: 78 | BH122: 80 | BI122: 664.3 | BJ122: 94 | BK122: 58 | BL122: Dinkel, Körner | BM122: 1000 | BN122: 6.39 | BO122: 6.62 | BP122: 87.4 | BQ122: 86.9 | BR122: 90.8 | BS122: 100.3 | BT122: 136.7 | BU122: 19.8 | BV122: 142.1 | BW122: 671.5 | BX122: 30 | BY122: 970.1 | BZ122: 29.9 | CA122: 0.7 | CB122: 4.3 | CC122: 1.1 | CD122: 4 | CE122: 0 | CF122: 73 | CG122: 76 | CH122: 80 | CI122: 46 | CJ122: 78 | CK122: 76 | CL122: 80 | CM122: 479.6 | CN122: 94
A123: 23 | C123: Blé grain expandé | D123: 1000 | E123: 8.5 | F123: 9.46 | G123: 132.3 | H123: 111.3 | I123: 117.9 | J123: 94.9 | K123: 155.2 | L123: 19.5 | M123: 20.5 | N123: 779.4 | O123: 0 | P123: 974.6 | Q123: 25.4 | R123: 0 | S123: 0 | T123: 0 | U123: 0 | V123: 0 | W123: 91 | X123: 78 | Y123: 83 | Z123: 51 | AA123: 95 | AB123: 65 | AC123: 94 | AD123: 651.1 | AE123: 94 | AG123: 23 | AH123: Blé grain expandé | AI123: 1000 | AJ123: 8.5 | AK123: 9.46 | AL123: 132.3 | AM123: 111.3 | AN123: 117.9 | AO123: 94.9 | AP123: 155.2 | AQ123: 19.5 | AR123: 20.5 | AS123: 779.4 | AU123: 974.6 | AV123: 25.4 | BB123: 91 | BC123: 78 | BD123: 83 | BE123: 51 | BF123: 95 | BG123: 65 | BH123: 94 | BI123: 651.1 | BJ123: 94 | BK123: 5 | BL123: Erdnuss-Extraktionsschrot a. entschälter Saat | BM123: 1000 | BN123: 7.6 | BO123: 8 | BP123: 205 | BQ123: 388 | BR123: 92 | BS123: 422 | BT123: 575 | BU123: 22 | BV123: 74 | BW123: 270 | BX123: 107 | BY123: 941 | BZ123: 59 | CA123: 1.5 | CB123: 7.2 | CC123: 3.7 | CD123: 13 | CE123: 0 | CF123: 86 | CG123: 90 | CH123: 80 | CI123: 40 | CJ123: 90 | CK123: 76 | CL123: 95 | CM123: 88.5 | CN123: 0
A124: 24 | C124: Blé, amidon de | D124: 1000 | E124: 8.78 | F124: 9.96 | G124: 73.2 | H124: 18.1 | I124: 101.7 | J124: 17.6 | K124: 26.4 | L124: 4.2 | M124: 4.6 | N124: 958 | O124: 0 | P124: 993.2 | Q124: 6.8 | R124: 0 | S124: 0 | T124: 0 | U124: 0 | V124: 0 | W124: 94 | X124: 60 | Y124: 60 | Z124: 30 | AA124: 95 | AB124: 70 | AC124: 90 | AD124: 879.1 | AE124: 75 | AG124: 24 | AH124: Blé, amidon de | AI124: 1000 | AJ124: 8.78 | AK124: 9.96 | AL124: 73.2 | AM124: 18.1 | AN124: 101.7 | AO124: 17.6 | AP124: 26.4 | AQ124: 4.2 | AR124: 4.6 | AS124: 958 | AU124: 993.2 | AV124: 6.8 | BB124: 94 | BC124: 60 | BD124: 60 | BE124: 30 | BF124: 95 | BG124: 70 | BH124: 90 | BI124: 879.1 | BJ124: 75 | BK124: 3 | BL124: Erdnusskuchen | BM124: 1000 | BN124: 8.65 | BO124: 9.25 | BP124: 196.4 | BQ124: 373.1 | BR124: 88.3 | BS124: 405.1 | BT124: 552.3 | BU124: 78 | BV124: 65.7 | BW124: 257.2 | BX124: 0 | BY124: 953.2 | BZ124: 46.8 | CA124: 0 | CB124: 0 | CC124: 0 | CD124: 0 | CE124: 0 | CF124: 86 | CG124: 90 | CH124: 90 | CI124: 40 | CJ124: 90 | CK124: 76 | CL124: 95 | CM124: 0 | CN124: 0
A125: 25 | C125: Blé, farine fourragère 1re (claire) | D125: 1000 | E125: 8.88 | F125: 9.92 | G125: 114.8 | H125: 118.9 | I125: 121.5 | J125: 142.5 | K125: 188.5 | L125: 30.6 | M125: 12.9 | N125: 746.8 | O125: 74 | P125: 978.8 | Q125: 21.2 | R125: 0.5 | S125: 4.5 | T125: 1.4 | U125: 0 | V125: 0 | W125: 93 | X125: 85 | Y125: 82 | Z125: 47 | AA125: 96 | AB125: 78 | AC125: 80 | AD125: 565.8 | AE125: 94 | AG125: 25 | AH125: Blé, farine fourragère 1re (claire) | AI125: 1000 | AJ125: 8.88 | AK125: 9.92 | AL125: 114.8 | AM125: 118.9 | AN125: 121.5 | AO125: 142.5 | AP125: 188.5 | AQ125: 30.6 | AR125: 12.9 | AS125: 746.8 | AT125: 74 | AU125: 978.8 | AV125: 21.2 | AW125: 0.5 | AX125: 4.5 | AY125: 1.4 | AZ125: 4 | BB125: 93 | BC125: 85 | BD125: 82 | BE125: 47 | BF125: 96 | BG125: 78 | BH125: 80 | BI125: 565.8 | BJ125: 94 | BK125: 4 | BL125: Erdnusskuchen entschälter Saat | BM125: 1000 | BN125: 8.5 | BO125: 9.1 | BP125: 194 | BQ125: 366 | BR125: 88 | BS125: 398 | BT125: 542 | BU125: 77 | BV125: 70 | BW125: 255 | BX125: 73 | BY125: 944 | BZ125: 56 | CA125: 1.5 | CB125: 6.6 | CC125: 3.6 | CD125: 14 | CE125: 0 | CF125: 86 | CG125: 90 | CH125: 90 | CI125: 40 | CJ125: 90 | CK125: 76 | CL125: 95 | CM125: 42.2 | CN125: 0
A126: 26 | C126: Blé, farine fourragère 2e (foncée) | D126: 1000 | E126: 7.69 | F126: 8.29 | G126: 101.4 | H126: 117.4 | I126: 101.3 | J126: 140.8 | K126: 186.2 | L126: 50.6 | M126: 46.7 | N126: 680.5 | O126: 64 | P126: 964 | Q126: 36 | R126: 1.2 | S126: 8.8 | T126: 2.9 | U126: 0 | V126: 0 | W126: 82 | X126: 81 | Y126: 75 | Z126: 33 | AA126: 86 | AB126: 78 | AC126: 80 | AD126: 440 | AE126: 94 | AG126: 26 | AH126: Blé, farine fourragère 2e (foncée) | AI126: 1000 | AJ126: 7.69 | AK126: 8.29 | AL126: 101.4 | AM126: 117.4 | AN126: 101.3 | AO126: 140.8 | AP126: 186.2 | AQ126: 50.6 | AR126: 46.7 | AS126: 680.5 | AT126: 64 | AU126: 964 | AV126: 36 | AW126: 1.2 | AX126: 8.8 | AY126: 2.9 | AZ126: 9 | BB126: 82 | BC126: 81 | BD126: 75 | BE126: 33 | BF126: 86 | BG126: 78 | BH126: 80 | BI126: 440 | BJ126: 94 | BK126: 110 | BL126: Federmehl aufgeschlossen | BM126: 1000 | BN126: 8.4 | BO126: 8.7 | BP126: 494 | BQ126: 595 | BR126: 19 | BS126: 197 | BT126: 885 | BU126: 67 | BV126: 9 | BW126: 13 | BX126: 0 | BY126: 974 | BZ126: 26 | CA126: 5.2 | CB126: 3.6 | CC126: 0.4 | CD126: 1 | CE126: 0 | CF126: 84 | CG126: 86 | CH126: 84 | CI126: 0 | CJ126: 0 | CK126: 30 | CL126: 70 | CM126: 0 | CN126: 0
A127: 27 | C127: Blé, germe | D127: 1000 | E127: 9.4 | F127: 10.42 | G127: 122.9 | H127: 197.9 | I127: 100.3 | J127: 241.9 | K127: 320 | L127: 101 | M127: 25.9 | N127: 501.5 | O127: 128 | P127: 948.4 | Q127: 51.6 | R127: 0.8 | S127: 12.4 | T127: 3.1 | U127: 0 | V127: 0 | W127: 91 | X127: 90 | Y127: 90 | Z127: 40 | AA127: 94 | AB127: 78 | AC127: 75 | AD127: 245 | AE127: 94 | AG127: 27 | AH127: Blé, germe | AI127: 1000 | AJ127: 9.4 | AK127: 10.42 | AL127: 122.9 | AM127: 197.9 | AN127: 100.3 | AO127: 241.9 | AP127: 320 | AQ127: 101 | AR127: 25.9 | AS127: 501.5 | AT127: 128 | AU127: 948.4 | AV127: 51.6 | AW127: 0.8 | AX127: 12.4 | AY127: 3.1 | AZ127: 11 | BB127: 91 | BC127: 90 | BD127: 90 | BE127: 40 | BF127: 94 | BG127: 78 | BH127: 75 | BI127: 245 | BJ127: 94 | BK127: 113 | BL127: Fischmehl 64 % RP | BM127: 1000 | BN127: 7.83 | BO127: 8.29 | BP127: 418.1 | BQ127: 541.1 | BR127: 28.6 | BS127: 245.8 | BT127: 690 | BU127: 103 | BV127: 5 | BW127: 7 | BX127: 0 | BY127: 805 | BZ127: 195 | CA127: 47.9 | CB127: 28.1 | CC127: 2.5 | CD127: 11 | CE127: 0 | CF127: 87 | CG127: 88 | CH127: 86 | CI127: 30 | CJ127: 50 | CK127: 42 | CL127: 90 | CM127: 0 | CN127: 0
A128: 28 | C128: Blé, gluten | D128: 1000 | E128: 9.36 | F128: 10.04 | G128: 256.9 | H128: 549.1 | I128: 102.7 | J128: 621.8 | K128: 860.6 | L128: 26.9 | M128: 3.9 | N128: 98.3 | O128: 4 | P128: 989.7 | Q128: 10.3 | R128: 1 | S128: 2.2 | T128: 0.5 | U128: 0 | V128: 0 | W128: 96 | X128: 96 | Y128: 90 | Z128: 40 | AA128: 97 | AB128: 75 | AC128: 80 | AD128: 61.8 | AE128: 0 | AG128: 28 | AH128: Blé, gluten | AI128: 1000 | AJ128: 9.36 | AK128: 10.04 | AL128: 256.9 | AM128: 549.1 | AN128: 102.7 | AO128: 621.8 | AP128: 860.6 | AQ128: 26.9 | AR128: 3.9 | AS128: 98.3 | AT128: 4 | AU128: 989.7 | AV128: 10.3 | AW128: 1 | AX128: 2.2 | AY128: 0.5 | AZ128: 1 | BB128: 96 | BC128: 96 | BD128: 90 | BE128: 40 | BF128: 97 | BG128: 75 | BH128: 80 | BI128: 61.8 | BJ128: 0 | BK128: 114 | BL128: Fischmehl 70/72 % RP Heringtyp | BM128: 1000 | BN128: 8.49 | BO128: 9 | BP128: 463.5 | BQ128: 601.3 | BR128: 30.1 | BS128: 273.1 | BT128: 766.7 | BU128: 108.6 | BV128: 2.7 | BW128: 0 | BX128: 0 | BY128: 864.6 | BZ128: 135.4 | CA128: 26.6 | CB128: 22.9 | CC128: 2 | CD128: 11 | CE128: 0 | CF128: 88 | CG128: 88 | CH128: 86 | CI128: 30 | CJ128: 50 | CK128: 42 | CL128: 90 | CM128: 0 | CN128: 0
A129: 29 | C129: Blé, grain | D129: 1000 | E129: 8.5 | F129: 9.46 | G129: 118.5 | H129: 105.4 | I129: 121.4 | J129: 112.5 | K129: 155.7 | L129: 16.3 | M129: 23.3 | N129: 785.7 | O129: 32 | P129: 981 | Q129: 19.1 | R129: 0.5 | S129: 4.4 | T129: 1.2 | U129: 0 | V129: 0 | W129: 91 | X129: 78 | Y129: 83 | Z129: 51 | AA129: 95 | AB129: 75 | AC129: 94 | AD129: 656.3 | AE129: 94 | AG129: 29 | AH129: Blé, grain | AI129: 1000 | AJ129: 8.5 | AK129: 9.46 | AL129: 118.5 | AM129: 105.4 | AN129: 121.4 | AO129: 112.5 | AP129: 155.7 | AQ129: 16.3 | AR129: 23.3 | AS129: 785.7 | AT129: 32 | AU129: 981 | AV129: 19.1 | AW129: 0.5 | AX129: 4.4 | AY129: 1.2 | AZ129: 4 | BB129: 91 | BC129: 78 | BD129: 83 | BE129: 51 | BF129: 95 | BG129: 75 | BH129: 94 | BI129: 656.3 | BJ129: 94 | BK129: 157 | BL129: Fleischknochenmehl 40 % RP | BM129: 1000 | BN129: 5.1 | BO129: 5.3 | BP129: 148 | BQ129: 278 | BR129: 26 | BS129: 254 | BT129: 457 | BU129: 84 | BV129: 9 | BW129: 12 | BX129: 0 | BY129: 562 | BZ129: 438 | CA129: 149.8 | CB129: 73.1 | CC129: 2.3 | CD129: 8 | CE129: 0 | CF129: 79 | CG129: 80 | CH129: 86 | CI129: 30 | CJ129: 40 | CK129: 60 | CL129: 65 | CM129: 0 | CN129: 0
A130: 30 | C130: Blé, remoulage | D130: 1000 | E130: 7.35 | F130: 7.84 | G130: 100.4 | H130: 122.1 | I130: 97.6 | J130: 146.3 | K130: 193.6 | L130: 45.8 | M130: 56.3 | N130: 668.1 | O130: 65 | P130: 963.8 | Q130: 36.3 | R130: 1.2 | S130: 8.5 | T130: 2.8 | U130: 0 | V130: 0 | W130: 79 | X130: 81 | Y130: 75 | Z130: 33 | AA130: 83 | AB130: 78 | AC130: 80 | AD130: 390.7 | AE130: 94 | AG130: 30 | AH130: Blé, remoulage | AI130: 1000 | AJ130: 7.35 | AK130: 7.84 | AL130: 100.4 | AM130: 122.1 | AN130: 97.6 | AO130: 146.3 | AP130: 193.6 | AQ130: 45.8 | AR130: 56.3 | AS130: 668.1 | AT130: 65 | AU130: 963.8 | AV130: 36.3 | AW130: 1.2 | AX130: 8.5 | AY130: 2.8 | AZ130: 7 | BB130: 79 | BC130: 81 | BD130: 75 | BE130: 33 | BF130: 83 | BG130: 78 | BH130: 80 | BI130: 390.7 | BJ130: 94 | BK130: 156 | BL130: Fleischmehl 60% RP | BM130: 1000 | BN130: 7.4 | BO130: 7.7 | BP130: 216 | BQ130: 391 | BR130: 47 | BS130: 358 | BT130: 643 | BU130: 89 | BV130: 29 | BW130: 32 | BX130: 0 | BY130: 793 | BZ130: 207 | CA130: 61.7 | CB130: 32.2 | CC130: 1.6 | CD130: 6 | CE130: 0 | CF130: 85 | CG130: 89 | CH130: 86 | CI130: 30 | CJ130: 50 | CK130: 60 | CL130: 65 | CM130: 0 | CN130: 0
A131: 31 | C131: Blé, son | D131: 1000 | E131: 6.14 | F131: 6.29 | G131: 99.9 | H131: 116.3 | I131: 81.4 | J131: 119.3 | K131: 178.8 | L131: 45.4 | M131: 114.2 | N131: 591.9 | O131: 66 | P131: 930.3 | Q131: 69.7 | R131: 1.5 | S131: 14 | T131: 4.7 | U131: 0 | V131: 0 | W131: 71 | X131: 78 | Y131: 69 | Z131: 31 | AA131: 76 | AB131: 70 | AC131: 80 | AD131: 156 | AE131: 0 | AG131: 31 | AH131: Blé, son | AI131: 1000 | AJ131: 6.14 | AK131: 6.29 | AL131: 99.9 | AM131: 116.3 | AN131: 81.4 | AO131: 119.3 | AP131: 178.8 | AQ131: 45.4 | AR131: 114.2 | AS131: 591.9 | AT131: 66 | AU131: 930.3 | AV131: 69.7 | AW131: 1.5 | AX131: 14 | AY131: 4.7 | AZ131: 13 | BB131: 71 | BC131: 78 | BD131: 69 | BE131: 31 | BF131: 76 | BG131: 70 | BH131: 80 | BI131: 156 | BJ131: 0 | BK131: 71 | BL131: Futterhefe | BM131: 1000 | BN131: 7.38 | BO131: 7.73 | BP131: 145.7 | BQ131: 327 | BR131: 89 | BS131: 414.1 | BT131: 532.2 | BU131: 41.2 | BV131: 7.4 | BW131: 347.5 | BX131: 3 | BY131: 928.3 | BZ131: 71.7 | CA131: 7.3 | CB131: 15.6 | CC131: 1.2 | CD131: 13 | CE131: 0 | CF131: 82 | CG131: 82 | CH131: 61 | CI131: 50 | CJ131: 88 | CK131: 80 | CL131: 75 | CM131: 52 | CN131: 0
A132: 32 | C132: Boulangerie, déchets | D132: 1000 | E132: 8.4 | F132: 9.4 | G132: 114 | H132: 98 | I132: 115 | J132: 100 | K132: 150 | L132: 26 | M132: 9 | N132: 784 | O132: 58 | P132: 969 | Q132: 31 | R132: 0.4 | S132: 2.3 | T132: 1 | U132: 0 | V132: 0 | W132: 90 | X132: 85 | Y132: 82 | Z132: 47 | AA132: 92 | AB132: 70 | AC132: 80 | AD132: 594.1 | AE132: 94 | AG132: 32 | AH132: Boulangerie, déchets | AI132: 1000 | AJ132: 8.4 | AK132: 9.4 | AL132: 114 | AM132: 98 | AN132: 115 | AO132: 100 | AP132: 150 | AQ132: 26 | AR132: 9 | AS132: 784 | AT132: 58 | AU132: 969 | AV132: 31 | AW132: 0.4 | AX132: 2.3 | AY132: 1 | AZ132: 4 | BB132: 90 | BC132: 85 | BD132: 82 | BE132: 47 | BF132: 92 | BG132: 70 | BH132: 80 | BI132: 594.1 | BJ132: 94 | BK132: 116 | BL132: Futterkartoffel, Knolle frisch | BM132: 1000 | BN132: 7.57 | BO132: 8.38 | BP132: 74.9 | BQ132: 56.9 | BR132: 91.5 | BS132: 70.8 | BT132: 91 | BU132: 3 | BV132: 23 | BW132: 812 | BX132: 37 | BY132: 929 | BZ132: 71 | CA132: 1 | CB132: 2.5 | CC132: 1 | CD132: 22 | CE132: 0 | CF132: 89 | CG132: 55 | CH132: 30 | CI132: 70 | CJ132: 93 | CK132: 80 | CL132: 80 | CM132: 697 | CN132: 75
A133: =IF($H$42=1,AG133,BK133) -> 33 | C133: =IF($H$42=1,AH133,BL133) -> Cacao, pelures | D133: =IF($H$42=1,AI133,BM133) -> 1000 | E133: =IF($H$42=1,AJ133,BN133) -> 2.2 | F133: =IF($H$42=1,AK133,BO133) -> 1.6 | G133: =IF($H$42=1,AL133,BP133) -> 29 | H133: =IF($H$42=1,AM133,BQ133) -> 72 | I133: =IF($H$42=1,AN133,BR133) -> 20 | J133: =IF($H$42=1,AO133,BS133) -> 98 | K133: =IF($H$42=1,AP133,BT133) -> 177 | L133: =IF($H$42=1,AQ133,BU133) -> 51 | M133: =IF($H$42=1,AR133,BV133) -> 183 | N133: =IF($H$42=1,AS133,BW133) -> 502 | O133: =IF($H$42=1,AT133,BX133) -> 36 | P133: =IF($H$42=1,AU133,BY133) -> 913 | Q133: =IF($H$42=1,AV133,BZ133) -> 87 | R133: =IF($H$42=1,AW133,CA133) -> 3.4 | S133: =IF($H$42=1,AX133,CB133) -> 4.2 | T133: =IF($H$42=1,AY133,CC133) -> 5.2 | U133: =IF($H$42=1,BA133,CD133) -> 0 | V133: 0 | W133: 29 | X133: 15 | Y133: 50 | Z133: 32 | AA133: 30 | AB133: 60 | AC133: 20 | AD133: 89 | AE133: 0 | AG133: 33 | AH133: Cacao, pelures | AI133: 1000 | AJ133: 2.2 | AK133: 1.6 | AL133: 29 | AM133: 72 | AN133: 20 | AO133: 98 | AP133: 177 | AQ133: 51 | AR133: 183 | AS133: 502 | AT133: 36 | AU133: 913 | AV133: 87 | AW133: 3.4 | AX133: 4.2 | AY133: 5.2 | AZ133: 30 | BB133: 29 | BC133: 15 | BD133: 50 | BE133: 32 | BF133: 30 | BG133: 60 | BH133: 20 | BI133: 89 | BJ133: 0 | BK133: 124 | BL133: Futterprotein Protorsan 70% RP | BM133: 1000 | BN133: 8.75 | BO133: 9.26 | BP133: 124.6 | BQ133: 433.1 | BR133: 105.2 | BS133: 652.9 | BT133: 734.4 | BU133: 75.6 | BV133: 11.7 | BW133: 139.5 | BX133: 5 | BY133: 961.2 | BZ133: 38.8 | CA133: 2.7 | CB133: 14 | CC133: 2.1 | CD133: 3 | CE133: 0 | CF133: 91 | CG133: 94 | CH133: 61 | CI133: 50 | CJ133: 88 | CK133: 90 | CL133: 70 | CM133: 0 | CN133: 0
A134: 34 | C134: Café, marc | D134: 1000 | E134: 2.18 | F134: 1.33 | G134: 19.2 | H134: 35.1 | I134: 0 | J134: 27.6 | K134: 123.7 | L134: 211.2 | M134: 459.4 | N134: 191.4 | O134: 14 | P134: 985.7 | Q134: 14.3 | R134: 1.9 | S134: 0.6 | T134: 0.7 | U134: 0 | V134: =IF($H$42=1,BA134,CE134) -> 0 | W134: 18 | X134: 9 | Y134: 40 | Z134: 7 | AA134: 21 | AB134: 30 | AC134: 20 | AD134: 0 | AE134: 0 | AG134: 34 | AH134: Café, marc | AI134: 1000 | AJ134: 2.18 | AK134: 1.33 | AL134: 19.2 | AM134: 35.1 | AN134: 0 | AO134: 27.6 | AP134: 123.7 | AQ134: 211.2 | AR134: 459.4 | AS134: 191.4 | AT134: 14 | AU134: 985.7 | AV134: 14.3 | AW134: 1.9 | AX134: 0.6 | AY134: 0.7 | AZ134: 2 | BB134: 18 | BC134: 9 | BD134: 40 | BE134: 7 | BF134: 21 | BG134: 30 | BH134: 20 | BI134: 0 | BJ134: 0 | BK134: 17 | BL134: Futterrübe | BM134: 1000 | BN134: 7.65 | BO134: 8.49 | BP134: 84.9 | BQ134: 40.7 | BR134: 117.8 | BS134: 54.5 | BT134: 70 | BU134: 3.7 | BV134: 47 | BW134: 812.3 | BX134: 596 | BY134: 933 | BZ134: 67 | CA134: 2.1 | CB134: 2.2 | CC134: 1.3 | CD134: 18 | CE134: 0 | CF134: 89 | CG134: 55 | CH134: 40 | CI134: 75 | CJ134: 93 | CK134: 80 | CL134: 60 | CM134: 0 | CN134: 0
A135: 35 | C135: Carotte rouge | D135: 1000 | E135: 6.96 | F135: 7.54 | G135: 82 | H135: 81.8 | I135: 104.3 | J135: 115.9 | K135: 139 | L135: 17 | M135: 73 | N135: 662 | O135: 110 | P135: 891 | Q135: 109 | R135: 2.7 | S135: 2.7 | T135: 2.1 | U135: 0 | V135: 0 | W135: 85 | X135: 65 | Y135: 64 | Z135: 79 | AA135: 90 | AB135: 85 | AC135: 65 | AD135: 0 | AE135: 0 | AG135: 35 | AH135: Carotte rouge | AI135: 1000 | AJ135: 6.96 | AK135: 7.54 | AL135: 82 | AM135: 81.8 | AN135: 104.3 | AO135: 115.9 | AP135: 139 | AQ135: 17 | AR135: 73 | AS135: 662 | AT135: 110 | AU135: 891 | AV135: 109 | AW135: 2.7 | AX135: 2.7 | AY135: 2.1 | AZ135: 33 | BB135: 85 | BC135: 65 | BD135: 64 | BE135: 79 | BF135: 90 | BG135: 85 | BH135: 65 | BI135: 0 | BJ135: 0 | BK135: 21 | BL135: Futterweizen, Körner | BM135: 1000 | BN135: 8.57 | BO135: 9.57 | BP135: 114 | BQ135: 91.8 | BR135: 122.5 | BS135: 98 | BT135: 135.6 | BU135: 15.7 | BV135: 21.1 | BW135: 810.7 | BX135: 0 | BY135: 983.1 | BZ135: 17 | CA135: 0 | CB135: 0 | CC135: 0 | CD135: 0 | CE135: 0 | CF135: 91 | CG135: 78 | CH135: 83 | CI135: 51 | CJ135: 95 | CK135: 75 | CL135: 94 | CM135: 677.2 | CN135: 94
A136: 36 | C136: Carotte, racine | D136: 1000 | E136: 7.5 | F136: 8.28 | G136: 82.1 | H136: 56.5 | I136: 111.8 | J136: 80 | K136: 96 | L136: 15 | M136: 91 | N136: 697 | O136: 256 | P136: 899 | Q136: 101 | R136: 3 | S136: 3 | T136: 1.9 | U136: 0 | V136: 0 | W136: 89 | X136: 60 | Y136: 77 | Z136: 86 | AA136: 94 | AB136: 85 | AC136: 65 | AD136: 0 | AE136: 0 | AG136: 36 | AH136: Carotte, racine | AI136: 1000 | AJ136: 7.5 | AK136: 8.28 | AL136: 82.1 | AM136: 56.5 | AN136: 111.8 | AO136: 80 | AP136: 96 | AQ136: 15 | AR136: 91 | AS136: 697 | AT136: 256 | AU136: 899 | AV136: 101 | AW136: 3 | AX136: 3 | AY136: 1.9 | AZ136: 26 | BB136: 89 | BC136: 60 | BD136: 77 | BE136: 86 | BF136: 94 | BG136: 85 | BH136: 65 | BI136: 0 | BJ136: 0 | BK136: 102 | BL136: Gerste, Körner leicht (55 - 61 kg/hl) | BM136: 1000 | BN136: 7.47 | BO136: 8.09 | BP136: 99.6 | BQ136: 79.1 | BR136: 108.9 | BS136: 85.9 | BT136: 118.8 | BU136: 24.6 | BV136: 59.8 | BW136: 767.4 | BX136: 26 | BY136: 970.6 | BZ136: 29.4 | CA136: 0.6 | CB136: 4.5 | CC136: 1.2 | CD136: 6 | CE136: 0 | CF136: 83 | CG136: 73 | CH136: 70 | CI136: 35 | CJ136: 88 | CK136: 75 | CL136: 90 | CM136: 593.1 | CN136: 89
A137: 37 | C137: Caroube, farine de gousses | D137: 1000 | E137: 6.01 | F137: 6.23 | G137: 82.1 | H137: 45.1 | I137: 96.7 | J137: 43.4 | K137: 68.5 | L137: 10 | M137: 101.1 | N137: 778.3 | O137: 415 | P137: 957.9 | Q137: 42.1 | R137: 5.2 | S137: 1 | T137: 0.6 | U137: 0 | V137: 0 | W137: 73 | X137: 16 | Y137: 60 | Z137: 47 | AA137: 80 | AB137: 67 | AC137: 80 | AD137: 0 | AE137: 0 | AG137: 37 | AH137: Caroube, farine de gousses | AI137: 1000 | AJ137: 6.01 | AK137: 6.23 | AL137: 82.1 | AM137: 45.1 | AN137: 96.7 | AO137: 43.4 | AP137: 68.5 | AQ137: 10 | AR137: 101.1 | AS137: 778.3 | AT137: 415 | AU137: 957.9 | AV137: 42.1 | AW137: 5.2 | AX137: 1 | AY137: 0.6 | AZ137: 8 | BB137: 73 | BC137: 16 | BD137: 60 | BE137: 47 | BF137: 80 | BG137: 67 | BH137: 80 | BI137: 0 | BJ137: 0 | BK137: 104 | BL137: Gerste, Körner mittel (62 - 69 kg/hl) | BM137: 1000 | BN137: 7.77 | BO137: 8.49 | BP137: 100.9 | BQ137: 77.4 | BR137: 112 | BS137: 84 | BT137: 116.3 | BU137: 26.2 | BV137: 48.4 | BW137: 783.1 | BX137: 27 | BY137: 974 | BZ137: 26 | CA137: 0.6 | CB137: 4.5 | CC137: 1.2 | CD137: 6 | CE137: 0 | CF137: 85 | CG137: 73 | CH137: 70 | CI137: 35 | CJ137: 90 | CK137: 75 | CL137: 90 | CM137: 600.7 | CN137: 89
A138: 38 | C138: Caséine, poudre | D138: 1000 | E138: 8.7 | F138: 9.2 | G138: 163 | H138: 559 | I138: 112 | J138: 813 | K138: 914 | L138: 14 | M138: 0 | N138: 17 | O138: 0 | P138: 945 | Q138: 55 | R138: 2.6 | S138: 7.7 | T138: 0.2 | U138: 0 | V138: 0 | W138: 95 | X138: 95 | Y138: 90 | Z138: 0 | AA138: 95 | AB138: 90 | AC138: 90 | AD138: 0 | AE138: 0 | AG138: 38 | AH138: Caséine, poudre | AI138: 1000 | AJ138: 8.7 | AK138: 9.2 | AL138: 163 | AM138: 559 | AN138: 112 | AO138: 813 | AP138: 914 | AQ138: 14 | AR138: 0 | AS138: 17 | AT138: 0 | AU138: 945 | AV138: 55 | AW138: 2.6 | AX138: 7.7 | AY138: 0.2 | AZ138: 1 | BB138: 95 | BC138: 95 | BD138: 90 | BE138: 0 | BF138: 95 | BG138: 90 | BH138: 90 | BI138: 0 | BJ138: 0 | BK138: 103 | BL138: Gerste, Körner vollkörnig (70 - 74 kg/hl) | BM138: 1000 | BN138: 7.96 | BO138: 8.72 | BP138: 108.3 | BQ138: 93.6 | BR138: 114.1 | BS138: 101.5 | BT138: 140.5 | BU138: 26.4 | BV138: 40.5 | BW138: 767.6 | BX138: 27 | BY138: 975 | BZ138: 25 | CA138: 0.6 | CB138: 4.5 | CC138: 1.2 | CD138: 6 | CE138: 0 | CF138: 87 | CG138: 73 | CH138: 70 | CI138: 35 | CJ138: 92 | CK138: 75 | CL138: 90 | CM138: 612.9 | CN138: 89
A139: 39 | C139: Choux-rave | D139: 1000 | E139: 7.26 | F139: 7.94 | G139: 86.9 | H139: 69.9 | I139: 108.9 | J139: 91.8 | K139: 118 | L139: 12 | M139: 111 | N139: 663 | O139: 401 | P139: 904 | Q139: 96 | R139: 5.1 | S139: 4 | T139: 1.6 | U139: 0 | V139: 0 | W139: 87 | X139: 70 | Y139: 60 | Z139: 82 | AA139: 92 | AB139: 80 | AC139: 65 | AD139: 0 | AE139: 0 | AG139: 39 | AH139: Choux-rave | AI139: 1000 | AJ139: 7.26 | AK139: 7.94 | AL139: 86.9 | AM139: 69.9 | AN139: 108.9 | AO139: 91.8 | AP139: 118 | AQ139: 12 | AR139: 111 | AS139: 663 | AT139: 401 | AU139: 904 | AV139: 96 | AW139: 5.1 | AX139: 4 | AY139: 1.6 | AZ139: 30 | BB139: 87 | BC139: 70 | BD139: 60 | BE139: 82 | BF139: 92 | BG139: 80 | BH139: 65 | BI139: 0 | BJ139: 0 | BK139: 101 | BL139: Gerstenflocken | BM139: 1000 | BN139: 8.98 | BO139: 10.15 | BP139: 123.5 | BQ139: 77.8 | BR139: 128.8 | BS139: 64 | BT139: 115.2 | BU139: 13.2 | BV139: 8.6 | BW139: 849.8 | BX139: 15 | BY139: 987 | BZ139: 13 | CA139: 0.5 | CB139: 3 | CC139: 0.6 | CD139: 3 | CE139: 0 | CF139: 96 | CG139: 90 | CH139: 41 | CI139: 21 | CJ139: 98 | CK139: 60 | CL139: 80 | CM139: 722.1 | CN139: 89
A140: 40 | C140: Colza 00, tourteau de pression | D140: 1000 | E140: 7.69 | F140: 8.11 | G140: 129.6 | H140: 225.8 | I140: 75.1 | J140: 250.8 | K140: 352.6 | L140: 100.7 | M140: 111.3 | N140: 358.1 | O140: 0 | P140: 922.7 | Q140: 77.3 | R140: 0 | S140: 0 | T140: 0 | U140: 0 | V140: 0 | W140: 77 | X140: 83 | Y140: 90 | Z140: 28 | AA140: 83 | AB140: 74 | AC140: 80 | AD140: 0 | AE140: 0 | AG140: 40 | AH140: Colza 00, tourteau de pression | AI140: 1000 | AJ140: 7.69 | AK140: 8.11 | AL140: 129.6 | AM140: 225.8 | AN140: 75.1 | AO140: 250.8 | AP140: 352.6 | AQ140: 100.7 | AR140: 111.3 | AS140: 358.1 | AU140: 922.7 | AV140: 77.3 | BB140: 77 | BC140: 83 | BD140: 90 | BE140: 28 | BF140: 83 | BG140: 74 | BH140: 80 | BI140: 0 | BJ140: 0 | BK140: 100 | BL140: Gerstenfuttermehl | BM140: 1000 | BN140: 7.7 | BO140: 8.37 | BP140: 98.5 | BQ140: 86.2 | BR140: 106.7 | BS140: 97.4 | BT140: 130.8 | BU140: 30.3 | BV140: 55.9 | BW140: 754.1 | BX140: 72 | BY140: 971.1 | BZ140: 28.9 | CA140: 0.7 | CB140: 5.5 | CC140: 1.6 | CD140: 7 | CE140: 0 | CF140: 82 | CG140: 73 | CH140: 70 | CI140: 35 | CJ140: 90 | CK140: 77 | CL140: 90 | CM140: 413 | CN140: 89
A141: 41 | C141: Colza 00, tourteau d'extraction 1.3 - 2.5 % MG | D141: 1000 | E141: 6.41 | F141: 6.56 | G141: 142.1 | H141: 248.9 | I141: 81.6 | J141: 276.4 | K141: 388.6 | L141: 23.8 | M141: 116.4 | N141: 388.1 | O141: 0 | P141: 916.9 | Q141: 83.1 | R141: 0 | S141: 0 | T141: 0 | U141: 0 | V141: 0 | W141: 75 | X141: 83 | Y141: 80 | Z141: 24 | AA141: 83 | AB141: 74 | AC141: 80 | AD141: 0 | AE141: 0 | AG141: 41 | AH141: Colza 00, tourteau d'extraction 1.3 - 2.5 % MG | AI141: 1000 | AJ141: 6.41 | AK141: 6.56 | AL141: 142.1 | AM141: 248.9 | AN141: 81.6 | AO141: 276.4 | AP141: 388.6 | AQ141: 23.8 | AR141: 116.4 | AS141: 388.1 | AU141: 916.9 | AV141: 83.1 | BB141: 75 | BC141: 83 | BD141: 80 | BE141: 24 | BF141: 83 | BG141: 74 | BH141: 80 | BI141: 0 | BJ141: 0 | BK141: 105 | BL141: Gerstenschälmehl | BM141: 1000 | BN141: 6.42 | BO141: 6.65 | BP141: 81.9 | BQ141: 79.8 | BR141: 89.3 | BS141: 95.8 | BT141: 128.7 | BU141: 41.6 | BV141: 133 | BW141: 650.7 | BX141: 66 | BY141: 954 | BZ141: 46 | CA141: 1.3 | CB141: 5.3 | CC141: 1.8 | CD141: 6 | CE141: 0 | CF141: 72 | CG141: 73 | CH141: 70 | CI141: 35 | CJ141: 80 | CK141: 77 | CL141: 75 | CM141: 356.4 | CN141: 89
A142: 42 | C142: Colza 00, tourteau pressé à froid | D142: 1000 | E142: 8.96 | F142: 9.65 | G142: 90.1 | H142: 201.4 | I142: 72.3 | J142: 273.8 | K142: 328.5 | L142: 177.9 | M142: 97.5 | N142: 326.8 | O142: 0 | P142: 930.7 | Q142: 69.3 | R142: 0 | S142: 0 | T142: 0 | U142: 0 | V142: 0 | W142: 78 | X142: 83 | Y142: 90 | Z142: 28 | AA142: 83 | AB142: 85 | AC142: 80 | AD142: 0 | AE142: 0 | AG142: 42 | AH142: Colza 00, tourteau pressé à froid | AI142: 1000 | AJ142: 8.96 | AK142: 9.65 | AL142: 90.1 | AM142: 201.4 | AN142: 72.3 | AO142: 273.8 | AP142: 328.5 | AQ142: 177.9 | AR142: 97.5 | AS142: 326.8 | AU142: 930.7 | AV142: 69.3 | BB142: 78 | BC142: 83 | BD142: 90 | BE142: 28 | BF142: 83 | BG142: 85 | BH142: 80 | BI142: 0 | BJ142: 0 | BK142: 53 | BL142: Griebenmehl | BM142: 1000 | BN142: 10.1 | BO142: 10.9 | BP142: 293 | BQ142: 526 | BR142: 68 | BS142: 480 | BT142: 864 | BU142: 99 | BV142: 5 | BW142: 0 | BX142: 0 | BY142: 968 | BZ142: 32 | CA142: 5 | CB142: 5.6 | CC142: 0.8 | CD142: 5 | CE142: 0 | CF142: 95 | CG142: 95 | CH142: 95 | CI142: 30 | CJ142: 0 | CK142: 60 | CL142: 65 | CM142: 0 | CN142: 0
A143: 43 | C143: Colza, graine | D143: 1000 | E143: 13.77 | F143: 15.57 | G143: 45.2 | H143: 115.8 | I143: 34.7 | J143: 161.2 | K143: 207.2 | L143: 475.4 | M143: 83.7 | N143: 190.6 | O143: 52 | P143: 956.9 | Q143: 43.1 | R143: 4.5 | S143: 8.1 | T143: 3.1 | U143: 0 | V143: 0 | W143: 79 | X143: 75 | Y143: 94 | Z143: 24 | AA143: 73 | AB143: 80 | AC143: 50 | AD143: 30.8 | AE143: 0 | AG143: 43 | AH143: Colza, graine | AI143: 1000 | AJ143: 13.77 | AK143: 15.57 | AL143: 45.2 | AM143: 115.8 | AN143: 34.7 | AO143: 161.2 | AP143: 207.2 | AQ143: 475.4 | AR143: 83.7 | AS143: 190.6 | AT143: 52 | AU143: 956.9 | AV143: 43.1 | AW143: 4.5 | AX143: 8.1 | AY143: 3.1 | AZ143: 9 | BB143: 79 | BC143: 75 | BD143: 94 | BE143: 24 | BF143: 73 | BG143: 80 | BH143: 50 | BI143: 30.8 | BJ143: 0 | BK143: 6 | BL143: Hafer flockiert nicht entspelzt | BM143: 1000 | BN143: 7.03 | BO143: 7.42 | BP143: 85.3 | BQ143: 83.6 | BR143: 92.8 | BS143: 100.4 | BT143: 129 | BU143: 54.1 | BV143: 101.7 | BW143: 687.9 | BX143: 0 | BY143: 972.7 | BZ143: 27.3 | CA143: 0 | CB143: 0 | CC143: 0 | CD143: 0 | CE143: 0 | CF143: 74 | CG143: 78 | CH143: 81 | CI143: 31 | CJ143: 80 | CK143: 80 | CL143: 90 | CM143: 0 | CN143: 0
A144: 44 | C144: Colza, tourteau de presse, 4-9 % MG | D144: 1000 | E144: 7.2 | F144: 7.5 | G144: 134 | H144: 232 | I144: 78 | J144: 258 | K144: 363 | L144: 75 | M144: 117 | N144: 365 | O144: 127 | P144: 920 | Q144: 80 | R144: 8.1 | S144: 12.6 | T144: 5.2 | U144: 0 | V144: 0 | W144: 77 | X144: 83 | Y144: 90 | Z144: 28 | AA144: 83 | AB144: 74 | AC144: 80 | AD144: 83 | AE144: 0 | AG144: 44 | AH144: Colza, tourteau de presse, 4-9 % MG | AI144: 1000 | AJ144: 7.2 | AK144: 7.5 | AL144: 134 | AM144: 232 | AN144: 78 | AO144: 258 | AP144: 363 | AQ144: 75 | AR144: 117 | AS144: 365 | AT144: 127 | AU144: 920 | AV144: 80 | AW144: 8.1 | AX144: 12.6 | AY144: 5.2 | AZ144: 15 | BB144: 77 | BC144: 83 | BD144: 90 | BE144: 28 | BF144: 83 | BG144: 74 | BH144: 80 | BI144: 83 | BJ144: 0 | BK144: 7 | BL144: Hafer flockiert teilentspelzt | BM144: 1000 | BN144: 8.27 | BO144: 9.15 | BP144: 98.5 | BQ144: 81.7 | BR144: 114.2 | BS144: 98.1 | BT144: 126.2 | BU144: 27 | BV144: 38.8 | BW144: 786.5 | BX144: 0 | BY144: 978.5 | BZ144: 21.5 | CA144: 0 | CB144: 0 | CC144: 0 | CD144: 0 | CE144: 0 | CF144: 85.9 | CG144: 78 | CH144: 81 | CI144: 50 | CJ144: 92 | CK144: 80 | CL144: 90 | CM144: 0 | CN144: 0
A145: 45 | C145: Colza, tourteau de pression, > 9 % MG | D145: 1000 | E145: 7.7 | F145: 8.2 | G145: 128 | H145: 224 | I145: 74 | J145: 249 | K145: 350 | L145: 108 | M145: 112 | N145: 352 | O145: 119 | P145: 922 | Q145: 78 | R145: 8.6 | S145: 12.8 | T145: 5.2 | U145: 0 | V145: 0 | W145: 77 | X145: 83 | Y145: 90 | Z145: 28 | AA145: 83 | AB145: 74 | AC145: 80 | AD145: 83 | AE145: 0 | AG145: 45 | AH145: Colza, tourteau de pression, > 9 % MG | AI145: 1000 | AJ145: 7.7 | AK145: 8.2 | AL145: 128 | AM145: 224 | AN145: 74 | AO145: 249 | AP145: 350 | AQ145: 108 | AR145: 112 | AS145: 352 | AT145: 119 | AU145: 922 | AV145: 78 | AW145: 8.6 | AX145: 12.8 | AY145: 5.2 | AZ145: 17 | BB145: 77 | BC145: 83 | BD145: 90 | BE145: 28 | BF145: 83 | BG145: 74 | BH145: 80 | BI145: 83 | BJ145: 0 | BK145: 11 | BL145: Hafer, Körner | BM145: 1000 | BN145: 6.73 | BO145: 7.02 | BP145: 81.9 | BQ145: 77.4 | BR145: 90.6 | BS145: 92.9 | BT145: 119.4 | BU145: 50.4 | BV145: 118.8 | BW145: 682 | BX145: 0 | BY145: 970.6 | BZ145: 29.4 | CA145: 0 | CB145: 0 | CC145: 0 | CD145: 0 | CE145: 0 | CF145: 72 | CG145: 78 | CH145: 81 | CI145: 31 | CJ145: 78 | CK145: 80 | CL145: 90 | CM145: 461.8 | CN145: 93
A146: 46 | C146: Colza, tourteau de pression, filière bio-diesel | D146: 1000 | E146: 8.4 | F146: 9 | G146: 95 | H146: 196 | I146: 82 | J146: 267 | K146: 320 | L146: 140 | M146: 101 | N146: 368 | O146: 114 | P146: 929 | Q146: 71 | R146: 8.2 | S146: 12.3 | T146: 5 | U146: 0 | V146: 0 | W146: 78 | X146: 93 | Y146: 90 | Z146: 28 | AA146: 83 | AB146: 85 | AC146: 80 | AD146: 83 | AE146: 0 | AG146: 46 | AH146: Colza, tourteau de pression, filière bio-diesel | AI146: 1000 | AJ146: 8.4 | AK146: 9 | AL146: 95 | AM146: 196 | AN146: 82 | AO146: 267 | AP146: 320 | AQ146: 140 | AR146: 101 | AS146: 368 | AT146: 114 | AU146: 929 | AV146: 71 | AW146: 8.2 | AX146: 12.3 | AY146: 5 | AZ146: 16 | BB146: 78 | BC146: 93 | BD146: 90 | BE146: 28 | BF146: 83 | BG146: 85 | BH146: 80 | BI146: 83 | BJ146: 0 | BK146: 12 | BL146: Hafer, Körner entspelzt | BM146: 1000 | BN146: 8.23 | BO146: 9.01 | BP146: 88.3 | BQ146: 87.1 | BR146: 95.8 | BS146: 104.6 | BT146: 134.5 | BU146: 54.3 | BV146: 89.2 | BW146: 695.6 | BX146: 0 | BY146: 973.6 | BZ146: 26.4 | CA146: 0 | CB146: 0 | CC146: 0 | CD146: 0 | CE146: 0 | CF146: 76.2 | CG146: 78 | CH146: 81 | CI146: 50 | CJ146: 92 | CK146: 80 | CL146: 90 | CM146: 540.8 | CN146: 93
A147: 47 | C147: Colza, tourteau d'extraction | D147: 1000 | E147: 6.2 | F147: 6.4 | G147: 140 | H147: 247 | I147: 80 | J147: 274 | K147: 385 | L147: 18 | M147: 124 | N147: 388 | O147: 99 | P147: 915 | Q147: 85 | R147: 9.9 | S147: 14 | T147: 5.1 | U147: 0 | V147: 0 | W147: 75 | X147: 83 | Y147: 80 | Z147: 24 | AA147: 83 | AB147: 74 | AC147: 80 | AD147: 70.8 | AE147: 0 | AG147: 47 | AH147: Colza, tourteau d'extraction | AI147: 1000 | AJ147: 6.2 | AK147: 6.4 | AL147: 140 | AM147: 247 | AN147: 80 | AO147: 274 | AP147: 385 | AQ147: 18 | AR147: 124 | AS147: 388 | AT147: 99 | AU147: 915 | AV147: 85 | AW147: 9.9 | AX147: 14 | AY147: 5.1 | AZ147: 14 | BB147: 75 | BC147: 83 | BD147: 80 | BE147: 24 | BF147: 83 | BG147: 74 | BH147: 80 | BI147: 70.8 | BJ147: 0 | BK147: 13 | BL147: Hafer, Körner leicht(42-49 kg/hl) | BM147: 1000 | BN147: 6.6 | BO147: 6.9 | BP147: 82 | BQ147: 72 | BR147: 93 | BS147: 86 | BT147: 111 | BU147: 42 | BV147: 123 | BW147: 693 | BX147: 16 | BY147: 969 | BZ147: 31 | CA147: 0.9 | CB147: 4.1 | CC147: 1.2 | CD147: 5 | CE147: 0 | CF147: 72 | CG147: 78 | CH147: 81 | CI147: 31 | CJ147: 78 | CK147: 80 | CL147: 90 | CM147: 461.8 | CN147: 93
A148: 48 | C148: Colza, tourteau d'extraction 00 > 2.5 % MG | D148: 1000 | E148: 6.5 | F148: 6.68 | G148: 135.4 | H148: 234.7 | I148: 79.2 | J148: 260.7 | K148: 366.5 | L148: 38.2 | M148: 115.8 | N148: 385.8 | O148: 0 | P148: 906.3 | Q148: 93.7 | R148: 0 | S148: 0 | T148: 0 | U148: 0 | V148: 0 | W148: 75 | X148: 83 | Y148: 80 | Z148: 24 | AA148: 83 | AB148: 74 | AC148: 80 | AD148: 0 | AE148: 0 | AG148: 48 | AH148: Colza, tourteau d'extraction 00 > 2.5 % MG | AI148: 1000 | AJ148: 6.5 | AK148: 6.68 | AL148: 135.4 | AM148: 234.7 | AN148: 79.2 | AO148: 260.7 | AP148: 366.5 | AQ148: 38.2 | AR148: 115.8 | AS148: 385.8 | AU148: 906.3 | AV148: 93.7 | BB148: 75 | BC148: 83 | BD148: 80 | BE148: 24 | BF148: 83 | BG148: 74 | BH148: 80 | BI148: 0 | BJ148: 0 | BK148: 14 | BL148: Hafer, mittel bisvollkörnig (50-57 kg/hl) | BM148: 1000 | BN148: 6.9 | BO148: 7.2 | BP148: 84 | BQ148: 73 | BR148: 96 | BS148: 87 | BT148: 112 | BU148: 47 | BV148: 109 | BW148: 701 | BX148: 17 | BY148: 969 | BZ148: 31 | CA148: 0.9 | CB148: 4.1 | CC148: 1.2 | CD148: 5 | CE148: 0 | CF148: 74 | CG148: 78 | CH148: 81 | CI148: 31 | CJ148: 80 | CK148: 80 | CL148: 90 | CM148: 461.8 | CN148: 93
A149: 49 | C149: Coprah, tourteau d'extraction | D149: 1000 | E149: 6.79 | F149: 7.13 | G149: 186.2 | H149: 184.9 | I149: 82.7 | J149: 90.1 | K149: 238 | L149: 27 | M149: 161 | N149: 499 | O149: 125 | P149: 925 | Q149: 75 | R149: 1.8 | S149: 6.5 | T149: 3.9 | U149: 0 | V149: 0 | W149: 79 | X149: 80 | Y149: 80 | Z149: 60 | AA149: 85 | AB149: 44 | AC149: 90 | AD149: 0 | AE149: 0 | AG149: 49 | AH149: Coprah, tourteau d'extraction | AI149: 1000 | AJ149: 6.79 | AK149: 7.13 | AL149: 186.2 | AM149: 184.9 | AN149: 82.7 | AO149: 90.1 | AP149: 238 | AQ149: 27 | AR149: 161 | AS149: 499 | AT149: 125 | AU149: 925 | AV149: 75 | AW149: 1.8 | AX149: 6.5 | AY149: 3.9 | AZ149: 18 | BB149: 79 | BC149: 80 | BD149: 80 | BE149: 60 | BF149: 85 | BG149: 44 | BH149: 90 | BI149: 0 | BJ149: 0 | BK149: 8 | BL149: Haferabfallmehl | BM149: 1000 | BN149: 3.93 | BO149: 3.49 | BP149: 53.6 | BQ149: 55.9 | BR149: 60 | BS149: 70.7 | BT149: 90.9 | BU149: 30.4 | BV149: 217.3 | BW149: 625 | BX149: 12 | BY149: 963.6 | BZ149: 36.4 | CA149: 1.6 | CB149: 4 | CC149: 1.1 | CD149: 5 | CE149: 0 | CF149: 48 | CG149: 40 | CH149: 78 | CI149: 48 | CJ149: 47 | CK149: 80 | CL149: 75 | CM149: 0 | CN149: 0
A150: 50 | C150: Coton, graine | D150: 1000 | E150: 7.98 | F150: 8.25 | G150: 85.1 | H150: 151.9 | I150: 47 | J150: 168.3 | K150: 233 | L150: 220 | M150: 232 | N150: 271 | O150: 40 | P150: 956 | Q150: 44 | R150: 1.7 | S150: 6.9 | T150: 3.9 | U150: 0 | V150: 0 | W150: 63 | X150: 74 | Y150: 90 | Z150: 30 | AA150: 60 | AB150: 75 | AC150: 85 | AD150: 0 | AE150: 0 | AG150: 50 | AH150: Coton, graine | AI150: 1000 | AJ150: 7.98 | AK150: 8.25 | AL150: 85.1 | AM150: 151.9 | AN150: 47 | AO150: 168.3 | AP150: 233 | AQ150: 220 | AR150: 232 | AS150: 271 | AT150: 40 | AU150: 956 | AV150: 44 | AW150: 1.7 | AX150: 6.9 | AY150: 3.9 | AZ150: 12 | BB150: 63 | BC150: 74 | BD150: 90 | BE150: 30 | BF150: 60 | BG150: 75 | BH150: 85 | BI150: 0 | BJ150: 0 | BK150: 10 | BL150: Haferflocken | BM150: 1000 | BN150: 9.39 | BO150: 10.56 | BP150: 101.2 | BQ150: 94.7 | BR150: 115.9 | BS150: 117.8 | BT150: 151.4 | BU150: 70.5 | BV150: 14.2 | BW150: 742.3 | BX150: 18 | BY150: 978.4 | BZ150: 21.6 | CA150: 0.9 | CB150: 5 | CC150: 1.4 | CD150: 4 | CE150: 0 | CF150: 92 | CG150: 80 | CH150: 90 | CI150: 80 | CJ150: 95 | CK150: 80 | CL150: 80 | CM150: 656 | CN150: 75
A151: 51 | C151: Coton, tourteau d'extraction, non décortiqué | D151: 1000 | E151: 5.19 | F151: 4.98 | G151: 158 | H151: 212 | I151: 67.5 | J151: 169 | K151: 304 | L151: 13 | M151: 262 | N151: 359 | O151: 51 | P151: 938 | Q151: 62 | R151: 1.9 | S151: 10.7 | T151: 4.9 | U151: 0 | V151: 0 | W151: 64 | X151: 74 | Y151: 65 | Z151: 45 | AA151: 70 | AB151: 60 | AC151: 85 | AD151: 0 | AE151: 0 | AG151: 51 | AH151: Coton, tourteau d'extraction, non décortiqué | AI151: 1000 | AJ151: 5.19 | AK151: 4.98 | AL151: 158 | AM151: 212 | AN151: 67.5 | AO151: 169 | AP151: 304 | AQ151: 13 | AR151: 262 | AS151: 359 | AT151: 51 | AU151: 938 | AV151: 62 | AW151: 1.9 | AX151: 10.7 | AY151: 4.9 | AZ151: 14 | BB151: 64 | BC151: 74 | BD151: 65 | BE151: 45 | BF151: 70 | BG151: 60 | BH151: 85 | BI151: 0 | BJ151: 0 | BK151: 9 | BL151: Haferfuttermehl | BM151: 1000 | BN151: 7.7 | BO151: 8.2 | BP151: 89 | BQ151: 95 | BR151: 93 | BS151: 114 | BT151: 146 | BU151: 76 | BV151: 71 | BW151: 677 | BX151: 19 | BY151: 970 | BZ151: 30 | CA151: 1 | CB151: 5.4 | CC151: 1.7 | CD151: 5 | CE151: 0 | CF151: 77 | CG151: 79 | CH151: 91 | CI151: 36 | CJ151: 79 | CK151: 80 | CL151: 90 | CM151: 551.3 | CN151: 93
A152: 52 | C152: Coton, tourteau d'extraction, partiel. décortiqué | D152: 1000 | E152: 6.25 | F152: 6.29 | G152: 214.5 | H152: 311 | I152: 71.9 | J152: 248 | K152: 446 | L152: 16 | M152: 148 | N152: 323 | O152: 54 | P152: 933 | Q152: 67 | R152: 2.3 | S152: 12 | T152: 5.4 | U152: 0 | V152: 0 | W152: 74 | X152: 84 | Y152: 65 | Z152: 37 | AA152: 78 | AB152: 60 | AC152: 85 | AD152: 0 | AE152: 0 | AG152: 52 | AH152: Coton, tourteau d'extraction, partiel. décortiqué | AI152: 1000 | AJ152: 6.25 | AK152: 6.29 | AL152: 214.5 | AM152: 311 | AN152: 71.9 | AO152: 248 | AP152: 446 | AQ152: 16 | AR152: 148 | AS152: 323 | AT152: 54 | AU152: 933 | AV152: 67 | AW152: 2.3 | AX152: 12 | AY152: 5.4 | AZ152: 15 | BB152: 74 | BC152: 84 | BD152: 65 | BE152: 37 | BF152: 78 | BG152: 60 | BH152: 85 | BI152: 0 | BJ152: 0 | BK152: 64 | BL152: Hartkäsemolke | BM152: 1000 | BN152: 7.9 | BO152: 8.88 | BP152: 102.6 | BQ152: 83.5 | BR152: 119.8 | BS152: 100.3 | BT152: 128.9 | BU152: 7.2 | BV152: 0 | BW152: 777.6 | BX152: 709 | BY152: 913.7 | BZ152: 86.3 | CA152: 5.8 | CB152: 6.1 | CC152: 1.1 | CD152: 23 | CE152: 0 | CF152: 94 | CG152: 90 | CH152: 90 | CI152: 0 | CJ152: 95 | CK152: 80 | CL152: 90 | CM152: 0 | CN152: 0
A153: 53 | C153: Cretons, farine | D153: 1000 | E153: 10.1 | F153: 10.9 | G153: 293 | H153: 526 | I153: 68 | J153: 480 | K153: 864 | L153: 99 | M153: 5 | N153: 0 | O153: 0 | P153: 968 | Q153: 32 | R153: 5 | S153: 5.6 | T153: 0.8 | U153: 0 | V153: 0 | W153: 95 | X153: 95 | Y153: 95 | Z153: 30 | AA153: 0 | AB153: 60 | AC153: 65 | AD153: 0 | AE153: 0 | AG153: 53 | AH153: Cretons, farine | AI153: 1000 | AJ153: 10.1 | AK153: 10.9 | AL153: 293 | AM153: 526 | AN153: 68 | AO153: 480 | AP153: 864 | AQ153: 99 | AR153: 5 | AS153: 0 | AT153: 0 | AU153: 968 | AV153: 32 | AW153: 5 | AX153: 5.6 | AY153: 0.8 | AZ153: 5 | BB153: 95 | BC153: 95 | BD153: 95 | BE153: 30 | BF153: 0 | BG153: 60 | BH153: 65 | BI153: 0 | BJ153: 0 | BK153: 98 | BL153: Hirse, Körner 4-6% RF | BM153: 1000 | BN153: 7.6 | BO153: 8.2 | BP153: 106 | BQ153: 81 | BR153: 79 | BS153: 44 | BT153: 113 | BU153: 37 | BV153: 63 | BW153: 760 | BX153: 9 | BY153: 973 | BZ153: 27 | CA153: 0.4 | CB153: 3.5 | CC153: 1.4 | CD153: 4 | CE153: 0 | CF153: 82 | CG153: 53 | CH153: 81 | CI153: 24 | CJ153: 91 | CK153: 45 | CL153: 80 | CM153: 619.6 | CN153: 75
A154: 54 | C154: Drêches de brasserie, ensilées | D154: 1000 | E154: 6.35 | F154: 6.36 | G154: 114.7 | H154: 166.5 | I154: 57.1 | J154: 153.6 | K154: 251.2 | L154: 97.1 | M154: 178.3 | N154: 433.4 | O154: 38 | P154: 960 | Q154: 40 | R154: 3.5 | S154: 6 | T154: 2.3 | U154: 50 | V154: 50 | W154: 62 | X154: 74 | Y154: 90 | Z154: 44 | AA154: 58 | AB154: 65 | AC154: 80 | AD154: 26 | AE154: 0 | AG154: 54 | AH154: Drêches de brasserie, ensilées | AI154: 1000 | AJ154: 6.35 | AK154: 6.36 | AL154: 114.7 | AM154: 166.5 | AN154: 57.1 | AO154: 153.6 | AP154: 251.2 | AQ154: 97.1 | AR154: 178.3 | AS154: 433.4 | AT154: 38 | AU154: 960 | AV154: 40 | AW154: 3.5 | AX154: 6 | AY154: 2.3 | AZ154: 1 | BA154: 50 | BB154: 62 | BC154: 74 | BD154: 90 | BE154: 44 | BF154: 58 | BG154: 65 | BH154: 80 | BI154: 26 | BJ154: 0 | BK154: 96 | BL154: Hirse, Körner unter 4% RF(Milocorn/Sorghum) | BM154: 1000 | BN154: 8 | BO154: 8.8 | BP154: 102 | BQ154: 73 | BR154: 81 | BS154: 40 | BT154: 102 | BU154: 29 | BV154: 23 | BW154: 828 | BX154: 11 | BY154: 982 | BZ154: 18 | CA154: 0.4 | CB154: 3.5 | CC154: 1.4 | CD154: 4 | CE154: 0 | CF154: 85 | CG154: 53 | CH154: 81 | CI154: 24 | CJ154: 91 | CK154: 45 | CL154: 80 | CM154: 730 | CN154: 75
A155: 55 | C155: Drêches de brasserie, fraîches | D155: 1000 | E155: 6.41 | F155: 6.45 | G155: 130.7 | H155: 176.8 | I155: 58.9 | J155: 145.5 | K155: 261.8 | L155: 87.1 | M155: 164.6 | N155: 444.7 | O155: 13 | P155: 958.2 | Q155: 41.8 | R155: 3.8 | S155: 6.7 | T155: 2.5 | U155: 0 | V155: 0 | W155: 64 | X155: 74 | Y155: 90 | Z155: 44 | AA155: 62 | AB155: 60 | AC155: 80 | AD155: 36.5 | AE155: 0 | AG155: 55 | AH155: Drêches de brasserie, fraîches | AI155: 1000 | AJ155: 6.41 | AK155: 6.45 | AL155: 130.7 | AM155: 176.8 | AN155: 58.9 | AO155: 145.5 | AP155: 261.8 | AQ155: 87.1 | AR155: 164.6 | AS155: 444.7 | AT155: 13 | AU155: 958.2 | AV155: 41.8 | AW155: 3.8 | AX155: 6.7 | AY155: 2.5 | AZ155: 1 | BB155: 64 | BC155: 74 | BD155: 90 | BE155: 44 | BF155: 62 | BG155: 60 | BH155: 80 | BI155: 36.5 | BJ155: 0 | BK155: 37 | BL155: Johannisbrot | BM155: 1000 | BN155: 6.01 | BO155: 6.23 | BP155: 82.1 | BQ155: 45.1 | BR155: 96.7 | BS155: 43.4 | BT155: 68.5 | BU155: 10 | BV155: 101.1 | BW155: 778.3 | BX155: 415 | BY155: 957.9 | BZ155: 42.1 | CA155: 5.2 | CB155: 1 | CC155: 0.6 | CD155: 8 | CE155: 0 | CF155: 73 | CG155: 16 | CH155: 60 | CI155: 47 | CJ155: 80 | CK155: 67 | CL155: 80 | CM155: 0 | CN155: 0
A156: 56 | C156: Drêches de brasserie, séchées | D156: 1000 | E156: 6.57 | F156: 6.64 | G156: 148.7 | H156: 178.8 | I156: 55.1 | J156: 113.7 | K156: 255.4 | L156: 104 | M156: 162.2 | N156: 433.7 | O156: 10 | P156: 955.3 | Q156: 44.7 | R156: 3.2 | S156: 5.3 | T156: 1.6 | U156: 0 | V156: 0 | W156: 64 | X156: 74 | Y156: 90 | Z156: 44 | AA156: 60 | AB156: 50 | AC156: 80 | AD156: 36.5 | AE156: 0 | AG156: 56 | AH156: Drêches de brasserie, séchées | AI156: 1000 | AJ156: 6.57 | AK156: 6.64 | AL156: 148.7 | AM156: 178.8 | AN156: 55.1 | AO156: 113.7 | AP156: 255.4 | AQ156: 104 | AR156: 162.2 | AS156: 433.7 | AT156: 10 | AU156: 955.3 | AV156: 44.7 | AW156: 3.2 | AX156: 5.3 | AY156: 1.6 | AZ156: 1 | BB156: 64 | BC156: 74 | BD156: 90 | BE156: 44 | BF156: 60 | BG156: 50 | BH156: 80 | BI156: 36.5 | BJ156: 0 | BK156: 34 | BL156: Kaffeeextraktionsabfälle | BM156: 1000 | BN156: 2.18 | BO156: 1.33 | BP156: 19.2 | BQ156: 35.1 | BR156: 0 | BS156: 27.6 | BT156: 123.7 | BU156: 211.2 | BV156: 459.4 | BW156: 191.4 | BX156: 14 | BY156: 985.7 | BZ156: 14.3 | CA156: 1.9 | CB156: 0.6 | CC156: 0.7 | CD156: 2 | CE156: 0 | CF156: 18 | CG156: 9 | CH156: 40 | CI156: 7 | CJ156: 21 | CK156: 30 | CL156: 20 | CM156: 0 | CN156: 0
A157: 57 | C157: Endive, racine | D157: 1000 | E157: 7.16 | F157: 7.81 | G157: 78.8 | H157: 51.8 | I157: 108 | J157: 73.3 | K157: 88 | L157: 18 | M157: 108 | N157: 688 | O157: 131 | P157: 902 | Q157: 98 | R157: 5 | S157: 2.6 | T157: 1.3 | U157: 0 | V157: 0 | W157: 86 | X157: 71 | Y157: 60 | Z157: 77 | AA157: 90 | AB157: 85 | AC157: 65 | AD157: 0 | AE157: 0 | AG157: 57 | AH157: Endive, racine | AI157: 1000 | AJ157: 7.16 | AK157: 7.81 | AL157: 78.8 | AM157: 51.8 | AN157: 108 | AO157: 73.3 | AP157: 88 | AQ157: 18 | AR157: 108 | AS157: 688 | AT157: 131 | AU157: 902 | AV157: 98 | AW157: 5 | AX157: 2.6 | AY157: 1.3 | AZ157: 20 | BB157: 86 | BC157: 71 | BD157: 60 | BE157: 77 | BF157: 90 | BG157: 85 | BH157: 65 | BI157: 0 | BJ157: 0 | BK157: 33 | BL157: Kakaoschalen | BM157: 1000 | BN157: 2.2 | BO157: 1.6 | BP157: 29 | BQ157: 72 | BR157: 20 | BS157: 98 | BT157: 177 | BU157: 51 | BV157: 183 | BW157: 502 | BX157: 36 | BY157: 913 | BZ157: 87 | CA157: 3.4 | CB157: 4.2 | CC157: 5.2 | CD157: 30 | CE157: 0 | CF157: 29 | CG157: 15 | CH157: 50 | CI157: 32 | CJ157: 30 | CK157: 60 | CL157: 20 | CM157: 89 | CN157: 0
A158: 58 | C158: Epeautre, grain | D158: 1000 | E158: 6.39 | F158: 6.62 | G158: 87.4 | H158: 86.9 | I158: 90.8 | J158: 100.3 | K158: 136.7 | L158: 19.8 | M158: 142.1 | N158: 671.5 | O158: 30 | P158: 970.1 | Q158: 29.9 | R158: 0.7 | S158: 4.3 | T158: 1.1 | U158: 0 | V158: 0 | W158: 73 | X158: 76 | Y158: 80 | Z158: 46 | AA158: 78 | AB158: 76 | AC158: 80 | AD158: 479.6 | AE158: 94 | AG158: 58 | AH158: Epeautre, grain | AI158: 1000 | AJ158: 6.39 | AK158: 6.62 | AL158: 87.4 | AM158: 86.9 | AN158: 90.8 | AO158: 100.3 | AP158: 136.7 | AQ158: 19.8 | AR158: 142.1 | AS158: 671.5 | AT158: 30 | AU158: 970.1 | AV158: 29.9 | AW158: 0.7 | AX158: 4.3 | AY158: 1.1 | AZ158: 4 | BB158: 73 | BC158: 76 | BD158: 80 | BE158: 46 | BF158: 78 | BG158: 76 | BH158: 80 | BI158: 479.6 | BJ158: 94 | BK158: 36 | BL158: Karotte, Wurzel frisch | BM158: 1000 | BN158: 7.5 | BO158: 8.28 | BP158: 82.1 | BQ158: 56.5 | BR158: 111.8 | BS158: 80 | BT158: 96 | BU158: 15 | BV158: 91 | BW158: 697 | BX158: 256 | BY158: 899 | BZ158: 101 | CA158: 3 | CB158: 3 | CC158: 1.9 | CD158: 26 | CE158: 0 | CF158: 89 | CG158: 60 | CH158: 77 | CI158: 86 | CJ158: 94 | CK158: 85 | CL158: 65 | CM158: 0 | CN158: 0
A159: 59 | C159: Féverole, graine | D159: 1000 | E159: 7.29 | F159: 7.73 | G159: 126 | H159: 191.7 | I159: 104.2 | J159: 230.3 | K159: 296 | L159: 17.8 | M159: 94.8 | N159: 550.3 | O159: 41 | P159: 958.9 | Q159: 41.1 | R159: 1 | S159: 6.9 | T159: 1.8 | U159: 0 | V159: 0 | W159: 83 | X159: 75 | Y159: 70 | Z159: 60 | AA159: 91 | AB159: 80 | AC159: 90 | AD159: 420.7 | AE159: 75 | AG159: 59 | AH159: Féverole, graine | AI159: 1000 | AJ159: 7.29 | AK159: 7.73 | AL159: 126 | AM159: 191.7 | AN159: 104.2 | AO159: 230.3 | AP159: 296 | AQ159: 17.8 | AR159: 94.8 | AS159: 550.3 | AT159: 41 | AU159: 958.9 | AV159: 41.1 | AW159: 1 | AX159: 6.9 | AY159: 1.8 | AZ159: 13 | BB159: 83 | BC159: 75 | BD159: 70 | BE159: 60 | BF159: 91 | BG159: 80 | BH159: 90 | BI159: 420.7 | BJ159: 75 | BK159: 115 | BL159: Kartoffel, Knolle frisch | BM159: 1000 | BN159: 7.65 | BO159: 8.46 | BP159: 74.6 | BQ159: 58.6 | BR159: 90.4 | BS159: 72.9 | BT159: 93.7 | BU159: 4 | BV159: 22.8 | BW159: 819.4 | BX159: 35 | BY159: 939.9 | BZ159: 60.1 | CA159: 1 | CB159: 2.5 | CC159: 1 | CD159: 22 | CE159: 0 | CF159: 88 | CG159: 55 | CH159: 30 | CI159: 70 | CJ159: 93 | CK159: 80 | CL159: 80 | CM159: 722.9 | CN159: 75
A160: 60 | C160: Haricot toasté, graine | D160: 1000 | E160: 7.7 | F160: 8.35 | G160: 147.5 | H160: 173.8 | I160: 105.2 | J160: 162.9 | K160: 257 | L160: 17 | M160: 53 | N160: 624 | O160: 53 | P160: 951 | Q160: 49 | R160: 1.6 | S160: 5.3 | T160: 1.8 | U160: 0 | V160: 0 | W160: 87 | X160: 85 | Y160: 70 | Z160: 60 | AA160: 90 | AB160: 67 | AC160: 85 | AD160: 403.6 | AE160: 75 | AG160: 60 | AH160: Haricot toasté, graine | AI160: 1000 | AJ160: 7.7 | AK160: 8.35 | AL160: 147.5 | AM160: 173.8 | AN160: 105.2 | AO160: 162.9 | AP160: 257 | AQ160: 17 | AR160: 53 | AS160: 624 | AT160: 53 | AU160: 951 | AV160: 49 | AW160: 1.6 | AX160: 5.3 | AY160: 1.8 | AZ160: 15 | BB160: 87 | BC160: 85 | BD160: 70 | BE160: 60 | BF160: 90 | BG160: 67 | BH160: 85 | BI160: 403.6 | BJ160: 75 | BK160: 120 | BL160: Kartoffelflocken | BM160: 1000 | BN160: 8.01 | BO160: 8.93 | BP160: 94.3 | BQ160: 59.9 | BR160: 103.2 | BS160: 55.3 | BT160: 90.4 | BU160: 2.7 | BV160: 25.3 | BW160: 835.5 | BX160: 40 | BY160: 954 | BZ160: 46 | CA160: 0.6 | CB160: 2.5 | CC160: 1.1 | CD160: 20 | CE160: 0 | CF160: 90 | CG160: 48 | CH160: 40 | CI160: 73 | CJ160: 96 | CK160: 65 | CL160: 80 | CM160: 748.4 | CN160: 85
A161: 61 | C161: Lactosérum concentré 12 % MS | D161: 1000 | E161: 7.96 | F161: 8.95 | G161: 103.6 | H161: 84 | I161: 121.2 | J161: 100.9 | K161: 129.6 | L161: 5.9 | M161: 0 | N161: 787.5 | O161: 0 | P161: 923 | Q161: 77 | R161: 0 | S161: 0 | T161: 0 | U161: 0 | V161: 0 | W161: 94 | X161: 90 | Y161: 90 | Z161: 0 | AA161: 95 | AB161: 80 | AC161: 90 | AD161: 0 | AE161: 0 | AG161: 61 | AH161: Lactosérum concentré 12 % MS | AI161: 1000 | AJ161: 7.96 | AK161: 8.95 | AL161: 103.6 | AM161: 84 | AN161: 121.2 | AO161: 100.9 | AP161: 129.6 | AQ161: 5.9 | AR161: 0 | AS161: 787.5 | AU161: 923 | AV161: 77 | BB161: 94 | BC161: 90 | BD161: 90 | BE161: 0 | BF161: 95 | BG161: 80 | BH161: 90 | BI161: 0 | BJ161: 0 | BK161: 119 | BL161: Kartoffelmehl | BM161: 1000 | BN161: 7.68 | BO161: 8.5 | BP161: 94.8 | BQ161: 62.3 | BR161: 101.7 | BS161: 56.9 | BT161: 89.7 | BU161: 2.6 | BV161: 25 | BW161: 832.9 | BX161: 41 | BY161: 950.2 | BZ161: 49.8 | CA161: 0.6 | CB161: 2.4 | CC161: 0.8 | CD161: 18 | CE161: 0 | CF161: 89 | CG161: 48 | CH161: 30 | CI161: 73 | CJ161: 93 | CK161: 67 | CL161: 90 | CM161: 746 | CN161: 85
A162: 62 | C162: Lactosérum concentré 18 % MS | D162: 1000 | E162: 7.96 | F162: 8.95 | G162: 103.6 | H162: 84 | I162: 121.2 | J162: 100.9 | K162: 129.6 | L162: 5.9 | M162: 0 | N162: 787.5 | O162: 0 | P162: 923 | Q162: 77 | R162: 0 | S162: 0 | T162: 0 | U162: 0 | V162: 0 | W162: 94 | X162: 90 | Y162: 90 | Z162: 0 | AA162: 95 | AB162: 80 | AC162: 90 | AD162: 0 | AE162: 0 | AG162: 62 | AH162: Lactosérum concentré 18 % MS | AI162: 1000 | AJ162: 7.96 | AK162: 8.95 | AL162: 103.6 | AM162: 84 | AN162: 121.2 | AO162: 100.9 | AP162: 129.6 | AQ162: 5.9 | AR162: 0 | AS162: 787.5 | AU162: 923 | AV162: 77 | BB162: 94 | BC162: 90 | BD162: 90 | BE162: 0 | BF162: 95 | BG162: 80 | BH162: 90 | BI162: 0 | BJ162: 0 | BK162: 121 | BL162: Kartoffelprotein | BM162: 1000 | BN162: 7.94 | BO162: 8.23 | BP162: 492.8 | BQ162: 644.7 | BR162: 54.3 | BS162: 324.7 | BT162: 833.5 | BU162: 24.7 | BV162: 4.9 | BW162: 100.2 | BX162: 6 | BY162: 963.3 | BZ162: 36.7 | CA162: 1.2 | CB162: 3.3 | CC162: 1 | CD162: 18 | CE162: 0 | CF162: 89 | CG162: 89 | CH162: 30 | CI162: 50 | CJ162: 93 | CK162: 45 | CL162: 90 | CM162: 0 | CN162: 0
A163: 63 | C163: Lactosérum concentré 25 % MS | D163: 1000 | E163: 7.96 | F163: 8.95 | G163: 103.6 | H163: 84 | I163: 121.2 | J163: 100.9 | K163: 129.6 | L163: 5.9 | M163: 0 | N163: 787.5 | O163: 0 | P163: 923 | Q163: 77 | R163: 0 | S163: 0 | T163: 0 | U163: 0 | V163: 0 | W163: 94 | X163: 90 | Y163: 90 | Z163: 0 | AA163: 95 | AB163: 80 | AC163: 90 | AD163: 0 | AE163: 0 | AG163: 63 | AH163: Lactosérum concentré 25 % MS | AI163: 1000 | AJ163: 7.96 | AK163: 8.95 | AL163: 103.6 | AM163: 84 | AN163: 121.2 | AO163: 100.9 | AP163: 129.6 | AQ163: 5.9 | AR163: 0 | AS163: 787.5 | AU163: 923 | AV163: 77 | BB163: 94 | BC163: 90 | BD163: 90 | BE163: 0 | BF163: 95 | BG163: 80 | BH163: 90 | BI163: 0 | BJ163: 0 | BK163: 118 | BL163: Kartoffelstärke | BM163: 1000 | BN163: 8.84 | BO163: 10.01 | BP163: 65.5 | BQ163: 1.4 | BR163: 101 | BS163: 1.1 | BT163: 2 | BU163: 1.5 | BV163: 2.4 | BW163: 990.1 | BX163: 0 | BY163: 996 | BZ163: 4 | CA163: 0.2 | CB163: 0.5 | CC163: 0.1 | CD163: 1 | CE163: 0 | CF163: 95 | CG163: 40 | CH163: 30 | CI163: 40 | CJ163: 95 | CK163: 60 | CL163: 80 | CM163: 988 | CN163: 75
A164: 64 | C164: Lactosérum frais (petit-lait) | D164: 1000 | E164: 7.9 | F164: 8.88 | G164: 102.6 | H164: 83.5 | I164: 119.8 | J164: 100.3 | K164: 128.9 | L164: 7.2 | M164: 0 | N164: 777.6 | O164: 709 | P164: 913.7 | Q164: 86.3 | R164: 5.8 | S164: 6.1 | T164: 1.1 | U164: 0 | V164: 0 | W164: 94 | X164: 90 | Y164: 90 | Z164: 0 | AA164: 95 | AB164: 80 | AC164: 90 | AD164: 0 | AE164: 0 | AG164: 64 | AH164: Lactosérum frais (petit-lait) | AI164: 1000 | AJ164: 7.9 | AK164: 8.88 | AL164: 102.6 | AM164: 83.5 | AN164: 119.8 | AO164: 100.3 | AP164: 128.9 | AQ164: 7.2 | AR164: 0 | AS164: 777.6 | AT164: 709 | AU164: 913.7 | AV164: 86.3 | AW164: 5.8 | AX164: 6.1 | AY164: 1.1 | AZ164: 23 | BB164: 94 | BC164: 90 | BD164: 90 | BE164: 0 | BF164: 95 | BG164: 80 | BH164: 90 | BI164: 0 | BJ164: 0 | BK164: 38 | BL164: Kaseinpulver | BM164: 1000 | BN164: 8.7 | BO164: 9.2 | BP164: 163 | BQ164: 559 | BR164: 112 | BS164: 813 | BT164: 914 | BU164: 14 | BV164: 0 | BW164: 17 | BX164: 0 | BY164: 945 | BZ164: 55 | CA164: 2.6 | CB164: 7.7 | CC164: 0.2 | CD164: 1 | CE164: 0 | CF164: 95 | CG164: 95 | CH164: 90 | CI164: 0 | CJ164: 95 | CK164: 90 | CL164: 90 | CM164: 0 | CN164: 0
A165: =IF($H$42=1,AG165,BK165) -> 65 | C165: =IF($H$42=1,AH165,BL165) -> Lactosérum, poudre (petit-lait) | D165: =IF($H$42=1,AI165,BM165) -> 1000 | E165: =IF($H$42=1,AJ165,BN165) -> 7.9 | F165: =IF($H$42=1,AK165,BO165) -> 8.9 | G165: =IF($H$42=1,AL165,BP165) -> 103 | H165: =IF($H$42=1,AM165,BQ165) -> 82 | I165: =IF($H$42=1,AN165,BR165) -> 120 | J165: =IF($H$42=1,AO165,BS165) -> 99 | K165: =IF($H$42=1,AP165,BT165) -> 127 | L165: =IF($H$42=1,AQ165,BU165) -> 10 | M165: =IF($H$42=1,AR165,BV165) -> 0 | N165: =IF($H$42=1,AS165,BW165) -> 777 | O165: =IF($H$42=1,AT165,BX165) -> 725 | P165: =IF($H$42=1,AU165,BY165) -> 914 | Q165: =IF($H$42=1,AV165,BZ165) -> 86 | R165: =IF($H$42=1,AW165,CA165) -> 5.8 | S165: =IF($H$42=1,AX165,CB165) -> 6.5 | T165: =IF($H$42=1,AY165,CC165) -> 1.1 | U165: =IF($H$42=1,BA165,CD165) -> 0 | V165: 0 | W165: 94 | X165: 90 | Y165: 90 | Z165: 0 | AA165: 95 | AB165: 80 | AC165: 90 | AD165: 0 | AE165: 0 | AG165: 65 | AH165: Lactosérum, poudre (petit-lait) | AI165: 1000 | AJ165: 7.9 | AK165: 8.9 | AL165: 103 | AM165: 82 | AN165: 120 | AO165: 99 | AP165: 127 | AQ165: 10 | AR165: 0 | AS165: 777 | AT165: 725 | AU165: 914 | AV165: 86 | AW165: 5.8 | AX165: 6.5 | AY165: 1.1 | AZ165: 24 | BB165: 94 | BC165: 90 | BD165: 90 | BE165: 0 | BF165: 95 | BG165: 80 | BH165: 90 | BI165: 0 | BJ165: 0 | BK165: 39 | BL165: Kohlrübe, Wurzel frisch | BM165: 1000 | BN165: 7.26 | BO165: 7.94 | BP165: 86.9 | BQ165: 69.9 | BR165: 108.9 | BS165: 91.8 | BT165: 118 | BU165: 12 | BV165: 111 | BW165: 663 | BX165: 401 | BY165: 904 | BZ165: 96 | CA165: 5.1 | CB165: 4 | CC165: 1.6 | CD165: 30 | CE165: 0 | CF165: 87 | CG165: 70 | CH165: 60 | CI165: 82 | CJ165: 92 | CK165: 80 | CL165: 65 | CM165: 0 | CN165: 0
A166: 66 | C166: Lait écrémé frais | D166: 1000 | E166: 8.12 | F166: 8.96 | G166: 145.5 | H166: 233 | I166: 114.8 | J166: 279.8 | K166: 359.7 | L166: 8.2 | M166: 0 | N166: 549.6 | O166: 491 | P166: 917.4 | Q166: 82.6 | R166: 13.7 | S166: 10.8 | T166: 1.1 | U166: 0 | V166: =IF($H$42=1,BA166,CE166) -> 0 | W166: 95 | X166: 95 | Y166: 90 | Z166: 0 | AA166: 95 | AB166: 80 | AC166: 90 | AD166: 0 | AE166: 0 | AG166: 66 | AH166: Lait écrémé frais | AI166: 1000 | AJ166: 8.12 | AK166: 8.96 | AL166: 145.5 | AM166: 233 | AN166: 114.8 | AO166: 279.8 | AP166: 359.7 | AQ166: 8.2 | AR166: 0 | AS166: 549.6 | AT166: 491 | AU166: 917.4 | AV166: 82.6 | AW166: 13.7 | AX166: 10.8 | AY166: 1.1 | AZ166: 17 | BB166: 95 | BC166: 95 | BD166: 90 | BE166: 0 | BF166: 95 | BG166: 80 | BH166: 90 | BI166: 0 | BJ166: 0 | BK166: 49 | BL166: Kokosextraktionsschrot | BM166: 1000 | BN166: 6.79 | BO166: 7.13 | BP166: 186.2 | BQ166: 184.9 | BR166: 82.7 | BS166: 90.1 | BT166: 238 | BU166: 27 | BV166: 161 | BW166: 499 | BX166: 125 | BY166: 925 | BZ166: 75 | CA166: 1.8 | CB166: 6.5 | CC166: 3.9 | CD166: 18 | CE166: 0 | CF166: 79 | CG166: 80 | CH166: 80 | CI166: 60 | CJ166: 85 | CK166: 44 | CL166: 90 | CM166: 0 | CN166: 0
A167: 67 | C167: Lait écrémé, poudre | D167: 1000 | E167: 8.07 | F167: 8.9 | G167: 145.5 | H167: 233 | I167: 114.8 | J167: 279.8 | K167: 359.7 | L167: 8.2 | M167: 0 | N167: 549.6 | O167: 508 | P167: 918 | Q167: 82 | R167: 13.6 | S167: 10.6 | T167: 1.1 | U167: 0 | V167: 0 | W167: 95 | X167: 94 | Y167: 90 | Z167: 0 | AA167: 95 | AB167: 80 | AC167: 90 | AD167: 0 | AE167: 0 | AG167: 67 | AH167: Lait écrémé, poudre | AI167: 1000 | AJ167: 8.07 | AK167: 8.9 | AL167: 145.5 | AM167: 233 | AN167: 114.8 | AO167: 279.8 | AP167: 359.7 | AQ167: 8.2 | AR167: 0 | AS167: 549.6 | AT167: 508 | AU167: 918 | AV167: 82 | AW167: 13.6 | AX167: 10.6 | AY167: 1.1 | AZ167: 16 | BB167: 95 | BC167: 94 | BD167: 90 | BE167: 0 | BF167: 95 | BG167: 80 | BH167: 90 | BI167: 0 | BJ167: 0 | BK167: 76 | BL167: Leinextraktionsschrot | BM167: 1000 | BN167: 6.66 | BO167: 6.89 | BP167: 161.8 | BQ167: 224.5 | BR167: 78.7 | BS167: 196.7 | BT167: 327.6 | BU167: 38.8 | BV167: 95.4 | BW167: 471.3 | BX167: 54 | BY167: 933.1 | BZ167: 66.9 | CA167: 4.5 | CB167: 9.5 | CC167: 6 | CD167: 12 | CE167: 0 | CF167: 75 | CG167: 83 | CH167: 80 | CI167: 22 | CJ167: 80 | CK167: 64 | CL167: 85 | CM167: 0 | CN167: 0
A168: 68 | C168: Lait entier frais | D168: 1000 | E168: 13.75 | F168: 15.95 | G168: 98.3 | H168: 158.2 | I168: 77.3 | J168: 190 | K168: 244.2 | L168: 333 | M168: 0 | N168: 365.9 | O168: 365 | P168: 943.1 | Q168: 56.9 | R168: 9.3 | S168: 7.5 | T168: 0.8 | U168: 0 | V168: 0 | W168: 97 | X168: 95 | Y168: 98 | Z168: 0 | AA168: 97 | AB168: 80 | AC168: 90 | AD168: 0 | AE168: 0 | AG168: 68 | AH168: Lait entier frais | AI168: 1000 | AJ168: 13.75 | AK168: 15.95 | AL168: 98.3 | AM168: 158.2 | AN168: 77.3 | AO168: 190 | AP168: 244.2 | AQ168: 333 | AR168: 0 | AS168: 365.9 | AT168: 365 | AU168: 943.1 | AV168: 56.9 | AW168: 9.3 | AX168: 7.5 | AY168: 0.8 | AZ168: 11 | BB168: 97 | BC168: 95 | BD168: 98 | BE168: 0 | BF168: 97 | BG168: 80 | BH168: 90 | BI168: 0 | BJ168: 0 | BK168: 73 | BL168: Leinkuchen > 11 % RL | BM168: 1000 | BN168: 8.3 | BO168: 8.84 | BP168: 158.4 | BQ168: 231.7 | BR168: 68 | BS168: 203 | BT168: 338.1 | BU168: 134.3 | BV168: 86.8 | BW168: 382.2 | BX168: 0 | BY168: 941.4 | BZ168: 58.6 | CA168: 0 | CB168: 0 | CC168: 0 | CD168: 0 | CE168: 0 | CF168: 77 | CG168: 83 | CH168: 90 | CI168: 22 | CJ168: 80 | CK168: 64 | CL168: 85 | CM168: 0 | CN168: 0
A169: 69 | C169: Lait entier, poudre | D169: 1000 | E169: 12.32 | F169: 14.18 | G169: 108.5 | H169: 171.7 | I169: 86.6 | J169: 206.2 | K169: 265 | L169: 250 | M169: 0 | N169: 423 | O169: 378 | P169: 938 | Q169: 62 | R169: 9.9 | S169: 7.9 | T169: 0.8 | U169: 0 | V169: 0 | W169: 96 | X169: 94 | Y169: 98 | Z169: 0 | AA169: 97 | AB169: 80 | AC169: 90 | AD169: 0 | AE169: 0 | AG169: 69 | AH169: Lait entier, poudre | AI169: 1000 | AJ169: 12.32 | AK169: 14.18 | AL169: 108.5 | AM169: 171.7 | AN169: 86.6 | AO169: 206.2 | AP169: 265 | AQ169: 250 | AR169: 0 | AS169: 423 | AT169: 378 | AU169: 938 | AV169: 62 | AW169: 9.9 | AX169: 7.9 | AY169: 0.8 | AZ169: 15 | BB169: 96 | BC169: 94 | BD169: 98 | BE169: 0 | BF169: 97 | BG169: 80 | BH169: 90 | BI169: 0 | BJ169: 0 | BK169: 74 | BL169: Leinkuchen 4-7% RL | BM169: 1000 | BN169: 7.1 | BO169: 7.4 | BP169: 171 | BQ169: 250 | BR169: 74 | BS169: 219 | BT169: 365 | BU169: 65 | BV169: 97 | BW169: 402 | BX169: 44 | BY169: 929 | BZ169: 71 | CA169: 4.4 | CB169: 8.6 | CC169: 5.3 | CD169: 12 | CE169: 0 | CF169: 76 | CG169: 83 | CH169: 90 | CI169: 22 | CJ169: 80 | CK169: 64 | CL169: 85 | CM169: 0 | CN169: 0
A170: 70 | C170: Levure de brasserie, séchée | D170: 1000 | E170: 7.35 | F170: 7.74 | G170: 143.1 | H170: 304.2 | I170: 94.6 | J170: 385.1 | K170: 495 | L170: 28.1 | M170: 2 | N170: 402.7 | O170: 23 | P170: 927.8 | Q170: 72.2 | R170: 2.6 | S170: 15 | T170: 2.2 | U170: 0 | V170: 0 | W170: 84 | X170: 82 | Y170: 61 | Z170: 50 | AA170: 88 | AB170: 80 | AC170: 75 | AD170: 0 | AE170: 0 | AG170: 70 | AH170: Levure de brasserie, séchée | AI170: 1000 | AJ170: 7.35 | AK170: 7.74 | AL170: 143.1 | AM170: 304.2 | AN170: 94.6 | AO170: 385.1 | AP170: 495 | AQ170: 28.1 | AR170: 2 | AS170: 402.7 | AT170: 23 | AU170: 927.8 | AV170: 72.2 | AW170: 2.6 | AX170: 15 | AY170: 2.2 | AZ170: 24 | BB170: 84 | BC170: 82 | BD170: 61 | BE170: 50 | BF170: 88 | BG170: 80 | BH170: 75 | BI170: 0 | BJ170: 0 | BK170: 75 | BL170: Leinkuchen 8 - 11 % RL | BM170: 1000 | BN170: 7.84 | BO170: 8.28 | BP170: 160.6 | BQ170: 231.3 | BR170: 71.6 | BS170: 202.7 | BT170: 337.5 | BU170: 107.8 | BV170: 94.1 | BW170: 399.5 | BX170: 45 | BY170: 938.9 | BZ170: 61.1 | CA170: 4.2 | CB170: 8.9 | CC170: 5.7 | CD170: 11 | CE170: 0 | CF170: 77 | CG170: 83 | CH170: 90 | CI170: 22 | CJ170: 80 | CK170: 64 | CL170: 85 | CM170: 0 | CN170: 0
A171: 71 | C171: Levure fourragère 48 % MA, séchée (Torula) | D171: 1000 | E171: 7.38 | F171: 7.73 | G171: 145.7 | H171: 327 | I171: 89 | J171: 414.1 | K171: 532.2 | L171: 41.2 | M171: 7.4 | N171: 347.5 | O171: 3 | P171: 928.3 | Q171: 71.7 | R171: 7.3 | S171: 15.6 | T171: 1.2 | U171: 0 | V171: 0 | W171: 82 | X171: 82 | Y171: 61 | Z171: 50 | AA171: 88 | AB171: 80 | AC171: 75 | AD171: 52 | AE171: 0 | AG171: 71 | AH171: Levure fourragère 48 % MA, séchée (Torula) | AI171: 1000 | AJ171: 7.38 | AK171: 7.73 | AL171: 145.7 | AM171: 327 | AN171: 89 | AO171: 414.1 | AP171: 532.2 | AQ171: 41.2 | AR171: 7.4 | AS171: 347.5 | AT171: 3 | AU171: 928.3 | AV171: 71.7 | AW171: 7.3 | AX171: 15.6 | AY171: 1.2 | AZ171: 13 | BB171: 82 | BC171: 82 | BD171: 61 | BE171: 50 | BF171: 88 | BG171: 80 | BH171: 75 | BI171: 52 | BJ171: 0 | BK171: 72 | BL171: Leinsamen | BM171: 1000 | BN171: 13.06 | BO171: 14.69 | BP171: 75.2 | BQ171: 143.8 | BR171: 39.3 | BS171: 162.8 | BT171: 225.4 | BU171: 430.8 | BV171: 82.2 | BW171: 221.3 | BX171: 37 | BY171: 959.7 | BZ171: 40.3 | CA171: 2.7 | CB171: 5.8 | CC171: 4.6 | CD171: 9 | CE171: 0 | CF171: 79 | CG171: 80 | CH171: 93 | CI171: 30 | CJ171: 72 | CK171: 75 | CL171: 80 | CM171: 0 | CN171: 0
A172: 72 | C172: Lin, graine | D172: 1000 | E172: 13.06 | F172: 14.69 | G172: 75.2 | H172: 143.8 | I172: 39.3 | J172: 162.8 | K172: 225.4 | L172: 430.8 | M172: 82.2 | N172: 221.3 | O172: 37 | P172: 959.7 | Q172: 40.3 | R172: 2.7 | S172: 5.8 | T172: 4.6 | U172: 0 | V172: 0 | W172: 79 | X172: 80 | Y172: 93 | Z172: 30 | AA172: 72 | AB172: 75 | AC172: 80 | AD172: 0 | AE172: 0 | AG172: 72 | AH172: Lin, graine | AI172: 1000 | AJ172: 13.06 | AK172: 14.69 | AL172: 75.2 | AM172: 143.8 | AN172: 39.3 | AO172: 162.8 | AP172: 225.4 | AQ172: 430.8 | AR172: 82.2 | AS172: 221.3 | AT172: 37 | AU172: 959.7 | AV172: 40.3 | AW172: 2.7 | AX172: 5.8 | AY172: 4.6 | AZ172: 9 | BB172: 79 | BC172: 80 | BD172: 93 | BE172: 30 | BF172: 72 | BG172: 75 | BH172: 80 | BI172: 0 | BJ172: 0 | BK172: 78 | BL172: Lupine, Samen, süss blau | BM172: 1000 | BN172: 8.65 | BO172: 9.37 | BP172: 142 | BQ172: 233.6 | BR172: 104 | BS172: 275.1 | BT172: 358.7 | BU172: 67.3 | BV172: 152.4 | BW172: 388.2 | BX172: 0 | BY172: 966.6 | BZ172: 33.4 | CA172: 0 | CB172: 0 | CC172: 0 | CD172: 0 | CE172: 0 | CF172: 89 | CG172: 85 | CH172: 88 | CI172: 88 | CJ172: 92 | CK172: 79 | CL172: 90 | CM172: 91.4 | CN172: 0
A173: 73 | C173: Lin, tourteau de pression > 11 % MG | D173: 1000 | E173: 8.3 | F173: 8.84 | G173: 158.4 | H173: 231.7 | I173: 68 | J173: 203 | K173: 338.1 | L173: 134.3 | M173: 86.8 | N173: 382.2 | O173: 0 | P173: 941.4 | Q173: 58.6 | R173: 0 | S173: 0 | T173: 0 | U173: 0 | V173: 0 | W173: 77 | X173: 83 | Y173: 90 | Z173: 22 | AA173: 80 | AB173: 64 | AC173: 85 | AD173: 0 | AE173: 0 | AG173: 73 | AH173: Lin, tourteau de pression > 11 % MG | AI173: 1000 | AJ173: 8.3 | AK173: 8.84 | AL173: 158.4 | AM173: 231.7 | AN173: 68 | AO173: 203 | AP173: 338.1 | AQ173: 134.3 | AR173: 86.8 | AS173: 382.2 | AU173: 941.4 | AV173: 58.6 | BB173: 77 | BC173: 83 | BD173: 90 | BE173: 22 | BF173: 80 | BG173: 64 | BH173: 85 | BI173: 0 | BJ173: 0 | BK173: 77 | BL173: Lupine, Samen, süss weiss | BM173: 1000 | BN173: 9.1 | BO173: 9.9 | BP173: 143 | BQ173: 257 | BR173: 99 | BS173: 308 | BT173: 396 | BU173: 95 | BV173: 121 | BW173: 347 | BX173: 66 | BY173: 959 | BZ173: 41 | CA173: 2.5 | CB173: 5.1 | CC173: 2.3 | CD173: 12 | CE173: 0 | CF173: 89 | CG173: 88 | CH173: 88 | CI173: 88 | CJ173: 92 | CK173: 80 | CL173: 90 | CM173: 0 | CN173: 0
A174: 74 | C174: Lin, tourteau de pression, 4-7 % MG | D174: 1000 | E174: 7.1 | F174: 7.4 | G174: 171 | H174: 250 | I174: 74 | J174: 219 | K174: 365 | L174: 65 | M174: 97 | N174: 402 | O174: 44 | P174: 929 | Q174: 71 | R174: 4.4 | S174: 8.6 | T174: 5.3 | U174: 0 | V174: 0 | W174: 76 | X174: 83 | Y174: 90 | Z174: 22 | AA174: 80 | AB174: 64 | AC174: 85 | AD174: 0 | AE174: 0 | AG174: 74 | AH174: Lin, tourteau de pression, 4-7 % MG | AI174: 1000 | AJ174: 7.1 | AK174: 7.4 | AL174: 171 | AM174: 250 | AN174: 74 | AO174: 219 | AP174: 365 | AQ174: 65 | AR174: 97 | AS174: 402 | AT174: 44 | AU174: 929 | AV174: 71 | AW174: 4.4 | AX174: 8.6 | AY174: 5.3 | AZ174: 12 | BB174: 76 | BC174: 83 | BD174: 90 | BE174: 22 | BF174: 80 | BG174: 64 | BH174: 85 | BI174: 0 | BJ174: 0 | BK174: 66 | BL174: Magermilch frisch | BM174: 1000 | BN174: 8.12 | BO174: 8.96 | BP174: 145.5 | BQ174: 233 | BR174: 114.8 | BS174: 279.8 | BT174: 359.7 | BU174: 8.2 | BV174: 0 | BW174: 549.6 | BX174: 491 | BY174: 917.4 | BZ174: 82.6 | CA174: 13.7 | CB174: 10.8 | CC174: 1.1 | CD174: 17 | CE174: 0 | CF174: 95 | CG174: 95 | CH174: 90 | CI174: 0 | CJ174: 95 | CK174: 80 | CL174: 90 | CM174: 0 | CN174: 0
A175: 75 | C175: Lin, tourteau de pression, 8-12 % MG | D175: 1000 | E175: 7.84 | F175: 8.28 | G175: 160.6 | H175: 231.3 | I175: 71.6 | J175: 202.7 | K175: 337.5 | L175: 107.8 | M175: 94.1 | N175: 399.5 | O175: 45 | P175: 938.9 | Q175: 61.1 | R175: 4.2 | S175: 8.9 | T175: 5.7 | U175: 0 | V175: 0 | W175: 77 | X175: 83 | Y175: 90 | Z175: 22 | AA175: 80 | AB175: 64 | AC175: 85 | AD175: 0 | AE175: 0 | AG175: 75 | AH175: Lin, tourteau de pression, 8-12 % MG | AI175: 1000 | AJ175: 7.84 | AK175: 8.28 | AL175: 160.6 | AM175: 231.3 | AN175: 71.6 | AO175: 202.7 | AP175: 337.5 | AQ175: 107.8 | AR175: 94.1 | AS175: 399.5 | AT175: 45 | AU175: 938.9 | AV175: 61.1 | AW175: 4.2 | AX175: 8.9 | AY175: 5.7 | AZ175: 11 | BB175: 77 | BC175: 83 | BD175: 90 | BE175: 22 | BF175: 80 | BG175: 64 | BH175: 85 | BI175: 0 | BJ175: 0 | BK175: 67 | BL175: Magermilchpulver | BM175: 1000 | BN175: 8.07 | BO175: 8.9 | BP175: 145.5 | BQ175: 233 | BR175: 114.8 | BS175: 279.8 | BT175: 359.7 | BU175: 8.2 | BV175: 0 | BW175: 549.6 | BX175: 508 | BY175: 918 | BZ175: 82 | CA175: 13.6 | CB175: 10.6 | CC175: 1.1 | CD175: 16 | CE175: 0 | CF175: 95 | CG175: 94 | CH175: 90 | CI175: 0 | CJ175: 95 | CK175: 80 | CL175: 90 | CM175: 0 | CN175: 0
A176: 76 | C176: Lin, tourteau d'extraction | D176: 1000 | E176: 6.66 | F176: 6.89 | G176: 161.8 | H176: 224.5 | I176: 78.7 | J176: 196.7 | K176: 327.6 | L176: 38.8 | M176: 95.4 | N176: 471.3 | O176: 54 | P176: 933.1 | Q176: 66.9 | R176: 4.5 | S176: 9.5 | T176: 6 | U176: 0 | V176: 0 | W176: 75 | X176: 83 | Y176: 80 | Z176: 22 | AA176: 80 | AB176: 64 | AC176: 85 | AD176: 0 | AE176: 0 | AG176: 76 | AH176: Lin, tourteau d'extraction | AI176: 1000 | AJ176: 6.66 | AK176: 6.89 | AL176: 161.8 | AM176: 224.5 | AN176: 78.7 | AO176: 196.7 | AP176: 327.6 | AQ176: 38.8 | AR176: 95.4 | AS176: 471.3 | AT176: 54 | AU176: 933.1 | AV176: 66.9 | AW176: 4.5 | AX176: 9.5 | AY176: 6 | AZ176: 12 | BB176: 75 | BC176: 83 | BD176: 80 | BE176: 22 | BF176: 80 | BG176: 64 | BH176: 85 | BI176: 0 | BJ176: 0 | BK176: 84 | BL176: Mais, Körner | BM176: 1000 | BN176: 8.6 | BO176: 9.57 | BP176: 102.9 | BQ176: 78.7 | BR176: 68.6 | BS176: 34.3 | BT176: 96.3 | BU176: 47.2 | BV176: 19.3 | BW176: 822.2 | BX176: 19 | BY176: 985 | BZ176: 15 | CA176: 0.2 | CB176: 3.2 | CC176: 1.2 | CD176: 4 | CE176: 0 | CF176: 88 | CG176: 60 | CH176: 79 | CI176: 20 | CJ176: 94 | CK176: 42 | CL176: 95 | CM176: 726.1 | CN176: 70
A177: 77 | C177: Lupin blanc doux, graine | D177: 1000 | E177: 9.1 | F177: 9.9 | G177: 143 | H177: 257 | I177: 99 | J177: 308 | K177: 396 | L177: 95 | M177: 121 | N177: 347 | O177: 66 | P177: 959 | Q177: 41 | R177: 2.5 | S177: 5.1 | T177: 2.3 | U177: 0 | V177: 0 | W177: =IF($H$42=1,BB177,CF177) -> 89 | X177: =IF($H$42=1,BC177,CG177) -> 88 | Y177: =IF($H$42=1,BD177,CH177) -> 88 | Z177: =IF($H$42=1,BE177,CI177) -> 88 | AA177: =IF($H$42=1,BF177,CJ177) -> 92 | AB177: =IF($H$42=1,BG177,CK177) -> 80 | AC177: =IF($H$42=1,BH177,CL177) -> 90 | AD177: =IF($H$42=1,BI177,CM177) -> 0 | AE177: =IF($H$42=1,BJ177,CN177) -> 0 | AG177: 77 | AH177: Lupin blanc doux, graine | AI177: 1000 | AJ177: 9.1 | AK177: 9.9 | AL177: 143 | AM177: 257 | AN177: 99 | AO177: 308 | AP177: 396 | AQ177: 95 | AR177: 121 | AS177: 347 | AT177: 66 | AU177: 959 | AV177: 41 | AW177: 2.5 | AX177: 5.1 | AY177: 2.3 | AZ177: 12 | BB177: 89 | BC177: 88 | BD177: 88 | BE177: 88 | BF177: 92 | BG177: 80 | BH177: 90 | BI177: 0 | BJ177: 0 | BK177: 82 | BL177: Maisfuttermehl | BM177: 1000 | BN177: 8.11 | BO177: 8.85 | BP177: 99.2 | BQ177: 82.6 | BR177: 66.3 | BS177: 45.2 | BT177: 116 | BU177: 75 | BV177: 58 | BW177: 717 | BX177: 42 | BY177: 966 | BZ177: 34 | CA177: 0.6 | CB177: 5.1 | CC177: 2.6 | CD177: 6 | CE177: 0 | CF177: 82 | CG177: 62 | CH177: 85 | CI177: 60 | CJ177: 87 | CK177: 45 | CL177: 80 | CM177: 490 | CN177: 75
A178: 78 | C178: Lupin bleu doux, graine | D178: 1000 | E178: 8.65 | F178: 9.37 | G178: 142 | H178: 233.6 | I178: 104 | J178: 275.1 | K178: 358.7 | L178: 67.3 | M178: 152.4 | N178: 388.2 | O178: 0 | P178: 966.6 | Q178: 33.4 | R178: 0 | S178: 0 | T178: 0 | U178: 0 | V178: 0 | W178: 89 | X178: 85 | Y178: 88 | Z178: 88 | AA178: 92 | AB178: 79 | AC178: 90 | AD178: 91.4 | AE178: 0 | AG178: 78 | AH178: Lupin bleu doux, graine | AI178: 1000 | AJ178: 8.65 | AK178: 9.37 | AL178: 142 | AM178: 233.6 | AN178: 104 | AO178: 275.1 | AP178: 358.7 | AQ178: 67.3 | AR178: 152.4 | AS178: 388.2 | AU178: 966.6 | AV178: 33.4 | BB178: 89 | BC178: 85 | BD178: 88 | BE178: 88 | BF178: 92 | BG178: 79 | BH178: 90 | BI178: 91.4 | BJ178: 0 | BK178: 83 | BL178: Maiskeime | BM178: 1000 | BN178: 9.66 | BO178: 10.67 | BP178: 96.3 | BQ178: 102.2 | BR178: 61.6 | BS178: 78.9 | BT178: 142 | BU178: 211.8 | BV178: 48.4 | BW178: 542.9 | BX178: 73 | BY178: 945.1 | BZ178: 54.9 | CA178: 0.1 | CB178: 1.2 | CC178: 0.4 | CD178: 1 | CE178: 0 | CF178: 81 | CG178: 70 | CH178: 85 | CI178: 60 | CJ178: 85 | CK178: 60 | CL178: 90 | CM178: 287.5 | CN178: 75
A179: 79 | C179: Maïs 60 % MA, gluten | D179: 1000 | E179: 8.58 | F179: 9.1 | G179: 500.6 | H179: 555.8 | I179: 48 | J179: 149.8 | K179: 671.8 | L179: 55.7 | M179: 9.7 | N179: 236.9 | O179: 8 | P179: 974.1 | Q179: 25.9 | R179: 0.2 | S179: 5.2 | T179: 0.3 | U179: 0 | V179: 0 | W179: 88 | X179: 88 | Y179: 76 | Z179: 20 | AA179: 94 | AB179: 30 | AC179: 90 | AD179: 164.7 | AE179: 75 | AG179: 79 | AH179: Maïs 60 % MA, gluten | AI179: 1000 | AJ179: 8.58 | AK179: 9.1 | AL179: 500.6 | AM179: 555.8 | AN179: 48 | AO179: 149.8 | AP179: 671.8 | AQ179: 55.7 | AR179: 9.7 | AS179: 236.9 | AT179: 8 | AU179: 974.1 | AV179: 25.9 | AW179: 0.2 | AX179: 5.2 | AY179: 0.3 | AZ179: 1 | BB179: 88 | BC179: 88 | BD179: 76 | BE179: 20 | BF179: 94 | BG179: 30 | BH179: 90 | BI179: 164.7 | BJ179: 75 | BK179: 79 | BL179: Maiskleber 60 % RP | BM179: 1000 | BN179: 8.58 | BO179: 9.1 | BP179: 500.6 | BQ179: 555.8 | BR179: 48 | BS179: 149.8 | BT179: 671.8 | BU179: 55.7 | BV179: 9.7 | BW179: 236.9 | BX179: 8 | BY179: 974.1 | BZ179: 25.9 | CA179: 0.2 | CB179: 5.2 | CC179: 0.3 | CD179: 1 | CE179: 0 | CF179: 88 | CG179: 88 | CH179: 76 | CI179: 20 | CJ179: 94 | CK179: 30 | CL179: 90 | CM179: 164.7 | CN179: 75
A180: 80 | C180: Maïs 70 % MA, gluten | D180: 1000 | E180: 8.6 | F180: 9.03 | G180: 563 | H180: 640.5 | I180: 33.7 | J180: 172.6 | K180: 774.2 | L180: 74.2 | M180: 11.7 | N180: 104.5 | O180: 5 | P180: 964.6 | Q180: 35.4 | R180: 0.2 | S180: 4.1 | T180: 0.3 | U180: 0 | V180: 0 | W180: 88 | X180: 88 | Y180: 76 | Z180: 20 | AA180: 94 | AB180: 30 | AC180: 90 | AD180: 72.7 | AE180: 75 | AG180: 80 | AH180: Maïs 70 % MA, gluten | AI180: 1000 | AJ180: 8.6 | AK180: 9.03 | AL180: 563 | AM180: 640.5 | AN180: 33.7 | AO180: 172.6 | AP180: 774.2 | AQ180: 74.2 | AR180: 11.7 | AS180: 104.5 | AT180: 5 | AU180: 964.6 | AV180: 35.4 | AW180: 0.2 | AX180: 4.1 | AY180: 0.3 | AZ180: 1 | BB180: 88 | BC180: 88 | BD180: 76 | BE180: 20 | BF180: 94 | BG180: 30 | BH180: 90 | BI180: 72.7 | BJ180: 75 | BK180: 80 | BL180: Maiskleber 70 % RP | BM180: 1000 | BN180: 8.6 | BO180: 9.03 | BP180: 563 | BQ180: 640.5 | BR180: 33.7 | BS180: 172.6 | BT180: 774.2 | BU180: 74.2 | BV180: 11.7 | BW180: 104.5 | BX180: 5 | BY180: 964.6 | BZ180: 35.4 | CA180: 0.2 | CB180: 4.1 | CC180: 0.3 | CD180: 1 | CE180: 0 | CF180: 88 | CG180: 88 | CH180: 76 | CI180: 20 | CJ180: 94 | CK180: 30 | CL180: 90 | CM180: 72.7 | CN180: 75
A181: 81 | C181: Maïs, aliment de gluten (gluten feed) | D181: 1000 | E181: 7.4 | F181: 7.94 | G181: 130.1 | H181: 156.2 | I181: 93.7 | J181: 149.6 | K181: 232 | L181: 26 | M181: 78 | N181: 606 | O181: 23 | P181: 942 | Q181: 58 | R181: 1.5 | S181: 9.5 | T181: 4.1 | U181: 0 | V181: 0 | W181: 83 | X181: 80 | Y181: 81 | Z181: 66 | AA181: 87 | AB181: 68 | AC181: 85 | AD181: 237.2 | AE181: 75 | AG181: 81 | AH181: Maïs, aliment de gluten (gluten feed) | AI181: 1000 | AJ181: 7.4 | AK181: 7.94 | AL181: 130.1 | AM181: 156.2 | AN181: 93.7 | AO181: 149.6 | AP181: 232 | AQ181: 26 | AR181: 78 | AS181: 606 | AT181: 23 | AU181: 942 | AV181: 58 | AW181: 1.5 | AX181: 9.5 | AY181: 4.1 | AZ181: 14 | BB181: 83 | BC181: 80 | BD181: 81 | BE181: 66 | BF181: 87 | BG181: 68 | BH181: 85 | BI181: 237.2 | BJ181: 75 | BK181: 81 | BL181: Maiskleberfutter | BM181: 1000 | BN181: 7.4 | BO181: 7.94 | BP181: 130.1 | BQ181: 156.2 | BR181: 93.7 | BS181: 149.6 | BT181: 232 | BU181: 26 | BV181: 78 | BW181: 606 | BX181: 23 | BY181: 942 | BZ181: 58 | CA181: 1.5 | CB181: 9.5 | CC181: 4.1 | CD181: 14 | CE181: 0 | CF181: 83 | CG181: 80 | CH181: 81 | CI181: 66 | CJ181: 87 | CK181: 68 | CL181: 85 | CM181: 237.2 | CN181: 75
A182: 82 | C182: Maïs, farine fourragère | D182: 1000 | E182: 8.11 | F182: 8.85 | G182: 99.2 | H182: 82.6 | I182: 66.3 | J182: 45.2 | K182: 116 | L182: 75 | M182: 58 | N182: 717 | O182: 42 | P182: 966 | Q182: 34 | R182: 0.6 | S182: 5.1 | T182: 2.6 | U182: 0 | V182: 0 | W182: 82 | X182: 62 | Y182: 85 | Z182: 60 | AA182: 87 | AB182: 45 | AC182: 80 | AD182: 490 | AE182: 75 | AG182: 82 | AH182: Maïs, farine fourragère | AI182: 1000 | AJ182: 8.11 | AK182: 8.85 | AL182: 99.2 | AM182: 82.6 | AN182: 66.3 | AO182: 45.2 | AP182: 116 | AQ182: 75 | AR182: 58 | AS182: 717 | AT182: 42 | AU182: 966 | AV182: 34 | AW182: 0.6 | AX182: 5.1 | AY182: 2.6 | AZ182: 6 | BB182: 82 | BC182: 62 | BD182: 85 | BE182: 60 | BF182: 87 | BG182: 45 | BH182: 80 | BI182: 490 | BJ182: 75 | BK182: 85 | BL182: Maiskolbenschrot getrocknet | BM182: 1000 | BN182: 7.74 | BO182: 8.42 | BP182: 71 | BQ182: 54.2 | BR182: 67.6 | BS182: 46.1 | BT182: 83 | BU182: 35 | BV182: 90 | BW182: 773 | BX182: 33 | BY182: 981 | BZ182: 19 | CA182: 0.3 | CB182: 2.7 | CC182: 1 | CD182: 4 | CE182: 0 | CF182: 83 | CG182: 55 | CH182: 75 | CI182: 55 | CJ182: 90 | CK182: 60 | CL182: 75 | CM182: 559.1 | CN182: 75
A183: 83 | C183: Maïs, germes | D183: 1000 | E183: 9.66 | F183: 10.67 | G183: 96.3 | H183: 102.2 | I183: 61.6 | J183: 78.9 | K183: 142 | L183: 211.8 | M183: 48.4 | N183: 542.9 | O183: 73 | P183: 945.1 | Q183: 54.9 | R183: 0.1 | S183: 1.2 | T183: 0.4 | U183: 0 | V183: 0 | W183: 81 | X183: 70 | Y183: 85 | Z183: 60 | AA183: 85 | AB183: 60 | AC183: 90 | AD183: 287.5 | AE183: 75 | AG183: 83 | AH183: Maïs, germes | AI183: 1000 | AJ183: 9.66 | AK183: 10.67 | AL183: 96.3 | AM183: 102.2 | AN183: 61.6 | AO183: 78.9 | AP183: 142 | AQ183: 211.8 | AR183: 48.4 | AS183: 542.9 | AT183: 73 | AU183: 945.1 | AV183: 54.9 | AW183: 0.1 | AX183: 1.2 | AY183: 0.4 | AZ183: 1 | BB183: 81 | BC183: 70 | BD183: 85 | BE183: 60 | BF183: 85 | BG183: 60 | BH183: 90 | BI183: 287.5 | BJ183: 75 | BK183: 86 | BL183: Maiskolbensilage ohne Lieschblätter, 30 % Spindeln | BM183: 1000 | BN183: 8.16 | BO183: 8.97 | BP183: 87.2 | BQ183: 63.6 | BR183: 74.5 | BS183: 42.1 | BT183: 94.7 | BU183: 46.7 | BV183: 32.8 | BW183: 809.8 | BX183: 8 | BY183: 984 | BZ183: 16 | CA183: 0.2 | CB183: 3 | CC183: 1.2 | CD183: 7 | CE183: 50 | CF183: 84 | CG183: 60 | CH183: 79 | CI183: 40 | CJ183: 90 | CK183: 50 | CL183: 75 | CM183: 646.2 | CN183: 75
A184: 84 | C184: Maïs, grain | D184: 1000 | E184: 8.6 | F184: 9.57 | G184: 102.9 | H184: 78.7 | I184: 68.6 | J184: 34.3 | K184: 96.3 | L184: 47.2 | M184: 19.3 | N184: 822.2 | O184: 19 | P184: 985 | Q184: 15 | R184: 0.2 | S184: 3.2 | T184: 1.2 | U184: 0 | V184: 0 | W184: 88 | X184: 60 | Y184: 79 | Z184: 20 | AA184: 94 | AB184: 42 | AC184: 95 | AD184: 726.1 | AE184: 70 | AG184: 84 | AH184: Maïs, grain | AI184: 1000 | AJ184: 8.6 | AK184: 9.57 | AL184: 102.9 | AM184: 78.7 | AN184: 68.6 | AO184: 34.3 | AP184: 96.3 | AQ184: 47.2 | AR184: 19.3 | AS184: 822.2 | AT184: 19 | AU184: 985 | AV184: 15 | AW184: 0.2 | AX184: 3.2 | AY184: 1.2 | AZ184: 4 | BB184: 88 | BC184: 60 | BD184: 79 | BE184: 20 | BF184: 94 | BG184: 42 | BH184: 95 | BI184: 726.1 | BJ184: 70 | BK184: 87 | BL184: Maiskolbensilage ohne Lieschblätter, 80 % Spindeln | BM184: 1000 | BN184: 7.85 | BO184: 8.57 | BP184: 84.5 | BQ184: 55.8 | BR184: 77.9 | BS184: 36.9 | BT184: 83 | BU184: 36 | BV184: 85 | BW184: 781 | BX184: 8 | BY184: 985 | BZ184: 15 | CA184: 0.2 | CB184: 3 | CC184: 1.2 | CD184: 5 | CE184: 50 | CF184: 84 | CG184: 60 | CH184: 79 | CI184: 50 | CJ184: 90 | CK184: 50 | CL184: 75 | CM184: 625.4 | CN184: 75
A185: 85 | C185: Maïs-épis, complet, séché | D185: 1000 | E185: 7.74 | F185: 8.42 | G185: 71 | H185: 54.2 | I185: 67.6 | J185: 46.1 | K185: 83 | L185: 35 | M185: 90 | N185: 773 | O185: 33 | P185: 981 | Q185: 19 | R185: 0.3 | S185: 2.7 | T185: 1 | U185: 0 | V185: 0 | W185: 83 | X185: 55 | Y185: 75 | Z185: 55 | AA185: 90 | AB185: 60 | AC185: 75 | AD185: 559.1 | AE185: 75 | AG185: 85 | AH185: Maïs-épis, complet, séché | AI185: 1000 | AJ185: 7.74 | AK185: 8.42 | AL185: 71 | AM185: 54.2 | AN185: 67.6 | AO185: 46.1 | AP185: 83 | AQ185: 35 | AR185: 90 | AS185: 773 | AT185: 33 | AU185: 981 | AV185: 19 | AW185: 0.3 | AX185: 2.7 | AY185: 1 | AZ185: 4 | BB185: 83 | BC185: 55 | BD185: 75 | BE185: 55 | BF185: 90 | BG185: 60 | BH185: 75 | BI185: 559.1 | BJ185: 75 | BK185: 88 | BL185: Maiskörnersilage | BM185: 1000 | BN185: 8.63 | BO185: 9.61 | BP185: 94.8 | BQ185: 65.1 | BR185: 78.2 | BS185: 35.6 | BT185: 91.4 | BU185: 44.4 | BV185: 18.9 | BW185: 831.3 | BX185: 7 | BY185: 986 | BZ185: 14 | CA185: 0.2 | CB185: 3.2 | CC185: 1.2 | CD185: 4 | CE185: 50 | CF185: 89 | CG185: 60 | CH185: 79 | CI185: 30 | CJ185: 94 | CK185: 45 | CL185: 80 | CM185: 729.5 | CN185: 75
A186: 86 | C186: Maïs-épis, ensilé, sans spathes, 30 % de rafles | D186: 1000 | E186: 8.16 | F186: 8.97 | G186: 87.2 | H186: 63.6 | I186: 74.5 | J186: 42.1 | K186: 94.7 | L186: 46.7 | M186: 32.8 | N186: 809.8 | O186: 8 | P186: 984 | Q186: 16 | R186: 0.2 | S186: 3 | T186: 1.2 | U186: 50 | V186: 50 | W186: 84 | X186: 60 | Y186: 79 | Z186: 40 | AA186: 90 | AB186: 50 | AC186: 75 | AD186: 646.2 | AE186: 75 | AG186: 86 | AH186: Maïs-épis, ensilé, sans spathes, 30 % de rafles | AI186: 1000 | AJ186: 8.16 | AK186: 8.97 | AL186: 87.2 | AM186: 63.6 | AN186: 74.5 | AO186: 42.1 | AP186: 94.7 | AQ186: 46.7 | AR186: 32.8 | AS186: 809.8 | AT186: 8 | AU186: 984 | AV186: 16 | AW186: 0.2 | AX186: 3 | AY186: 1.2 | AZ186: 7 | BA186: 50 | BB186: 84 | BC186: 60 | BD186: 79 | BE186: 40 | BF186: 90 | BG186: 50 | BH186: 75 | BI186: 646.2 | BJ186: 75 | BK186: 89 | BL186: Malzkeime getrocknet | BM186: 1000 | BN186: 6.5 | BO186: 6.73 | BP186: 109.9 | BQ186: 176.4 | BR186: 93.3 | BS186: 219.4 | BT186: 282 | BU186: 16 | BV186: 149 | BW186: 483 | BX186: 135 | BY186: 930 | BZ186: 70 | CA186: 2.5 | CB186: 7.9 | CC186: 1.8 | CD186: 9 | CE186: 0 | CF186: 77 | CG186: 78 | CH186: 78 | CI186: 74 | CJ186: 78 | CK186: 80 | CL186: 80 | CM186: 54.6 | CN186: 0
A187: 87 | C187: Maïs-épis, ensilé, sans spathes, 80 % de rafles | D187: 1000 | E187: 7.85 | F187: 8.57 | G187: 84.5 | H187: 55.8 | I187: 77.9 | J187: 36.9 | K187: 83 | L187: 36 | M187: 85 | N187: 781 | O187: 8 | P187: 985 | Q187: 15 | R187: 0.2 | S187: 3 | T187: 1.2 | U187: 50 | V187: 50 | W187: 84 | X187: 60 | Y187: 79 | Z187: 50 | AA187: 90 | AB187: 50 | AC187: 75 | AD187: 625.4 | AE187: 75 | AG187: 87 | AH187: Maïs-épis, ensilé, sans spathes, 80 % de rafles | AI187: 1000 | AJ187: 7.85 | AK187: 8.57 | AL187: 84.5 | AM187: 55.8 | AN187: 77.9 | AO187: 36.9 | AP187: 83 | AQ187: 36 | AR187: 85 | AS187: 781 | AT187: 8 | AU187: 985 | AV187: 15 | AW187: 0.2 | AX187: 3 | AY187: 1.2 | AZ187: 5 | BA187: 50 | BB187: 84 | BC187: 60 | BD187: 79 | BE187: 50 | BF187: 90 | BG187: 50 | BH187: 75 | BI187: 625.4 | BJ187: 75 | BK187: 61 | BL187: Molkenkonzentrat 12 % TS | BM187: 1000 | BN187: 7.96 | BO187: 8.95 | BP187: 103.6 | BQ187: 84 | BR187: 121.2 | BS187: 100.9 | BT187: 129.6 | BU187: 5.9 | BV187: 0 | BW187: 787.5 | BX187: 0 | BY187: 923 | BZ187: 77 | CA187: 0 | CB187: 0 | CC187: 0 | CD187: 0 | CE187: 0 | CF187: 94 | CG187: 90 | CH187: 90 | CI187: 0 | CJ187: 95 | CK187: 80 | CL187: 90 | CM187: 0 | CN187: 0
A188: 88 | C188: Maïs-grain, ensilé | D188: 1000 | E188: 8.63 | F188: 9.61 | G188: 94.8 | H188: 65.1 | I188: 78.2 | J188: 35.6 | K188: 91.4 | L188: 44.4 | M188: 18.9 | N188: 831.3 | O188: 7 | P188: 986 | Q188: 14 | R188: 0.2 | S188: 3.2 | T188: 1.2 | U188: 50 | V188: 50 | W188: 89 | X188: 60 | Y188: 79 | Z188: 30 | AA188: 94 | AB188: 45 | AC188: 80 | AD188: 729.5 | AE188: 75 | AG188: 88 | AH188: Maïs-grain, ensilé | AI188: 1000 | AJ188: 8.63 | AK188: 9.61 | AL188: 94.8 | AM188: 65.1 | AN188: 78.2 | AO188: 35.6 | AP188: 91.4 | AQ188: 44.4 | AR188: 18.9 | AS188: 831.3 | AT188: 7 | AU188: 986 | AV188: 14 | AW188: 0.2 | AX188: 3.2 | AY188: 1.2 | AZ188: 4 | BA188: 50 | BB188: 89 | BC188: 60 | BD188: 79 | BE188: 30 | BF188: 94 | BG188: 45 | BH188: 80 | BI188: 729.5 | BJ188: 75 | BK188: 62 | BL188: Molkenkonzentrat 18 % TS | BM188: 1000 | BN188: 7.96 | BO188: 8.95 | BP188: 103.6 | BQ188: 84 | BR188: 121.2 | BS188: 100.9 | BT188: 129.6 | BU188: 5.9 | BV188: 0 | BW188: 787.5 | BX188: 0 | BY188: 923 | BZ188: 77 | CA188: 0 | CB188: 0 | CC188: 0 | CD188: 0 | CE188: 0 | CF188: 94 | CG188: 90 | CH188: 90 | CI188: 0 | CJ188: 95 | CK188: 80 | CL188: 90 | CM188: 0 | CN188: 0
A189: 89 | C189: Malt, germe, déshydraté | D189: 1000 | E189: 6.5 | F189: 6.73 | G189: 109.9 | H189: 176.4 | I189: 93.3 | J189: 219.4 | K189: 282 | L189: 16 | M189: 149 | N189: 483 | O189: 135 | P189: 930 | Q189: 70 | R189: 2.5 | S189: 7.9 | T189: 1.8 | U189: 0 | V189: 0 | W189: 77 | X189: 78 | Y189: 78 | Z189: 74 | AA189: 78 | AB189: 80 | AC189: 80 | AD189: 54.6 | AE189: 0 | AG189: 89 | AH189: Malt, germe, déshydraté | AI189: 1000 | AJ189: 6.5 | AK189: 6.73 | AL189: 109.9 | AM189: 176.4 | AN189: 93.3 | AO189: 219.4 | AP189: 282 | AQ189: 16 | AR189: 149 | AS189: 483 | AT189: 135 | AU189: 930 | AV189: 70 | AW189: 2.5 | AX189: 7.9 | AY189: 1.8 | AZ189: 9 | BB189: 77 | BC189: 78 | BD189: 78 | BE189: 74 | BF189: 78 | BG189: 80 | BH189: 80 | BI189: 54.6 | BJ189: 0 | BK189: 63 | BL189: Molkenkonzentrat 25 % TS | BM189: 1000 | BN189: 7.96 | BO189: 8.95 | BP189: 103.6 | BQ189: 84 | BR189: 121.2 | BS189: 100.9 | BT189: 129.6 | BU189: 5.9 | BV189: 0 | BW189: 787.5 | BX189: 0 | BY189: 923 | BZ189: 77 | CA189: 0 | CB189: 0 | CC189: 0 | CD189: 0 | CE189: 0 | CF189: 94 | CG189: 90 | CH189: 90 | CI189: 0 | CJ189: 95 | CK189: 80 | CL189: 90 | CM189: 0 | CN189: 0
A190: 90 | C190: Manioc, farine | D190: 1000 | E190: 7.46 | F190: 8.27 | G190: 71.9 | H190: 15.5 | I190: 99.4 | J190: 12.8 | K190: 23 | L190: 3 | M190: 48 | N190: 861 | O190: 32 | P190: 935 | Q190: 65 | R190: 2.9 | S190: 1.1 | T190: 1.1 | U190: 0 | V190: 0 | W190: 87 | X190: 41 | Y190: 40 | Z190: 20 | AA190: 92 | AB190: 60 | AC190: 80 | AD190: 724 | AE190: 0 | AG190: 90 | AH190: Manioc, farine | AI190: 1000 | AJ190: 7.46 | AK190: 8.27 | AL190: 71.9 | AM190: 15.5 | AN190: 99.4 | AO190: 12.8 | AP190: 23 | AQ190: 3 | AR190: 48 | AS190: 861 | AT190: 32 | AU190: 935 | AV190: 65 | AW190: 2.9 | AX190: 1.1 | AY190: 1.1 | AZ190: 8 | BB190: 87 | BC190: 41 | BD190: 40 | BE190: 20 | BF190: 92 | BG190: 60 | BH190: 80 | BI190: 724 | BJ190: 0 | BK190: 65 | BL190: Molkenpulver(Schottepulver) | BM190: 1000 | BN190: 7.9 | BO190: 8.9 | BP190: 103 | BQ190: 82 | BR190: 120 | BS190: 99 | BT190: 127 | BU190: 10 | BV190: 0 | BW190: 777 | BX190: 725 | BY190: 914 | BZ190: 86 | CA190: 5.8 | CB190: 6.5 | CC190: 1.1 | CD190: 24 | CE190: 0 | CF190: 94 | CG190: 90 | CH190: 90 | CI190: 0 | CJ190: 95 | CK190: 80 | CL190: 90 | CM190: 0 | CN190: 0
A191: 91 | C191: Marc de poires, séché | D191: 1000 | E191: 4.16 | F191: 3.75 | G191: 54 | H191: 12.7 | I191: 68.8 | J191: 5 | K191: 44.6 | L191: 13.5 | M191: 372.3 | N191: 558.2 | O191: 188 | P191: 988.6 | Q191: 11.4 | R191: 1 | S191: 0.9 | T191: 0.3 | U191: 0 | V191: 0 | W191: 53 | X191: 40 | Y191: 39 | Z191: 35 | AA191: 65 | AB191: 20 | AC191: 25 | AD191: 0 | AE191: 0 | AG191: 91 | AH191: Marc de poires, séché | AI191: 1000 | AJ191: 4.16 | AK191: 3.75 | AL191: 54 | AM191: 12.7 | AN191: 68.8 | AO191: 5 | AP191: 44.6 | AQ191: 13.5 | AR191: 372.3 | AS191: 558.2 | AT191: 188 | AU191: 988.6 | AV191: 11.4 | AW191: 1 | AX191: 0.9 | AY191: 0.3 | AZ191: 4 | BB191: 53 | BC191: 40 | BD191: 39 | BE191: 35 | BF191: 65 | BG191: 20 | BH191: 25 | BI191: 0 | BJ191: 0 | BK191: 144 | BL191: Mühlennachprodukte-gemisch (MNG) | BM191: 1000 | BN191: 6.4 | BO191: 6.7 | BP191: 93 | BQ191: 110 | BR191: 88 | BS191: 128 | BT191: 177 | BU191: 43 | BV191: 90 | BW191: 636 | BX191: 62 | BY191: 946 | BZ191: 54 | CA191: 1.5 | CB191: 10.9 | CC191: 3.9 | CD191: 11 | CE191: 0 | CF191: 72 | CG191: 75 | CH191: 75 | CI191: 40 | CJ191: 76 | CK191: 75 | CL191: 75 | CM191: 0 | CN191: 0
A192: 92 | C192: Marc de pommes, dépectinisé, séché | D192: 1000 | E192: 4.41 | F192: 4.09 | G192: 57.3 | H192: 23.3 | I192: 61.1 | J192: 9.1 | K192: 81.3 | L192: 37.1 | M192: 317.5 | N192: 499.6 | O192: 160 | P192: 935.5 | Q192: 64.5 | R192: 13.1 | S192: 1.2 | T192: 0.3 | U192: 0 | V192: 0 | W192: 56 | X192: 40 | Y192: 39 | Z192: 49 | AA192: 65 | AB192: 20 | AC192: 25 | AD192: 0 | AE192: 0 | AG192: 92 | AH192: Marc de pommes, dépectinisé, séché | AI192: 1000 | AJ192: 4.41 | AK192: 4.09 | AL192: 57.3 | AM192: 23.3 | AN192: 61.1 | AO192: 9.1 | AP192: 81.3 | AQ192: 37.1 | AR192: 317.5 | AS192: 499.6 | AT192: 160 | AU192: 935.5 | AV192: 64.5 | AW192: 13.1 | AX192: 1.2 | AY192: 0.3 | AZ192: 1 | BB192: 56 | BC192: 40 | BD192: 39 | BE192: 49 | BF192: 65 | BG192: 20 | BH192: 25 | BI192: 0 | BJ192: 0 | BK192: 123 | BL192: Na-Kaseinpulver | BM192: 1000 | BN192: 8.76 | BO192: 9.27 | BP192: 169.3 | BQ192: 577.1 | BR192: 117 | BS192: 838.4 | BT192: 943.1 | BU192: 8.8 | BV192: 0 | BW192: 6.2 | BX192: 0 | BY192: 958.1 | BZ192: 41.9 | CA192: 0 | CB192: 0 | CC192: 0 | CD192: 0 | CE192: 0 | CF192: 95 | CG192: 95 | CH192: 90 | CI192: 0 | CJ192: 95 | CK192: 90 | CL192: 90 | CM192: 0 | CN192: 0
A193: 93 | C193: Marc de pommes, séché | D193: 1000 | E193: 5.69 | F193: 5.72 | G193: 65.6 | H193: 14.2 | I193: 85.2 | J193: 5.5 | K193: 49.5 | L193: 22.3 | M193: 199.2 | N193: 713.1 | O193: 218 | P193: 984.1 | Q193: 15.9 | R193: 1.3 | S193: 1.4 | T193: 0.6 | U193: 0 | V193: 0 | W193: 66 | X193: 40 | Y193: 39 | Z193: 49 | AA193: 75 | AB193: 20 | AC193: 25 | AD193: 0 | AE193: 0 | AG193: 93 | AH193: Marc de pommes, séché | AI193: 1000 | AJ193: 5.69 | AK193: 5.72 | AL193: 65.6 | AM193: 14.2 | AN193: 85.2 | AO193: 5.5 | AP193: 49.5 | AQ193: 22.3 | AR193: 199.2 | AS193: 713.1 | AT193: 218 | AU193: 984.1 | AV193: 15.9 | AW193: 1.3 | AX193: 1.4 | AY193: 0.6 | AZ193: 6 | BB193: 66 | BC193: 40 | BD193: 39 | BE193: 49 | BF193: 75 | BG193: 20 | BH193: 25 | BI193: 0 | BJ193: 0 | BK193: 106 | BL193: Palmkernextraktionsschrot | BM193: 1000 | BN193: 6.76 | BO193: 7.07 | BP193: 157.3 | BQ193: 141.8 | BR193: 87.1 | BS193: 70.2 | BT193: 197 | BU193: 21 | BV193: 196 | BW193: 542 | BX193: 26 | BY193: 956 | BZ193: 44 | CA193: 3 | CB193: 7.2 | CC193: 3.9 | CD193: 7 | CE193: 0 | CF193: 77 | CG193: 75 | CH193: 90 | CI193: 55 | CJ193: 86 | CK193: 42 | CL193: 80 | CM193: 0 | CN193: 0
A194: 94 | C194: Marc de raisins, séché | D194: 1000 | E194: 2.93 | F194: 2.29 | G194: 41.2 | H194: 42.5 | I194: 24.2 | J194: 29.4 | K194: 132 | L194: 73 | M194: 277 | N194: 441 | O194: 180 | P194: 923 | Q194: 77 | R194: 6.1 | S194: 3 | T194: 1.1 | U194: 0 | V194: 0 | W194: 36 | X194: 13 | Y194: 49 | Z194: 37 | AA194: 40 | AB194: 30 | AC194: 25 | AD194: 0 | AE194: 0 | AG194: 94 | AH194: Marc de raisins, séché | AI194: 1000 | AJ194: 2.93 | AK194: 2.29 | AL194: 41.2 | AM194: 42.5 | AN194: 24.2 | AO194: 29.4 | AP194: 132 | AQ194: 73 | AR194: 277 | AS194: 441 | AT194: 180 | AU194: 923 | AV194: 77 | AW194: 6.1 | AX194: 3 | AY194: 1.1 | AZ194: 17 | BB194: 36 | BC194: 13 | BD194: 49 | BE194: 37 | BF194: 40 | BG194: 30 | BH194: 25 | BI194: 0 | BJ194: 0 | BK194: 107 | BL194: Paniermehl | BM194: 1000 | BN194: 8.4 | BO194: 9.36 | BP194: 109.9 | BQ194: 89.1 | BR194: 122.9 | BS194: 100.9 | BT194: 139.6 | BU194: 10 | BV194: 5.5 | BW194: 826 | BX194: 61 | BY194: 981.1 | BZ194: 18.9 | CA194: 0.3 | CB194: 2.1 | CC194: 0.5 | CD194: 2 | CE194: 0 | CF194: 91 | CG194: 85 | CH194: 82 | CI194: 47 | CJ194: 92 | CK194: 75 | CL194: 80 | CM194: 651.8 | CN194: 94
A195: 95 | C195: Mélasse de betteraves | D195: 1000 | E195: 7.6 | F195: 8.5 | G195: 76 | H195: 74 | I195: 118 | J195: 128 | K195: 128 | L195: 0 | M195: 0 | N195: 757 | O195: 625 | P195: 885 | Q195: 115 | R195: 1.5 | S195: 0.1 | T195: 0.2 | U195: 0 | V195: 0 | W195: 92 | X195: 75 | Y195: 0 | Z195: 0 | AA195: 95 | AB195: 100 | AC195: 0 | AD195: 0 | AE195: 0 | AG195: 95 | AH195: Mélasse de betteraves | AI195: 1000 | AJ195: 7.6 | AK195: 8.5 | AL195: 76 | AM195: 74 | AN195: 118 | AO195: 128 | AP195: 128 | AQ195: 0 | AR195: 0 | AS195: 757 | AT195: 625 | AU195: 885 | AV195: 115 | AW195: 1.5 | AX195: 0.1 | AY195: 0.2 | AZ195: 40 | BB195: 92 | BC195: 75 | BD195: 0 | BE195: 0 | BF195: 95 | BG195: 100 | BH195: 0 | BI195: 0 | BJ195: 0 | BK195: 112 | BL195: Proteinerbse, Samen | BM195: 1000 | BN195: 8.07 | BO195: 8.82 | BP195: 123.6 | BQ195: 149.1 | BR195: 114.7 | BS195: 172 | BT195: 227.6 | BU195: 19.1 | BV195: 64.2 | BW195: 655.6 | BX195: 69 | BY195: 967 | BZ195: 33 | CA195: 1.3 | CB195: 5.1 | CC195: 1.3 | CD195: 11 | CE195: 0 | CF195: 89 | CG195: 83 | CH195: 59 | CI195: 81 | CJ195: 93 | CK195: 78 | CL195: 90 | CM195: 0 | CN195: 0
A196: 96 | C196: Millet, grain, < 4 % CB (milocorn, sorgho) | D196: 1000 | E196: 8 | F196: 8.8 | G196: 102 | H196: 73 | I196: 81 | J196: 40 | K196: 102 | L196: 29 | M196: 23 | N196: 828 | O196: 11 | P196: 982 | Q196: 18 | R196: 0.4 | S196: 3.5 | T196: 1.4 | U196: 0 | V196: 0 | W196: 85 | X196: 53 | Y196: 81 | Z196: 24 | AA196: 91 | AB196: 45 | AC196: 80 | AD196: 730 | AE196: 75 | AG196: 96 | AH196: Millet, grain, < 4 % CB (milocorn, sorgho) | AI196: 1000 | AJ196: 8 | AK196: 8.8 | AL196: 102 | AM196: 73 | AN196: 81 | AO196: 40 | AP196: 102 | AQ196: 29 | AR196: 23 | AS196: 828 | AT196: 11 | AU196: 982 | AV196: 18 | AW196: 0.4 | AX196: 3.5 | AY196: 1.4 | AZ196: 4 | BB196: 85 | BC196: 53 | BD196: 81 | BE196: 24 | BF196: 91 | BG196: 45 | BH196: 80 | BI196: 730 | BJ196: 75 | BK196: 35 | BL196: Rande, Knolle, frisch | BM196: 1000 | BN196: 6.96 | BO196: 7.54 | BP196: 82 | BQ196: 81.8 | BR196: 104.3 | BS196: 115.9 | BT196: 139 | BU196: 17 | BV196: 73 | BW196: 662 | BX196: 110 | BY196: 891 | BZ196: 109 | CA196: 2.7 | CB196: 2.7 | CC196: 2.1 | CD196: 33 | CE196: 0 | CF196: 85 | CG196: 65 | CH196: 64 | CI196: 79 | CJ196: 90 | CK196: 85 | CL196: 65 | CM196: 0 | CN196: 0
A197: =IF($H$42=1,AG197,BK197) -> 97 | C197: =IF($H$42=1,AH197,BL197) -> Millet, grain, > 6 % CB | D197: =IF($H$42=1,AI197,BM197) -> 1000 | E197: =IF($H$42=1,AJ197,BN197) -> 7.3 | F197: =IF($H$42=1,AK197,BO197) -> 7.79 | G197: =IF($H$42=1,AL197,BP197) -> 99.8 | H197: =IF($H$42=1,AM197,BQ197) -> 88.5 | I197: =IF($H$42=1,AN197,BR197) -> 61 | J197: =IF($H$42=1,AO197,BS197) -> 48.4 | K197: =IF($H$42=1,AP197,BT197) -> 124.2 | L197: =IF($H$42=1,AQ197,BU197) -> 43.9 | M197: =IF($H$42=1,AR197,BV197) -> 100.7 | N197: =IF($H$42=1,AS197,BW197) -> 701.4 | O197: =IF($H$42=1,AT197,BX197) -> 9 | P197: =IF($H$42=1,AU197,BY197) -> 970.2 | Q197: =IF($H$42=1,AV197,BZ197) -> 29.8 | R197: =IF($H$42=1,AW197,CA197) -> 0.4 | S197: =IF($H$42=1,AX197,CB197) -> 3.5 | T197: =IF($H$42=1,AY197,CC197) -> 1.4 | U197: =IF($H$42=1,BA197,CD197) -> 0 | V197: 0 | W197: 78 | X197: 71 | Y197: 81 | Z197: 20 | AA197: 88 | AB197: 45 | AC197: 80 | AD197: 559.2 | AE197: 75 | AG197: 97 | AH197: Millet, grain, > 6 % CB | AI197: 1000 | AJ197: 7.3 | AK197: 7.79 | AL197: 99.8 | AM197: 88.5 | AN197: 61 | AO197: 48.4 | AP197: 124.2 | AQ197: 43.9 | AR197: 100.7 | AS197: 701.4 | AT197: 9 | AU197: 970.2 | AV197: 29.8 | AW197: 0.4 | AX197: 3.5 | AY197: 1.4 | AZ197: 4 | BB197: 78 | BC197: 71 | BD197: 81 | BE197: 20 | BF197: 88 | BG197: 45 | BH197: 80 | BI197: 559.2 | BJ197: 75 | BK197: 47 | BL197: Raps-Extraktionsschrot | BM197: 1000 | BN197: 6.2 | BO197: 6.4 | BP197: 140 | BQ197: 247 | BR197: 80 | BS197: 274 | BT197: 385 | BU197: 18 | BV197: 124 | BW197: 388 | BX197: 99 | BY197: 915 | BZ197: 85 | CA197: 9.9 | CB197: 14 | CC197: 5.1 | CD197: 14 | CE197: 0 | CF197: 75 | CG197: 83 | CH197: 80 | CI197: 24 | CJ197: 83 | CK197: 74 | CL197: 80 | CM197: 70.8 | CN197: 0
A198: 98 | C198: Millet, grain, 4-6 % CB | D198: 1000 | E198: 7.6 | F198: 8.2 | G198: 106 | H198: 81 | I198: 79 | J198: 44 | K198: 113 | L198: 37 | M198: 63 | N198: 760 | O198: 9 | P198: 973 | Q198: 27 | R198: 0.4 | S198: 3.5 | T198: 1.4 | U198: 0 | V198: =IF($H$42=1,BA198,CE198) -> 0 | W198: 82 | X198: 53 | Y198: 81 | Z198: 24 | AA198: 91 | AB198: 45 | AC198: 80 | AD198: 619.6 | AE198: 75 | AG198: 98 | AH198: Millet, grain, 4-6 % CB | AI198: 1000 | AJ198: 7.6 | AK198: 8.2 | AL198: 106 | AM198: 81 | AN198: 79 | AO198: 44 | AP198: 113 | AQ198: 37 | AR198: 63 | AS198: 760 | AT198: 9 | AU198: 973 | AV198: 27 | AW198: 0.4 | AX198: 3.5 | AY198: 1.4 | AZ198: 4 | BB198: 82 | BC198: 53 | BD198: 81 | BE198: 24 | BF198: 91 | BG198: 45 | BH198: 80 | BI198: 619.6 | BJ198: 75 | BK198: 48 | BL198: Rapsextraktionsschrot 00-Typ > 2.5 % RL | BM198: 1000 | BN198: 6.5 | BO198: 6.68 | BP198: 135.4 | BQ198: 234.7 | BR198: 79.2 | BS198: 260.7 | BT198: 366.5 | BU198: 38.2 | BV198: 115.8 | BW198: 385.8 | BX198: 0 | BY198: 906.3 | BZ198: 93.7 | CA198: 0 | CB198: 0 | CC198: 0 | CD198: 0 | CE198: 0 | CF198: 75 | CG198: 83 | CH198: 80 | CI198: 24 | CJ198: 83 | CK198: 74 | CL198: 80 | CM198: 0 | CN198: 0
A199: 99 | C199: Moutarde blanche, graine, toastée | D199: 1000 | E199: 10.69 | F199: 11.73 | G199: 104.5 | H199: 209.9 | I199: 58.7 | J199: 248.5 | K199: 344 | L199: 278 | M199: 95 | N199: 232 | O199: 45 | P199: 949 | Q199: 51 | R199: 5.1 | S199: 9 | T199: 3.1 | U199: 0 | V199: 0 | W199: 81 | X199: 87 | Y199: 89 | Z199: 54 | AA199: 74 | AB199: 75 | AC199: 70 | AD199: 0 | AE199: 0 | AG199: 99 | AH199: Moutarde blanche, graine, toastée | AI199: 1000 | AJ199: 10.69 | AK199: 11.73 | AL199: 104.5 | AM199: 209.9 | AN199: 58.7 | AO199: 248.5 | AP199: 344 | AQ199: 278 | AR199: 95 | AS199: 232 | AT199: 45 | AU199: 949 | AV199: 51 | AW199: 5.1 | AX199: 9 | AY199: 3.1 | AZ199: 8 | BB199: 81 | BC199: 87 | BD199: 89 | BE199: 54 | BF199: 74 | BG199: 75 | BH199: 70 | BI199: 0 | BJ199: 0 | BK199: 41 | BL199: Rapsextraktionsschrot 00-Typ 1.3 - 2.5 % RL | BM199: 1000 | BN199: 6.41 | BO199: 6.56 | BP199: 142.1 | BQ199: 248.9 | BR199: 81.6 | BS199: 276.4 | BT199: 388.6 | BU199: 23.8 | BV199: 116.4 | BW199: 388.1 | BX199: 0 | BY199: 916.9 | BZ199: 83.1 | CA199: 0 | CB199: 0 | CC199: 0 | CD199: 0 | CE199: 0 | CF199: 75 | CG199: 83 | CH199: 80 | CI199: 24 | CJ199: 83 | CK199: 74 | CL199: 80 | CM199: 0 | CN199: 0
A200: 100 | C200: Orge, farine fourragère | D200: 1000 | E200: 7.7 | F200: 8.37 | G200: 98.5 | H200: 86.2 | I200: 106.7 | J200: 97.4 | K200: 130.8 | L200: 30.3 | M200: 55.9 | N200: 754.1 | O200: 72 | P200: 971.1 | Q200: 28.9 | R200: 0.7 | S200: 5.5 | T200: 1.6 | U200: 0 | V200: 0 | W200: 82 | X200: 73 | Y200: 70 | Z200: 35 | AA200: 90 | AB200: 77 | AC200: 90 | AD200: 413 | AE200: 89 | AG200: 100 | AH200: Orge, farine fourragère | AI200: 1000 | AJ200: 7.7 | AK200: 8.37 | AL200: 98.5 | AM200: 86.2 | AN200: 106.7 | AO200: 97.4 | AP200: 130.8 | AQ200: 30.3 | AR200: 55.9 | AS200: 754.1 | AT200: 72 | AU200: 971.1 | AV200: 28.9 | AW200: 0.7 | AX200: 5.5 | AY200: 1.6 | AZ200: 7 | BB200: 82 | BC200: 73 | BD200: 70 | BE200: 35 | BF200: 90 | BG200: 77 | BH200: 90 | BI200: 413 | BJ200: 89 | BK200: 45 | BL200: Rapskuchen >9% RL | BM200: 1000 | BN200: 7.7 | BO200: 8.2 | BP200: 128 | BQ200: 224 | BR200: 74 | BS200: 249 | BT200: 350 | BU200: 108 | BV200: 112 | BW200: 352 | BX200: 119 | BY200: 922 | BZ200: 78 | CA200: 8.6 | CB200: 12.8 | CC200: 5.2 | CD200: 17 | CE200: 0 | CF200: 77 | CG200: 83 | CH200: 90 | CI200: 28 | CJ200: 83 | CK200: 74 | CL200: 80 | CM200: 83 | CN200: 0
A201: 101 | C201: Orge, flocons | D201: 1000 | E201: 8.98 | F201: 10.15 | G201: 123.5 | H201: 77.8 | I201: 128.8 | J201: 64 | K201: 115.2 | L201: 13.2 | M201: 8.6 | N201: 849.8 | O201: 15 | P201: 987 | Q201: 13 | R201: 0.5 | S201: 3 | T201: 0.6 | U201: 0 | V201: 0 | W201: 96 | X201: 90 | Y201: 41 | Z201: 21 | AA201: 98 | AB201: 60 | AC201: 80 | AD201: 722.1 | AE201: 89 | AG201: 101 | AH201: Orge, flocons | AI201: 1000 | AJ201: 8.98 | AK201: 10.15 | AL201: 123.5 | AM201: 77.8 | AN201: 128.8 | AO201: 64 | AP201: 115.2 | AQ201: 13.2 | AR201: 8.6 | AS201: 849.8 | AT201: 15 | AU201: 987 | AV201: 13 | AW201: 0.5 | AX201: 3 | AY201: 0.6 | AZ201: 3 | BB201: 96 | BC201: 90 | BD201: 41 | BE201: 21 | BF201: 98 | BG201: 60 | BH201: 80 | BI201: 722.1 | BJ201: 89 | BK201: 40 | BL201: Rapskuchen 00-Typ | BM201: 1000 | BN201: 7.69 | BO201: 8.11 | BP201: 129.6 | BQ201: 225.8 | BR201: 75.1 | BS201: 250.8 | BT201: 352.6 | BU201: 100.7 | BV201: 111.3 | BW201: 358.1 | BX201: 0 | BY201: 922.7 | BZ201: 77.3 | CA201: 0 | CB201: 0 | CC201: 0 | CD201: 0 | CE201: 0 | CF201: 77 | CG201: 83 | CH201: 90 | CI201: 28 | CJ201: 83 | CK201: 74 | CL201: 80 | CM201: 0 | CN201: 0
A202: 102 | C202: Orge, grain, léger (55-61 kg/hl) | D202: 1000 | E202: 7.47 | F202: 8.09 | G202: 99.6 | H202: 79.1 | I202: 108.9 | J202: 85.9 | K202: 118.8 | L202: 24.6 | M202: 59.8 | N202: 767.4 | O202: 26 | P202: 970.6 | Q202: 29.4 | R202: 0.6 | S202: 4.5 | T202: 1.2 | U202: 0 | V202: 0 | W202: 83 | X202: 73 | Y202: 70 | Z202: 35 | AA202: 88 | AB202: 75 | AC202: 90 | AD202: 593.1 | AE202: 89 | AG202: 102 | AH202: Orge, grain, léger (55-61 kg/hl) | AI202: 1000 | AJ202: 7.47 | AK202: 8.09 | AL202: 99.6 | AM202: 79.1 | AN202: 108.9 | AO202: 85.9 | AP202: 118.8 | AQ202: 24.6 | AR202: 59.8 | AS202: 767.4 | AT202: 26 | AU202: 970.6 | AV202: 29.4 | AW202: 0.6 | AX202: 4.5 | AY202: 1.2 | AZ202: 6 | BB202: 83 | BC202: 73 | BD202: 70 | BE202: 35 | BF202: 88 | BG202: 75 | BH202: 90 | BI202: 593.1 | BJ202: 89 | BK202: 42 | BL202: Rapskuchen 00-Typ kaltgepresst | BM202: 1000 | BN202: 8.96 | BO202: 9.65 | BP202: 90.1 | BQ202: 201.4 | BR202: 72.3 | BS202: 273.8 | BT202: 328.5 | BU202: 177.9 | BV202: 97.5 | BW202: 326.8 | BX202: 0 | BY202: 930.7 | BZ202: 69.3 | CA202: 0 | CB202: 0 | CC202: 0 | CD202: 0 | CE202: 0 | CF202: 78 | CG202: 83 | CH202: 90 | CI202: 28 | CJ202: 83 | CK202: 85 | CL202: 80 | CM202: 0 | CN202: 0
A203: 103 | C203: Orge, grain, lourd (70-74 kg/hl) | D203: 1000 | E203: 7.96 | F203: 8.72 | G203: 108.3 | H203: 93.6 | I203: 114.1 | J203: 101.5 | K203: 140.5 | L203: 26.4 | M203: 40.5 | N203: 767.6 | O203: 27 | P203: 975 | Q203: 25 | R203: 0.6 | S203: 4.5 | T203: 1.2 | U203: 0 | V203: 0 | W203: 87 | X203: 73 | Y203: 70 | Z203: 35 | AA203: 92 | AB203: 75 | AC203: 90 | AD203: 612.9 | AE203: 89 | AG203: 103 | AH203: Orge, grain, lourd (70-74 kg/hl) | AI203: 1000 | AJ203: 7.96 | AK203: 8.72 | AL203: 108.3 | AM203: 93.6 | AN203: 114.1 | AO203: 101.5 | AP203: 140.5 | AQ203: 26.4 | AR203: 40.5 | AS203: 767.6 | AT203: 27 | AU203: 975 | AV203: 25 | AW203: 0.6 | AX203: 4.5 | AY203: 1.2 | AZ203: 6 | BB203: 87 | BC203: 73 | BD203: 70 | BE203: 35 | BF203: 92 | BG203: 75 | BH203: 90 | BI203: 612.9 | BJ203: 89 | BK203: 44 | BL203: Rapskuchen 4-9% RL | BM203: 1000 | BN203: 7.2 | BO203: 7.5 | BP203: 134 | BQ203: 232 | BR203: 78 | BS203: 258 | BT203: 363 | BU203: 75 | BV203: 117 | BW203: 365 | BX203: 127 | BY203: 920 | BZ203: 80 | CA203: 8.1 | CB203: 12.6 | CC203: 5.2 | CD203: 15 | CE203: 0 | CF203: 77 | CG203: 83 | CH203: 90 | CI203: 28 | CJ203: 83 | CK203: 74 | CL203: 80 | CM203: 83 | CN203: 0
A204: 104 | C204: Orge, grain, moyen (62-69 kg/hl) | D204: 1000 | E204: 7.77 | F204: 8.49 | G204: 100.9 | H204: 77.4 | I204: 112 | J204: 84 | K204: 116.3 | L204: 26.2 | M204: 48.4 | N204: 783.1 | O204: 27 | P204: 974 | Q204: 26 | R204: 0.6 | S204: 4.5 | T204: 1.2 | U204: 0 | V204: 0 | W204: 85 | X204: 73 | Y204: 70 | Z204: 35 | AA204: 90 | AB204: 75 | AC204: 90 | AD204: 600.7 | AE204: 89 | AG204: 104 | AH204: Orge, grain, moyen (62-69 kg/hl) | AI204: 1000 | AJ204: 7.77 | AK204: 8.49 | AL204: 100.9 | AM204: 77.4 | AN204: 112 | AO204: 84 | AP204: 116.3 | AQ204: 26.2 | AR204: 48.4 | AS204: 783.1 | AT204: 27 | AU204: 974 | AV204: 26 | AW204: 0.6 | AX204: 4.5 | AY204: 1.2 | AZ204: 6 | BB204: 85 | BC204: 73 | BD204: 70 | BE204: 35 | BF204: 90 | BG204: 75 | BH204: 90 | BI204: 600.7 | BJ204: 89 | BK204: 46 | BL204: Rapskuchen ausBio-Diesel | BM204: 1000 | BN204: 8.4 | BO204: 9 | BP204: 95 | BQ204: 196 | BR204: 82 | BS204: 267 | BT204: 320 | BU204: 140 | BV204: 101 | BW204: 368 | BX204: 114 | BY204: 929 | BZ204: 71 | CA204: 8.2 | CB204: 12.3 | CC204: 5 | CD204: 16 | CE204: 0 | CF204: 78 | CG204: 93 | CH204: 90 | CI204: 28 | CJ204: 83 | CK204: 85 | CL204: 80 | CM204: 83 | CN204: 0
A205: 105 | C205: Orge, issues | D205: 1000 | E205: 6.42 | F205: 6.65 | G205: 81.9 | H205: 79.8 | I205: 89.3 | J205: 95.8 | K205: 128.7 | L205: 41.6 | M205: 133 | N205: 650.7 | O205: 66 | P205: 954 | Q205: 46 | R205: 1.3 | S205: 5.3 | T205: 1.8 | U205: 0 | V205: 0 | W205: 72 | X205: 73 | Y205: 70 | Z205: 35 | AA205: 80 | AB205: 77 | AC205: 75 | AD205: 356.4 | AE205: 89 | AG205: 105 | AH205: Orge, issues | AI205: 1000 | AJ205: 6.42 | AK205: 6.65 | AL205: 81.9 | AM205: 79.8 | AN205: 89.3 | AO205: 95.8 | AP205: 128.7 | AQ205: 41.6 | AR205: 133 | AS205: 650.7 | AT205: 66 | AU205: 954 | AV205: 46 | AW205: 1.3 | AX205: 5.3 | AY205: 1.8 | AZ205: 6 | BB205: 72 | BC205: 73 | BD205: 70 | BE205: 35 | BF205: 80 | BG205: 77 | BH205: 75 | BI205: 356.4 | BJ205: 89 | BK205: 43 | BL205: Rapssamen 00-Typ | BM205: 1000 | BN205: 13.77 | BO205: 15.57 | BP205: 45.2 | BQ205: 115.8 | BR205: 34.7 | BS205: 161.2 | BT205: 207.2 | BU205: 475.4 | BV205: 83.7 | BW205: 190.6 | BX205: 52 | BY205: 956.9 | BZ205: 43.1 | CA205: 4.5 | CB205: 8.1 | CC205: 3.1 | CD205: 9 | CE205: 0 | CF205: 79 | CG205: 75 | CH205: 94 | CI205: 24 | CJ205: 73 | CK205: 80 | CL205: 50 | CM205: 30.8 | CN205: 0
A206: 106 | C206: Palmiste, tourteau d'extraction | D206: 1000 | E206: 6.76 | F206: 7.07 | G206: 157.3 | H206: 141.8 | I206: 87.1 | J206: 70.2 | K206: 197 | L206: 21 | M206: 196 | N206: 542 | O206: 26 | P206: 956 | Q206: 44 | R206: 3 | S206: 7.2 | T206: 3.9 | U206: 0 | V206: 0 | W206: 77 | X206: 75 | Y206: 90 | Z206: 55 | AA206: 86 | AB206: 42 | AC206: 80 | AD206: 0 | AE206: 0 | AG206: 106 | AH206: Palmiste, tourteau d'extraction | AI206: 1000 | AJ206: 6.76 | AK206: 7.07 | AL206: 157.3 | AM206: 141.8 | AN206: 87.1 | AO206: 70.2 | AP206: 197 | AQ206: 21 | AR206: 196 | AS206: 542 | AT206: 26 | AU206: 956 | AV206: 44 | AW206: 3 | AX206: 7.2 | AY206: 3.9 | AZ206: 7 | BB206: 77 | BC206: 75 | BD206: 90 | BE206: 55 | BF206: 86 | BG206: 42 | BH206: 80 | BI206: 0 | BJ206: 0 | BK206: 131 | BL206: Reisfuttermehl, gelb | BM206: 1000 | BN206: 8.53 | BO206: 9.25 | BP206: 102.9 | BQ206: 114.1 | BR206: 57.1 | BS206: 83.1 | BT206: 166 | BU206: 189 | BV206: 80 | BW206: 467 | BX206: 61 | BY206: 902 | BZ206: 98 | CA206: 0.9 | CB206: 12.8 | CC206: 4.2 | CD206: 11 | CE206: 0 | CF206: 77 | CG206: 73 | CH206: 85 | CI206: 45 | CJ206: 80 | CK206: 55 | CL206: 80 | CM206: 247.9 | CN206: 85
A207: 107 | C207: Panure | D207: 1000 | E207: 8.4 | F207: 9.36 | G207: 109.9 | H207: 89.1 | I207: 122.9 | J207: 100.9 | K207: 139.6 | L207: 10 | M207: 5.5 | N207: 826 | O207: 61 | P207: 981.1 | Q207: 18.9 | R207: 0.3 | S207: 2.1 | T207: 0.5 | U207: 0 | V207: 0 | W207: 91 | X207: 85 | Y207: 82 | Z207: 47 | AA207: 92 | AB207: 75 | AC207: 80 | AD207: 651.8 | AE207: 94 | AG207: 107 | AH207: Panure | AI207: 1000 | AJ207: 8.4 | AK207: 9.36 | AL207: 109.9 | AM207: 89.1 | AN207: 122.9 | AO207: 100.9 | AP207: 139.6 | AQ207: 10 | AR207: 5.5 | AS207: 826 | AT207: 61 | AU207: 981.1 | AV207: 18.9 | AW207: 0.3 | AX207: 2.1 | AY207: 0.5 | AZ207: 2 | BB207: 91 | BC207: 85 | BD207: 82 | BE207: 47 | BF207: 92 | BG207: 75 | BH207: 80 | BI207: 651.8 | BJ207: 94 | BK207: 130 | BL207: Reisfuttermehl, weiss | BM207: 1000 | BN207: 8.1 | BO207: 8.77 | BP207: 99.1 | BQ207: 99 | BR207: 64.8 | BS207: 72.1 | BT207: 144 | BU207: 145 | BV207: 66 | BW207: 558 | BX207: 62 | BY207: 913 | BZ207: 87 | CA207: 1 | CB207: 14 | CC207: 6.3 | CD207: 11 | CE207: 0 | CF207: 77 | CG207: 73 | CH207: 85 | CI207: 45 | CJ207: 80 | CK207: 55 | CL207: 80 | CM207: 308.2 | CN207: 85
A208: 108 | C208: Pâtes avec œufs | D208: 1000 | E208: 8.55 | F208: 9.5 | G208: 119.8 | H208: 109.8 | I208: 119.3 | J208: 115.6 | K208: 173.3 | L208: 22.4 | M208: 4.8 | N208: 785 | O208: 0 | P208: 985.5 | Q208: 14.5 | R208: 0 | S208: 0 | T208: 0 | U208: 0 | V208: 0 | W208: 91 | X208: 85 | Y208: 82 | Z208: 47 | AA208: 92 | AB208: 70 | AC208: 75 | AD208: 726.6 | AE208: 94 | AG208: 108 | AH208: Pâtes avec œufs | AI208: 1000 | AJ208: 8.55 | AK208: 9.5 | AL208: 119.8 | AM208: 109.8 | AN208: 119.3 | AO208: 115.6 | AP208: 173.3 | AQ208: 22.4 | AR208: 4.8 | AS208: 785 | AU208: 985.5 | AV208: 14.5 | BB208: 91 | BC208: 85 | BD208: 82 | BE208: 47 | BF208: 92 | BG208: 70 | BH208: 75 | BI208: 726.6 | BJ208: 94 | BK208: 97 | BL208: Rispenhirse, Körner > 6 % RF | BM208: 1000 | BN208: 7.3 | BO208: 7.79 | BP208: 99.8 | BQ208: 88.5 | BR208: 61 | BS208: 48.4 | BT208: 124.2 | BU208: 43.9 | BV208: 100.7 | BW208: 701.4 | BX208: 9 | BY208: 970.2 | BZ208: 29.8 | CA208: 0.4 | CB208: 3.5 | CC208: 1.4 | CD208: 4 | CE208: 0 | CF208: 78 | CG208: 71 | CH208: 81 | CI208: 20 | CJ208: 88 | CK208: 45 | CL208: 80 | CM208: 559.2 | CN208: 75
A209: 109 | C209: Pâtes sans œufs | D209: 1000 | E209: 8.39 | F209: 9.32 | G209: 121.3 | H209: 107.1 | I209: 123.3 | J209: 112.8 | K209: 169.1 | L209: 1.4 | M209: 2 | N209: 819.5 | O209: 37 | P209: 992 | Q209: 8 | R209: 0.1 | S209: 2.1 | T209: 0.5 | U209: 0 | V209: 0 | W209: 91 | X209: 85 | Y209: 82 | Z209: 47 | AA209: 92 | AB209: 70 | AC209: 75 | AD209: 758.7 | AE209: 94 | AG209: 109 | AH209: Pâtes sans œufs | AI209: 1000 | AJ209: 8.39 | AK209: 9.32 | AL209: 121.3 | AM209: 107.1 | AN209: 123.3 | AO209: 112.8 | AP209: 169.1 | AQ209: 1.4 | AR209: 2 | AS209: 819.5 | AT209: 37 | AU209: 992 | AV209: 8 | AW209: 0.1 | AX209: 2.1 | AY209: 0.5 | AZ209: 2 | BB209: 91 | BC209: 85 | BD209: 82 | BE209: 47 | BF209: 92 | BG209: 70 | BH209: 75 | BI209: 758.7 | BJ209: 94 | BK209: 133 | BL209: Roggen, Körner | BM209: 1000 | BN209: 8.27 | BO209: 9.18 | BP209: 99.8 | BQ209: 71.2 | BR209: 121.3 | BS209: 85.4 | BT209: 113 | BU209: 13.4 | BV209: 20.3 | BW209: 835.9 | BX209: 64 | BY209: 982.6 | BZ209: 17.4 | CA209: 0.5 | CB209: 4.1 | CC209: 1.2 | CD209: 5 | CE209: 0 | CF209: 89 | CG209: 70 | CH209: 67 | CI209: 30 | CJ209: 94 | CK209: 78 | CL209: 80 | CM209: 648.9 | CN209: 96
A210: 110 | C210: Plumes hydrolysées, farine | D210: 1000 | E210: 8.4 | F210: 8.7 | G210: 494 | H210: 595 | I210: 19 | J210: 197 | K210: 885 | L210: 67 | M210: 9 | N210: 13 | O210: 0 | P210: 974 | Q210: 26 | R210: 5.2 | S210: 3.6 | T210: 0.4 | U210: 0 | V210: 0 | W210: 84 | X210: 86 | Y210: 84 | Z210: 0 | AA210: 0 | AB210: 30 | AC210: 70 | AD210: 0 | AE210: 0 | AG210: 110 | AH210: Plumes hydrolysées, farine | AI210: 1000 | AJ210: 8.4 | AK210: 8.7 | AL210: 494 | AM210: 595 | AN210: 19 | AO210: 197 | AP210: 885 | AQ210: 67 | AR210: 9 | AS210: 13 | AT210: 0 | AU210: 974 | AV210: 26 | AW210: 5.2 | AX210: 3.6 | AY210: 0.4 | AZ210: 1 | BB210: 84 | BC210: 86 | BD210: 84 | BE210: 0 | BF210: 0 | BG210: 30 | BH210: 70 | BI210: 0 | BJ210: 0 | BK210: 99 | BL210: Senfsaat, weiss getoastet | BM210: 1000 | BN210: 10.69 | BO210: 11.73 | BP210: 104.5 | BQ210: 209.9 | BR210: 58.7 | BS210: 248.5 | BT210: 344 | BU210: 278 | BV210: 95 | BW210: 232 | BX210: 45 | BY210: 949 | BZ210: 51 | CA210: 5.1 | CB210: 9 | CC210: 3.1 | CD210: 8 | CE210: 0 | CF210: 81 | CG210: 87 | CH210: 89 | CI210: 54 | CJ210: 74 | CK210: 75 | CL210: 70 | CM210: 0 | CN210: 0
A211: 111 | C211: Poire, fruit | D211: 1000 | E211: 7.95 | F211: 8.79 | G211: 82.1 | H211: 11 | I211: 124.1 | J211: 14.8 | K211: 19 | L211: 11 | M211: 151 | N211: 797 | O211: 529 | P211: 978 | Q211: 22 | R211: 0.7 | S211: 0.6 | T211: 0.5 | U211: 0 | V211: 0 | W211: 89 | X211: 60 | Y211: 30 | Z211: 65 | AA211: 95 | AB211: 80 | AC211: 60 | AD211: 0 | AE211: 0 | AG211: 111 | AH211: Poire, fruit | AI211: 1000 | AJ211: 7.95 | AK211: 8.79 | AL211: 82.1 | AM211: 11 | AN211: 124.1 | AO211: 14.8 | AP211: 19 | AQ211: 11 | AR211: 151 | AS211: 797 | AT211: 529 | AU211: 978 | AV211: 22 | AW211: 0.7 | AX211: 0.6 | AY211: 0.5 | AZ211: 5 | BB211: 89 | BC211: 60 | BD211: 30 | BE211: 65 | BF211: 95 | BG211: 80 | BH211: 60 | BI211: 0 | BJ211: 0 | BK211: 139 | BL211: Sojabohne, Samen | BM211: 1000 | BN211: 9.81 | BO211: 10.68 | BP211: 119.6 | BQ211: 254.6 | BR211: 73.7 | BS211: 316.6 | BT211: 407 | BU211: 196 | BV211: 60 | BW211: 284 | BX211: 82 | BY211: 947 | BZ211: 53 | CA211: 2.8 | CB211: 6.3 | CC211: 3 | CD211: 18 | CE211: 0 | CF211: 83 | CG211: 85 | CH211: 90 | CI211: 60 | CJ211: 80 | CK211: 80 | CL211: 80 | CM211: 51.2 | CN211: 0
A212: 112 | C212: Pois protéagineux, graine | D212: 1000 | E212: 8.07 | F212: 8.82 | G212: 123.6 | H212: 149.1 | I212: 114.7 | J212: 172 | K212: 227.6 | L212: 19.1 | M212: 64.2 | N212: 655.6 | O212: 69 | P212: 967 | Q212: 33 | R212: 1.3 | S212: 5.1 | T212: 1.3 | U212: 0 | V212: 0 | W212: 89 | X212: 83 | Y212: 59 | Z212: 81 | AA212: 93 | AB212: 78 | AC212: 90 | AD212: 0 | AE212: 0 | AG212: 112 | AH212: Pois protéagineux, graine | AI212: 1000 | AJ212: 8.07 | AK212: 8.82 | AL212: 123.6 | AM212: 149.1 | AN212: 114.7 | AO212: 172 | AP212: 227.6 | AQ212: 19.1 | AR212: 64.2 | AS212: 655.6 | AT212: 69 | AU212: 967 | AV212: 33 | AW212: 1.3 | AX212: 5.1 | AY212: 1.3 | AZ212: 11 | BB212: 89 | BC212: 83 | BD212: 59 | BE212: 81 | BF212: 93 | BG212: 78 | BH212: 90 | BI212: 0 | BJ212: 0 | BK212: 140 | BL212: Sojabohne, Samen extrudiert | BM212: 1000 | BN212: 10 | BO212: 10.92 | BP212: 149.3 | BQ212: 267.1 | BR212: 62.2 | BS212: 273.9 | BT212: 410.7 | BU212: 210.6 | BV212: 59.2 | BW212: 262.4 | BX212: 77 | BY212: 942.9 | BZ212: 57.1 | CA212: 2.7 | CB212: 6.4 | CC212: 3.1 | CD212: 19 | CE212: 0 | CF212: 83 | CG212: 85 | CH212: 90 | CI212: 60 | CJ212: 80 | CK212: 70 | CL212: 80 | CM212: 47.3 | CN212: 0
A213: 113 | C213: Poisson 64 % MA, farine | D213: 1000 | E213: 7.83 | F213: 8.29 | G213: 418.1 | H213: 541.1 | I213: 28.6 | J213: 245.8 | K213: 690 | L213: 103 | M213: 5 | N213: 7 | O213: 0 | P213: 805 | Q213: 195 | R213: 47.9 | S213: 28.1 | T213: 2.5 | U213: 0 | V213: 0 | W213: 87 | X213: 88 | Y213: 86 | Z213: 30 | AA213: 50 | AB213: 42 | AC213: 90 | AD213: 0 | AE213: 0 | AG213: 113 | AH213: Poisson 64 % MA, farine | AI213: 1000 | AJ213: 7.83 | AK213: 8.29 | AL213: 418.1 | AM213: 541.1 | AN213: 28.6 | AO213: 245.8 | AP213: 690 | AQ213: 103 | AR213: 5 | AS213: 7 | AT213: 0 | AU213: 805 | AV213: 195 | AW213: 47.9 | AX213: 28.1 | AY213: 2.5 | AZ213: 11 | BB213: 87 | BC213: 88 | BD213: 86 | BE213: 30 | BF213: 50 | BG213: 42 | BH213: 90 | BI213: 0 | BJ213: 0 | BK213: 138 | BL213: Sojabohnenschalen | BM213: 1000 | BN213: 6.67 | BO213: 6.93 | BP213: 102.9 | BQ213: 82 | BR213: 97.5 | BS213: 72.3 | BT213: 130 | BU213: 24 | BV213: 373 | BW213: 420 | BX213: 26 | BY213: 947 | BZ213: 53 | CA213: 5.5 | CB213: 1.8 | CC213: 2 | CD213: 13 | CE213: 0 | CF213: 79 | CG213: 60 | CH213: 75 | CI213: 80 | CJ213: 85 | CK213: 60 | CL213: 70 | CM213: 60.2 | CN213: 0
A214: 114 | C214: Poisson 70/72 % MA, farine | D214: 1000 | E214: 8.49 | F214: 9 | G214: 463.5 | H214: 601.3 | I214: 30.1 | J214: 273.1 | K214: 766.7 | L214: 108.6 | M214: 2.7 | N214: 0 | O214: 0 | P214: 864.6 | Q214: 135.4 | R214: 26.6 | S214: 22.9 | T214: 2 | U214: 0 | V214: 0 | W214: 88 | X214: 88 | Y214: 86 | Z214: 30 | AA214: 50 | AB214: 42 | AC214: 90 | AD214: 0 | AE214: 0 | AG214: 114 | AH214: Poisson 70/72 % MA, farine | AI214: 1000 | AJ214: 8.49 | AK214: 9 | AL214: 463.5 | AM214: 601.3 | AN214: 30.1 | AO214: 273.1 | AP214: 766.7 | AQ214: 108.6 | AR214: 2.7 | AS214: 0 | AT214: 0 | AU214: 864.6 | AV214: 135.4 | AW214: 26.6 | AX214: 22.9 | AY214: 2 | AZ214: 11 | BB214: 88 | BC214: 88 | BD214: 86 | BE214: 30 | BF214: 50 | BG214: 42 | BH214: 90 | BI214: 0 | BJ214: 0 | BK214: 135 | BL214: Sojaextraktionsschrot < 1.3 % RL, nicht entschält | BM214: 1000 | BN214: 7.84 | BO214: 8.39 | BP214: 266.5 | BQ214: 373.8 | BR214: 90.6 | BS214: 287.4 | BT214: 506.8 | BU214: 12.3 | BV214: 66.6 | BW214: 341.7 | BX214: 0 | BY214: 927.4 | BZ214: 72.6 | CA214: 0 | CB214: 0 | CC214: 0 | CD214: 0 | CE214: 0 | CF214: 90 | CG214: 91 | CH214: 52 | CI214: 80 | CJ214: 93 | CK214: 61 | CL214: 95 | CM214: 73.1 | CN214: 0
A215: 115 | C215: Pomme de terre de consommation, crue | D215: 1000 | E215: 7.65 | F215: 8.46 | G215: 74.6 | H215: 58.6 | I215: 90.4 | J215: 72.9 | K215: 93.7 | L215: 4 | M215: 22.8 | N215: 819.4 | O215: 35 | P215: 939.9 | Q215: 60.1 | R215: 1 | S215: 2.5 | T215: 1 | U215: 0 | V215: 0 | W215: 88 | X215: 55 | Y215: 30 | Z215: 70 | AA215: 93 | AB215: 80 | AC215: 80 | AD215: 722.9 | AE215: 75 | AG215: 115 | AH215: Pomme de terre de consommation, crue | AI215: 1000 | AJ215: 7.65 | AK215: 8.46 | AL215: 74.6 | AM215: 58.6 | AN215: 90.4 | AO215: 72.9 | AP215: 93.7 | AQ215: 4 | AR215: 22.8 | AS215: 819.4 | AT215: 35 | AU215: 939.9 | AV215: 60.1 | AW215: 1 | AX215: 2.5 | AY215: 1 | AZ215: 22 | BB215: 88 | BC215: 55 | BD215: 30 | BE215: 70 | BF215: 93 | BG215: 80 | BH215: 80 | BI215: 722.9 | BJ215: 75 | BK215: 136 | BL215: Sojaextraktionsschrot > 2.5 % RL, nicht entschält | BM215: 1000 | BN215: 8 | BO215: 8.52 | BP215: 265.3 | BQ215: 375.8 | BR215: 86.9 | BS215: 288.9 | BT215: 509.5 | BU215: 42.2 | BV215: 56.4 | BW215: 325.6 | BX215: 0 | BY215: 933.7 | BZ215: 66.3 | CA215: 0 | CB215: 0 | CC215: 0 | CD215: 0 | CE215: 0 | CF215: 90 | CG215: 91 | CH215: 52 | CI215: 80 | CJ215: 93 | CK215: 61 | CL215: 95 | CM215: 69.7 | CN215: 0
A216: 116 | C216: Pomme de terre fourragère, crue | D216: 1000 | E216: 7.57 | F216: 8.38 | G216: 74.9 | H216: 56.9 | I216: 91.5 | J216: 70.8 | K216: 91 | L216: 3 | M216: 23 | N216: 812 | O216: 37 | P216: 929 | Q216: 71 | R216: 1 | S216: 2.5 | T216: 1 | U216: 0 | V216: 0 | W216: 89 | X216: 55 | Y216: 30 | Z216: 70 | AA216: 93 | AB216: 80 | AC216: 80 | AD216: 697 | AE216: 75 | AG216: 116 | AH216: Pomme de terre fourragère, crue | AI216: 1000 | AJ216: 7.57 | AK216: 8.38 | AL216: 74.9 | AM216: 56.9 | AN216: 91.5 | AO216: 70.8 | AP216: 91 | AQ216: 3 | AR216: 23 | AS216: 812 | AT216: 37 | AU216: 929 | AV216: 71 | AW216: 1 | AX216: 2.5 | AY216: 1 | AZ216: 22 | BB216: 89 | BC216: 55 | BD216: 30 | BE216: 70 | BF216: 93 | BG216: 80 | BH216: 80 | BI216: 697 | BJ216: 75 | BK216: 137 | BL216: Sojaextraktionsschrot 1.3 - 2.5 % RL, nicht entschält | BM216: 1000 | BN216: 7.86 | BO216: 8.39 | BP216: 264.8 | BQ216: 372.6 | BR216: 88.9 | BS216: 286.5 | BT216: 505.2 | BU216: 23 | BV216: 64.6 | BW216: 333 | BX216: 0 | BY216: 925.8 | BZ216: 74.2 | CA216: 0 | CB216: 0 | CC216: 0 | CD216: 0 | CE216: 0 | CF216: 90 | CG216: 91 | CH216: 52 | CI216: 80 | CJ216: 93 | CK216: 61 | CL216: 95 | CM216: 71.3 | CN216: 0
A217: 117 | C217: Pomme, fruit | D217: 1000 | E217: 8.11 | F217: 9 | G217: 82.7 | H217: 13.4 | I217: 124.2 | J217: 17.9 | K217: 23 | L217: 19 | M217: 104 | N217: 832 | O217: 554 | P217: 978 | Q217: 22 | R217: 0.6 | S217: 0.7 | T217: 0.5 | U217: 0 | V217: 0 | W217: 90 | X217: 60 | Y217: 30 | Z217: 65 | AA217: 95 | AB217: 80 | AC217: 60 | AD217: 0 | AE217: 0 | AG217: 117 | AH217: Pomme, fruit | AI217: 1000 | AJ217: 8.11 | AK217: 9 | AL217: 82.7 | AM217: 13.4 | AN217: 124.2 | AO217: 17.9 | AP217: 23 | AQ217: 19 | AR217: 104 | AS217: 832 | AT217: 554 | AU217: 978 | AV217: 22 | AW217: 0.6 | AX217: 0.7 | AY217: 0.5 | AZ217: 9 | BB217: 90 | BC217: 60 | BD217: 30 | BE217: 65 | BF217: 95 | BG217: 80 | BH217: 60 | BI217: 0 | BJ217: 0 | BK217: 134 | BL217: Sojaextraktionsschrot 48 % RP, entschält | BM217: 1000 | BN217: 7.93 | BO217: 8.46 | BP217: 282.9 | BQ217: 406.3 | BR217: 87.8 | BS217: 312.4 | BT217: 550.82 | BU217: 16.87 | BV217: 44.18 | BW217: 318.51 | BX217: 0 | BY217: 930.38 | BZ217: 69.62 | CA217: 0 | CB217: 0 | CC217: 0 | CD217: 0 | CE217: 0 | CF217: 90 | CG217: 91 | CH217: 52 | CI217: 80 | CJ217: 93 | CK217: 61 | CL217: 95 | CM217: 67.9 | CN217: 0
A218: 118 | C218: Pommes de terre, amidon | D218: 1000 | E218: 8.84 | F218: 10.01 | G218: 65.5 | H218: 1.4 | I218: 101 | J218: 1.1 | K218: 2 | L218: 1.5 | M218: 2.4 | N218: 990.1 | O218: 0 | P218: 996 | Q218: 4 | R218: 0.2 | S218: 0.5 | T218: 0.1 | U218: 0 | V218: 0 | W218: 95 | X218: 40 | Y218: 30 | Z218: 40 | AA218: 95 | AB218: 60 | AC218: 80 | AD218: 988 | AE218: 75 | AG218: 118 | AH218: Pommes de terre, amidon | AI218: 1000 | AJ218: 8.84 | AK218: 10.01 | AL218: 65.5 | AM218: 1.4 | AN218: 101 | AO218: 1.1 | AP218: 2 | AQ218: 1.5 | AR218: 2.4 | AS218: 990.1 | AT218: 0 | AU218: 996 | AV218: 4 | AW218: 0.2 | AX218: 0.5 | AY218: 0.1 | AZ218: 1 | BB218: 95 | BC218: 40 | BD218: 30 | BE218: 40 | BF218: 95 | BG218: 60 | BH218: 80 | BI218: 988 | BJ218: 75 | BK218: 142 | BL218: Soja-Extraktionsschrot,nicht entschält 44% RP | BM218: 1000 | BN218: 7.8 | BO218: 8.3 | BP218: 261 | BQ218: 368 | BR218: 87 | BS218: 283 | BT218: 499 | BU218: 20 | BV218: 65 | BW218: 340 | BX218: 105 | BY218: 924 | BZ218: 76 | CA218: 3.6 | CB218: 7.7 | CC218: 3.6 | CD218: 22 | CE218: 0 | CF218: 90 | CG218: 91 | CH218: 52 | CI218: 80 | CJ218: 93 | CK218: 61 | CL218: 95 | CM218: 0 | CN218: 0
A219: 119 | C219: Pommes de terre, farine | D219: 1000 | E219: 7.68 | F219: 8.5 | G219: 94.8 | H219: 62.3 | I219: 101.7 | J219: 56.9 | K219: 89.7 | L219: 2.6 | M219: 25 | N219: 832.9 | O219: 41 | P219: 950.2 | Q219: 49.8 | R219: 0.6 | S219: 2.4 | T219: 0.8 | U219: 0 | V219: 0 | W219: 89 | X219: 48 | Y219: 30 | Z219: 73 | AA219: 93 | AB219: 67 | AC219: 90 | AD219: 746 | AE219: 85 | AG219: 119 | AH219: Pommes de terre, farine | AI219: 1000 | AJ219: 7.68 | AK219: 8.5 | AL219: 94.8 | AM219: 62.3 | AN219: 101.7 | AO219: 56.9 | AP219: 89.7 | AQ219: 2.6 | AR219: 25 | AS219: 832.9 | AT219: 41 | AU219: 950.2 | AV219: 49.8 | AW219: 0.6 | AX219: 2.4 | AY219: 0.8 | AZ219: 18 | BB219: 89 | BC219: 48 | BD219: 30 | BE219: 73 | BF219: 93 | BG219: 67 | BH219: 90 | BI219: 746 | BJ219: 85 | BK219: 143 | BL219: Soja-Extraktionsschrot,teilentschält 48% RP | BM219: 1000 | BN219: 7.9 | BO219: 8.4 | BP219: 277 | BQ219: 398 | BR219: 86 | BS219: 306 | BT219: 539 | BU219: 17 | BV219: 53 | BW219: 322 | BX219: 102 | BY219: 931 | BZ219: 69 | CA219: 3.5 | CB219: 7.4 | CC219: 3.1 | CD219: 24 | CE219: 0 | CF219: 90 | CG219: 91 | CH219: 52 | CI219: 80 | CJ219: 93 | CK219: 61 | CL219: 95 | CM219: 0 | CN219: 0
A220: 120 | C220: Pommes de terre, flocons | D220: 1000 | E220: 8.01 | F220: 8.93 | G220: 94.3 | H220: 59.9 | I220: 103.2 | J220: 55.3 | K220: 90.4 | L220: 2.7 | M220: 25.3 | N220: 835.5 | O220: 40 | P220: 954 | Q220: 46 | R220: 0.6 | S220: 2.5 | T220: 1.1 | U220: 0 | V220: 0 | W220: 90 | X220: 48 | Y220: 40 | Z220: 73 | AA220: 96 | AB220: 65 | AC220: 80 | AD220: 748.4 | AE220: 85 | AG220: 120 | AH220: Pommes de terre, flocons | AI220: 1000 | AJ220: 8.01 | AK220: 8.93 | AL220: 94.3 | AM220: 59.9 | AN220: 103.2 | AO220: 55.3 | AP220: 90.4 | AQ220: 2.7 | AR220: 25.3 | AS220: 835.5 | AT220: 40 | AU220: 954 | AV220: 46 | AW220: 0.6 | AX220: 2.5 | AY220: 1.1 | AZ220: 20 | BB220: 90 | BC220: 48 | BD220: 40 | BE220: 73 | BF220: 96 | BG220: 65 | BH220: 80 | BI220: 748.4 | BJ220: 85 | BK220: 141 | BL220: Sojakuchen, nichtentschält | BM220: 1000 | BN220: 8.7 | BO220: 9.4 | BP220: 249 | BQ220: 349 | BR220: 84 | BS220: 268 | BT220: 473 | BU220: 71 | BV220: 62 | BW220: 322 | BX220: 99 | BY220: 928 | BZ220: 72 | CA220: 3.1 | CB220: 6.8 | CC220: 3.2 | CD220: 22 | CE220: 0 | CF220: 90 | CG220: 91 | CH220: 90 | CI220: 70 | CJ220: 93 | CK220: 61 | CL220: 95 | CM220: 70.3 | CN220: 0
A221: 121 | C221: Pommes de terre, protéine | D221: 1000 | E221: 7.94 | F221: 8.23 | G221: 492.8 | H221: 644.7 | I221: 54.3 | J221: 324.7 | K221: 833.5 | L221: 24.7 | M221: 4.9 | N221: 100.2 | O221: 6 | P221: 963.3 | Q221: 36.7 | R221: 1.2 | S221: 3.3 | T221: 1 | U221: 0 | V221: 0 | W221: 89 | X221: 89 | Y221: 30 | Z221: 50 | AA221: 93 | AB221: 45 | AC221: 90 | AD221: 0 | AE221: 0 | AG221: 121 | AH221: Pommes de terre, protéine | AI221: 1000 | AJ221: 7.94 | AK221: 8.23 | AL221: 492.8 | AM221: 644.7 | AN221: 54.3 | AO221: 324.7 | AP221: 833.5 | AQ221: 24.7 | AR221: 4.9 | AS221: 100.2 | AT221: 6 | AU221: 963.3 | AV221: 36.7 | AW221: 1.2 | AX221: 3.3 | AY221: 1 | AZ221: 18 | BB221: 89 | BC221: 89 | BD221: 30 | BE221: 50 | BF221: 93 | BG221: 45 | BH221: 90 | BI221: 0 | BJ221: 0 | BK221: 146 | BL221: Sonnenblume,Samen | BM221: 1000 | BN221: 9.9 | BO221: 10.6 | BP221: 58 | BQ221: 123 | BR221: 37 | BS221: 153 | BT221: 197 | BU221: 325 | BV221: 261 | BW221: 181 | BX221: 52 | BY221: 964 | BZ221: 36 | CA221: 2.4 | CB221: 5.5 | CC221: 2.8 | CD221: 8 | CE221: 0 | CF221: 64 | CG221: 80 | CH221: 96 | CI221: 18 | CJ221: 55 | CK221: 80 | CL221: 80 | CM221: 14.5 | CN221: 0
A222: 122 | C222: Poudre de caséine riche en Ca | D222: 1000 | E222: 8.83 | F222: 9.35 | G222: 168.5 | H222: 577.2 | I222: 115.8 | J222: 838.6 | K222: 943.3 | L222: 14.3 | M222: 0 | N222: 0 | O222: 0 | P222: 955 | Q222: 45.1 | R222: 0 | S222: 0 | T222: 0 | U222: 0 | V222: 0 | W222: 95 | X222: 95 | Y222: 90 | Z222: 0 | AA222: 95 | AB222: 90 | AC222: 90 | AD222: 0 | AE222: 0 | AG222: 122 | AH222: Poudre de caséine riche en Ca | AI222: 1000 | AJ222: 8.83 | AK222: 9.35 | AL222: 168.5 | AM222: 577.2 | AN222: 115.8 | AO222: 838.6 | AP222: 943.3 | AQ222: 14.3 | AR222: 0 | AS222: 0 | AU222: 955 | AV222: 45.1 | BB222: 95 | BC222: 95 | BD222: 90 | BE222: 0 | BF222: 95 | BG222: 90 | BH222: 90 | BI222: 0 | BJ222: 0 | BK222: 145 | BL222: Sonnenblumenextraktionsschrot, entschält | BM222: 1000 | BN222: 6.8 | BO222: 7.02 | BP222: 154.3 | BQ222: 281.5 | BR222: 87.4 | BS222: 318.3 | BT222: 427.5 | BU222: 26.6 | BV222: 151.7 | BW222: 315.6 | BX222: 0 | BY222: 921.4 | BZ222: 78.6 | CA222: 0 | CB222: 0 | CC222: 0 | CD222: 0 | CE222: 0 | CF222: 79 | CG222: 89 | CH222: 81 | CI222: 43 | CJ222: 82 | CK222: 77 | CL222: 90 | CM222: 0 | CN222: 0
A223: 123 | C223: Poudre de caséine riche en Na | D223: 1000 | E223: 8.76 | F223: 9.27 | G223: 169.3 | H223: 577.1 | I223: 117 | J223: 838.4 | K223: 943.1 | L223: 8.8 | M223: 0 | N223: 6.2 | O223: 0 | P223: 958.1 | Q223: 41.9 | R223: 0 | S223: 0 | T223: 0 | U223: 0 | V223: 0 | W223: 95 | X223: 95 | Y223: 90 | Z223: 0 | AA223: 95 | AB223: 90 | AC223: 90 | AD223: 0 | AE223: 0 | AG223: 123 | AH223: Poudre de caséine riche en Na | AI223: 1000 | AJ223: 8.76 | AK223: 9.27 | AL223: 169.3 | AM223: 577.1 | AN223: 117 | AO223: 838.4 | AP223: 943.1 | AQ223: 8.8 | AR223: 0 | AS223: 6.2 | AU223: 958.1 | AV223: 41.9 | BB223: 95 | BC223: 95 | BD223: 90 | BE223: 0 | BF223: 95 | BG223: 90 | BH223: 90 | BI223: 0 | BJ223: 0 | BK223: 151 | BL223: Sonnenblumenextraktionsschrot, nicht entschält | BM223: 1000 | BN223: 4.85 | BO223: 4.39 | BP223: 78.2 | BQ223: 154.4 | BR223: 38 | BS223: 174.6 | BT223: 234.4 | BU223: 112.8 | BV223: 407.4 | BW223: 198.3 | BX223: 0 | BY223: 952.9 | BZ223: 47.1 | CA223: 0 | CB223: 0 | CC223: 0 | CD223: 0 | CE223: 0 | CF223: 45 | CG223: 83 | CH223: 92 | CI223: 15 | CJ223: 35 | CK223: 77 | CL223: 90 | CM223: 0 | CN223: 0
A224: 124 | C224: Protéine fourragère 70 % MA (protéine bactérienne) | D224: 1000 | E224: 8.75 | F224: 9.26 | G224: 124.6 | H224: 433.1 | I224: 105.2 | J224: 652.9 | K224: 734.4 | L224: 75.6 | M224: 11.7 | N224: 139.5 | O224: 5 | P224: 961.2 | Q224: 38.8 | R224: 2.7 | S224: 14 | T224: 2.1 | U224: 0 | V224: 0 | W224: 91 | X224: 94 | Y224: 61 | Z224: 50 | AA224: 88 | AB224: 90 | AC224: 70 | AD224: 0 | AE224: 0 | AG224: 124 | AH224: Protéine fourragère 70 % MA (protéine bactérienne) | AI224: 1000 | AJ224: 8.75 | AK224: 9.26 | AL224: 124.6 | AM224: 433.1 | AN224: 105.2 | AO224: 652.9 | AP224: 734.4 | AQ224: 75.6 | AR224: 11.7 | AS224: 139.5 | AT224: 5 | AU224: 961.2 | AV224: 38.8 | AW224: 2.7 | AX224: 14 | AY224: 2.1 | AZ224: 3 | BB224: 91 | BC224: 94 | BD224: 61 | BE224: 50 | BF224: 88 | BG224: 90 | BH224: 70 | BI224: 0 | BJ224: 0 | BK224: 153 | BL224: Sonnenblumenextraktionsschrot, teilentschält | BM224: 1000 | BN224: 4.92 | BO224: 4.64 | BP224: 119.9 | BQ224: 217.8 | BR224: 68.5 | BS224: 246.3 | BT224: 330.7 | BU224: 20.7 | BV224: 271.4 | BW224: 295.4 | BX224: 77 | BY224: 918.2 | BZ224: 81.8 | CA224: 3.9 | CB224: 9.4 | CC224: 5.2 | CD224: 15 | CE224: 0 | CF224: 62 | CG224: 85 | CH224: 70 | CI224: 32 | CJ224: 60 | CK224: 77 | CL224: 90 | CM224: 0 | CN224: 0
A225: 125 | C225: Rave | D225: 1000 | E225: 6.4 | F225: 6.9 | G225: 81 | H225: 79 | I225: 96 | J225: 103 | K225: 133 | L225: 15 | M225: 117 | N225: 615 | O225: 353 | P225: 880 | Q225: 120 | R225: 5.9 | S225: 5.8 | T225: 0.7 | U225: 0 | V225: 0 | W225: 82 | X225: 83 | Y225: 74 | Z225: 93 | AA225: 80 | AB225: 80 | AC225: 65 | AD225: 0 | AE225: 0 | AG225: 125 | AH225: Rave | AI225: 1000 | AJ225: 6.4 | AK225: 6.9 | AL225: 81 | AM225: 79 | AN225: 96 | AO225: 103 | AP225: 133 | AQ225: 15 | AR225: 117 | AS225: 615 | AT225: 353 | AU225: 880 | AV225: 120 | AW225: 5.9 | AX225: 5.8 | AY225: 0.7 | AZ225: 46 | BB225: 82 | BC225: 83 | BD225: 74 | BE225: 93 | BF225: 80 | BG225: 80 | BH225: 65 | BI225: 0 | BJ225: 0 | BK225: 147 | BL225: Sonnenblumenkerne > 24 % RF, nicht entschält | BM225: 1000 | BN225: 10.3 | BO225: 11.05 | BP225: 55.1 | BQ225: 118.3 | BR225: 33.6 | BS225: 147.1 | BT225: 189.1 | BU225: 350.9 | BV225: 280.6 | BW225: 148.8 | BX225: 0 | BY225: 969.4 | BZ225: 30.6 | CA225: 0 | CB225: 0 | CC225: 0 | CD225: 0 | CE225: 0 | CF225: 64 | CG225: 80 | CH225: 96 | CI225: 18 | CJ225: 55 | CK225: 80 | CL225: 80 | CM225: 0 | CN225: 0
A226: 126 | C226: Rave sans feuilles début d'automne, fraîche, avec souillures | D226: 1000 | E226: 6.02 | F226: 6.42 | G226: 80.1 | H226: 89.6 | I226: 90.8 | J226: 117.7 | K226: 151.3 | L226: 7.5 | M226: 108.8 | N226: 542.2 | O226: 0 | P226: 809.8 | Q226: 190.2 | R226: 0 | S226: 0 | T226: 0 | U226: 0 | V226: 0 | W226: 82 | X226: 83 | Y226: 74 | Z226: 93 | AA226: 80 | AB226: 80 | AC226: 65 | AD226: 0 | AE226: 0 | AG226: 126 | AH226: Rave sans feuilles début d'automne, fraîche, avec souillures | AI226: 1000 | AJ226: 6.02 | AK226: 6.42 | AL226: 80.1 | AM226: 89.6 | AN226: 90.8 | AO226: 117.7 | AP226: 151.3 | AQ226: 7.5 | AR226: 108.8 | AS226: 542.2 | AU226: 809.8 | AV226: 190.2 | BB226: 82 | BC226: 83 | BD226: 74 | BE226: 93 | BF226: 80 | BG226: 80 | BH226: 65 | BI226: 0 | BJ226: 0 | BK226: 148 | BL226: Sonnenblumenkerne 12 - 15 % RF, teilentschält | BM226: 1000 | BN226: 14.15 | BO226: 16 | BP226: 39.9 | BQ226: 92.6 | BR226: 21.2 | BS226: 115.2 | BT226: 148.1 | BU226: 518 | BV226: 143.2 | BW226: 154.3 | BX226: 0 | BY226: 963.6 | BZ226: 36.4 | CA226: 0 | CB226: 0 | CC226: 0 | CD226: 0 | CE226: 0 | CF226: 72 | CG226: 82 | CH226: 94 | CI226: 23 | CJ226: 66 | CK226: 80 | CL226: 80 | CM226: 0 | CN226: 0
A227: 127 | C227: Rave sans feuilles début d'automne, fraîche, propre | D227: 1000 | E227: 6.61 | F227: 7.06 | G227: 88 | H227: 98.5 | I227: 99.8 | J227: 129.3 | K227: 166.2 | L227: 8.3 | M227: 119.6 | N227: 595.9 | O227: 0 | P227: 890 | Q227: 110 | R227: 0 | S227: 0 | T227: 0 | U227: 0 | V227: 0 | W227: 82 | X227: 83 | Y227: 74 | Z227: 93 | AA227: 80 | AB227: 80 | AC227: 65 | AD227: 0 | AE227: 0 | AG227: 127 | AH227: Rave sans feuilles début d'automne, fraîche, propre | AI227: 1000 | AJ227: 6.61 | AK227: 7.06 | AL227: 88 | AM227: 98.5 | AN227: 99.8 | AO227: 129.3 | AP227: 166.2 | AQ227: 8.3 | AR227: 119.6 | AS227: 595.9 | AU227: 890 | AV227: 110 | BB227: 82 | BC227: 83 | BD227: 74 | BE227: 93 | BF227: 80 | BG227: 80 | BH227: 65 | BI227: 0 | BJ227: 0 | BK227: 149 | BL227: Sonnenblumenkerne 15 - 24 % RF, teilentschält | BM227: 1000 | BN227: 13.29 | BO227: 14.83 | BP227: 41.1 | BQ227: 89.3 | BR227: 24.6 | BS227: 111.1 | BT227: 142.8 | BU227: 497.5 | BV227: 227.5 | BW227: 98.1 | BX227: 0 | BY227: 965.9 | BZ227: 34.1 | CA227: 0 | CB227: 0 | CC227: 0 | CD227: 0 | CE227: 0 | CF227: 72 | CG227: 82 | CH227: 94 | CI227: 23 | CJ227: 66 | CK227: 80 | CL227: 80 | CM227: 0 | CN227: 0
A228: 128 | C228: Rave sans feuilles fin d'automne, fraîche, propre | D228: 1000 | E228: 6.62 | F228: 7.13 | G228: 76.5 | H228: 46.5 | I228: 101.7 | J228: 61 | K228: 78.4 | L228: 13 | M228: 99.7 | N228: 698.9 | O228: 0 | P228: 890 | Q228: 110 | R228: 0 | S228: 0 | T228: 0 | U228: 0 | V228: 0 | W228: 82 | X228: 83 | Y228: 74 | Z228: 93 | AA228: 80 | AB228: 80 | AC228: 65 | AD228: 0 | AE228: 0 | AG228: 128 | AH228: Rave sans feuilles fin d'automne, fraîche, propre | AI228: 1000 | AJ228: 6.62 | AK228: 7.13 | AL228: 76.5 | AM228: 46.5 | AN228: 101.7 | AO228: 61 | AP228: 78.4 | AQ228: 13 | AR228: 99.7 | AS228: 698.9 | AU228: 890 | AV228: 110 | BB228: 82 | BC228: 83 | BD228: 74 | BE228: 93 | BF228: 80 | BG228: 80 | BH228: 65 | BI228: 0 | BJ228: 0 | BK228: 152 | BL228: Sonnenblumenkuchen, nicht entschält | BM228: 1000 | BN228: 4.12 | BO228: 3.64 | BP228: 97.7 | BQ228: 167.9 | BR228: 61 | BS228: 189.9 | BT228: 255 | BU228: 15 | BV228: 370 | BW228: 310 | BX228: 50 | BY228: 950 | BZ228: 50 | CA228: 4.8 | CB228: 8.5 | CC228: 5 | CD228: 13 | CE228: 0 | CF228: 52 | CG228: 84 | CH228: 68 | CI228: 30 | CJ228: 50 | CK228: 77 | CL228: 90 | CM228: 0 | CN228: 0
A229: =IF($H$42=1,AG229,BK229) -> 129 | C229: =IF($H$42=1,AH229,BL229) -> Riz, brisures | D229: =IF($H$42=1,AI229,BM229) -> 1000 | E229: =IF($H$42=1,AJ229,BN229) -> 8.56 | F229: =IF($H$42=1,AK229,BO229) -> 9.6 | G229: =IF($H$42=1,AL229,BP229) -> 89.7 | H229: =IF($H$42=1,AM229,BQ229) -> 60.5 | I229: =IF($H$42=1,AN229,BR229) -> 84.9 | J229: =IF($H$42=1,AO229,BS229) -> 44.1 | K229: =IF($H$42=1,AP229,BT229) -> 88 | L229: =IF($H$42=1,AQ229,BU229) -> 9.9 | M229: =IF($H$42=1,AR229,BV229) -> 3.2 | N229: =IF($H$42=1,AS229,BW229) -> 890.9 | O229: =IF($H$42=1,AT229,BX229) -> 48 | P229: =IF($H$42=1,AU229,BY229) -> 992 | Q229: =IF($H$42=1,AV229,BZ229) -> 8 | R229: =IF($H$42=1,AW229,CA229) -> 0.1 | S229: =IF($H$42=1,AX229,CB229) -> 1.4 | T229: =IF($H$42=1,AY229,CC229) -> 0.4 | U229: =IF($H$42=1,BA229,CD229) -> 0 | V229: 0 | W229: 92 | X229: 71 | Y229: 67 | Z229: 30 | AA229: 94 | AB229: 55 | AC229: 80 | AD229: 840.5 | AE229: 75 | AG229: 129 | AH229: Riz, brisures | AI229: 1000 | AJ229: 8.56 | AK229: 9.6 | AL229: 89.7 | AM229: 60.5 | AN229: 84.9 | AO229: 44.1 | AP229: 88 | AQ229: 9.9 | AR229: 3.2 | AS229: 890.9 | AT229: 48 | AU229: 992 | AV229: 8 | AW229: 0.1 | AX229: 1.4 | AY229: 0.4 | AZ229: 1 | BB229: 92 | BC229: 71 | BD229: 67 | BE229: 30 | BF229: 94 | BG229: 55 | BH229: 80 | BI229: 840.5 | BJ229: 75 | BK229: 150 | BL229: Sonnenblumenkuchen, teilentschält | BM229: 1000 | BN229: 6.57 | BO229: 6.61 | BP229: 104 | BQ229: 185.1 | BR229: 61.5 | BS229: 209.3 | BT229: 281.1 | BU229: 114 | BV229: 256.5 | BW229: 276 | BX229: 83 | BY229: 927.6 | BZ229: 72.4 | CA229: 3.2 | CB229: 9.4 | CC229: 6.6 | CD229: 16 | CE229: 0 | CF229: 65 | CG229: 85 | CH229: 93 | CI229: 32 | CJ229: 60 | CK229: 77 | CL229: 90 | CM229: 0 | CN229: 0
A230: 130 | C230: Riz, farine fourragère blanche | D230: 1000 | E230: 8.1 | F230: 8.77 | G230: 99.1 | H230: 99 | I230: 64.8 | J230: 72.1 | K230: 144 | L230: 145 | M230: 66 | N230: 558 | O230: 62 | P230: 913 | Q230: 87 | R230: 1 | S230: 14 | T230: 6.3 | U230: 0 | V230: =IF($H$42=1,BA230,CE230) -> 0 | W230: 77 | X230: 73 | Y230: 85 | Z230: 45 | AA230: 80 | AB230: 55 | AC230: 80 | AD230: 308.2 | AE230: 85 | AG230: 130 | AH230: Riz, farine fourragère blanche | AI230: 1000 | AJ230: 8.1 | AK230: 8.77 | AL230: 99.1 | AM230: 99 | AN230: 64.8 | AO230: 72.1 | AP230: 144 | AQ230: 145 | AR230: 66 | AS230: 558 | AT230: 62 | AU230: 913 | AV230: 87 | AW230: 1 | AX230: 14 | AY230: 6.3 | AZ230: 11 | BB230: 77 | BC230: 73 | BD230: 85 | BE230: 45 | BF230: 80 | BG230: 55 | BH230: 80 | BI230: 308.2 | BJ230: 85 | BK230: 2 | BL230: Stärke, Getreide- | BM230: 1000 | BN230: 8.8 | BO230: 10 | BP230: 69 | BQ230: 13 | BR230: 99 | BS230: 13 | BT230: 19 | BU230: 1 | BV230: 4 | BW230: 968 | BX230: 0 | BY230: 992 | BZ230: 8 | CA230: 0.3 | CB230: 1.4 | CC230: 0.2 | CD230: 1 | CE230: 0 | CF230: 94 | CG230: 60 | CH230: 60 | CI230: 30 | CJ230: 95 | CK230: 70 | CL230: 90 | CM230: 967 | CN230: 75
A231: 131 | C231: Riz, farine fourragère jaune | D231: 1000 | E231: 8.53 | F231: 9.25 | G231: 102.9 | H231: 114.1 | I231: 57.1 | J231: 83.1 | K231: 166 | L231: 189 | M231: 80 | N231: 467 | O231: 61 | P231: 902 | Q231: 98 | R231: 0.9 | S231: 12.8 | T231: 4.2 | U231: 0 | V231: 0 | W231: 77 | X231: 73 | Y231: 85 | Z231: 45 | AA231: 80 | AB231: 55 | AC231: 80 | AD231: 247.9 | AE231: 85 | AG231: 131 | AH231: Riz, farine fourragère jaune | AI231: 1000 | AJ231: 8.53 | AK231: 9.25 | AL231: 102.9 | AM231: 114.1 | AN231: 57.1 | AO231: 83.1 | AP231: 166 | AQ231: 189 | AR231: 80 | AS231: 467 | AT231: 61 | AU231: 902 | AV231: 98 | AW231: 0.9 | AX231: 12.8 | AY231: 4.2 | AZ231: 11 | BB231: 77 | BC231: 73 | BD231: 85 | BE231: 45 | BF231: 80 | BG231: 55 | BH231: 80 | BI231: 247.9 | BJ231: 85 | BK231: 127 | BL231: Stoppelrübe, ohne Blätter, Frühherbst, sauber | BM231: 1000 | BN231: 6.61 | BO231: 7.06 | BP231: 88 | BQ231: 98.5 | BR231: 99.8 | BS231: 129.3 | BT231: 166.2 | BU231: 8.3 | BV231: 119.6 | BW231: 595.9 | BX231: 0 | BY231: 890 | BZ231: 110 | CA231: 0 | CB231: 0 | CC231: 0 | CD231: 0 | CE231: 0 | CF231: 82 | CG231: 83 | CH231: 74 | CI231: 93 | CJ231: 80 | CK231: 80 | CL231: 65 | CM231: 0 | CN231: 0
... 184 more rows

Sheet aliments (hidden)
A1: No | B1: Aliment | C1: MS | D1: NEL | E1: NEV | F1: PAIE | G1: PAIN | H1: PME | I1: PMN | J1: MA | K1: MG | L1: CB | M1: ENA | N1: SU | O1: MO | P1: CE | Q1: Ca | R1: P | S1: Mg | T1: Na | U1: K | V1: dMO | W1: dMA | X1: dMG | Y1: dCB | Z1: dENA | AA1: deMA | AB1: dAA | AC1: amidon | AD1: deAM
A2: 1 | B2: Amidon de céréales | C2: 1000 | D2: 8.8 | E2: 10 | F2: 69 | G2: 13 | H2: 99 | I2: 13 | J2: 19 | K2: 1 | L2: 4 | M2: 968 | N2: 0 | O2: 992 | P2: 8 | Q2: 0.3 | R2: 1.4 | S2: 0.2 | T2: 2.1 | U2: 1 | V2: 94 | W2: 60 | X2: 60 | Y2: 30 | Z2: 95 | AA2: 70 | AB2: 90 | AC2: 967 | AD2: 75
A3: 49 | B3: Arachide, tourteau de pression, décortiquée | C3: 1000 | D3: 8.5 | E3: 9.1 | F3: 194 | G3: 366 | H3: 88 | I3: 398 | J3: 542 | K3: 77 | L3: 70 | M3: 255 | N3: 73 | O3: 944 | P3: 56 | Q3: 1.5 | R3: 6.6 | S3: 3.6 | T3: 0.3 | U3: 14 | V3: 86 | W3: 90 | X3: 90 | Y3: 40 | Z3: 90 | AA3: 76 | AB3: 95
A4: 48 | B4: Arachide, tourteau d'extraction, décortiquée | C4: 1000 | D4: 7.6 | E4: 8 | F4: 205 | G4: 388 | H4: 92 | I4: 422 | J4: 575 | K4: 22 | L4: 74 | M4: 270 | N4: 107 | O4: 941 | P4: 59 | Q4: 1.5 | R4: 7.2 | S4: 3.7 | T4: 0.4 | U4: 13 | V4: 86 | W4: 90 | X4: 80 | Y4: 40 | Z4: 90 | AA4: 76 | AB4: 95
A5: 7 | B5: Avoine, balles | C5: 1000 | D5: 3 | E5: 2.4 | F5: 39 | G5: 15 | H5: 55 | I5: 20 | J5: 26 | K5: 8 | L5: 374 | M5: 542 | N5: 10 | O5: 950 | P5: 50 | Q5: 0.6 | R5: 0.7 | S5: 0.5 | T5: 0.1 | U5: 4 | V5: 41 | W5: - | X5: - | Y5: - | Z5: - | AA5: 60 | AB5: 70
A6: 6 | B6: Avoine, farine de déchets (issues) | C6: 1000 | D6: 4 | E6: 3.6 | F6: 53 | G6: 55 | H6: 59 | I6: 70 | J6: 90 | K6: 40 | L6: 219 | M6: 606 | N6: 12 | O6: 955 | P6: 45 | Q6: 1.6 | R6: 4 | S6: 1.1 | T6: 0.3 | U6: 5 | V6: 48 | W6: 40 | X6: 78 | Y6: 48 | Z6: 47 | AA6: 80 | AB6: 75
A7: 5 | B7: Avoine, farine fourragère | C7: 1000 | D7: 7.7 | E7: 8.2 | F7: 89 | G7: 95 | H7: 93 | I7: 114 | J7: 146 | K7: 76 | L7: 71 | M7: 677 | N7: 19 | O7: 970 | P7: 30 | Q7: 1 | R7: 5.4 | S7: 1.7 | T7: 0.1 | U7: 5 | V7: 77 | W7: 79 | X7: 91 | Y7: 36 | Z7: 79 | AA7: 80 | AB7: 90
A8: 4 | B8: Avoine, flocons | C8: 1000 | D8: 9.5 | E8: 10.6 | F8: 100 | G8: 92 | H8: 116 | I8: 114 | J8: 147 | K8: 75 | L8: 16 | M8: 741 | N8: 18 | O8: 979 | P8: 21 | Q8: 0.9 | R8: 5 | S8: 1.4 | T8: 0.1 | U8: 4 | V8: 92 | W8: 80 | X8: 90 | Y8: 80 | Z8: 95 | AA8: 80 | AB8: 80
A9: 2 | B9: Avoine, grain, léger (42-49 kg/hl) | C9: 1000 | D9: 6.6 | E9: 6.9 | F9: 82 | G9: 72 | H9: 93 | I9: 86 | J9: 111 | K9: 42 | L9: 123 | M9: 693 | N9: 16 | O9: 969 | P9: 31 | Q9: 0.9 | R9: 4.1 | S9: 1.2 | T9: 0.1 | U9: 5 | V9: 72 | W9: 78 | X9: 81 | Y9: 31 | Z9: 78 | AA9: 80 | AB9: 90
A10: 3 | B10: Avoine, grain, moyen à lourd (50-57 kg/hl) | C10: 1000 | D10: 6.9 | E10: 7.2 | F10: 84 | G10: 73 | H10: 96 | I10: 87 | J10: 112 | K10: 47 | L10: 109 | M10: 701 | N10: 17 | O10: 969 | P10: 31 | Q10: 0.9 | R10: 4.1 | S10: 1.2 | T10: 0.1 | U10: 5 | V10: 74 | W10: 78 | X10: 81 | Y10: 31 | Z10: 80 | AA10: 80 | AB10: 90
A11: 116 | B11: Babeurre frais | C11: 1000 | D11: 8.7 | E11: 9.7 | F11: 101 | G11: 190 | H11: 109 | I11: 276 | J11: 311 | K11: 69 | L11: 0 | M11: 540 | N11: 469 | O11: 920 | P11: 80 | Q11: 11 | R11: 9.7 | S11: 1.1 | T11: 5.1 | U11: 17 | V11: 92 | W11: 90 | X11: 90 | Y11: 0 | Z11: 94 | AA11: 90 | AB11: 90
A12: 117 | B12: Babeurre, poudre | C12: 1000 | D12: 8.2 | E12: 9.1 | F12: 100 | G12: 190 | H12: 107 | I12: 276 | J12: 311 | K12: 52 | L12: 0 | M12: 524 | N12: 421 | O12: 887 | P12: 113 | Q12: 11 | R12: 9.5 | S12: 1 | T12: 19.7 | U12: 17 | V12: 92 | W12: 90 | X12: 90 | Y12: 0 | Z12: 94 | AA12: 90 | AB12: 90
A13: 81 | B13: Betterave fourragère, fraîche | C13: 1000 | D13: 7.4 | E13: 8.2 | F13: 85 | G13: 41 | H13: 119 | I13: 54 | J13: 70 | K13: 2 | L13: 47 | M13: 814 | N13: 596 | O13: 933 | P13: 67 | Q13: 2.1 | R13: 2.2 | S13: 1.3 | T13: 0.7 | U13: 18 | V13: 89 | W13: 55 | X13: 40 | Y13: 75 | Z13: 93 | AA13: 80 | AB13: 60
A14: 82 | B14: Betterave sucrière, fraîche | C14: 1000 | D14: 7.4 | E14: 8.2 | F14: 84 | G14: 33 | H14: 120 | I14: 44 | J14: 57 | K14: 2 | L14: 47 | M14: 827 | N14: 676 | O14: 933 | P14: 67 | Q14: 2.1 | R14: 1.5 | S14: 1.3 | T14: 0.7 | U14: 9 | V14: 90 | W14: 55 | X14: 30 | Y14: 75 | Z14: 93 | AA14: 80 | AB14: 60
A15: 84 | B15: Betteraves, pulpe, ensilée | C15: 1000 | D15: 7.1 | E15: 7.7 | F15: 101 | G15: 70 | H15: 108 | I15: 53 | J15: 106 | K15: 10 | L15: 215 | M15: 612 | N15: 18 | O15: 943 | P15: 57 | Q15: 7.5 | R15: 1.2 | S15: 2.6 | T15: 1.8 | U15: 7 | V15: 85 | W15: 60 | X15: 30 | Y15: 80 | Z15: 92 | AA15: 55 | AB15: 75
A16: 83 | B16: Betteraves, pulpe, séchée | C16: 1000 | D16: 7.2 | E16: 7.7 | F16: 116 | G16: 72 | H16: 108 | I16: 46 | J16: 103 | K16: 10 | L16: 209 | M16: 621 | N16: 66 | O16: 943 | P16: 57 | Q16: 7.8 | R16: 1 | S16: 2.1 | T16: 1.8 | U16: 7 | V16: 85 | W16: 60 | X16: 30 | Y16: 80 | Z16: 92 | AA16: 50 | AB16: 80
A17: 135 | B17: Bicarbonate de soude | C17: 1000 | D17: 0 | E17: 0 | F17: 0 | G17: 0 | H17: 0 | I17: 0 | J17: 0 | K17: 0 | L17: 0 | M17: 0 | N17: 0 | O17: 0 | P17: 1000 | Q17: 0 | R17: 0 | S17: 0 | T17: 270 | U17: 0 | V17: - | W17: - | X17: - | Y17: - | Z17: - | AA17: - | AB17: -
A18: 9 | B18: Blé germé, grain | C18: 1000 | D18: 7.6 | E18: 8.2 | F18: 98 | G18: 93 | H18: 109 | I18: 111 | J18: 147 | K18: 13 | L18: 24 | M18: 797 | N18: 32 | O18: 981 | P18: 19 | Q18: 0.5 | R18: 4.4 | S18: 1.2 | T18: 0.1 | U18: 3 | V18: 83 | W18: 72 | X18: 76 | Y18: 35 | Z18: 87 | AA18: 78 | AB18: 80
A19: 10 | B19: Blé, farine fourragère 1re (claire) | C19: 1000 | D19: 8.9 | E19: 10 | F19: 114 | G19: 116 | H19: 121 | I19: 139 | J19: 184 | K19: 28 | L19: 9 | M19: 760 | N19: 74 | O19: 981 | P19: 19 | Q19: 0.5 | R19: 4.5 | S19: 1.4 | T19: 0.1 | U19: 4 | V19: 93 | W19: 85 | X19: 82 | Y19: 47 | Z19: 96 | AA19: 78 | AB19: 80
A20: 11 | B20: Blé, farine fourragère 2e (foncée) | C20: 1000 | D20: 7.6 | E20: 8.2 | F20: 102 | G20: 124 | H20: 100 | I20: 149 | J20: 197 | K20: 52 | L20: 50 | M20: 660 | N20: 64 | O20: 959 | P20: 41 | Q20: 1.2 | R20: 8.8 | S20: 2.9 | T20: 0.1 | U20: 9 | V20: 82 | W20: 81 | X20: 75 | Y20: 33 | Z20: 86 | AA20: 78 | AB20: 80
A21: 14 | B21: Blé, germe | C21: 1000 | D21: 9.4 | E21: 10.4 | F21: 123 | G21: 201 | H21: 99 | I21: 246 | J21: 325 | K21: 106 | L21: 27 | M21: 492 | N21: 128 | O21: 950 | P21: 50 | Q21: 0.8 | R21: 12.4 | S21: 3.1 | T21: 0.1 | U21: 11 | V21: 91 | W21: 90 | X21: 90 | Y21: 40 | Z21: 94 | AA21: 78 | AB21: 75
A22: 15 | B22: Blé, gluten | C22: 1000 | D22: 9.2 | E22: 9.8 | F22: 255 | G22: 545 | H22: 102 | I22: 617 | J22: 854 | K22: 11 | L22: 4 | M22: 121 | N22: 4 | O22: 990 | P22: 10 | Q22: 1 | R22: 2.2 | S22: 0.5 | T22: 0.1 | U22: 1 | V22: 96 | W22: 96 | X22: 90 | Y22: 40 | Z22: 97 | AA22: 75 | AB22: 80
A23: 8 | B23: Blé, grain | C23: 1000 | D23: 8.5 | E23: 9.5 | F23: 115 | G23: 99 | H23: 119 | I23: 106 | J23: 147 | K23: 15 | L23: 24 | M23: 795 | N23: 32 | O23: 981 | P23: 19 | Q23: 0.5 | R23: 4.4 | S23: 1.2 | T23: 0.1 | U23: 4 | V23: 91 | W23: 78 | X23: 83 | Y23: 51 | Z23: 95 | AA23: 75 | AB23: 94
A24: 12 | B24: Blé, remoulage | C24: 1000 | D24: 7.1 | E24: 7.6 | F24: 99 | G24: 116 | H24: 98 | I24: 139 | J24: 184 | K24: 39 | L24: 72 | M24: 664 | N24: 65 | O24: 959 | P24: 41 | Q24: 1.2 | R24: 8.5 | S24: 2.8 | T24: 0.1 | U24: 7 | V24: 79 | W24: 81 | X24: 75 | Y24: 33 | Z24: 83 | AA24: 78 | AB24: 80
A25: 13 | B25: Blé, son | C25: 1000 | D25: 6.1 | E25: 6.3 | F25: 101 | G25: 118 | H25: 83 | I25: 121 | J25: 181 | K25: 38 | L25: 112 | M25: 603 | N25: 66 | O25: 934 | P25: 66 | Q25: 1.5 | R25: 14 | S25: 4.7 | T25: 0.1 | U25: 13 | V25: 71 | W25: 78 | X25: 69 | Y25: 31 | Z25: 76 | AA25: 70 | AB25: 80
A26: 147 | B26: Boulangerie, déchets | C26: 1000 | D26: 8.4 | E26: 9.4 | F26: 114 | G26: 98 | H26: 115 | I26: 100 | J26: 150 | K26: 26 | L26: 9 | M26: 784 | N26: 58 | O26: 969 | P26: 31 | Q26: 0.4 | R26: 2.3 | S26: 1 | T26: 9.3 | U26: 4 | V26: 90 | W26: 85 | X26: 82 | Y26: 47 | Z26: 92 | AA26: 70 | AB26: 80
A27: 114 | B27: Cacao, pelures | C27: 1000 | D27: 2.2 | E27: 1.6 | F27: 29 | G27: 72 | H27: 20 | I27: 98 | J27: 177 | K27: 51 | L27: 183 | M27: 502 | N27: 36 | O27: 913 | P27: 87 | Q27: 3.4 | R27: 4.2 | S27: 5.2 | T27: 0.9 | U27: 30 | V27: 29 | W27: 15 | X27: 50 | Y27: 32 | Z27: 30 | AA27: 60 | AB27: 20
A28: 115 | B28: Café, marc | C28: 1000 | D28: 2.4 | E28: 1.5 | F28: 19 | G28: 34 | H28: 0 | I28: 27 | J28: 120 | K28: 242 | L28: 463 | M28: 164 | N28: 14 | O28: 989 | P28: 11 | Q28: 1.9 | R28: 0.6 | S28: 0.7 | T28: 0.7 | U28: 2 | V28: 18 | W28: 9 | X28: 40 | Y28: 7 | Z28: 21 | AA28: 30 | AB28: 20
A29: 136 | B29: Carbonate de calcium | C29: 1000 | D29: 0 | E29: 0 | F29: 0 | G29: 0 | H29: 0 | I29: 0 | J29: 0 | K29: 0 | L29: 0 | M29: 0 | N29: 0 | O29: 0 | P29: 1000 | Q29: 380 | R29: 0 | S29: 0.9 | T29: 0 | U29: 0 | V29: - | W29: - | X29: - | Y29: - | Z29: - | AA29: - | AB29: -
A30: 88 | B30: Carotte rouge | C30: 1000 | D30: 6.9 | E30: 7.5 | F30: 80 | G30: 82 | H30: 101 | I30: 116 | J30: 139 | K30: 17 | L30: 73 | M30: 662 | N30: 110 | O30: 891 | P30: 109 | Q30: 2.7 | R30: 2.7 | S30: 2.1 | T30: 3 | U30: 33 | V30: 85 | W30: 65 | X30: 64 | Y30: 79 | Z30: 90 | AA30: 85 | AB30: 65
A31: 87 | B31: Carotte, racine | C31: 1000 | D31: 7.4 | E31: 8.1 | F31: 80 | G31: 56 | H31: 109 | I31: 80 | J31: 96 | K31: 15 | L31: 91 | M31: 697 | N31: 256 | O31: 899 | P31: 101 | Q31: 3 | R31: 3 | S31: 1.9 | T31: 3.5 | U31: 26 | V31: 89 | W31: 60 | X31: 77 | Y31: 86 | Z31: 94 | AA31: 85 | AB31: 65
A32: 99 | B32: Caroube | C32: 1000 | D32: 6 | E32: 6.3 | F32: 77 | G32: 37 | H32: 94 | I32: 36 | J32: 57 | K32: 11 | L32: 90 | M32: 809 | N32: 415 | O32: 967 | P32: 33 | Q32: 5.2 | R32: 1 | S32: 0.6 | T32: 0.2 | U32: 8 | V32: 73 | W32: 16 | X32: 60 | Y32: 47 | Z32: 80 | AA32: 67 | AB32: 80
A33: 118 | B33: Caséine, poudre | C33: 1000 | D33: 8.7 | E33: 9.2 | F33: 163 | G33: 559 | H33: 112 | I33: 813 | J33: 914 | K33: 14 | L33: 0 | M33: 17 | N33: 0 | O33: 945 | P33: 55 | Q33: 2.6 | R33: 7.7 | S33: 0.2 | T33: 0.2 | U33: 1 | V33: 95 | W33: 95 | X33: 90 | Y33: 0 | Z33: 95 | AA33: 90 | AB33: 90
A34: 89 | B34: Choux-rave | C34: 1000 | D34: 7.1 | E34: 7.7 | F34: 85 | G34: 70 | H34: 106 | I34: 92 | J34: 118 | K34: 12 | L34: 111 | M34: 663 | N34: 401 | O34: 904 | P34: 96 | Q34: 5.1 | R34: 4 | S34: 1.6 | T34: 1.7 | U34: 30 | V34: 87 | W34: 70 | X34: 60 | Y34: 82 | Z34: 92 | AA34: 80 | AB34: 65
A35: 50 | B35: Colza, graine | C35: 1000 | D35: 13.1 | E35: 14.8 | F35: 49 | G35: 122 | H35: 39 | I35: 170 | J35: 219 | K35: 441 | L35: 80 | M35: 209 | N35: 52 | O35: 949 | P35: 51 | Q35: 4.5 | R35: 8.1 | S35: 3.1 | T35: 0.4 | U35: 9 | V35: 79 | W35: 75 | X35: 94 | Y35: 24 | Z35: 73 | AA35: 80 | AB35: 50
A36: 52 | B36: Colza, tourteau de presse, 4-9 % MG | C36: 1000 | D36: 7.2 | E36: 7.5 | F36: 134 | G36: 232 | H36: 78 | I36: 258 | J36: 363 | K36: 75 | L36: 117 | M36: 365 | N36: 127 | O36: 920 | P36: 80 | Q36: 8.1 | R36: 12.6 | S36: 5.2 | T36: 0.3 | U36: 15 | V36: 77 | W36: 83 | X36: 90 | Y36: 28 | Z36: 83 | AA36: 74 | AB36: 80
A37: 53 | B37: Colza, tourteau de pression, > 9 % MG | C37: 1000 | D37: 7.7 | E37: 8.2 | F37: 128 | G37: 224 | H37: 74 | I37: 249 | J37: 350 | K37: 108 | L37: 112 | M37: 352 | N37: 119 | O37: 922 | P37: 78 | Q37: 8.6 | R37: 12.8 | S37: 5.2 | T37: 0.3 | U37: 17 | V37: 77 | W37: 83 | X37: 90 | Y37: 28 | Z37: 83 | AA37: 74 | AB37: 80
A38: 54 | B38: Colza, tourteau de pression, filière bio-diesel | C38: 1000 | D38: 8.4 | E38: 9 | F38: 95 | G38: 196 | H38: 82 | I38: 267 | J38: 320 | K38: 140 | L38: 101 | M38: 368 | N38: 114 | O38: 929 | P38: 71 | Q38: 8.2 | R38: 12.3 | S38: 5 | T38: 0.3 | U38: 16 | V38: 78 | W38: 93 | X38: 90 | Y38: 28 | Z38: 83 | AA38: 85 | AB38: 80
A39: 51 | B39: Colza, tourteau d'extraction | C39: 1000 | D39: 6.2 | E39: 6.4 | F39: 140 | G39: 247 | H39: 80 | I39: 274 | J39: 385 | K39: 18 | L39: 124 | M39: 388 | N39: 99 | O39: 915 | P39: 85 | Q39: 9.9 | R39: 14 | S39: 5.1 | T39: 0.3 | U39: 14 | V39: 75 | W39: 83 | X39: 80 | Y39: 24 | Z39: 83 | AA39: 74 | AB39: 80
A40: 55 | B40: Coprah, tourteau d'extraction | C40: 1000 | D40: 6.7 | E40: 7 | F40: 184 | G40: 183 | H40: 82 | I40: 89 | J40: 236 | K40: 24 | L40: 172 | M40: 493 | N40: 125 | O40: 925 | P40: 75 | Q40: 1.8 | R40: 6.5 | S40: 3.9 | T40: 0.9 | U40: 18 | V40: 79 | W40: 80 | X40: 80 | Y40: 60 | Z40: 85 | AA40: 44 | AB40: 90
A41: 56 | B41: Coton, graine | C41: 1000 | D41: 8 | E41: 8.2 | F41: 85 | G41: 152 | H41: 47 | I41: 168 | J41: 233 | K41: 220 | L41: 232 | M41: 271 | N41: 40 | O41: 956 | P41: 44 | Q41: 1.7 | R41: 6.9 | S41: 3.9 | T41: 0.4 | U41: 12 | V41: 63 | W41: 74 | X41: 90 | Y41: 30 | Z41: 60 | AA41: 75 | AB41: 85
A42: 58 | B42: Coton, tourteau d'extrac- tion, non décortiqué | C42: 1000 | D42: 5.2 | E42: 5 | F42: 156 | G42: 212 | H42: 65 | I42: 169 | J42: 304 | K42: 13 | L42: 262 | M42: 359 | N42: 51 | O42: 938 | P42: 62 | Q42: 1.9 | R42: 10.7 | S42: 4.9 | T42: 0.6 | U42: 14 | V42: 64 | W42: 74 | X42: 65 | Y42: 45 | Z42: 70 | AA42: 60 | AB42: 85
A43: 57 | B43: Coton, tourteau d'extrac- tion, partiel. décortiqué | C43: 1000 | D43: 6.2 | E43: 6.3 | F43: 213 | G43: 311 | H43: 69 | I43: 248 | J43: 446 | K43: 16 | L43: 148 | M43: 323 | N43: 54 | O43: 933 | P43: 67 | Q43: 2.3 | R43: 12 | S43: 5.4 | T43: 0.5 | U43: 15 | V43: 74 | W43: 84 | X43: 65 | Y43: 37 | Z43: 78 | AA43: 60 | AB43: 85
A44: 126 | B44: Cretons, farine | C44: 1000 | D44: 10.1 | E44: 10.9 | F44: 293 | G44: 526 | H44: 68 | I44: 480 | J44: 864 | K44: 99 | L44: 5 | M44: 0 | N44: 0 | O44: 968 | P44: 32 | Q44: 5 | R44: 5.6 | S44: 0.8 | T44: 10 | U44: 5 | V44: 95 | W44: 95 | X44: 95 | Y44: 30 | Z44: 0 | AA44: 60 | AB44: 65
A45: 148 | B45: Dextrose | C45: 1000 | D45: 9.2 | E45: 10.6 | F45: 93 | G45: 0 | H45: 145 | I45: 0 | J45: 0 | K45: 0 | L45: 0 | M45: 999 | N45: 999 | O45: 999 | P45: 1 | Q45: 0 | R45: 0 | S45: 0 | T45: 0 | U45: 0 | V45: 100 | W45: 0 | X45: 0 | Y45: 0 | Z45: 100 | AA45: - | AB45: -
A46: 18 | B46: Drêches de brasserie, ensilées | C46: 1000 | D46: 6 | E46: 6 | F46: 112 | G46: 164 | H46: 62 | I46: 151 | J46: 247 | K46: 80 | L46: 179 | M46: 446 | N46: 38 | O46: 952 | P46: 48 | Q46: 3.5 | R46: 6 | S46: 2.3 | T46: 0.4 | U46: 1 | V46: 62 | W46: 74 | X46: 90 | Y46: 44 | Z46: 58 | AA46: 65 | AB46: 80
A47: 16 | B47: Drêches de brasserie, fraîches | C47: 1000 | D47: 6.1 | E47: 6.2 | F47: 124 | G47: 158 | H47: 64 | I47: 130 | J47: 234 | K47: 76 | L47: 171 | M47: 472 | N47: 13 | O47: 953 | P47: 47 | Q47: 3.8 | R47: 6.7 | S47: 2.5 | T47: 0.4 | U47: 1 | V47: 64 | W47: 74 | X47: 90 | Y47: 44 | Z47: 62 | AA47: 60 | AB47: 80
A48: 17 | B48: Drêches de brasserie, séchées | C48: 1000 | D48: 6.3 | E48: 6.3 | F48: 148 | G48: 176 | H48: 57 | I48: 112 | J48: 252 | K48: 88 | L48: 176 | M48: 438 | N48: 10 | O48: 954 | P48: 46 | Q48: 3.2 | R48: 5.3 | S48: 1.6 | T48: 0.6 | U48: 1 | V48: 64 | W48: 74 | X48: 90 | Y48: 44 | Z48: 60 | AA48: 50 | AB48: 80
A49: 90 | B49: Endive, racine | C49: 1000 | D49: 7.1 | E49: 7.7 | F49: 77 | G49: 52 | H49: 105 | I49: 73 | J49: 88 | K49: 18 | L49: 108 | M49: 688 | N49: 131 | O49: 902 | P49: 98 | Q49: 5 | R49: 2.6 | S49: 1.3 | T49: 0.7 | U49: 20 | V49: 86 | W49: 71 | X49: 60 | Y49: 77 | Z49: 90 | AA49: 85 | AB49: 65
A50: 20 | B50: Epeautre, balles | C50: 1000 | D50: 2.5 | E50: 1.8 | F50: 41 | G50: 22 | H50: 39 | I50: 11 | J50: 34 | K50: 16 | L50: 456 | M50: 430 | N50: 47 | O50: 936 | P50: 64 | Q50: 0.8 | R50: 2.2 | S50: 0.5 | T50: 0 | U50: 4 | V50: 35 | W50: - | X50: - | Y50: - | Z50: - | AA50: 60 | AB50: 70
A51: 19 | B51: Epeautre, grain | C51: 1000 | D51: 6.4 | E51: 6.6 | F51: 91 | G51: 92 | H51: 93 | I51: 106 | J51: 145 | K51: 18 | L51: 133 | M51: 673 | N51: 30 | O51: 969 | P51: 31 | Q51: 0.7 | R51: 4.3 | S51: 1.1 | T51: 0.1 | U51: 4 | V51: 73 | W51: 76 | X51: 80 | Y51: 46 | Z51: 78 | AA51: 76 | AB51: 80
A52: 76 | B52: Féverole, graine | C52: 1000 | D52: 7.3 | E52: 7.7 | F52: 129 | G52: 194 | H52: 107 | I52: 233 | J52: 300 | K52: 9 | L52: 85 | M52: 567 | N52: 41 | O52: 961 | P52: 39 | Q52: 1 | R52: 6.9 | S52: 1.8 | T52: 0.2 | U52: 13 | V52: 83 | W52: 75 | X52: 70 | Y52: 60 | Z52: 91 | AA52: 80 | AB52: 90
A53: 127 | B53: Graisse animale | C53: 1000 | D53: 21 | E53: 23 | F53: 0 | G53: 0 | H53: 0 | I53: 0 | J53: 0 | K53: 1000 | L53: 0 | M53: 0 | N53: 0 | O53: 1000 | P53: 0 | Q53: 0 | R53: 0 | S53: 0 | T53: 0 | U53: 0 | V53: - | W53: - | X53: - | Y53: - | Z53: - | AA53: - | AB53: -
A54: 151 | B54: Graisse cristalline | C54: 1000 | D54: 20 | E54: 22 | F54: 0 | G54: 0 | H54: 0 | I54: 0 | J54: 0 | K54: 920 | L54: 0 | M54: 70 | N54: 0 | O54: 990 | P54: 10 | Q54: 0 | R54: 0 | S54: 0 | T54: 0 | U54: 0 | V54: - | W54: - | X54: - | Y54: - | Z54: - | AA54: - | AB54: -
A55: 59 | B55: Graisse ou huile végétale | C55: 1000 | D55: 21 | E55: 23 | F55: 0 | G55: 0 | H55: 0 | I55: 0 | J55: 0 | K55: 1000 | L55: 0 | M55: 0 | N55: 0 | O55: 1000 | P55: 0 | Q55: 0 | R55: 0 | S55: 0 | T55: 0 | U55: 0 | V55: - | W55: - | X55: - | Y55: - | Z55: - | AA55: - | AB55: -
A56: 149 | B56: Graisse saponifiée | C56: 1000 | D56: 17 | E56: 18.6 | F56: 0 | G56: 0 | H56: 0 | I56: 0 | J56: 0 | K56: 850 | L56: 0 | M56: 0 | N56: 0 | O56: 850 | P56: 150 | Q56: 80 | R56: 0 | S56: 0 | T56: 0 | U56: 0 | V56: - | W56: - | X56: - | Y56: - | Z56: - | AA56: - | AB56: -
A57: 150 | B57: Graisse, mélange d'acides gras | C57: 1000 | D57: 21 | E57: 23 | F57: 0 | G57: 0 | H57: 0 | I57: 0 | J57: 0 | K57: 995 | L57: 0 | M57: 0 | N57: 0 | O57: 995 | P57: 5 | Q57: 0 | R57: 0 | S57: 0 | T57: 0 | U57: 0 | V57: - | W57: - | X57: - | Y57: - | Z57: - | AA57: - | AB57: -
A58: 77 | B58: Haricot toasté, graine | C58: 1000 | D58: 7.7 | E58: 8.3 | F58: 145 | G58: 174 | H58: 102 | I58: 163 | J58: 257 | K58: 17 | L58: 53 | M58: 624 | N58: 53 | O58: 951 | P58: 49 | Q58: 1.6 | R58: 5.3 | S58: 1.8 | T58: 0.3 | U58: 15 | V58: 87 | W58: 85 | X58: 70 | Y58: 60 | Z58: 90 | AA58: 67 | AB58: 85
A59: 107 | B59: Herbe 13 % MA, farine, déshydratée | C59: 1000 | D59: 6.1 | E59: 6.2 | F59: 93 | G59: 83 | H59: 82 | I59: 77 | J59: 128 | K59: 33 | L59: 235 | M59: 514 | N59: 86 | O59: 910 | P59: 90 | Q59: 7 | R59: 3.1 | S59: 1.5 | T59: 0.3 | U59: 26 | V59: 76 | W59: - | X59: - | Y59: - | Z59: - | AA59: 61 | AB59: 65
A60: 108 | B60: Herbe 17 % MA, farine, déshydratée | C60: 1000 | D60: 6.3 | E60: 6.5 | F60: 105 | G60: 110 | H60: 89 | I60: 108 | J60: 176 | K60: 40 | L60: 182 | M60: 501 | N60: 89 | O60: 899 | P60: 101 | Q60: 7 | R60: 3.5 | S60: 1.5 | T60: 0.3 | U60: 31 | V60: 79 | W60: - | X60: - | Y60: - | Z60: - | AA60: 65 | AB60: 70
A61: 132 | B61: Huile de foie de morue | C61: 1000 | D61: 21 | E61: 23 | F61: 0 | G61: 0 | H61: 0 | I61: 0 | J61: 0 | K61: 999 | L61: 0 | M61: 0 | N61: 0 | O61: 999 | P61: 1 | Q61: 0 | R61: 0 | S61: 0 | T61: 0 | U61: 0 | V61: - | W61: - | X61: - | Y61: - | Z61: - | AA61: - | AB61: -
A62: 119 | B62: Lactose | C62: 1000 | D62: 9.2 | E62: 10.6 | F62: 93 | G62: 0 | H62: 145 | I62: 0 | J62: 0 | K62: 0 | L62: 0 | M62: 999 | N62: 999 | O62: 999 | P62: 1 | Q62: 0 | R62: 0 | S62: 0 | T62: 0 | U62: 0 | V62: 100 | W62: 0 | X62: 0 | Y62: 0 | Z62: 100 | AA62: - | AB62: -
A63: 120 | B63: Lactosérum frais (petit-lait) | C63: 1000 | D63: 8 | E63: 8.9 | F63: 104 | G63: 86 | H63: 122 | I63: 103 | J63: 132 | K63: 7 | L63: 0 | M63: 780 | N63: 709 | O63: 919 | P63: 81 | Q63: 5.8 | R63: 6.1 | S63: 1.1 | T63: 6.2 | U63: 23 | V63: 94 | W63: 90 | X63: 90 | Y63: 0 | Z63: 95 | AA63: 80 | AB63: 90
A64: 121 | B64: Lactosérum, poudre (petit-lait) | C64: 1000 | D64: 7.9 | E64: 8.9 | F64: 103 | G64: 82 | H64: 120 | I64: 99 | J64: 127 | K64: 10 | L64: 0 | M64: 777 | N64: 725 | O64: 914 | P64: 86 | Q64: 5.8 | R64: 6.5 | S64: 1.1 | T64: 7.4 | U64: 24 | V64: 94 | W64: 90 | X64: 90 | Y64: 0 | Z64: 95 | AA64: 80 | AB64: 90
A65: 122 | B65: Lait écrémé frais | C65: 1000 | D65: 8.1 | E65: 8.9 | F65: 149 | G65: 244 | H65: 115 | I65: 293 | J65: 376 | K65: 6 | L65: 0 | M65: 535 | N65: 491 | O65: 917 | P65: 83 | Q65: 13.7 | R65: 10.8 | S65: 1.1 | T65: 4.7 | U65: 17 | V65: 95 | W65: 95 | X65: 90 | Y65: 0 | Z65: 95 | AA65: 80 | AB65: 90
A66: 123 | B66: Lait écrémé, poudre | C66: 1000 | D66: 8.1 | E66: 8.9 | F66: 148 | G66: 239 | H66: 115 | I66: 287 | J66: 369 | K66: 8 | L66: 0 | M66: 541 | N66: 508 | O66: 918 | P66: 82 | Q66: 13.6 | R66: 10.6 | S66: 1.1 | T66: 4.5 | U66: 16 | V66: 95 | W66: 94 | X66: 90 | Y66: 0 | Z66: 95 | AA66: 80 | AB66: 90
A67: 124 | B67: Lait entier frais | C67: 1000 | D67: 13.4 | E67: 15.5 | F67: 102 | G67: 164 | H67: 80 | I67: 197 | J67: 253 | K67: 309 | L67: 0 | M67: 383 | N67: 365 | O67: 945 | P67: 55 | Q67: 9.3 | R67: 7.5 | S67: 0.8 | T67: 2.8 | U67: 11 | V67: 97 | W67: 95 | X67: 98 | Y67: 0 | Z67: 97 | AA67: 80 | AB67: 90
A68: 125 | B68: Lait entier, poudre | C68: 1000 | D68: 12.3 | E68: 14.2 | F68: 111 | G68: 179 | H68: 87 | I68: 215 | J68: 276 | K68: 250 | L68: 0 | M68: 412 | N68: 378 | O68: 938 | P68: 62 | Q68: 9.9 | R68: 7.9 | S68: 0.8 | T68: 3.3 | U68: 15 | V68: 96 | W68: 94 | X68: 98 | Y68: 0 | Z68: 97 | AA68: 80 | AB68: 90
A69: 152 | B69: Levure de brasserie, séchée | C69: 1000 | D69: 7.4 | E69: 7.8 | F69: 138 | G69: 286 | H69: 94 | I69: 362 | J69: 465 | K69: 30 | L69: 2 | M69: 428 | N69: 23 | O69: 925 | P69: 75 | Q69: 2.6 | R69: 15 | S69: 2.2 | T69: 2.4 | U69: 24 | V69: 84 | W69: 82 | X69: 61 | Y69: 50 | Z69: 88 | AA69: 80 | AB69: 75
A70: 153 | B70: Levure fourragère 48 % MA, séchée (Torula) | C70: 1000 | D70: 7.5 | E70: 7.8 | F70: 146 | G70: 332 | H70: 87 | I70: 421 | J70: 541 | K70: 58 | L70: 13 | M70: 319 | N70: 3 | O70: 931 | P70: 69 | Q70: 7.3 | R70: 15.6 | S70: 1.2 | T70: 0.3 | U70: 13 | V70: 82 | W70: 82 | X70: 61 | Y70: 50 | Z70: 88 | AA70: 80 | AB70: 75
A71: 60 | B71: Lin, graine | C71: 1000 | D71: 12.2 | E71: 13.6 | F71: 84 | G71: 157 | H71: 46 | I71: 178 | J71: 246 | K71: 378 | L71: 72 | M71: 256 | N71: 37 | O71: 952 | P71: 48 | Q71: 2.7 | R71: 5.8 | S71: 4.6 | T71: 0.6 | U71: 9 | V71: 79 | W71: 80 | X71: 93 | Y71: 30 | Z71: 72 | AA71: 75 | AB71: 80
A72: 62 | B72: Lin, tourteau de pression, 4-7 % MG | C72: 1000 | D72: 7.1 | E72: 7.4 | F72: 171 | G72: 250 | H72: 74 | I72: 219 | J72: 365 | K72: 65 | L72: 97 | M72: 402 | N72: 44 | O72: 929 | P72: 71 | Q72: 4.4 | R72: 8.6 | S72: 5.3 | T72: 1.1 | U72: 12 | V72: 76 | W72: 83 | X72: 90 | Y72: 22 | Z72: 80 | AA72: 64 | AB72: 85
A73: 63 | B73: Lin, tourteau de pression, 8-12 % MG | C73: 1000 | D73: 7.8 | E73: 8.3 | F73: 162 | G73: 238 | H73: 70 | I73: 208 | J73: 347 | K73: 110 | L73: 92 | M73: 384 | N73: 45 | O73: 933 | P73: 67 | Q73: 4.2 | R73: 8.9 | S73: 5.7 | T73: 0.5 | U73: 11 | V73: 77 | W73: 83 | X73: 90 | Y73: 22 | Z73: 80 | AA73: 64 | AB73: 85
A74: 61 | B74: Lin, tourteau d'extraction | C74: 1000 | D74: 6.5 | E74: 6.6 | F74: 178 | G74: 260 | H74: 76 | I74: 228 | J74: 380 | K74: 27 | L74: 101 | M74: 418 | N74: 54 | O74: 926 | P74: 74 | Q74: 4.5 | R74: 9.5 | S74: 6 | T74: 1.1 | U74: 12 | V74: 75 | W74: 83 | X74: 80 | Y74: 22 | Z74: 80 | AA74: 64 | AB74: 85
A75: 78 | B75: Lupin blanc doux, graine | C75: 1000 | D75: 9.1 | E75: 9.9 | F75: 143 | G75: 257 | H75: 99 | I75: 308 | J75: 396 | K75: 95 | L75: 121 | M75: 347 | N75: 66 | O75: 959 | P75: 41 | Q75: 2.5 | R75: 5.1 | S75: 2.3 | T75: 0.2 | U75: 12 | V75: 89 | W75: 88 | X75: 88 | Y75: 88 | Z75: 92 | AA75: 80 | AB75: 90
A76: 109 | B76: Luzerne 14 % MA, farine, déshydratée | C76: 1000 | D76: 4.8 | E76: 4.6 | F76: 87 | G76: 93 | H76: 70 | I76: 88 | J76: 150 | K76: 25 | L76: 330 | M76: 400 | N76: 36 | O76: 905 | P76: 95 | Q76: 15.2 | R76: 2.9 | S76: 2.2 | T76: 0.5 | U76: 29 | V76: 62 | W76: - | X76: - | Y76: - | Z76: - | AA76: 63 | AB76: 70
A77: 110 | B77: Luzerne 18 % MA, farine, déshydratée | C77: 1000 | D77: 5.3 | E77: 5.3 | F77: 97 | G77: 116 | H77: 74 | I77: 115 | J77: 184 | K77: 28 | L77: 278 | M77: 405 | N77: 37 | O77: 895 | P77: 105 | Q77: 16 | R77: 2.6 | S77: 2.9 | T77: 0.5 | U77: 29 | V77: 68 | W77: - | X77: - | Y77: - | Z77: - | AA77: 66 | AB77: 70
A78: 137 | B78: Magnésium, chlorure | C78: 1000 | D78: 0 | E78: 0 | F78: 0 | G78: 0 | H78: 0 | I78: 0 | J78: 0 | K78: 0 | L78: 0 | M78: 0 | N78: 0 | O78: 0 | P78: 1000 | Q78: 0 | R78: 0 | S78: 120 | T78: 0 | U78: 0 | V78: - | W78: - | X78: - | Y78: - | Z78: - | AA78: - | AB78: -
A79: 138 | B79: Magnésium, oxyde | C79: 1000 | D79: 0 | E79: 0 | F79: 0 | G79: 0 | H79: 0 | I79: 0 | J79: 0 | K79: 0 | L79: 0 | M79: 0 | N79: 0 | O79: 0 | P79: 1000 | Q79: 30.3 | R79: 0 | S79: 510 | T79: 0 | U79: 0 | V79: - | W79: - | X79: - | Y79: - | Z79: - | AA79: - | AB79: -
A80: 25 | B80: Maïs 60 % MA, gluten | C80: 1000 | D80: 8.4 | E80: 8.9 | F80: 509 | G80: 570 | H80: 43 | I80: 154 | J80: 689 | K80: 46 | L80: 9 | M80: 222 | N80: 8 | O80: 966 | P80: 34 | Q80: 0.2 | R80: 5.2 | S80: 0.3 | T80: 0.2 | U80: 1 | V80: 88 | W80: 88 | X80: 76 | Y80: 20 | Z80: 94 | AA80: 30 | AB80: 90 | AC80: 154 | AD80: 75
A81: 26 | B81: Maïs 70 % MA, gluten | C81: 1000 | D81: 8.4 | E81: 8.9 | F81: 556 | G81: 632 | H81: 34 | I81: 170 | J81: 764 | K81: 54 | L81: 9 | M81: 138 | N81: 5 | O81: 965 | P81: 35 | Q81: 0.2 | R81: 4.1 | S81: 0.3 | T81: 0.2 | U81: 1 | V81: 88 | W81: 88 | X81: 76 | Y81: 20 | Z81: 94 | AA81: 30 | AB81: 90 | AC81: 96 | AD81: 75
A82: 111 | B82: Maïs plante entière, déshydraté | C82: 1000 | D82: 6.4 | E82: 6.6 | F82: 85 | G82: 51 | H82: 93 | I82: 45 | J82: 81 | K82: 23 | L82: 197 | M82: 654 | N82: 117 | O82: 955 | P82: 45 | Q82: 2.3 | R82: 2.7 | S82: 0.9 | T82: 0.1 | U82: 13 | V82: 74 | W82: - | X82: - | Y82: - | Z82: - | AA82: 60 | AB82: 70
A83: 24 | B83: Maïs, aliment de gluten (gluten feed) | C83: 1000 | D83: 7.4 | E83: 7.9 | F83: 127 | G83: 156 | H83: 89 | I83: 150 | J83: 232 | K83: 26 | L83: 78 | M83: 606 | N83: 23 | O83: 942 | P83: 58 | Q83: 1.5 | R83: 9.5 | S83: 4.1 | T83: 2.8 | U83: 14 | V83: 83 | W83: 80 | X83: 81 | Y83: 66 | Z83: 87 | AA83: 68 | AB83: 85 | AC83: 237 | AD83: 75
A84: 23 | B84: Maïs, farine fourragère | C84: 1000 | D84: 8.1 | E84: 8.8 | F84: 106 | G84: 83 | H84: 77 | I84: 45 | J84: 116 | K84: 75 | L84: 58 | M84: 717 | N84: 42 | O84: 966 | P84: 34 | Q84: 0.6 | R84: 5.1 | S84: 2.6 | T84: 0.5 | U84: 6 | V84: 82 | W84: 62 | X84: 85 | Y84: 60 | Z84: 87 | AA84: 45 | AB84: 80 | AC84: 490 | AD84: 75
A85: 22 | B85: Maïs, germes | C85: 1000 | D85: 9.6 | E85: 10.5 | F85: 117 | G85: 119 | H85: 79 | I85: 92 | J85: 166 | K85: 212 | L85: 58 | M85: 506 | N85: 73 | O85: 942 | P85: 58 | Q85: 0.1 | R85: 1.2 | S85: 0.4 | T85: 0 | U85: 1 | V85: 81 | W85: 70 | X85: 85 | Y85: 60 | Z85: 85 | AA85: 60 | AB85: 90 | AC85: 298 | AD85: 75
A86: 21 | B86: Maïs, grain | C86: 1000 | D86: 8.5 | E86: 9.5 | F86: 112 | G86: 79 | H86: 82 | I86: 35 | J86: 97 | K86: 43 | L86: 23 | M86: 822 | N86: 19 | O86: 985 | P86: 15 | Q86: 0.2 | R86: 3.2 | S86: 1.2 | T86: 0.1 | U86: 4 | V86: 88 | W86: 60 | X86: 79 | Y86: 20 | Z86: 94 | AA86: 42 | AB86: 95 | AC86: 710 | AD86: 70
A87: 27 | B87: Maïs, rafles | C87: 1000 | D87: 4.1 | E87: 3.7 | F87: 51 | G87: 14 | H87: 70 | I87: 10 | J87: 30 | K87: 9 | L87: 350 | M87: 586 | N87: 93 | O87: 975 | P87: 25 | Q87: 0.5 | R87: 0.7 | S87: 0.2 | T87: 0.2 | U87: 5 | V87: 51 | W87: - | X87: - | Y87: - | Z87: - | AA87: 60 | AB87: 70
A88: 29 | B88: Maïs-épis, complet, séché | C88: 1000 | D88: 7.7 | E88: 8.4 | F88: 88 | G88: 54 | H88: 93 | I88: 46 | J88: 83 | K88: 35 | L88: 90 | M88: 773 | N88: 33 | O88: 981 | P88: 19 | Q88: 0.3 | R88: 2.7 | S88: 1 | T88: 0.1 | U88: 4 | V88: 83 | W88: 55 | X88: 75 | Y88: 55 | Z88: 90 | AA88: 60 | AB88: 75 | AC88: 420 | AD88: 75
A89: 30 | B89: Maïs-épis, ensilé, sans spathes, 30 % de rafles | C89: 1000 | D89: 8 | E89: 8.8 | F89: 88 | G89: 61 | H89: 85 | I89: 40 | J89: 91 | K89: 41 | L89: 46 | M89: 807 | N89: 8 | O89: 985 | P89: 15 | Q89: 0.2 | R89: 3 | S89: 1.2 | T89: 0.2 | U89: 7 | V89: 84 | W89: 60 | X89: 79 | Y89: 40 | Z89: 90 | AA89: 50 | AB89: 75 | AC89: 646 | AD89: 75
A90: 31 | B90: Maïs-épis, ensilé, sans spathes, 80 % de rafles | C90: 1000 | D90: 7.9 | E90: 8.7 | F90: 83 | G90: 57 | H90: 79 | I90: 43 | J90: 86 | K90: 38 | L90: 70 | M90: 789 | N90: 8 | O90: 983 | P90: 17 | Q90: 0.2 | R90: 3 | S90: 1.2 | T90: 0.2 | U90: 5 | V90: 84 | W90: 60 | X90: 79 | Y90: 50 | Z90: 90 | AA90: 50 | AB90: 75 | AC90: 625 | AD90: 75
A91: 28 | B91: Maïs-grain, ensilé | C91: 1000 | D91: 8.5 | E91: 9.5 | F91: 100 | G91: 69 | H91: 90 | I91: 38 | J91: 97 | K91: 43 | L91: 23 | M91: 822 | N91: 7 | O91: 985 | P91: 15 | Q91: 0.2 | R91: 3.2 | S91: 1.2 | T91: 0.1 | U91: 4 | V91: 89 | W91: 60 | X91: 79 | Y91: 30 | Z91: 94 | AA91: 45 | AB91: 80 | AC91: 659 | AD91: 75
A92: 32 | B92: Malt, germe | C92: 1000 | D92: 6.4 | E92: 6.7 | F92: 108 | G92: 176 | H92: 91 | I92: 219 | J92: 282 | K92: 16 | L92: 149 | M92: 483 | N92: 135 | O92: 930 | P92: 70 | Q92: 2.5 | R92: 7.9 | S92: 1.8 | T92: 0.5 | U92: 9 | V92: 77 | W92: 78 | X92: 78 | Y92: 74 | Z92: 78 | AA92: 80 | AB92: 80
A93: 91 | B93: Manioc, farine | C93: 1000 | D93: 7.5 | E93: 8.3 | F93: 83 | G93: 16 | H93: 116 | I93: 13 | J93: 23 | K93: 3 | L93: 48 | M93: 861 | N93: 32 | O93: 935 | P93: 65 | Q93: 2.9 | R93: 1.1 | S93: 1.1 | T93: 0.3 | U93: 8 | V93: 87 | W93: 41 | X93: 40 | Y93: 20 | Z93: 92 | AA93: 60 | AB93: 80
A94: 100 | B94: Marc de poires, séché | C94: 1000 | D94: 4.1 | E94: 3.7 | F94: 53 | G94: 16 | H94: 64 | I94: 6 | J94: 55 | K94: 11 | L94: 346 | M94: 574 | N94: 188 | O94: 986 | P94: 14 | Q94: 1 | R94: 0.9 | S94: 0.3 | T94: 0.3 | U94: 4 | V94: 53 | W94: 40 | X94: 39 | Y94: 35 | Z94: 65 | AA94: 20 | AB94: 25
A95: 102 | B95: Marc de pommes, dépectinisé, séché | C95: 1000 | D95: 4.3 | E95: 4 | F95: 59 | G95: 22 | H95: 62 | I95: 9 | J95: 81 | K95: 32 | L95: 322 | M95: 487 | N95: 160 | O95: 922 | P95: 78 | Q95: 13.1 | R95: 1.2 | S95: 0.3 | T95: 3.8 | U95: 1 | V95: 56 | W95: 40 | X95: 39 | Y95: 49 | Z95: 65 | AA95: 20 | AB95: 25
A96: 101 | B96: Marc de pommes, séché | C96: 1000 | D96: 5.4 | E96: 5.4 | F96: 65 | G96: 17 | H96: 81 | I96: 7 | J96: 61 | K96: 23 | L96: 224 | M96: 665 | N96: 218 | O96: 973 | P96: 27 | Q96: 1.3 | R96: 1.4 | S96: 0.6 | T96: 0.1 | U96: 6 | V96: 66 | W96: 40 | X96: 39 | Y96: 49 | Z96: 75 | AA96: 20 | AB96: 25
A97: 103 | B97: Marc de raisins, séché | C97: 1000 | D97: 2.9 | E97: 2.2 | F97: 41 | G97: 43 | H97: 24 | I97: 29 | J97: 132 | K97: 73 | L97: 277 | M97: 441 | N97: 180 | O97: 923 | P97: 77 | Q97: 6.1 | R97: 3 | S97: 1.1 | T97: 0.1 | U97: 17 | V97: 36 | W97: 13 | X97: 49 | Y97: 37 | Z97: 40 | AA97: 30 | AB97: 25
A98: 85 | B98: Mélasse de betteraves | C98: 1000 | D98: 7.6 | E98: 8.5 | F98: 76 | G98: 74 | H98: 118 | I98: 128 | J98: 128 | K98: 0 | L98: 0 | M98: 757 | N98: 625 | O98: 885 | P98: 115 | Q98: 1.5 | R98: 0.1 | S98: 0.2 | T98: 5.7 | U98: 40 | V98: 92 | W98: 75 | X98: 0 | Y98: 0 | Z98: 95 | AA98: 100 | AB98: 0
A99: 33 | B99: Millet, grain, < 4 % CB (milocorn, sorgho) | C99: 1000 | D99: 8 | E99: 8.8 | F99: 102 | G99: 73 | H99: 81 | I99: 40 | J99: 102 | K99: 29 | L99: 23 | M99: 828 | N99: 11 | O99: 982 | P99: 18 | Q99: 0.4 | R99: 3.5 | S99: 1.4 | T99: 0.1 | U99: 4 | V99: 85 | W99: 53 | X99: 81 | Y99: 24 | Z99: 91 | AA99: 45 | AB99: 80 | AC99: 753 | AD99: 75
A100: 35 | B100: Millet, grain, > 6 % CB | C100: 1000 | D100: 7.1 | E100: 7.6 | F100: 102 | G100: 79 | H100: 75 | I100: 43 | J100: 111 | K100: 34 | L100: 105 | M100: 712 | N100: 9 | O100: 962 | P100: 38 | Q100: 0.4 | R100: 3.5 | S100: 1.4 | T100: 0.1 | U100: 4 | V100: 78 | W100: 71 | X100: 81 | Y100: 20 | Z100: 88 | AA100: 45 | AB100: 80 | AC100: 569 | AD100: 75
A101: 34 | B101: Millet, grain, 4-6 % CB | C101: 1000 | D101: 7.6 | E101: 8.2 | F101: 106 | G101: 81 | H101: 79 | I101: 44 | J101: 113 | K101: 37 | L101: 63 | M101: 760 | N101: 9 | O101: 973 | P101: 27 | Q101: 0.4 | R101: 3.5 | S101: 1.4 | T101: 0.1 | U101: 4 | V101: 82 | W101: 53 | X101: 81 | Y101: 24 | Z101: 91 | AA101: 45 | AB101: 80 | AC101: 608 | AD101: 75
A102: 64 | B102: Moutarde blanche, graine, toastée | C102: 1000 | D102: 10.7 | E102: 11.7 | F102: 105 | G102: 210 | H102: 59 | I102: 249 | J102: 344 | K102: 278 | L102: 95 | M102: 232 | N102: 45 | O102: 949 | P102: 51 | Q102: 5.1 | R102: 9 | S102: 3.1 | T102: 0.1 | U102: 8 | V102: 81 | W102: 87 | X102: 89 | Y102: 54 | Z102: 74 | AA102: 75 | AB102: 70
A103: 41 | B103: Orge, farine de déchets | C103: 1000 | D103: 6.4 | E103: 6.6 | F103: 82 | G103: 78 | H103: 91 | I103: 94 | J103: 126 | K103: 41 | L103: 133 | M103: 654 | N103: 66 | O103: 954 | P103: 46 | Q103: 1.3 | R103: 5.3 | S103: 1.8 | T103: 0.1 | U103: 6 | V103: 72 | W103: 73 | X103: 70 | Y103: 35 | Z103: 80 | AA103: 77 | AB103: 75
A104: 40 | B104: Orge, farine fourragère | C104: 1000 | D104: 7.5 | E104: 8.1 | F104: 98 | G104: 87 | H104: 105 | I104: 98 | J104: 132 | K104: 36 | L104: 82 | M104: 714 | N104: 72 | O104: 964 | P104: 36 | Q104: 0.7 | R104: 5.5 | S104: 1.6 | T104: 0.1 | U104: 7 | V104: 82 | W104: 73 | X104: 70 | Y104: 35 | Z104: 90 | AA104: 77 | AB104: 90
A105: 39 | B105: Orge, flocons | C105: 1000 | D105: 9 | E105: 10.1 | F105: 120 | G105: 71 | H105: 128 | I105: 83 | J105: 112 | K105: 13 | L105: 10 | M105: 852 | N105: 15 | O105: 987 | P105: 13 | Q105: 0.5 | R105: 3 | S105: 0.6 | T105: 0.1 | U105: 3 | V105: 96 | W105: 90 | X105: 41 | Y105: 21 | Z105: 98 | AA105: 60 | AB105: 80
A106: 36 | B106: Orge, grain, léger (55-61 kg/hl) | C106: 1000 | D106: 7.4 | E106: 8 | F106: 99 | G106: 82 | H106: 107 | I106: 89 | J106: 123 | K106: 16 | L106: 59 | M106: 775 | N106: 26 | O106: 973 | P106: 27 | Q106: 0.6 | R106: 4.5 | S106: 1.2 | T106: 0.1 | U106: 6 | V106: 83 | W106: 73 | X106: 70 | Y106: 35 | Z106: 88 | AA106: 75 | AB106: 90
A107: 38 | B107: Orge, grain, lourd (70-74 kg/hl) | C107: 1000 | D107: 7.9 | E107: 8.7 | F107: 103 | G107: 80 | H107: 113 | I107: 87 | J107: 120 | K107: 16 | L107: 42 | M107: 797 | N107: 27 | O107: 975 | P107: 25 | Q107: 0.6 | R107: 4.5 | S107: 1.2 | T107: 0.1 | U107: 6 | V107: 87 | W107: 73 | X107: 70 | Y107: 35 | Z107: 92 | AA107: 75 | AB107: 90
A108: 37 | B108: Orge, grain, moyen (62-69 kg/hl) | C108: 1000 | D108: 7.7 | E108: 8.4 | F108: 100 | G108: 77 | H108: 110 | I108: 84 | J108: 116 | K108: 16 | L108: 51 | M108: 791 | N108: 27 | O108: 974 | P108: 26 | Q108: 0.6 | R108: 4.5 | S108: 1.2 | T108: 0.1 | U108: 6 | V108: 85 | W108: 73 | X108: 70 | Y108: 35 | Z108: 90 | AA108: 75 | AB108: 90
A109: 139 | B109: Os dégélatinisés, farine fourragère | C109: 1000 | D109: 0 | E109: 0 | F109: 0 | G109: 0 | H109: 0 | I109: 0 | J109: 83 | K109: 25 | L109: 0 | M109: 44 | N109: 0 | O109: 152 | P109: 848 | Q109: 294.5 | R109: 137.7 | S109: 6.6 | T109: 4.6 | U109: 2 | V109: - | W109: - | X109: - | Y109: - | Z109: - | AA109: - | AB109: -
A110: 112 | B110: Paille | C110: 1000 | D110: 3.3 | E110: 2.8 | F110: 45 | G110: 21 | H110: 53 | I110: 19 | J110: 34 | K110: 15 | L110: 438 | M110: 458 | N110: 16 | O110: 945 | P110: 55 | Q110: 3.7 | R110: 1.2 | S110: 1 | T110: 2.9 | U110: 14 | V110: 44 | W110: - | X110: - | Y110: - | Z110: - | AA110: 60 | AB110: 70
A111: 113 | B111: Paille traitée, NaOH | C111: 1000 | D111: 3.9 | E111: 3.5 | F111: 54 | G111: 21 | H111: 65 | I111: 19 | J111: 33 | K111: 12 | L111: 428 | M111: 452 | N111: 16 | O111: 925 | P111: 75 | Q111: 3.6 | R111: 1.1 | S111: 1 | T111: 16.5 | U111: 14 | V111: 53 | W111: - | X111: - | Y111: - | Z111: - | AA111: 60 | AB111: 70
A112: 65 | B112: Palmiste, tourteau d'extraction | C112: 1000 | D112: 6.8 | E112: 7.1 | F112: 156 | G112: 142 | H112: 86 | I112: 70 | J112: 197 | K112: 21 | L112: 196 | M112: 542 | N112: 26 | O112: 956 | P112: 44 | Q112: 3 | R112: 7.2 | S112: 3.9 | T112: 0.1 | U112: 7 | V112: 77 | W112: 75 | X112: 90 | Y112: 55 | Z112: 86 | AA112: 42 | AB112: 80
A113: 155 | B113: Panure | C113: 1000 | D113: 8.4 | E113: 9.4 | F113: 108 | G113: 93 | H113: 119 | I113: 105 | J113: 146 | K113: 13 | L113: 7 | M113: 816 | N113: 61 | O113: 982 | P113: 18 | Q113: 0.3 | R113: 2.1 | S113: 0.5 | T113: 4.3 | U113: 2 | V113: 91 | W113: 85 | X113: 82 | Y113: 47 | Z113: 92 | AA113: 75 | AB113: 80
A114: 156 | B114: Pâtes | C114: 1000 | D114: 8.4 | E114: 9.3 | F114: 121 | G114: 106 | H114: 123 | I114: 112 | J114: 168 | K114: 2 | L114: 2 | M114: 820 | N114: 37 | O114: 992 | P114: 8 | Q114: 0.1 | R114: 2.1 | S114: 0.5 | T114: 1.1 | U114: 2 | V114: 91 | W114: 85 | X114: 82 | Y114: 47 | Z114: 92 | AA114: 70 | AB114: 75
A115: 140 | B115: Phosphate bicalcique | C115: 1000 | D115: 0 | E115: 0 | F115: 0 | G115: 0 | H115: 0 | I115: 0 | J115: 0 | K115: 0 | L115: 0 | M115: 0 | N115: 0 | O115: 0 | P115: 1000 | Q115: 280 | R115: 210 | S115: 0 | T115: 0 | U115: 0 | V115: - | W115: - | X115: - | Y115: - | Z115: - | AA115: - | AB115: -
A116: 141 | B116: Phosphate bicalcique dihyd. | C116: 1000 | D116: 0 | E116: 0 | F116: 0 | G116: 0 | H116: 0 | I116: 0 | J116: 0 | K116: 0 | L116: 0 | M116: 0 | N116: 0 | O116: 0 | P116: 1000 | Q116: 240 | R116: 180 | S116: 0 | T116: 0 | U116: 0 | V116: - | W116: - | X116: - | Y116: - | Z116: - | AA116: - | AB116: -
A117: 142 | B117: Phosphate bisodique dihyd. | C117: 1000 | D117: 0 | E117: 0 | F117: 0 | G117: 0 | H117: 0 | I117: 0 | J117: 0 | K117: 0 | L117: 0 | M117: 0 | N117: 0 | O117: 0 | P117: 1000 | Q117: 0 | R117: 174 | S117: 0 | T117: 258 | U117: 0 | V117: - | W117: - | X117: - | Y117: - | Z117: - | AA117: - | AB117: -
A118: 143 | B118: Phosphate monocalcique | C118: 1000 | D118: 0 | E118: 0 | F118: 0 | G118: 0 | H118: 0 | I118: 0 | J118: 0 | K118: 0 | L118: 0 | M118: 0 | N118: 0 | O118: 0 | P118: 1000 | Q118: 160 | R118: 240 | S118: 0 | T118: 0 | U118: 0 | V118: - | W118: - | X118: - | Y118: - | Z118: - | AA118: - | AB118: -
A119: 128 | B119: Plumes hydrolysées, farine | C119: 1000 | D119: 8.4 | E119: 8.7 | F119: 494 | G119: 595 | H119: 19 | I119: 197 | J119: 885 | K119: 67 | L119: 9 | M119: 13 | N119: 0 | O119: 974 | P119: 26 | Q119: 5.2 | R119: 3.6 | S119: 0.4 | T119: 1 | U119: 1 | V119: 84 | W119: 86 | X119: 84 | Y119: 0 | Z119: 0 | AA119: 30 | AB119: 70
A120: 105 | B120: Poire, fruit | C120: 1000 | D120: 7.7 | E120: 8.5 | F120: 80 | G120: 11 | H120: 121 | I120: 15 | J120: 19 | K120: 11 | L120: 151 | M120: 797 | N120: 529 | O120: 978 | P120: 22 | Q120: 0.7 | R120: 0.6 | S120: 0.5 | T120: 0.1 | U120: 5 | V120: 89 | W120: 60 | X120: 30 | Y120: 65 | Z120: 95 | AA120: 80 | AB120: 60
A121: 79 | B121: Pois protéagineux, graine | C121: 1000 | D121: 8 | E121: 8.8 | F121: 130 | G121: 164 | H121: 116 | I121: 189 | J121: 250 | K121: 10 | L121: 59 | M121: 648 | N121: 69 | O121: 967 | P121: 33 | Q121: 1.3 | R121: 5.1 | S121: 1.3 | T121: 0.1 | U121: 11 | V121: 89 | W121: 83 | X121: 59 | Y121: 81 | Z121: 93 | AA121: 78 | AB121: 90
A122: 133 | B122: Poisson 64 % MA, farine | C122: 1000 | D122: 7.8 | E122: 8.3 | F122: 418 | G122: 541 | H122: 29 | I122: 246 | J122: 690 | K122: 103 | L122: 5 | M122: 7 | N122: 0 | O122: 805 | P122: 195 | Q122: 47.9 | R122: 28.1 | S122: 2.5 | T122: 10.8 | U122: 11 | V122: 87 | W122: 88 | X122: 86 | Y122: 30 | Z122: 50 | AA122: 42 | AB122: 90
A123: 134 | B123: Poisson 70/72 % MA, farine | C123: 1000 | D123: 8.1 | E123: 8.6 | F123: 463 | G123: 599 | H123: 32 | I123: 272 | J123: 764 | K123: 90 | L123: 3 | M123: 0 | N123: 0 | O123: 857 | P123: 143 | Q123: 26.6 | R123: 22.9 | S123: 2 | T123: 10.1 | U123: 11 | V123: 88 | W123: 88 | X123: 86 | Y123: 30 | Z123: 50 | AA123: 42 | AB123: 90
A124: 93 | B124: Pomme de terre de consom- mation, crue | C124: 1000 | D124: 7.6 | E124: 8.4 | F124: 79 | G124: 69 | H124: 92 | I124: 86 | J124: 110 | K124: 3 | L124: 28 | M124: 804 | N124: 35 | O124: 945 | P124: 55 | Q124: 1 | R124: 2.5 | S124: 1 | T124: 0.1 | U124: 22 | V124: 88 | W124: 55 | X124: 30 | Y124: 70 | Z124: 93 | AA124: 80 | AB124: 80 | AC124: 677 | AD124: 75
A125: 92 | B125: Pomme de terre fourragère, crue | C125: 1000 | D125: 7.6 | E125: 8.4 | F125: 75 | G125: 57 | H125: 91 | I125: 71 | J125: 91 | K125: 3 | L125: 23 | M125: 812 | N125: 37 | O125: 929 | P125: 71 | Q125: 1 | R125: 2.5 | S125: 1 | T125: 0.1 | U125: 22 | V125: 89 | W125: 55 | X125: 30 | Y125: 70 | Z125: 93 | AA125: 80 | AB125: 80 | AC125: 697 | AD125: 75
A126: 106 | B126: Pomme, fruit | C126: 1000 | D126: 7.9 | E126: 8.7 | F126: 81 | G126: 13 | H126: 121 | I126: 18 | J126: 23 | K126: 19 | L126: 104 | M126: 832 | N126: 554 | O126: 978 | P126: 22 | Q126: 0.6 | R126: 0.7 | S126: 0.5 | T126: 0.4 | U126: 9 | V126: 90 | W126: 60 | X126: 30 | Y126: 65 | Z126: 95 | AA126: 80 | AB126: 60
A127: 97 | B127: Pommes de terre, amidon | C127: 1000 | D127: 8.9 | E127: 10.2 | F127: 66 | G127: 3 | H127: 101 | I127: 2 | J127: 4 | K127: 1 | L127: 1 | M127: 989 | N127: 0 | O127: 995 | P127: 5 | Q127: 0.2 | R127: 0.5 | S127: 0.1 | T127: 0.3 | U127: 1 | V127: 95 | W127: 40 | X127: 30 | Y127: 40 | Z127: 95 | AA127: 60 | AB127: 80 | AC127: 988 | AD127: 75
A128: 95 | B128: Pommes de terre, farine | C128: 1000 | D128: 7.8 | E128: 8.6 | F128: 92 | G128: 57 | H128: 102 | I128: 52 | J128: 82 | K128: 1 | L128: 25 | M128: 845 | N128: 41 | O128: 953 | P128: 47 | Q128: 0.6 | R128: 2.4 | S128: 0.8 | T128: 0.1 | U128: 18 | V128: 89 | W128: 48 | X128: 30 | Y128: 73 | Z128: 93 | AA128: 67 | AB128: 90 | AC128: 757 | AD128: 85
A129: 94 | B129: Pommes de terre, flocons | C129: 1000 | D129: 7.9 | E129: 8.8 | F129: 98 | G129: 67 | H129: 104 | I129: 62 | J129: 101 | K129: 2 | L129: 27 | M129: 824 | N129: 40 | O129: 954 | P129: 46 | Q129: 0.6 | R129: 2.5 | S129: 1.1 | T129: 0.2 | U129: 20 | V129: 90 | W129: 48 | X129: 40 | Y129: 73 | Z129: 96 | AA129: 65 | AB129: 80 | AC129: 738 | AD129: 85
A130: 96 | B130: Pommes de terre, protéine | C130: 1000 | D130: 8 | E130: 8.3 | F130: 506 | G130: 662 | H130: 56 | I130: 333 | J130: 856 | K130: 6 | L130: 6 | M130: 99 | N130: 6 | O130: 967 | P130: 33 | Q130: 1.2 | R130: 3.3 | S130: 1 | T130: 0.1 | U130: 18 | V130: 89 | W130: 89 | X130: 30 | Y130: 50 | Z130: 93 | AA130: 45 | AB130: 90
A131: 157 | B131: Propanediol, 1,2- (Propylèneglycol) | C131: 1000 | D131: 14 | E131: 14 | F131: 93 | G131: 0 | H131: 145 | I131: 0 | J131: 0 | K131: 0 | L131: 0 | M131: 1000 | N131: 0 | O131: 1000 | P131: 0 | Q131: 0 | R131: 0 | S131: 0 | T131: 0 | U131: 0 | V131: - | W131: - | X131: - | Y131: - | Z131: - | AA131: - | AB131: -
A132: 144 | B132: Propionate de calcium | C132: 1000 | D132: 10 | E132: 10 | F132: 0 | G132: 0 | H132: 0 | I132: 0 | J132: 0 | K132: 0 | L132: 0 | M132: 493 | N132: 0 | O132: 493 | P132: 507 | Q132: 214 | R132: 0 | S132: 0 | T132: 0 | U132: 0 | V132: - | W132: - | X132: - | Y132: - | Z132: - | AA132: - | AB132: -
A133: 145 | B133: Propionate de sodium | C133: 1000 | D133: 11 | E133: 11 | F133: 0 | G133: 0 | H133: 0 | I133: 0 | J133: 0 | K133: 0 | L133: 0 | M133: 560 | N133: 0 | O133: 560 | P133: 440 | Q133: 0 | R133: 0 | S133: 0 | T133: 240 | U133: 0 | V133: - | W133: - | X133: - | Y133: - | Z133: - | AA133: - | AB133: -
A134: 154 | B134: Protéine fourragère 70 % MA (protéine bactérienne) | C134: 1000 | D134: 8.5 | E134: 8.9 | F134: 128 | G134: 449 | H134: 106 | I134: 677 | J134: 761 | K134: 50 | L134: 10 | M134: 118 | N134: 5 | O134: 939 | P134: 61 | Q134: 2.7 | R134: 14 | S134: 2.1 | T134: 5.8 | U134: 3 | V134: 91 | W134: 94 | X134: 61 | Y134: 50 | Z134: 88 | AA134: 90 | AB134: 70
A135: 104 | B135: Pulpe d'agrumes, séchée | C135: 1000 | D135: 7.4 | E135: 8.1 | F135: 91 | G135: 48 | H135: 107 | I135: 44 | J135: 72 | K135: 34 | L135: 140 | M135: 691 | N135: 241 | O135: 937 | P135: 63 | Q135: 18.9 | R135: 1.3 | S135: 1.5 | T135: 0.8 | U135: 9 | V135: 85 | W135: 50 | X135: 80 | Y135: 80 | Z135: 90 | AA135: 65 | AB135: 80
A136: 98 | B136: Rave | C136: 1000 | D136: 6.4 | E136: 6.9 | F136: 81 | G136: 79 | H136: 96 | I136: 103 | J136: 133 | K136: 15 | L136: 117 | M136: 615 | N136: 353 | O136: 880 | P136: 120 | Q136: 5.9 | R136: 5.8 | S136: 0.7 | T136: 3 | U136: 46 | V136: 82 | W136: 83 | X136: 74 | Y136: 93 | Z136: 80 | AA136: 80 | AB136: 65
A137: 42 | B137: Riz, brisures | C137: 1000 | D137: 8.6 | E137: 9.6 | F137: 95 | G137: 58 | H137: 96 | I137: 42 | J137: 84 | K137: 9 | L137: 4 | M137: 896 | N137: 48 | O137: 993 | P137: 7 | Q137: 0.1 | R137: 1.4 | S137: 0.4 | T137: 0.1 | U137: 1 | V137: 92 | W137: 71 | X137: 67 | Y137: 30 | Z137: 94 | AA137: 55 | AB137: 80 | AC137: 845 | AD137: 75
A138: 44 | B138: Riz, farine fourragère blanche | C138: 1000 | D138: 8.1 | E138: 8.8 | F138: 99 | G138: 99 | H138: 65 | I138: 72 | J138: 144 | K138: 145 | L138: 66 | M138: 558 | N138: 62 | O138: 913 | P138: 87 | Q138: 1 | R138: 14 | S138: 6.3 | T138: 0.6 | U138: 11 | V138: 77 | W138: 73 | X138: 85 | Y138: 45 | Z138: 80 | AA138: 55 | AB138: 80 | AC138: 331 | AD138: 85
A139: 43 | B139: Riz, farine fourragère jaune | C139: 1000 | D139: 8.5 | E139: 9.2 | F139: 103 | G139: 114 | H139: 57 | I139: 83 | J139: 166 | K139: 189 | L139: 80 | M139: 467 | N139: 61 | O139: 902 | P139: 98 | Q139: 0.9 | R139: 12.8 | S139: 4.2 | T139: 0.6 | U139: 11 | V139: 77 | W139: 73 | X139: 85 | Y139: 45 | Z139: 80 | AA139: 55 | AB139: 80 | AC139: 244 | AD139: 85
A140: 129 | B140: Sang, farine | C140: 1000 | D140: 7.8 | E140: 7.9 | F140: 638 | G140: 722 | H140: 11 | I140: 159 | J140: 947 | K140: 13 | L140: 0 | M140: 8 | N140: 0 | O140: 968 | P140: 32 | Q140: 1.7 | R140: 1.7 | S140: 0.3 | T140: 4.2 | U140: 3 | V140: 85 | W140: 85 | X140: 90 | Y140: 0 | Z140: 50 | AA140: 25 | AB140: 80
A141: 45 | B141: Seigle, grain | C141: 1000 | D141: 8.2 | E141: 9.1 | F141: 98 | G141: 72 | H141: 118 | I141: 86 | J141: 114 | K141: 14 | L141: 22 | M141: 831 | N141: 64 | O141: 981 | P141: 19 | Q141: 0.5 | R141: 4.1 | S141: 1.2 | T141: 0.1 | U141: 5 | V141: 89 | W141: 70 | X141: 67 | Y141: 30 | Z141: 94 | AA141: 78 | AB141: 80
A142: 146 | B142: Sodium, chlorure (sel bét.) | C142: 1000 | D142: 0 | E142: 0 | F142: 0 | G142: 0 | H142: 0 | I142: 0 | J142: 0 | K142: 0 | L142: 0 | M142: 0 | N142: 0 | O142: 0 | P142: 1000 | Q142: 0 | R142: 0 | S142: 0 | T142: 390 | U142: 0 | V142: - | W142: - | X142: - | Y142: - | Z142: - | AA142: - | AB142: -
A143: 68 | B143: Soja, coques | C143: 1000 | D143: 6.7 | E143: 6.9 | F143: 102 | G143: 82 | H143: 96 | I143: 72 | J143: 130 | K143: 24 | L143: 373 | M143: 420 | N143: 26 | O143: 947 | P143: 53 | Q143: 5.5 | R143: 1.8 | S143: 2 | T143: 0.1 | U143: 13 | V143: 79 | W143: 60 | X143: 75 | Y143: 80 | Z143: 85 | AA143: 60 | AB143: 70
A144: 66 | B144: Soja, graine | C144: 1000 | D144: 9.8 | E144: 10.6 | F144: 120 | G144: 255 | H144: 74 | I144: 317 | J144: 407 | K144: 196 | L144: 60 | M144: 284 | N144: 82 | O144: 947 | P144: 53 | Q144: 2.8 | R144: 6.3 | S144: 3 | T144: 0.2 | U144: 18 | V144: 83 | W144: 85 | X144: 90 | Y144: 60 | Z144: 80 | AA144: 80 | AB144: 80
A145: 67 | B145: Soja, graine, extrudée | C145: 1000 | D145: 9.7 | E145: 10.5 | F145: 153 | G145: 269 | H145: 67 | I145: 275 | J145: 413 | K145: 190 | L145: 54 | M145: 281 | N145: 77 | O145: 938 | P145: 62 | Q145: 2.7 | R145: 6.4 | S145: 3.1 | T145: 0.1 | U145: 19 | V145: 83 | W145: 85 | X145: 90 | Y145: 60 | Z145: 80 | AA145: 70 | AB145: 80
A146: 71 | B146: Soja, tourteau de pression, non décortiqué | C146: 1000 | D146: 8.7 | E146: 9.4 | F146: 249 | G146: 349 | H146: 84 | I146: 268 | J146: 473 | K146: 71 | L146: 62 | M146: 322 | N146: 99 | O146: 928 | P146: 72 | Q146: 3.1 | R146: 6.8 | S146: 3.2 | T146: 0.2 | U146: 22 | V146: 90 | W146: 91 | X146: 90 | Y146: 70 | Z146: 93 | AA146: 61 | AB146: 95
A147: 69 | B147: Soja, tourteau d'extraction, 44 % MA, non décortiqué | C147: 1000 | D147: 7.8 | E147: 8.3 | F147: 261 | G147: 368 | H147: 87 | I147: 283 | J147: 499 | K147: 20 | L147: 65 | M147: 340 | N147: 105 | O147: 924 | P147: 76 | Q147: 3.6 | R147: 7.7 | S147: 3.6 | T147: 0.4 | U147: 22 | V147: 90 | W147: 91 | X147: 52 | Y147: 80 | Z147: 93 | AA147: 61 | AB147: 95
A148: 70 | B148: Soja, tourteau d'extraction, 48 % MA, partiel. décortiqué | C148: 1000 | D148: 7.9 | E148: 8.4 | F148: 277 | G148: 398 | H148: 86 | I148: 306 | J148: 539 | K148: 17 | L148: 53 | M148: 322 | N148: 102 | O148: 931 | P148: 69 | Q148: 3.5 | R148: 7.4 | S148: 3.1 | T148: 0.2 | U148: 24 | V148: 90 | W148: 91 | X148: 52 | Y148: 80 | Z148: 93 | AA148: 61 | AB148: 95
A149: 46 | B149: Sous-produits de meunerie, mélange | C149: 1000 | D149: 6.4 | E149: 6.7 | F149: 93 | G149: 110 | H149: 88 | I149: 128 | J149: 177 | K149: 43 | L149: 90 | M149: 636 | N149: 62 | O149: 946 | P149: 54 | Q149: 1.5 | R149: 10.9 | S149: 3.9 | T149: 0.1 | U149: 11 | V149: 72 | W149: 75 | X149: 75 | Y149: 40 | Z149: 76 | AA149: 75 | AB149: 75
A150: 86 | B150: Sucre fourrager | C150: 1000 | D150: 9.4 | E150: 10.9 | F150: 91 | G150: 0 | H150: 142 | I150: 0 | J150: 0 | K150: 0 | L150: 0 | M150: 978 | N150: 978 | O150: 978 | P150: 22 | Q150: 0.4 | R150: 0.2 | S150: 0 | T150: 0.1 | U150: 1 | V150: 100 | W150: 0 | X150: 0 | Y150: 0 | Z150: 100 | AA150: - | AB150: -
A151: 72 | B151: Tournesol, graine | C151: 1000 | D151: 9.9 | E151: 10.6 | F151: 58 | G151: 123 | H151: 37 | I151: 153 | J151: 197 | K151: 325 | L151: 261 | M151: 181 | N151: 52 | O151: 964 | P151: 36 | Q151: 2.4 | R151: 5.5 | S151: 2.8 | T151: 0.1 | U151: 8 | V151: 64 | W151: 80 | X151: 96 | Y151: 18 | Z151: 55 | AA151: 80 | AB151: 80
A152: 74 | B152: Tournesol, tourteau de presse, partiel. décortiqué | C152: 1000 | D152: 6.3 | E152: 6.3 | F152: 118 | G152: 219 | H152: 64 | I152: 248 | J152: 333 | K152: 86 | L152: 240 | M152: 274 | N152: 83 | O152: 933 | P152: 67 | Q152: 3.2 | R152: 9.4 | S152: 6.6 | T152: 0.3 | U152: 16 | V152: 65 | W152: 85 | X152: 93 | Y152: 32 | Z152: 60 | AA152: 77 | AB152: 90
A153: 75 | B153: Tournesol, tourteau d'extrac- tion, non décortiqué | C153: 1000 | D153: 4.1 | E153: 3.6 | F153: 95 | G153: 168 | H153: 58 | I153: 190 | J153: 255 | K153: 15 | L153: 370 | M153: 310 | N153: 50 | O153: 950 | P153: 50 | Q153: 4.8 | R153: 8.5 | S153: 5 | T153: 0.3 | U153: 13 | V153: 52 | W153: 84 | X153: 68 | Y153: 30 | Z153: 50 | AA153: 77 | AB153: 90
A154: 73 | B154: Tournesol, tourteau d'extrac- tion, partiel. décortiqué | C154: 1000 | D154: 5.1 | E154: 4.8 | F154: 125 | G154: 235 | H154: 67 | I154: 266 | J154: 357 | K154: 22 | L154: 257 | M154: 292 | N154: 77 | O154: 928 | P154: 72 | Q154: 3.9 | R154: 9.4 | S154: 5.2 | T154: 0.3 | U154: 15 | V154: 62 | W154: 85 | X154: 70 | Y154: 32 | Z154: 60 | AA154: 77 | AB154: 90
A155: 47 | B155: Triticale, grain | C155: 1000 | D155: 8.3 | E155: 9.2 | F155: 103 | G155: 81 | H155: 118 | I155: 93 | J155: 125 | K155: 14 | L155: 23 | M155: 817 | N155: 42 | O155: 979 | P155: 21 | Q155: 0.6 | R155: 4.3 | S155: 1.1 | T155: 0.1 | U155: 5 | V155: 90 | W155: 75 | X155: 72 | Y155: 33 | Z155: 94 | AA155: 77 | AB155: 85
A156: 158 | B156: Urée | C156: 1000 | D156: 0 | E156: 0 | F156: 0 | G156: 1647 | H156: 0 | I156: 2860 | J156: 2860 | K156: 0 | L156: 0 | M156: 0 | N156: 0 | O156: 991 | P156: 9 | Q156: 0 | R156: 0.1 | S156: 0.1 | T156: 0.2 | U156: 1 | V156: - | W156: - | X156: - | Y156: - | Z156: - | AA156: 100 | AB156: -
A157: 80 | B157: Vesce, graine | C157: 1000 | D157: 8.1 | E157: 8.8 | F157: 143 | G157: 189 | H157: 106 | I157: 199 | J157: 298 | K157: 14 | L157: 69 | M157: 581 | N157: 46 | O157: 962 | P157: 38 | Q157: 1.6 | R157: 5 | S157: 1.8 | T157: 0.2 | U157: 10 | V157: 89 | W157: 87 | X157: 86 | Y157: 59 | Z157: 94 | AA157: 70 | AB157: 75
A158: 130 | B158: Viande 60 % MA, farine | C158: 1000 | D158: 7.4 | E158: 7.7 | F158: 216 | G158: 391 | H158: 47 | I158: 358 | J158: 643 | K158: 89 | L158: 29 | M158: 32 | N158: 0 | O158: 793 | P158: 207 | Q158: 61.7 | R158: 32.2 | S158: 1.6 | T158: 7.7 | U158: 6 | V158: 85 | W158: 89 | X158: 86 | Y158: 30 | Z158: 50 | AA158: 60 | AB158: 65
A159: 131 | B159: Viande et os 40 % MA, fa- rine | C159: 1000 | D159: 5.1 | E159: 5.3 | F159: 148 | G159: 278 | H159: 26 | I159: 254 | J159: 457 | K159: 84 | L159: 9 | M159: 12 | N159: 0 | O159: 562 | P159: 438 | Q159: 149.8 | R159: 73.1 | S159: 2.3 | T159: 6.4 | U159: 8 | V159: 79 | W159: 80 | X159: 86 | Y159: 30 | Z159: 40 | AA159: 60 | AB159: 65

Sheet Futtermittel (hidden)
A1: Fut | B1: Futtermittel | C1: TS | D1: NEL | E1: NEV | F1: APD | G1: APDN | H1: PME | I1: PMN | J1: RP | K1: RL | L1: RF | M1: NfE | N1: Zu | O1: OS | P1: RA | Q1: Ca | R1: P | S1: Mg | T1: Na | U1: K | V1: vOS | W1: vRP | X1: vRL | Y1: vRF | Z1: vNfE | AA1: aRP | AB1: vASF | AC1: ST | AD1: aST
A2: 157 | B2: 1,2-Propandiol (Propylenglykol) | C2: 1000 | D2: 14 | E2: 14 | F2: 93 | G2: 0 | H2: 145 | I2: 0 | J2: 0 | K2: 0 | L2: 0 | M2: 1000 | N2: 0 | O2: 1000 | P2: 0 | Q2: 0 | R2: 0 | S2: 0 | T2: 0 | U2: 0 | V2: - | W2: - | X2: - | Y2: - | Z2: - | AA2: - | AB2: -
A3: 99 | B3: Äpfel, frisch | C3: 1000 | D3: 7.9 | E3: 8.7 | F3: 81 | G3: 13 | H3: 121 | I3: 18 | J3: 23 | K3: 19 | L3: 104 | M3: 832 | N3: 554 | O3: 978 | P3: 22 | Q3: 0.6 | R3: 0.7 | S3: 0.5 | T3: 0.4 | U3: 9 | V3: 90 | W3: 60 | X3: 30 | Y3: 65 | Z3: 95 | AA3: 80 | AB3: 60
A4: 147 | B4: Backabfälle (Brotabfälle) | C4: 1000 | D4: 8.4 | E4: 9.4 | F4: 114 | G4: 98 | H4: 115 | I4: 100 | J4: 150 | K4: 26 | L4: 9 | M4: 784 | N4: 58 | O4: 969 | P4: 31 | Q4: 0.4 | R4: 2.3 | S4: 1 | T4: 9.3 | U4: 4 | V4: 90 | W4: 85 | X4: 82 | Y4: 47 | Z4: 92 | AA4: 70 | AB4: 80
A5: 48 | B5: Baumwolle, Samen, ganz | C5: 1000 | D5: 8 | E5: 8.2 | F5: 85 | G5: 152 | H5: 47 | I5: 168 | J5: 233 | K5: 220 | L5: 232 | M5: 271 | N5: 40 | O5: 956 | P5: 44 | Q5: 1.7 | R5: 6.9 | S5: 3.9 | T5: 0.4 | U5: 12 | V5: 63 | W5: 74 | X5: 90 | Y5: 30 | Z5: 60 | AA5: 75 | AB5: 85
A6: 50 | B6: Baumwoll-Extraktions- schrot nicht entschält | C6: 1000 | D6: 5.2 | E6: 5 | F6: 156 | G6: 212 | H6: 65 | I6: 169 | J6: 304 | K6: 13 | L6: 262 | M6: 359 | N6: 51 | O6: 938 | P6: 62 | Q6: 1.9 | R6: 10.7 | S6: 4.9 | T6: 0.6 | U6: 14 | V6: 64 | W6: 74 | X6: 65 | Y6: 45 | Z6: 70 | AA6: 60 | AB6: 85
A7: 49 | B7: Baumwoll-Extraktions- schrot teilentschält | C7: 1000 | D7: 6.2 | E7: 6.3 | F7: 213 | G7: 311 | H7: 69 | I7: 248 | J7: 446 | K7: 16 | L7: 148 | M7: 323 | N7: 54 | O7: 933 | P7: 67 | Q7: 2.3 | R7: 12 | S7: 5.4 | T7: 0.5 | U7: 15 | V7: 74 | W7: 84 | X7: 65 | Y7: 37 | Z7: 78 | AA7: 60 | AB7: 85
A8: 9 | B8: Biertreber (Gerste) frisch | C8: 1000 | D8: 6.1 | E8: 6.2 | F8: 124 | G8: 158 | H8: 64 | I8: 130 | J8: 234 | K8: 76 | L8: 171 | M8: 472 | N8: 13 | O8: 953 | P8: 47 | Q8: 3.8 | R8: 6.7 | S8: 2.5 | T8: 0.4 | U8: 1 | V8: 64 | W8: 74 | X8: 90 | Y8: 44 | Z8: 62 | AA8: 60 | AB8: 80
A9: 10 | B9: Biertreber (Gerste) getrocknet | C9: 1000 | D9: 6.3 | E9: 6.3 | F9: 148 | G9: 176 | H9: 57 | I9: 112 | J9: 252 | K9: 88 | L9: 176 | M9: 438 | N9: 10 | O9: 954 | P9: 46 | Q9: 3.2 | R9: 5.3 | S9: 1.6 | T9: 0.6 | U9: 1 | V9: 64 | W9: 74 | X9: 90 | Y9: 44 | Z9: 60 | AA9: 50 | AB9: 80
A10: 11 | B10: Biertreber (Gerste) siliert | C10: 1000 | D10: 6 | E10: 6 | F10: 112 | G10: 164 | H10: 62 | I10: 151 | J10: 247 | K10: 80 | L10: 179 | M10: 446 | N10: 38 | O10: 952 | P10: 48 | Q10: 3.5 | R10: 6 | S10: 2.3 | T10: 0.4 | U10: 1 | V10: 62 | W10: 74 | X10: 90 | Y10: 44 | Z10: 58 | AA10: 65 | AB10: 80
A11: 100 | B11: Birnen, frisch | C11: 1000 | D11: 7.7 | E11: 8.5 | F11: 80 | G11: 11 | H11: 121 | I11: 15 | J11: 19 | K11: 11 | L11: 151 | M11: 797 | N11: 529 | O11: 978 | P11: 22 | Q11: 0.7 | R11: 0.6 | S11: 0.5 | T11: 0.1 | U11: 5 | V11: 89 | W11: 60 | X11: 30 | Y11: 65 | Z11: 95 | AA11: 80 | AB11: 60
A12: 126 | B12: Blutmehl | C12: 1000 | D12: 7.8 | E12: 7.9 | F12: 638 | G12: 722 | H12: 11 | I12: 159 | J12: 947 | K12: 13 | L12: 0 | M12: 8 | N12: 0 | O12: 968 | P12: 32 | Q12: 1.7 | R12: 1.7 | S12: 0.3 | T12: 4.2 | U12: 3 | V12: 85 | W12: 85 | X12: 90 | Y12: 0 | Z12: 50 | AA12: 25 | AB12: 80
A13: 76 | B13: Bohne, Acker-, Samen | C13: 1000 | D13: 7.3 | E13: 7.7 | F13: 129 | G13: 194 | H13: 107 | I13: 233 | J13: 300 | K13: 9 | L13: 85 | M13: 567 | N13: 41 | O13: 961 | P13: 39 | Q13: 1 | R13: 6.9 | S13: 1.8 | T13: 0.2 | U13: 13 | V13: 83 | W13: 75 | X13: 70 | Y13: 60 | Z13: 91 | AA13: 80 | AB13: 90
A14: 77 | B14: Bohne, Samen, getoastet | C14: 1000 | D14: 7.7 | E14: 8.3 | F14: 145 | G14: 174 | H14: 102 | I14: 163 | J14: 257 | K14: 17 | L14: 53 | M14: 624 | N14: 53 | O14: 951 | P14: 49 | Q14: 1.6 | R14: 5.3 | S14: 1.8 | T14: 0.3 | U14: 15 | V14: 87 | W14: 85 | X14: 70 | Y14: 60 | Z14: 90 | AA14: 67 | AB14: 85
A15: 116 | B15: Buttermilch, frisch | C15: 1000 | D15: 8.7 | E15: 9.7 | F15: 101 | G15: 190 | H15: 109 | I15: 276 | J15: 311 | K15: 69 | L15: 0 | M15: 540 | N15: 469 | O15: 920 | P15: 80 | Q15: 11 | R15: 9.7 | S15: 1.1 | T15: 5.1 | U15: 17 | V15: 92 | W15: 90 | X15: 90 | Y15: 0 | Z15: 94 | AA15: 90 | AB15: 90
A16: 117 | B16: Buttermilchpulver | C16: 1000 | D16: 8.2 | E16: 9.1 | F16: 100 | G16: 190 | H16: 107 | I16: 276 | J16: 311 | K16: 52 | L16: 0 | M16: 524 | N16: 421 | O16: 887 | P16: 113 | Q16: 11 | R16: 9.5 | S16: 1 | T16: 19.7 | U16: 17 | V16: 92 | W16: 90 | X16: 90 | Y16: 0 | Z16: 94 | AA16: 90 | AB16: 90
A17: 148 | B17: Dextrose (Traubenzucker) | C17: 1000 | D17: 9.2 | E17: 10.6 | F17: 93 | G17: 0 | H17: 145 | I17: 0 | J17: 0 | K17: 0 | L17: 0 | M17: 999 | N17: 999 | O17: 999 | P17: 1 | Q17: 0 | R17: 0 | S17: 0 | T17: 0 | U17: 0 | V17: 100 | W17: 0 | X17: 0 | Y17: 0 | Z17: 100 | AA17: - | AB17: -
A18: 1 | B18: Dinkel, Körner mit Spelzen | C18: 1000 | D18: 6.4 | E18: 6.6 | F18: 91 | G18: 92 | H18: 93 | I18: 106 | J18: 145 | K18: 18 | L18: 133 | M18: 673 | N18: 30 | O18: 969 | P18: 31 | Q18: 0.7 | R18: 4.3 | S18: 1.1 | T18: 0.1 | U18: 4 | V18: 73 | W18: 76 | X18: 80 | Y18: 46 | Z18: 78 | AA18: 76 | AB18: 80
A19: 2 | B19: Dinkelspelzen (Dinkelspreue) | C19: 1000 | D19: 2.5 | E19: 1.8 | F19: 41 | G19: 22 | H19: 39 | I19: 11 | J19: 34 | K19: 16 | L19: 456 | M19: 430 | N19: 47 | O19: 936 | P19: 64 | Q19: 0.8 | R19: 2.2 | S19: 0.5 | T19: 0 | U19: 4 | V19: 35 | W19: - | X19: - | Y19: - | Z19: - | AA19: 60 | AB19: 70
A20: 134 | B20: Dorschlebertran (Lebertran) | C20: 1000 | D20: 21 | E20: 23 | F20: 0 | G20: 0 | H20: 0 | I20: 0 | J20: 0 | K20: 999 | L20: 0 | M20: 0 | N20: 0 | O20: 999 | P20: 1 | Q20: 0 | R20: 0 | S20: 0 | T20: 0 | U20: 0 | V20: - | W20: - | X20: - | Y20: - | Z20: - | AA20: - | AB20: -
A21: 78 | B21: Erbse, Protein-, Samen | C21: 1000 | D21: 8 | E21: 8.8 | F21: 130 | G21: 164 | H21: 116 | I21: 189 | J21: 250 | K21: 10 | L21: 59 | M21: 648 | N21: 69 | O21: 967 | P21: 33 | Q21: 1.3 | R21: 5.1 | S21: 1.3 | T21: 0.1 | U21: 11 | V21: 89 | W21: 83 | X21: 59 | Y21: 81 | Z21: 93 | AA21: 78 | AB21: 90
A22: 51 | B22: Erdnuss-Extraktions- schrot a. entschälter Saat | C22: 1000 | D22: 7.6 | E22: 8 | F22: 205 | G22: 388 | H22: 92 | I22: 422 | J22: 575 | K22: 22 | L22: 74 | M22: 270 | N22: 107 | O22: 941 | P22: 59 | Q22: 1.5 | R22: 7.2 | S22: 3.7 | T22: 0.4 | U22: 13 | V22: 86 | W22: 90 | X22: 80 | Y22: 40 | Z22: 90 | AA22: 76 | AB22: 95
A23: 52 | B23: Erdnusskuchen aus entschälter Saat | C23: 1000 | D23: 8.5 | E23: 9.1 | F23: 194 | G23: 366 | H23: 88 | I23: 398 | J23: 542 | K23: 77 | L23: 70 | M23: 255 | N23: 73 | O23: 944 | P23: 56 | Q23: 1.5 | R23: 6.6 | S23: 3.6 | T23: 0.3 | U23: 14 | V23: 86 | W23: 90 | X23: 90 | Y23: 40 | Z23: 90 | AA23: 76 | AB23: 95
A24: 127 | B24: Federmehl aufgeschlossen | C24: 1000 | D24: 8.4 | E24: 8.7 | F24: 494 | G24: 595 | H24: 19 | I24: 197 | J24: 885 | K24: 67 | L24: 9 | M24: 13 | N24: 0 | O24: 974 | P24: 26 | Q24: 5.2 | R24: 3.6 | S24: 0.4 | T24: 1 | U24: 1 | V24: 84 | W24: 86 | X24: 84 | Y24: 0 | Z24: 0 | AA24: 30 | AB24: 70
A25: 53 | B25: Fett oder Öl, pflanzlicher Herkunft | C25: 1000 | D25: 21 | E25: 23 | F25: 0 | G25: 0 | H25: 0 | I25: 0 | J25: 0 | K25: 1000 | L25: 0 | M25: 0 | N25: 0 | O25: 1000 | P25: 0 | Q25: 0 | R25: 0 | S25: 0 | T25: 0 | U25: 0 | V25: - | W25: - | X25: - | Y25: - | Z25: - | AA25: - | AB25: -
A26: 153 | B26: Fett, freie Fettsäuren | C26: 1000 | D26: 21 | E26: 23 | F26: 0 | G26: 0 | H26: 0 | I26: 0 | J26: 0 | K26: 995 | L26: 0 | M26: 0 | N26: 0 | O26: 995 | P26: 5 | Q26: 0 | R26: 0 | S26: 0 | T26: 0 | U26: 0 | V26: - | W26: - | X26: - | Y26: - | Z26: - | AA26: - | AB26: -
A27: 152 | B27: Fett, Kalzium-Seife | C27: 1000 | D27: 17 | E27: 18.6 | F27: 0 | G27: 0 | H27: 0 | I27: 0 | J27: 0 | K27: 850 | L27: 0 | M27: 0 | N27: 0 | O27: 850 | P27: 150 | Q27: 80 | R27: 0 | S27: 0 | T27: 0 | U27: 0 | V27: - | W27: - | X27: - | Y27: - | Z27: - | AA27: - | AB27: -
A28: 154 | B28: Fett, kristallines | C28: 1000 | D28: 20 | E28: 22 | F28: 0 | G28: 0 | H28: 0 | I28: 0 | J28: 0 | K28: 920 | L28: 0 | M28: 70 | N28: 0 | O28: 990 | P28: 10 | Q28: 0 | R28: 0 | S28: 0 | T28: 0 | U28: 0 | V28: - | W28: - | X28: - | Y28: - | Z28: - | AA28: - | AB28: -
A29: 128 | B29: Fett, tierisches | C29: 1000 | D29: 21 | E29: 23 | F29: 0 | G29: 0 | H29: 0 | I29: 0 | J29: 0 | K29: 1000 | L29: 0 | M29: 0 | N29: 0 | O29: 1000 | P29: 0 | Q29: 0 | R29: 0 | S29: 0 | T29: 0 | U29: 0 | V29: - | W29: - | X29: - | Y29: - | Z29: - | AA29: - | AB29: -
A30: 132 | B30: Fischmehl 64% RP | C30: 1000 | D30: 7.8 | E30: 8.3 | F30: 418 | G30: 541 | H30: 29 | I30: 246 | J30: 690 | K30: 103 | L30: 5 | M30: 7 | N30: 0 | O30: 805 | P30: 195 | Q30: 47.9 | R30: 28.1 | S30: 2.5 | T30: 10.8 | U30: 11 | V30: 87 | W30: 88 | X30: 86 | Y30: 30 | Z30: 50 | AA30: 42 | AB30: 90
A31: 133 | B31: Fischmehl 70/72% RP | C31: 1000 | D31: 8.1 | E31: 8.6 | F31: 463 | G31: 599 | H31: 32 | I31: 272 | J31: 764 | K31: 90 | L31: 3 | M31: 0 | N31: 0 | O31: 857 | P31: 143 | Q31: 26.6 | R31: 22.9 | S31: 2 | T31: 10.1 | U31: 11 | V31: 88 | W31: 88 | X31: 86 | Y31: 30 | Z31: 50 | AA31: 42 | AB31: 90
A32: 130 | B32: Fleischknochenmehl 40% RP | C32: 1000 | D32: 5.1 | E32: 5.3 | F32: 148 | G32: 278 | H32: 26 | I32: 254 | J32: 457 | K32: 84 | L32: 9 | M32: 12 | N32: 0 | O32: 562 | P32: 438 | Q32: 149.8 | R32: 73.1 | S32: 2.3 | T32: 6.4 | U32: 8 | V32: 79 | W32: 80 | X32: 86 | Y32: 30 | Z32: 40 | AA32: 60 | AB32: 65
A33: 129 | B33: Fleischmehl 60% RP | C33: 1000 | D33: 7.4 | E33: 7.7 | F33: 216 | G33: 391 | H33: 47 | I33: 358 | J33: 643 | K33: 89 | L33: 29 | M33: 32 | N33: 0 | O33: 793 | P33: 207 | Q33: 61.7 | R33: 32.2 | S33: 1.6 | T33: 7.7 | U33: 6 | V33: 85 | W33: 89 | X33: 86 | Y33: 30 | Z33: 50 | AA33: 60 | AB33: 65
A34: 3 | B34: Gerste, Körner leicht (55-61 kg/hl) | C34: 1000 | D34: 7.4 | E34: 8 | F34: 99 | G34: 82 | H34: 107 | I34: 89 | J34: 123 | K34: 16 | L34: 59 | M34: 775 | N34: 26 | O34: 973 | P34: 27 | Q34: 0.6 | R34: 4.5 | S34: 1.2 | T34: 0.1 | U34: 6 | V34: 83 | W34: 73 | X34: 70 | Y34: 35 | Z34: 88 | AA34: 75 | AB34: 90
A35: 4 | B35: Gerste, Körner mittel (62-69 kg/hl) | C35: 1000 | D35: 7.7 | E35: 8.4 | F35: 100 | G35: 77 | H35: 110 | I35: 84 | J35: 116 | K35: 16 | L35: 51 | M35: 791 | N35: 27 | O35: 974 | P35: 26 | Q35: 0.6 | R35: 4.5 | S35: 1.2 | T35: 0.1 | U35: 6 | V35: 85 | W35: 73 | X35: 70 | Y35: 35 | Z35: 90 | AA35: 75 | AB35: 90
A36: 5 | B36: Gerste, vollkörnig (70-74 kg/hl) | C36: 1000 | D36: 7.9 | E36: 8.7 | F36: 103 | G36: 80 | H36: 113 | I36: 87 | J36: 120 | K36: 16 | L36: 42 | M36: 797 | N36: 27 | O36: 975 | P36: 25 | Q36: 0.6 | R36: 4.5 | S36: 1.2 | T36: 0.1 | U36: 6 | V36: 87 | W36: 73 | X36: 70 | Y36: 35 | Z36: 92 | AA36: 75 | AB36: 90
A37: 8 | B37: Gerstebabfallmehl | C37: 1000 | D37: 6.4 | E37: 6.6 | F37: 82 | G37: 78 | H37: 91 | I37: 94 | J37: 126 | K37: 41 | L37: 133 | M37: 654 | N37: 66 | O37: 954 | P37: 46 | Q37: 1.3 | R37: 5.3 | S37: 1.8 | T37: 0.1 | U37: 6 | V37: 72 | W37: 73 | X37: 70 | Y37: 35 | Z37: 80 | AA37: 77 | AB37: 75
A38: 6 | B38: Gerstenflocken | C38: 1000 | D38: 9 | E38: 10.1 | F38: 120 | G38: 71 | H38: 128 | I38: 83 | J38: 112 | K38: 13 | L38: 10 | M38: 852 | N38: 15 | O38: 987 | P38: 13 | Q38: 0.5 | R38: 3 | S38: 0.6 | T38: 0.1 | U38: 3 | V38: 96 | W38: 90 | X38: 41 | Y38: 21 | Z38: 98 | AA38: 60 | AB38: 80
A39: 7 | B39: Gerstenfuttermehl | C39: 1000 | D39: 7.5 | E39: 8.1 | F39: 98 | G39: 87 | H39: 105 | I39: 98 | J39: 132 | K39: 36 | L39: 82 | M39: 714 | N39: 72 | O39: 964 | P39: 36 | Q39: 0.7 | R39: 5.5 | S39: 1.6 | T39: 0.1 | U39: 7 | V39: 82 | W39: 73 | X39: 70 | Y39: 35 | Z39: 90 | AA39: 77 | AB39: 90
A40: 107 | B40: Grasmehl 13% RP, künstlich getrocknet | C40: 1000 | D40: 6.1 | E40: 6.2 | F40: 93 | G40: 83 | H40: 82 | I40: 77 | J40: 128 | K40: 33 | L40: 235 | M40: 514 | N40: 86 | O40: 910 | P40: 90 | Q40: 7 | R40: 3.1 | S40: 1.5 | T40: 0.3 | U40: 26 | V40: 76 | W40: - | X40: - | Y40: - | Z40: - | AA40: 61 | AB40: 65
A41: 108 | B41: Grasmehl 17% RP, künstlich getrocknet | C41: 1000 | D41: 6.3 | E41: 6.5 | F41: 105 | G41: 110 | H41: 89 | I41: 108 | J41: 176 | K41: 40 | L41: 182 | M41: 501 | N41: 89 | O41: 899 | P41: 101 | Q41: 7 | R41: 3.5 | S41: 1.5 | T41: 0.3 | U41: 31 | V41: 79 | W41: - | X41: - | Y41: - | Z41: - | AA41: 65 | AB41: 70
A42: 131 | B42: Griebenmehl | C42: 1000 | D42: 10.1 | E42: 10.9 | F42: 293 | G42: 526 | H42: 68 | I42: 480 | J42: 864 | K42: 99 | L42: 5 | M42: 0 | N42: 0 | O42: 968 | P42: 32 | Q42: 5 | R42: 5.6 | S42: 0.8 | T42: 10 | U42: 5 | V42: 95 | W42: 95 | X42: 95 | Y42: 30 | Z42: 0 | AA42: 60 | AB42: 65
A43: 12 | B43: Hafer, Körner leicht (42-49 kg/hl) | C43: 1000 | D43: 6.6 | E43: 6.9 | F43: 82 | G43: 72 | H43: 93 | I43: 86 | J43: 111 | K43: 42 | L43: 123 | M43: 693 | N43: 16 | O43: 969 | P43: 31 | Q43: 0.9 | R43: 4.1 | S43: 1.2 | T43: 0.1 | U43: 5 | V43: 72 | W43: 78 | X43: 81 | Y43: 31 | Z43: 78 | AA43: 80 | AB43: 90
A44: 13 | B44: Hafer, mittel bis vollkörnig (50-57 kg/hl) | C44: 1000 | D44: 6.9 | E44: 7.2 | F44: 84 | G44: 73 | H44: 96 | I44: 87 | J44: 112 | K44: 47 | L44: 109 | M44: 701 | N44: 17 | O44: 969 | P44: 31 | Q44: 0.9 | R44: 4.1 | S44: 1.2 | T44: 0.1 | U44: 5 | V44: 74 | W44: 78 | X44: 81 | Y44: 31 | Z44: 80 | AA44: 80 | AB44: 90
A45: 16 | B45: Haferabfallmehl (Haferschälkleie) | C45: 1000 | D45: 4 | E45: 3.6 | F45: 53 | G45: 55 | H45: 59 | I45: 70 | J45: 90 | K45: 40 | L45: 219 | M45: 606 | N45: 12 | O45: 955 | P45: 45 | Q45: 1.6 | R45: 4 | S45: 1.1 | T45: 0.3 | U45: 5 | V45: 48 | W45: 40 | X45: 78 | Y45: 48 | Z45: 47 | AA45: 80 | AB45: 75
A46: 14 | B46: Haferflocken | C46: 1000 | D46: 9.5 | E46: 10.6 | F46: 100 | G46: 92 | H46: 116 | I46: 114 | J46: 147 | K46: 75 | L46: 16 | M46: 741 | N46: 18 | O46: 979 | P46: 21 | Q46: 0.9 | R46: 5 | S46: 1.4 | T46: 0.1 | U46: 4 | V46: 92 | W46: 80 | X46: 90 | Y46: 80 | Z46: 95 | AA46: 80 | AB46: 80
A47: 15 | B47: Haferfuttermehl | C47: 1000 | D47: 7.7 | E47: 8.2 | F47: 89 | G47: 95 | H47: 93 | I47: 114 | J47: 146 | K47: 76 | L47: 71 | M47: 677 | N47: 19 | O47: 970 | P47: 30 | Q47: 1 | R47: 5.4 | S47: 1.7 | T47: 0.1 | U47: 5 | V47: 77 | W47: 79 | X47: 91 | Y47: 36 | Z47: 79 | AA47: 80 | AB47: 90
A48: 17 | B48: Haferspelzen | C48: 1000 | D48: 3 | E48: 2.4 | F48: 39 | G48: 15 | H48: 55 | I48: 20 | J48: 26 | K48: 8 | L48: 374 | M48: 542 | N48: 10 | O48: 950 | P48: 50 | Q48: 0.6 | R48: 0.7 | S48: 0.5 | T48: 0.1 | U48: 4 | V48: 41 | W48: - | X48: - | Y48: - | Z48: - | AA48: 60 | AB48: 70
A49: 155 | B49: Harnstoff, Futter- | C49: 1000 | D49: 0 | E49: 0 | F49: 0 | G49: 1647 | H49: 0 | I49: 2860 | J49: 2860 | K49: 0 | L49: 0 | M49: 0 | N49: 0 | O49: 991 | P49: 9 | Q49: 0 | R49: 0.1 | S49: 0.1 | T49: 0.2 | U49: 1 | V49: - | W49: - | X49: - | Y49: - | Z49: - | AA49: 100 | AB49: -
A50: 149 | B50: Hefe, Bier-, getrocknet | C50: 1000 | D50: 7.4 | E50: 7.8 | F50: 138 | G50: 286 | H50: 94 | I50: 362 | J50: 465 | K50: 30 | L50: 2 | M50: 428 | N50: 23 | O50: 925 | P50: 75 | Q50: 2.6 | R50: 15 | S50: 2.2 | T50: 2.4 | U50: 24 | V50: 84 | W50: 82 | X50: 61 | Y50: 50 | Z50: 88 | AA50: 80 | AB50: 75
A51: 150 | B51: Hefe, Futter-, 48% RP | C51: 1000 | D51: 7.5 | E51: 7.8 | F51: 146 | G51: 332 | H51: 87 | I51: 421 | J51: 541 | K51: 58 | L51: 13 | M51: 319 | N51: 3 | O51: 931 | P51: 69 | Q51: 7.3 | R51: 15.6 | S51: 1.2 | T51: 0.3 | U51: 13 | V51: 82 | W51: 82 | X51: 61 | Y51: 50 | Z51: 88 | AA51: 80 | AB51: 75
A52: 19 | B52: Hirse, Körner 4-6% RF | C52: 1000 | D52: 7.6 | E52: 8.2 | F52: 106 | G52: 81 | H52: 79 | I52: 44 | J52: 113 | K52: 37 | L52: 63 | M52: 760 | N52: 9 | O52: 973 | P52: 27 | Q52: 0.4 | R52: 3.5 | S52: 1.4 | T52: 0.1 | U52: 4 | V52: 82 | W52: 53 | X52: 81 | Y52: 24 | Z52: 91 | AA52: 45 | AB52: 80 | AC52: 608 | AD52: 75
A53: 20 | B53: Hirse, Körner mehr als 6% | C53: 1000 | D53: 7.1 | E53: 7.6 | F53: 102 | G53: 79 | H53: 75 | I53: 43 | J53: 111 | K53: 34 | L53: 105 | M53: 712 | N53: 9 | O53: 962 | P53: 38 | Q53: 0.4 | R53: 3.5 | S53: 1.4 | T53: 0.1 | U53: 4 | V53: 78 | W53: 71 | X53: 81 | Y53: 20 | Z53: 88 | AA53: 45 | AB53: 80 | AC53: 569 | AD53: 75
A54: 18 | B54: Hirse, Körner unter 4% RF (Milocorn/Sorghum) | C54: 1000 | D54: 8 | E54: 8.8 | F54: 102 | G54: 73 | H54: 81 | I54: 40 | J54: 102 | K54: 29 | L54: 23 | M54: 828 | N54: 11 | O54: 982 | P54: 18 | Q54: 0.4 | R54: 3.5 | S54: 1.4 | T54: 0.1 | U54: 4 | V54: 85 | W54: 53 | X54: 81 | Y54: 24 | Z54: 91 | AA54: 45 | AB54: 80 | AC54: 753 | AD54: 75
A55: 101 | B55: Johannisbrot | C55: 1000 | D55: 6 | E55: 6.3 | F55: 77 | G55: 37 | H55: 94 | I55: 36 | J55: 57 | K55: 11 | L55: 90 | M55: 809 | N55: 415 | O55: 967 | P55: 33 | Q55: 5.2 | R55: 1 | S55: 0.6 | T55: 0.2 | U55: 8 | V55: 73 | W55: 16 | X55: 60 | Y55: 47 | Z55: 80 | AA55: 67 | AB55: 80
A56: 114 | B56: Kaffee-Extraktionsabfälle | C56: 1000 | D56: 2.4 | E56: 1.5 | F56: 19 | G56: 34 | H56: 0 | I56: 27 | J56: 120 | K56: 242 | L56: 463 | M56: 164 | N56: 14 | O56: 989 | P56: 11 | Q56: 1.9 | R56: 0.6 | S56: 0.7 | T56: 0.7 | U56: 2 | V56: 18 | W56: 9 | X56: 40 | Y56: 7 | Z56: 21 | AA56: 30 | AB56: 20
A57: 115 | B57: Kakaoschalen | C57: 1000 | D57: 2.2 | E57: 1.6 | F57: 29 | G57: 72 | H57: 20 | I57: 98 | J57: 177 | K57: 51 | L57: 183 | M57: 502 | N57: 36 | O57: 913 | P57: 87 | Q57: 3.4 | R57: 4.2 | S57: 5.2 | T57: 0.9 | U57: 30 | V57: 29 | W57: 15 | X57: 50 | Y57: 32 | Z57: 30 | AA57: 60 | AB57: 20
A58: 135 | B58: Kalk, kohlensaurer | C58: 1000 | D58: 0 | E58: 0 | F58: 0 | G58: 0 | H58: 0 | I58: 0 | J58: 0 | K58: 0 | L58: 0 | M58: 0 | N58: 0 | O58: 0 | P58: 1000 | Q58: 380 | R58: 0 | S58: 0.9 | T58: 0 | U58: 0 | V58: - | W58: - | X58: - | Y58: - | Z58: - | AA58: - | AB58: -
A59: 81 | B59: Karotte, Wurzel frisch | C59: 1000 | D59: 7.4 | E59: 8.1 | F59: 80 | G59: 56 | H59: 109 | I59: 80 | J59: 96 | K59: 15 | L59: 91 | M59: 697 | N59: 256 | O59: 899 | P59: 101 | Q59: 3 | R59: 3 | S59: 1.9 | T59: 3.5 | U59: 26 | V59: 89 | W59: 60 | X59: 77 | Y59: 86 | Z59: 94 | AA59: 85 | AB59: 65
A60: 82 | B60: Kartoffel, Futter-, Knolle frisch | C60: 1000 | D60: 7.6 | E60: 8.4 | F60: 75 | G60: 57 | H60: 91 | I60: 71 | J60: 91 | K60: 3 | L60: 23 | M60: 812 | N60: 37 | O60: 929 | P60: 71 | Q60: 1 | R60: 2.5 | S60: 1 | T60: 0.1 | U60: 22 | V60: 89 | W60: 55 | X60: 30 | Y60: 70 | Z60: 93 | AA60: 80 | AB60: 80 | AC60: 697 | AD60: 75
A61: 83 | B61: Kartoffel, Speise-, Knolle frisch | C61: 1000 | D61: 7.6 | E61: 8.4 | F61: 79 | G61: 69 | H61: 92 | I61: 86 | J61: 110 | K61: 3 | L61: 28 | M61: 804 | N61: 35 | O61: 945 | P61: 55 | Q61: 1 | R61: 2.5 | S61: 1 | T61: 0.1 | U61: 22 | V61: 88 | W61: 55 | X61: 30 | Y61: 70 | Z61: 93 | AA61: 80 | AB61: 80 | AC61: 677 | AD61: 75
A62: 84 | B62: Kartoffelflocken | C62: 1000 | D62: 7.9 | E62: 8.8 | F62: 98 | G62: 67 | H62: 104 | I62: 62 | J62: 101 | K62: 2 | L62: 27 | M62: 824 | N62: 40 | O62: 954 | P62: 46 | Q62: 0.6 | R62: 2.5 | S62: 1.1 | T62: 0.2 | U62: 20 | V62: 90 | W62: 48 | X62: 40 | Y62: 73 | Z62: 96 | AA62: 65 | AB62: 80 | AC62: 738 | AD62: 85
A63: 85 | B63: Kartoffelmehl | C63: 1000 | D63: 7.8 | E63: 8.6 | F63: 92 | G63: 57 | H63: 102 | I63: 52 | J63: 82 | K63: 1 | L63: 25 | M63: 845 | N63: 41 | O63: 953 | P63: 47 | Q63: 0.6 | R63: 2.4 | S63: 0.8 | T63: 0.1 | U63: 18 | V63: 89 | W63: 48 | X63: 30 | Y63: 73 | Z63: 93 | AA63: 67 | AB63: 90 | AC63: 757 | AD63: 85
A64: 86 | B64: Kartoffelprotein | C64: 1000 | D64: 8 | E64: 8.3 | F64: 506 | G64: 662 | H64: 56 | I64: 333 | J64: 856 | K64: 6 | L64: 6 | M64: 99 | N64: 6 | O64: 967 | P64: 33 | Q64: 1.2 | R64: 3.3 | S64: 1 | T64: 0.1 | U64: 18 | V64: 89 | W64: 89 | X64: 30 | Y64: 50 | Z64: 93 | AA64: 45 | AB64: 90
A65: 87 | B65: Kartoffelstärke | C65: 1000 | D65: 8.9 | E65: 10.2 | F65: 66 | G65: 3 | H65: 101 | I65: 2 | J65: 4 | K65: 1 | L65: 1 | M65: 989 | N65: 0 | O65: 995 | P65: 5 | Q65: 0.2 | R65: 0.5 | S65: 0.1 | T65: 0.3 | U65: 1 | V65: 95 | W65: 40 | X65: 30 | Y65: 40 | Z65: 95 | AA65: 60 | AB65: 80 | AC65: 988 | AD65: 75
A66: 118 | B66: Kaseinpulver | C66: 1000 | D66: 8.7 | E66: 9.2 | F66: 163 | G66: 559 | H66: 112 | I66: 813 | J66: 914 | K66: 14 | L66: 0 | M66: 17 | N66: 0 | O66: 945 | P66: 55 | Q66: 2.6 | R66: 7.7 | S66: 0.2 | T66: 0.2 | U66: 1 | V66: 95 | W66: 95 | X66: 90 | Y66: 0 | Z66: 95 | AA66: 90 | AB66: 90
A67: 136 | B67: Knochenmehl entleimt | C67: 1000 | D67: 0 | E67: 0 | F67: 0 | G67: 0 | H67: 0 | I67: 0 | J67: 83 | K67: 25 | L67: 0 | M67: 44 | N67: 0 | O67: 152 | P67: 848 | Q67: 294.5 | R67: 137.7 | S67: 6.6 | T67: 4.6 | U67: 2 | V67: - | W67: - | X67: - | Y67: - | Z67: - | AA67: - | AB67: -
A68: 88 | B68: Kohlrübe, Wurzel frisch | C68: 1000 | D68: 7.1 | E68: 7.7 | F68: 85 | G68: 70 | H68: 106 | I68: 92 | J68: 118 | K68: 12 | L68: 111 | M68: 663 | N68: 401 | O68: 904 | P68: 96 | Q68: 5.1 | R68: 4 | S68: 1.6 | T68: 1.7 | U68: 30 | V68: 87 | W68: 70 | X68: 60 | Y68: 82 | Z68: 92 | AA68: 80 | AB68: 65
A69: 54 | B69: Kokos-Extraktionsschrot | C69: 1000 | D69: 6.7 | E69: 7 | F69: 184 | G69: 183 | H69: 82 | I69: 89 | J69: 236 | K69: 24 | L69: 172 | M69: 493 | N69: 125 | O69: 925 | P69: 75 | Q69: 1.8 | R69: 6.5 | S69: 3.9 | T69: 0.9 | U69: 18 | V69: 79 | W69: 80 | X69: 80 | Y69: 60 | Z69: 85 | AA69: 44 | AB69: 90
A70: 119 | B70: Laktose | C70: 1000 | D70: 9.2 | E70: 10.6 | F70: 93 | G70: 0 | H70: 145 | I70: 0 | J70: 0 | K70: 0 | L70: 0 | M70: 999 | N70: 999 | O70: 999 | P70: 1 | Q70: 0 | R70: 0 | S70: 0 | T70: 0 | U70: 0 | V70: 100 | W70: 0 | X70: 0 | Y70: 0 | Z70: 100 | AA70: - | AB70: -
A71: 55 | B71: Lein, Samen | C71: 1000 | D71: 12.2 | E71: 13.6 | F71: 84 | G71: 157 | H71: 46 | I71: 178 | J71: 246 | K71: 378 | L71: 72 | M71: 256 | N71: 37 | O71: 952 | P71: 48 | Q71: 2.7 | R71: 5.8 | S71: 4.6 | T71: 0.6 | U71: 9 | V71: 79 | W71: 80 | X71: 93 | Y71: 30 | Z71: 72 | AA71: 75 | AB71: 80
A72: 56 | B72: Lein-Extraktionsschrot | C72: 1000 | D72: 6.5 | E72: 6.6 | F72: 178 | G72: 260 | H72: 76 | I72: 228 | J72: 380 | K72: 27 | L72: 101 | M72: 418 | N72: 54 | O72: 926 | P72: 74 | Q72: 4.5 | R72: 9.5 | S72: 6 | T72: 1.1 | U72: 12 | V72: 75 | W72: 83 | X72: 80 | Y72: 22 | Z72: 80 | AA72: 64 | AB72: 85
A73: 57 | B73: Leinkuchen 4-7% RL | C73: 1000 | D73: 7.1 | E73: 7.4 | F73: 171 | G73: 250 | H73: 74 | I73: 219 | J73: 365 | K73: 65 | L73: 97 | M73: 402 | N73: 44 | O73: 929 | P73: 71 | Q73: 4.4 | R73: 8.6 | S73: 5.3 | T73: 1.1 | U73: 12 | V73: 76 | W73: 83 | X73: 90 | Y73: 22 | Z73: 80 | AA73: 64 | AB73: 85
A74: 58 | B74: Leinkuchen 8-12% RL | C74: 1000 | D74: 7.8 | E74: 8.3 | F74: 162 | G74: 238 | H74: 70 | I74: 208 | J74: 347 | K74: 110 | L74: 92 | M74: 384 | N74: 45 | O74: 933 | P74: 67 | Q74: 4.2 | R74: 8.9 | S74: 5.7 | T74: 0.5 | U74: 11 | V74: 77 | W74: 83 | X74: 90 | Y74: 22 | Z74: 80 | AA74: 64 | AB74: 85
A75: 79 | B75: Lupine, Süss-, Weisse, Samen | C75: 1000 | D75: 9.1 | E75: 9.9 | F75: 143 | G75: 257 | H75: 99 | I75: 308 | J75: 396 | K75: 95 | L75: 121 | M75: 347 | N75: 66 | O75: 959 | P75: 41 | Q75: 2.5 | R75: 5.1 | S75: 2.3 | T75: 0.2 | U75: 12 | V75: 89 | W75: 88 | X75: 88 | Y75: 88 | Z75: 92 | AA75: 80 | AB75: 90
A76: 109 | B76: Luzernemehl 14% RP, künstlich getrocknet | C76: 1000 | D76: 4.8 | E76: 4.6 | F76: 87 | G76: 93 | H76: 70 | I76: 88 | J76: 150 | K76: 25 | L76: 330 | M76: 400 | N76: 36 | O76: 905 | P76: 95 | Q76: 15.2 | R76: 2.9 | S76: 2.2 | T76: 0.5 | U76: 29 | V76: 62 | W76: - | X76: - | Y76: - | Z76: - | AA76: 63 | AB76: 70
A77: 110 | B77: Luzernemehl 18% RP, künstlich getrocknet | C77: 1000 | D77: 5.3 | E77: 5.3 | F77: 97 | G77: 116 | H77: 74 | I77: 115 | J77: 184 | K77: 28 | L77: 278 | M77: 405 | N77: 37 | O77: 895 | P77: 105 | Q77: 16 | R77: 2.6 | S77: 2.2 | T77: 0.5 | U77: 29 | V77: 68 | W77: - | X77: - | Y77: - | Z77: - | AA77: 66 | AB77: 70
A78: 120 | B78: Magermilch, frisch | C78: 1000 | D78: 8.1 | E78: 8.9 | F78: 149 | G78: 244 | H78: 115 | I78: 293 | J78: 376 | K78: 6 | L78: 0 | M78: 535 | N78: 491 | O78: 917 | P78: 83 | Q78: 13.7 | R78: 10.8 | S78: 1.1 | T78: 4.7 | U78: 17 | V78: 95 | W78: 95 | X78: 90 | Y78: 0 | Z78: 95 | AA78: 80 | AB78: 90
A79: 121 | B79: Magermilchpulver | C79: 1000 | D79: 8.1 | E79: 8.9 | F79: 148 | G79: 239 | H79: 115 | I79: 287 | J79: 369 | K79: 8 | L79: 0 | M79: 541 | N79: 508 | O79: 918 | P79: 82 | Q79: 13.6 | R79: 10.6 | S79: 1.1 | T79: 4.5 | U79: 16 | V79: 95 | W79: 94 | X79: 90 | Y79: 0 | Z79: 95 | AA79: 80 | AB79: 90
A80: 137 | B80: Magnesiumchlorid | C80: 1000 | D80: 0 | E80: 0 | F80: 0 | G80: 0 | H80: 0 | I80: 0 | J80: 0 | K80: 0 | L80: 0 | M80: 0 | N80: 0 | O80: 0 | P80: 1000 | Q80: 0 | R80: 0 | S80: 120 | T80: 0 | U80: 0 | V80: - | W80: - | X80: - | Y80: - | Z80: - | AA80: - | AB80: -
A81: 138 | B81: Magnesiumoxyd | C81: 1000 | D81: 0 | E81: 0 | F81: 0 | G81: 0 | H81: 0 | I81: 0 | J81: 0 | K81: 0 | L81: 0 | M81: 0 | N81: 0 | O81: 0 | P81: 1000 | Q81: 30.3 | R81: 0 | S81: 510 | T81: 0 | U81: 0 | V81: - | W81: - | X81: - | Y81: - | Z81: - | AA81: - | AB81: -
A82: 21 | B82: Mais, Körner | C82: 1000 | D82: 8.5 | E82: 9.5 | F82: 112 | G82: 79 | H82: 82 | I82: 35 | J82: 97 | K82: 43 | L82: 23 | M82: 822 | N82: 19 | O82: 985 | P82: 15 | Q82: 0.2 | R82: 3.2 | S82: 1.2 | T82: 0.1 | U82: 4 | V82: 88 | W82: 60 | X82: 79 | Y82: 20 | Z82: 94 | AA82: 42 | AB82: 95 | AC82: 710 | AD82: 70
A83: 22 | B83: Maisfuttermehl | C83: 1000 | D83: 8.1 | E83: 8.8 | F83: 106 | G83: 83 | H83: 77 | I83: 45 | J83: 116 | K83: 75 | L83: 58 | M83: 717 | N83: 42 | O83: 966 | P83: 34 | Q83: 0.6 | R83: 5.1 | S83: 2.6 | T83: 0.5 | U83: 6 | V83: 82 | W83: 62 | X83: 85 | Y83: 60 | Z83: 87 | AA83: 45 | AB83: 80 | AC83: 490 | AD83: 75
A84: 23 | B84: Maiskeime | C84: 1000 | D84: 9.6 | E84: 10.5 | F84: 117 | G84: 119 | H84: 79 | I84: 92 | J84: 166 | K84: 212 | L84: 58 | M84: 506 | N84: 73 | O84: 942 | P84: 58 | Q84: 0.1 | R84: 1.2 | S84: 0.4 | T84: 0 | U84: 1 | V84: 81 | W84: 70 | X84: 85 | Y84: 60 | Z84: 85 | AA84: 60 | AB84: 90 | AC84: 298 | AD84: 75
A85: 25 | B85: Maiskleber 60% RP | C85: 1000 | D85: 8.4 | E85: 8.9 | F85: 509 | G85: 570 | H85: 43 | I85: 154 | J85: 689 | K85: 46 | L85: 9 | M85: 222 | N85: 8 | O85: 966 | P85: 34 | Q85: 0.2 | R85: 5.2 | S85: 0.3 | T85: 0.2 | U85: 1 | V85: 88 | W85: 88 | X85: 76 | Y85: 20 | Z85: 94 | AA85: 30 | AB85: 90 | AC85: 154 | AD85: 75
A86: 26 | B86: Maiskleber 70% RP | C86: 1000 | D86: 8.4 | E86: 8.9 | F86: 556 | G86: 632 | H86: 34 | I86: 170 | J86: 764 | K86: 54 | L86: 9 | M86: 138 | N86: 5 | O86: 965 | P86: 35 | Q86: 0.2 | R86: 4.1 | S86: 0.3 | T86: 0.2 | U86: 1 | V86: 88 | W86: 88 | X86: 76 | Y86: 20 | Z86: 94 | AA86: 30 | AB86: 90 | AC86: 96 | AD86: 75
A87: 24 | B87: Maiskleberfutter | C87: 1000 | D87: 7.4 | E87: 7.9 | F87: 127 | G87: 156 | H87: 89 | I87: 150 | J87: 232 | K87: 26 | L87: 78 | M87: 606 | N87: 23 | O87: 942 | P87: 58 | Q87: 1.5 | R87: 9.5 | S87: 4.1 | T87: 2.8 | U87: 14 | V87: 83 | W87: 80 | X87: 81 | Y87: 66 | Z87: 87 | AA87: 68 | AB87: 85 | AC87: 237 | AD87: 75
A88: 29 | B88: Maiskolben, ganz, getr. | C88: 1000 | D88: 7.7 | E88: 8.4 | F88: 88 | G88: 54 | H88: 93 | I88: 46 | J88: 83 | K88: 35 | L88: 90 | M88: 773 | N88: 33 | O88: 981 | P88: 19 | Q88: 0.3 | R88: 2.7 | S88: 1 | T88: 0.1 | U88: 4 | V88: 83 | W88: 55 | X88: 75 | Y88: 55 | Z88: 90 | AA88: 60 | AB88: 75 | AC88: 420 | AD88: 75
A89: 30 | B89: Maiskolbensilage (ohne Lieschen) 30% Spindeln | C89: 1000 | D89: 8 | E89: 8.8 | F89: 88 | G89: 61 | H89: 85 | I89: 40 | J89: 91 | K89: 41 | L89: 46 | M89: 807 | N89: 8 | O89: 985 | P89: 15 | Q89: 0.2 | R89: 3 | S89: 1.2 | T89: 0.2 | U89: 7 | V89: 84 | W89: 60 | X89: 79 | Y89: 40 | Z89: 90 | AA89: 50 | AB89: 75 | AC89: 646 | AD89: 75
A90: 31 | B90: Maiskolbensilage (ohne Lieschen) 80% Spindeln | C90: 1000 | D90: 7.9 | E90: 8.7 | F90: 83 | G90: 57 | H90: 79 | I90: 43 | J90: 86 | K90: 38 | L90: 70 | M90: 789 | N90: 8 | O90: 983 | P90: 17 | Q90: 0.2 | R90: 3 | S90: 1.2 | T90: 0.2 | U90: 5 | V90: 84 | W90: 60 | X90: 79 | Y90: 50 | Z90: 90 | AA90: 50 | AB90: 75 | AC90: 625 | AD90: 75
A91: 28 | B91: Maiskörnersilage | C91: 1000 | D91: 8.5 | E91: 9.5 | F91: 100 | G91: 69 | H91: 90 | I91: 38 | J91: 97 | K91: 43 | L91: 23 | M91: 822 | N91: 7 | O91: 985 | P91: 15 | Q91: 0.2 | R91: 3.2 | S91: 1.2 | T91: 0.1 | U91: 4 | V91: 89 | W91: 60 | X91: 79 | Y91: 30 | Z91: 94 | AA91: 45 | AB91: 80 | AC91: 659 | AD91: 75
A92: 111 | B92: Maispflanzen, ganz, künstlich getrocknet | C92: 1000 | D92: 6.4 | E92: 6.6 | F92: 85 | G92: 51 | H92: 93 | I92: 45 | J92: 81 | K92: 23 | L92: 197 | M92: 654 | N92: 117 | O92: 955 | P92: 45 | Q92: 2.3 | R92: 2.7 | S92: 0.9 | T92: 0.1 | U92: 13 | V92: 74 | W92: - | X92: - | Y92: - | Z92: - | AA92: 60 | AB92: 70
A93: 27 | B93: Maisspindelmehl | C93: 1000 | D93: 4.1 | E93: 3.7 | F93: 51 | G93: 14 | H93: 70 | I93: 10 | J93: 30 | K93: 9 | L93: 350 | M93: 586 | N93: 93 | O93: 975 | P93: 25 | Q93: 0.5 | R93: 0.7 | S93: 0.2 | T93: 0.2 | U93: 5 | V93: 51 | W93: - | X93: - | Y93: - | Z93: - | AA93: 60 | AB93: 70
A94: 32 | B94: Malzkeime | C94: 1000 | D94: 6.4 | E94: 6.7 | F94: 108 | G94: 176 | H94: 91 | I94: 219 | J94: 282 | K94: 16 | L94: 149 | M94: 483 | N94: 135 | O94: 930 | P94: 70 | Q94: 2.5 | R94: 7.9 | S94: 1.8 | T94: 0.5 | U94: 9 | V94: 77 | W94: 78 | X94: 78 | Y94: 74 | Z94: 78 | AA94: 80 | AB94: 80
A95: 92 | B95: Maniokmehl oder -schnitzel (Tapiokamehl) | C95: 1000 | D95: 7.5 | E95: 8.3 | F95: 83 | G95: 16 | H95: 116 | I95: 13 | J95: 23 | K95: 3 | L95: 48 | M95: 861 | N95: 32 | O95: 935 | P95: 65 | Q95: 2.9 | R95: 1.1 | S95: 1.1 | T95: 0.3 | U95: 8 | V95: 87 | W95: 41 | X95: 40 | Y95: 20 | Z95: 92 | AA95: 60 | AB95: 80
A96: 122 | B96: Molke frisch (Schotte) | C96: 1000 | D96: 8 | E96: 8.9 | F96: 104 | G96: 86 | H96: 122 | I96: 103 | J96: 132 | K96: 7 | L96: 0 | M96: 780 | N96: 709 | O96: 919 | P96: 81 | Q96: 5.8 | R96: 6.1 | S96: 1.1 | T96: 6.2 | U96: 23 | V96: 94 | W96: 90 | X96: 90 | Y96: 0 | Z96: 95 | AA96: 80 | AB96: 90
A97: 123 | B97: Molkenpulver (Schottepulver) | C97: 1000 | D97: 7.9 | E97: 8.9 | F97: 103 | G97: 82 | H97: 120 | I97: 99 | J97: 127 | K97: 10 | L97: 0 | M97: 777 | N97: 725 | O97: 914 | P97: 86 | Q97: 5.8 | R97: 6.5 | S97: 1.1 | T97: 7.4 | U97: 24 | V97: 94 | W97: 90 | X97: 90 | Y97: 0 | Z97: 95 | AA97: 80 | AB97: 90
A98: 33 | B98: Mühlennachprodukte- gemisch (MNG) | C98: 1000 | D98: 6.4 | E98: 6.7 | F98: 93 | G98: 110 | H98: 88 | I98: 128 | J98: 177 | K98: 43 | L98: 90 | M98: 636 | N98: 62 | O98: 946 | P98: 54 | Q98: 1.5 | R98: 10.9 | S98: 3.9 | T98: 0.1 | U98: 11 | V98: 72 | W98: 75 | X98: 75 | Y98: 40 | Z98: 76 | AA98: 75 | AB98: 75
A99: 139 | B99: Natriumbicarbonat | C99: 1000 | D99: 0 | E99: 0 | F99: 0 | G99: 0 | H99: 0 | I99: 0 | J99: 0 | K99: 0 | L99: 0 | M99: 0 | N99: 0 | O99: 0 | P99: 1000 | Q99: 0 | R99: 0 | S99: 0 | T99: 270 | U99: 0 | V99: - | W99: - | X99: - | Y99: - | Z99: - | AA99: - | AB99: -
A100: 140 | B100: Natriumchlorid (Viehsalz) | C100: 1000 | D100: 0 | E100: 0 | F100: 0 | G100: 0 | H100: 0 | I100: 0 | J100: 0 | K100: 0 | L100: 0 | M100: 0 | N100: 0 | O100: 0 | P100: 1000 | Q100: 0 | R100: 0 | S100: 0 | T100: 390 | U100: 0 | V100: - | W100: - | X100: - | Y100: - | Z100: - | AA100: - | AB100: -
A101: 59 | B101: Palmkern-Extraktions- schrot | C101: 1000 | D101: 6.8 | E101: 7.1 | F101: 156 | G101: 142 | H101: 86 | I101: 70 | J101: 197 | K101: 21 | L101: 196 | M101: 542 | N101: 26 | O101: 956 | P101: 44 | Q101: 3 | R101: 7.2 | S101: 3.9 | T101: 0.1 | U101: 7 | V101: 77 | W101: 75 | X101: 90 | Y101: 55 | Z101: 86 | AA101: 42 | AB101: 80
A102: 156 | B102: Paniermehl | C102: 1000 | D102: 8.4 | E102: 9.4 | F102: 108 | G102: 93 | H102: 119 | I102: 105 | J102: 146 | K102: 13 | L102: 7 | M102: 816 | N102: 61 | O102: 982 | P102: 18 | Q102: 0.3 | R102: 2.1 | S102: 0.5 | T102: 4.3 | U102: 2 | V102: 91 | W102: 85 | X102: 82 | Y102: 47 | Z102: 92 | AA102: 75 | AB102: 80
A103: 141 | B103: Phosphat, Dikalzium- | C103: 1000 | D103: 0 | E103: 0 | F103: 0 | G103: 0 | H103: 0 | I103: 0 | J103: 0 | K103: 0 | L103: 0 | M103: 0 | N103: 0 | O103: 0 | P103: 1000 | Q103: 280 | R103: 210 | S103: 0 | T103: 0 | U103: 0 | V103: - | W103: - | X103: - | Y103: - | Z103: - | AA103: - | AB103: -
A104: 144 | B104: Phosphat, Monokalzium- | C104: 1000 | D104: 0 | E104: 0 | F104: 0 | G104: 0 | H104: 0 | I104: 0 | J104: 0 | K104: 0 | L104: 0 | M104: 0 | N104: 0 | O104: 0 | P104: 1000 | Q104: 160 | R104: 240 | S104: 0 | T104: 0 | U104: 0 | V104: - | W104: - | X104: - | Y104: - | Z104: - | AA104: - | AB104: -
A105: 142 | B105: Phosphat-dihydrat, Dikalzium | C105: 1000 | D105: 0 | E105: 0 | F105: 0 | G105: 0 | H105: 0 | I105: 0 | J105: 0 | K105: 0 | L105: 0 | M105: 0 | N105: 0 | O105: 0 | P105: 1000 | Q105: 240 | R105: 180 | S105: 0 | T105: 0 | U105: 0 | V105: - | W105: - | X105: - | Y105: - | Z105: - | AA105: - | AB105: -
A106: 143 | B106: Phosphat-dihydrat, Dinatrium | C106: 1000 | D106: 0 | E106: 0 | F106: 0 | G106: 0 | H106: 0 | I106: 0 | J106: 0 | K106: 0 | L106: 0 | M106: 0 | N106: 0 | O106: 0 | P106: 1000 | Q106: 0 | R106: 174 | S106: 0 | T106: 258 | U106: 0 | V106: - | W106: - | X106: - | Y106: - | Z106: - | AA106: - | AB106: -
A107: 145 | B107: Propionat, Kalzium- | C107: 1000 | D107: 10 | E107: 10 | F107: 0 | G107: 0 | H107: 0 | I107: 0 | J107: 0 | K107: 0 | L107: 0 | M107: 493 | N107: 0 | O107: 493 | P107: 507 | Q107: 214 | R107: 0 | S107: 0 | T107: 0 | U107: 0 | V107: - | W107: - | X107: - | Y107: - | Z107: - | AA107: - | AB107: -
A108: 146 | B108: Propionat, Natrium- | C108: 1000 | D108: 11 | E108: 11 | F108: 0 | G108: 0 | H108: 0 | I108: 0 | J108: 0 | K108: 0 | L108: 0 | M108: 560 | N108: 0 | O108: 560 | P108: 440 | Q108: 0 | R108: 0 | S108: 0 | T108: 240 | U108: 0 | V108: - | W108: - | X108: - | Y108: - | Z108: - | AA108: - | AB108: -
A109: 151 | B109: Proteinfutter 70% RP (Bakterienprotein) | C109: 1000 | D109: 8.5 | E109: 8.9 | F109: 128 | G109: 449 | H109: 106 | I109: 677 | J109: 761 | K109: 50 | L109: 10 | M109: 118 | N109: 5 | O109: 939 | P109: 61 | Q109: 2.7 | R109: 14 | S109: 2.1 | T109: 5.8 | U109: 3 | V109: 91 | W109: 94 | X109: 61 | Y109: 50 | Z109: 88 | AA109: 90 | AB109: 70
A110: 89 | B110: Rande, Knolle frisch | C110: 1000 | D110: 6.9 | E110: 7.5 | F110: 80 | G110: 82 | H110: 101 | I110: 116 | J110: 139 | K110: 17 | L110: 73 | M110: 662 | N110: 110 | O110: 891 | P110: 109 | Q110: 2.7 | R110: 2.7 | S110: 2.1 | T110: 3 | U110: 33 | V110: 85 | W110: 65 | X110: 64 | Y110: 79 | Z110: 90 | AA110: 85 | AB110: 65
A111: 60 | B111: Raps, Samen | C111: 1000 | D111: 13.1 | E111: 14.8 | F111: 49 | G111: 122 | H111: 39 | I111: 170 | J111: 219 | K111: 441 | L111: 80 | M111: 209 | N111: 52 | O111: 949 | P111: 51 | Q111: 4.5 | R111: 8.1 | S111: 3.1 | T111: 0.4 | U111: 9 | V111: 79 | W111: 75 | X111: 94 | Y111: 24 | Z111: 73 | AA111: 80 | AB111: 50
A112: 61 | B112: Raps-Extraktionsschrot | C112: 1000 | D112: 6.2 | E112: 6.4 | F112: 140 | G112: 247 | H112: 80 | I112: 274 | J112: 385 | K112: 18 | L112: 124 | M112: 388 | N112: 99 | O112: 915 | P112: 85 | Q112: 9.9 | R112: 14 | S112: 5.1 | T112: 0.3 | U112: 14 | V112: 75 | W112: 83 | X112: 80 | Y112: 24 | Z112: 83 | AA112: 74 | AB112: 80
A113: 63 | B113: Rapskuchen >9% RL | C113: 1000 | D113: 7.7 | E113: 8.2 | F113: 128 | G113: 224 | H113: 74 | I113: 249 | J113: 350 | K113: 108 | L113: 112 | M113: 352 | N113: 119 | O113: 922 | P113: 78 | Q113: 8.6 | R113: 12.8 | S113: 5.2 | T113: 0.3 | U113: 17 | V113: 77 | W113: 83 | X113: 90 | Y113: 28 | Z113: 83 | AA113: 74 | AB113: 80
A114: 62 | B114: Rapskuchen 4-9% RL | C114: 1000 | D114: 7.2 | E114: 7.5 | F114: 134 | G114: 232 | H114: 78 | I114: 258 | J114: 363 | K114: 75 | L114: 117 | M114: 365 | N114: 127 | O114: 920 | P114: 80 | Q114: 8.1 | R114: 12.6 | S114: 5.2 | T114: 0.3 | U114: 15 | V114: 77 | W114: 83 | X114: 90 | Y114: 28 | Z114: 83 | AA114: 74 | AB114: 80
A115: 64 | B115: Rapskuchen aus Bio-Diesel | C115: 1000 | D115: 8.4 | E115: 9 | F115: 95 | G115: 196 | H115: 82 | I115: 267 | J115: 320 | K115: 140 | L115: 101 | M115: 368 | N115: 114 | O115: 929 | P115: 71 | Q115: 8.2 | R115: 12.3 | S115: 5 | T115: 0.3 | U115: 16 | V115: 78 | W115: 83 | X115: 90 | Y115: 28 | Z115: 83 | AA115: 85 | AB115: 80
A116: 34 | B116: Reis, Körner (Bruchreis) | C116: 1000 | D116: 8.6 | E116: 9.6 | F116: 95 | G116: 58 | H116: 96 | I116: 42 | J116: 84 | K116: 9 | L116: 4 | M116: 896 | N116: 48 | O116: 993 | P116: 7 | Q116: 0.1 | R116: 1.4 | S116: 0.4 | T116: 0.1 | U116: 1 | V116: 92 | W116: 71 | X116: 67 | Y116: 30 | Z116: 94 | AA116: 55 | AB116: 80 | AC116: 845 | AD116: 75
A117: 35 | B117: Reisfuttermehl, gelb | C117: 1000 | D117: 8.5 | E117: 9.2 | F117: 103 | G117: 114 | H117: 57 | I117: 83 | J117: 166 | K117: 189 | L117: 80 | M117: 467 | N117: 61 | O117: 902 | P117: 98 | Q117: 0.9 | R117: 12.8 | S117: 4.2 | T117: 0.6 | U117: 11 | V117: 77 | W117: 73 | X117: 85 | Y117: 45 | Z117: 80 | AA117: 55 | AB117: 80 | AC117: 244 | AD117: 85
A118: 36 | B118: Reisfuttermehl, weiss | C118: 1000 | D118: 8.1 | E118: 8.8 | F118: 99 | G118: 99 | H118: 65 | I118: 72 | J118: 144 | K118: 145 | L118: 66 | M118: 558 | N118: 62 | O118: 913 | P118: 87 | Q118: 1 | R118: 14 | S118: 6.3 | T118: 0.6 | U118: 11 | V118: 77 | W118: 73 | X118: 85 | Y118: 45 | Z118: 80 | AA118: 55 | AB118: 80 | AC118: 331 | AD118: 85
A119: 37 | B119: Roggen, Körner | C119: 1000 | D119: 8.2 | E119: 9.1 | F119: 98 | G119: 72 | H119: 118 | I119: 86 | J119: 114 | K119: 14 | L119: 22 | M119: 831 | N119: 64 | O119: 981 | P119: 19 | Q119: 0.5 | R119: 4.1 | S119: 1.2 | T119: 0.1 | U119: 5 | V119: 89 | W119: 70 | X119: 67 | Y119: 30 | Z119: 94 | AA119: 78 | AB119: 80
A120: 90 | B120: Rübe, Futter-, frisch | C120: 1000 | D120: 7.4 | E120: 8.2 | F120: 85 | G120: 41 | H120: 119 | I120: 54 | J120: 70 | K120: 2 | L120: 47 | M120: 814 | N120: 596 | O120: 933 | P120: 67 | Q120: 2.1 | R120: 2.2 | S120: 1.3 | T120: 0.7 | U120: 18 | V120: 89 | W120: 55 | X120: 40 | Y120: 75 | Z120: 93 | AA120: 80 | AB120: 60
A121: 65 | B121: Senf, Weisser, Samen, getoastet | C121: 1000 | D121: 10.7 | E121: 11.7 | F121: 105 | G121: 210 | H121: 59 | I121: 249 | J121: 344 | K121: 278 | L121: 95 | M121: 232 | N121: 45 | O121: 949 | P121: 51 | Q121: 5.1 | R121: 9 | S121: 3.1 | T121: 0.1 | U121: 8 | V121: 81 | W121: 87 | X121: 89 | Y121: 54 | Z121: 74 | AA121: 75 | AB121: 70
A122: 66 | B122: Sojabohne, Samen | C122: 1000 | D122: 9.8 | E122: 10.6 | F122: 120 | G122: 255 | H122: 74 | I122: 317 | J122: 407 | K122: 196 | L122: 60 | M122: 284 | N122: 82 | O122: 947 | P122: 53 | Q122: 2.8 | R122: 6.3 | S122: 3 | T122: 0.2 | U122: 18 | V122: 83 | W122: 85 | X122: 90 | Y122: 60 | Z122: 80 | AA122: 80 | AB122: 80
A123: 67 | B123: Sojabohne, Samen, extrudiert | C123: 1000 | D123: 9.7 | E123: 10.5 | F123: 153 | G123: 269 | H123: 67 | I123: 275 | J123: 413 | K123: 190 | L123: 54 | M123: 281 | N123: 77 | O123: 938 | P123: 62 | Q123: 2.7 | R123: 6.4 | S123: 3.1 | T123: 0.1 | U123: 19 | V123: 83 | W123: 85 | X123: 90 | Y123: 60 | Z123: 80 | AA123: 70 | AB123: 80
A124: 68 | B124: Sojabohnenschalen | C124: 1000 | D124: 6.7 | E124: 6.9 | F124: 102 | G124: 82 | H124: 96 | I124: 72 | J124: 130 | K124: 24 | L124: 373 | M124: 420 | N124: 26 | O124: 947 | P124: 53 | Q124: 5.5 | R124: 1.8 | S124: 2 | T124: 0.1 | U124: 13 | V124: 79 | W124: 60 | X124: 75 | Y124: 80 | Z124: 85 | AA124: 60 | AB124: 70
A125: 69 | B125: Soja-Extraktionsschrot, nicht entschält 44% RP | C125: 1000 | D125: 7.8 | E125: 8.3 | F125: 261 | G125: 368 | H125: 87 | I125: 283 | J125: 499 | K125: 20 | L125: 65 | M125: 340 | N125: 105 | O125: 924 | P125: 76 | Q125: 3.6 | R125: 7.7 | S125: 3.6 | T125: 0.4 | U125: 22 | V125: 90 | W125: 91 | X125: 52 | Y125: 80 | Z125: 93 | AA125: 61 | AB125: 95
A126: 70 | B126: Soja-Extraktionsschrot, teilentschält 48% RP | C126: 1000 | D126: 7.9 | E126: 8.4 | F126: 277 | G126: 398 | H126: 86 | I126: 306 | J126: 539 | K126: 17 | L126: 53 | M126: 322 | N126: 102 | O126: 931 | P126: 69 | Q126: 3.5 | R126: 7.4 | S126: 3.1 | T126: 0.2 | U126: 24 | V126: 90 | W126: 91 | X126: 52 | Y126: 80 | Z126: 93 | AA126: 61 | AB126: 95
A127: 71 | B127: Sojakuchen, nicht entschält | C127: 1000 | D127: 8.7 | E127: 9.4 | F127: 249 | G127: 349 | H127: 84 | I127: 268 | J127: 473 | K127: 71 | L127: 62 | M127: 322 | N127: 99 | O127: 928 | P127: 72 | Q127: 3.1 | R127: 6.8 | S127: 3.2 | T127: 0.2 | U127: 22 | V127: 90 | W127: 91 | X127: 90 | Y127: 70 | Z127: 93 | AA127: 61 | AB127: 95
A128: 72 | B128: Sonnenblume,Samen | C128: 1000 | D128: 9.9 | E128: 10.6 | F128: 58 | G128: 123 | H128: 37 | I128: 153 | J128: 197 | K128: 325 | L128: 261 | M128: 181 | N128: 52 | O128: 964 | P128: 36 | Q128: 2.4 | R128: 5.5 | S128: 2.8 | T128: 0.1 | U128: 8 | V128: 64 | W128: 80 | X128: 96 | Y128: 18 | Z128: 55 | AA128: 80 | AB128: 80
A129: 74 | B129: Sonnenblumen-Extraktions- schrot, nicht entschält | C129: 1000 | D129: 4.1 | E129: 3.6 | F129: 95 | G129: 168 | H129: 58 | I129: 190 | J129: 255 | K129: 15 | L129: 370 | M129: 310 | N129: 50 | O129: 950 | P129: 50 | Q129: 4.8 | R129: 8.5 | S129: 5 | T129: 0.3 | U129: 13 | V129: 52 | W129: 84 | X129: 68 | Y129: 30 | Z129: 50 | AA129: 77 | AB129: 90
A130: 73 | B130: Sonnenblumen-Extraktions- schrot, teilentschält | C130: 1000 | D130: 5.1 | E130: 4.8 | F130: 125 | G130: 235 | H130: 67 | I130: 266 | J130: 357 | K130: 22 | L130: 257 | M130: 292 | N130: 77 | O130: 928 | P130: 72 | Q130: 3.9 | R130: 9.4 | S130: 5.2 | T130: 0.3 | U130: 15 | V130: 62 | W130: 85 | X130: 70 | Y130: 32 | Z130: 60 | AA130: 77 | AB130: 90
A131: 75 | B131: Sonnenblumenkuchen, teilentschält | C131: 1000 | D131: 6.3 | E131: 6.3 | F131: 118 | G131: 219 | H131: 64 | I131: 248 | J131: 333 | K131: 86 | L131: 240 | M131: 274 | N131: 83 | O131: 933 | P131: 67 | Q131: 3.2 | R131: 9.4 | S131: 6.6 | T131: 0.3 | U131: 16 | V131: 65 | W131: 85 | X131: 93 | Y131: 32 | Z131: 60 | AA131: 77 | AB131: 90
A132: 38 | B132: Stärke, Getreide- | C132: 1000 | D132: 8.8 | E132: 10 | F132: 69 | G132: 13 | H132: 99 | I132: 13 | J132: 19 | K132: 1 | L132: 4 | M132: 968 | N132: 0 | O132: 992 | P132: 8 | Q132: 0.3 | R132: 1.4 | S132: 0.2 | T132: 2.1 | U132: 1 | V132: 94 | W132: 60 | X132: 60 | Y132: 30 | Z132: 95 | AA132: 70 | AB132: 90 | AC132: 967 | AD132: 75
A133: 91 | B133: Stoppelrübe, ohne Blätter frisch | C133: 1000 | D133: 6.4 | E133: 6.9 | F133: 81 | G133: 79 | H133: 96 | I133: 103 | J133: 133 | K133: 15 | L133: 117 | M133: 615 | N133: 353 | O133: 880 | P133: 120 | Q133: 5.9 | R133: 5.8 | S133: 0.7 | T133: 3 | U133: 46 | V133: 82 | W133: 83 | X133: 74 | Y133: 93 | Z133: 80 | AA133: 80 | AB133: 65
A134: 112 | B134: Strohmehl | C134: 1000 | D134: 3.3 | E134: 2.8 | F134: 45 | G134: 21 | H134: 53 | I134: 19 | J134: 34 | K134: 15 | L134: 438 | M134: 458 | N134: 16 | O134: 945 | P134: 55 | Q134: 3.7 | R134: 1.2 | S134: 1 | T134: 2.9 | U134: 14 | V134: 44 | W134: - | X134: - | Y134: - | Z134: - | AA134: 60 | AB134: 70
A135: 113 | B135: Strohmehl mit Natronlauge aufgeschlossen | C135: 1000 | D135: 3.9 | E135: 3.5 | F135: 54 | G135: 21 | H135: 65 | I135: 19 | J135: 33 | K135: 12 | L135: 428 | M135: 452 | N135: 16 | O135: 925 | P135: 75 | Q135: 3.6 | R135: 1.1 | S135: 1 | T135: 16.5 | U135: 14 | V135: 53 | W135: - | X135: - | Y135: - | Z135: - | AA135: 60 | AB135: 70
A136: 158 | B136: Teigwaren | C136: 1000 | D136: 8.4 | E136: 9.3 | F136: 121 | G136: 106 | H136: 123 | I136: 112 | J136: 168 | K136: 2 | L136: 2 | M136: 820 | N136: 37 | O136: 992 | P136: 8 | Q136: 0.1 | R136: 2.1 | S136: 0.5 | T136: 1.1 | U136: 2 | V136: 91 | W136: 85 | X136: 82 | Y136: 47 | Z136: 92 | AA136: 70 | AB136: 75
A137: 102 | B137: Trester, Apfel-, getrocknet | C137: 1000 | D137: 5.4 | E137: 5.4 | F137: 65 | G137: 17 | H137: 81 | I137: 7 | J137: 61 | K137: 23 | L137: 224 | M137: 665 | N137: 218 | O137: 973 | P137: 27 | Q137: 1.3 | R137: 1.4 | S137: 0.6 | T137: 0.1 | U137: 6 | V137: 66 | W137: 40 | X137: 39 | Y137: 49 | Z137: 75 | AA137: 20 | AB137: 25
A138: 103 | B138: Trester, Apfel-, getrok- knet, entpektinisiert | C138: 1000 | D138: 4.3 | E138: 4 | F138: 59 | G138: 22 | H138: 62 | I138: 9 | J138: 81 | K138: 32 | L138: 322 | M138: 487 | N138: 160 | O138: 922 | P138: 78 | Q138: 13.1 | R138: 1.2 | S138: 0.3 | T138: 3.8 | U138: 1 | V138: 56 | W138: 40 | X138: 39 | Y138: 49 | Z138: 65 | AA138: 20 | AB138: 25
A139: 104 | B139: Trester, Birnen-, getrocknet | C139: 1000 | D139: 4.1 | E139: 3.7 | F139: 53 | G139: 16 | H139: 64 | I139: 6 | J139: 55 | K139: 11 | L139: 346 | M139: 574 | N139: 188 | O139: 986 | P139: 14 | Q139: 1 | R139: 0.9 | S139: 0.3 | T139: 0.3 | U139: 4 | V139: 53 | W139: 40 | X139: 39 | Y139: 35 | Z139: 65 | AA139: 20 | AB139: 25
A140: 105 | B140: Trester, Trauben-, getrocknet | C140: 1000 | D140: 2.9 | E140: 2.2 | F140: 41 | G140: 43 | H140: 24 | I140: 29 | J140: 132 | K140: 73 | L140: 277 | M140: 441 | N140: 180 | O140: 923 | P140: 77 | Q140: 6.1 | R140: 3 | S140: 1.1 | T140: 0.1 | U140: 17 | V140: 36 | W140: 13 | X140: 49 | Y140: 37 | Z140: 40 | AA140: 30 | AB140: 25
A141: 106 | B141: Trester, Zitrus-, getrocknet | C141: 1000 | D141: 7.4 | E141: 8.1 | F141: 91 | G141: 48 | H141: 107 | I141: 44 | J141: 72 | K141: 34 | L141: 140 | M141: 691 | N141: 241 | O141: 937 | P141: 63 | Q141: 18.9 | R141: 1.3 | S141: 1.5 | T141: 0.8 | U141: 9 | V141: 85 | W141: 50 | X141: 80 | Y141: 80 | Z141: 90 | AA141: 65 | AB141: 80
A142: 39 | B142: Triticale, Körner | C142: 1000 | D142: 8.3 | E142: 9.2 | F142: 103 | G142: 81 | H142: 118 | I142: 93 | J142: 125 | K142: 14 | L142: 23 | M142: 817 | N142: 42 | O142: 979 | P142: 21 | Q142: 0.6 | R142: 4.3 | S142: 1.1 | T142: 0.1 | U142: 5 | V142: 90 | W142: 75 | X142: 72 | Y142: 33 | Z142: 94 | AA142: 77 | AB142: 85
A143: 124 | B143: Vollmilch, frisch | C143: 1000 | D143: 13.4 | E143: 15.5 | F143: 102 | G143: 164 | H143: 80 | I143: 197 | J143: 253 | K143: 309 | L143: 0 | M143: 383 | N143: 365 | O143: 945 | P143: 55 | Q143: 9.3 | R143: 7.5 | S143: 0.8 | T143: 2.8 | U143: 11 | V143: 97 | W143: 95 | X143: 98 | Y143: 0 | Z143: 97 | AA143: 80 | AB143: 90
A144: 125 | B144: Vollmilchpulver | C144: 1000 | D144: 12.3 | E144: 14.2 | F144: 111 | G144: 179 | H144: 87 | I144: 215 | J144: 276 | K144: 250 | L144: 0 | M144: 412 | N144: 378 | O144: 938 | P144: 62 | Q144: 9.9 | R144: 7.9 | S144: 0.8 | T144: 3.3 | U144: 15 | V144: 96 | W144: 94 | X144: 98 | Y144: 0 | Z144: 97 | AA144: 80 | AB144: 90
A145: 40 | B145: Weizen, Körner | C145: 1000 | D145: 8.5 | E145: 9.5 | F145: 115 | G145: 99 | H145: 119 | I145: 106 | J145: 147 | K145: 15 | L145: 24 | M145: 795 | N145: 32 | O145: 981 | P145: 19 | Q145: 0.5 | R145: 4.4 | S145: 1.2 | T145: 0.1 | U145: 4 | V145: 91 | W145: 78 | X145: 83 | Y145: 51 | Z145: 95 | AA145: 75 | AB145: 94
A146: 41 | B146: Weizen, Körner gekeimt (Auswuchsweizen) | C146: 1000 | D146: 7.6 | E146: 8.2 | F146: 98 | G146: 93 | H146: 109 | I146: 111 | J146: 147 | K146: 13 | L146: 24 | M146: 797 | N146: 32 | O146: 981 | P146: 19 | Q146: 0.5 | R146: 4.4 | S146: 1.2 | T146: 0.1 | U146: 3 | V146: 83 | W146: 72 | X146: 76 | Y146: 35 | Z146: 87 | AA146: 78 | AB146: 80
A147: 44 | B147: Weizenbollmehl | C147: 1000 | D147: 7.1 | E147: 7.6 | F147: 99 | G147: 116 | H147: 98 | I147: 139 | J147: 184 | K147: 39 | L147: 72 | M147: 664 | N147: 65 | O147: 959 | P147: 41 | Q147: 1.2 | R147: 8.5 | S147: 2.8 | T147: 0.1 | U147: 7 | V147: 79 | W147: 81 | X147: 75 | Y147: 33 | Z147: 83 | AA147: 78 | AB147: 80
A148: 43 | B148: Weizenfuttermehl dunkel | C148: 1000 | D148: 7.6 | E148: 8.2 | F148: 102 | G148: 124 | H148: 100 | I148: 149 | J148: 197 | K148: 52 | L148: 50 | M148: 660 | N148: 64 | O148: 959 | P148: 41 | Q148: 1.2 | R148: 8.8 | S148: 2.9 | T148: 0.1 | U148: 9 | V148: 82 | W148: 81 | X148: 75 | Y148: 33 | Z148: 86 | AA148: 78 | AB148: 80
A149: 46 | B149: Weizenkeime | C149: 1000 | D149: 9.4 | E149: 10.4 | F149: 123 | G149: 201 | H149: 99 | I149: 246 | J149: 325 | K149: 106 | L149: 27 | M149: 492 | N149: 128 | O149: 950 | P149: 50 | Q149: 0.8 | R149: 12.4 | S149: 3.1 | T149: 0.1 | U149: 11 | V149: 91 | W149: 90 | X149: 90 | Y149: 40 | Z149: 94 | AA149: 78 | AB149: 75
A150: 47 | B150: Weizenkleber | C150: 1000 | D150: 9.2 | E150: 9.8 | F150: 255 | G150: 545 | H150: 102 | I150: 617 | J150: 854 | K150: 11 | L150: 4 | M150: 121 | N150: 4 | O150: 990 | P150: 10 | Q150: 1 | R150: 2.2 | S150: 0.5 | T150: 0.1 | U150: 1 | V150: 96 | W150: 96 | X150: 90 | Y150: 40 | Z150: 97 | AA150: 75 | AB150: 80
A151: 45 | B151: Weizenkleie | C151: 1000 | D151: 6.1 | E151: 6.3 | F151: 101 | G151: 118 | H151: 83 | I151: 121 | J151: 181 | K151: 38 | L151: 112 | M151: 603 | N151: 66 | O151: 934 | P151: 66 | Q151: 1.5 | R151: 14 | S151: 4.7 | T151: 0.1 | U151: 13 | V151: 71 | W151: 78 | X151: 69 | Y151: 31 | Z151: 76 | AA151: 70 | AB151: 80
A152: 42 | B152: Weizennachmehl (Weizenfuttermehl, hell) | C152: 1000 | D152: 8.9 | E152: 10 | F152: 114 | G152: 116 | H152: 121 | I152: 139 | J152: 184 | K152: 28 | L152: 9 | M152: 760 | N152: 74 | O152: 981 | P152: 19 | Q152: 0.5 | R152: 4.5 | S152: 1.4 | T152: 0.1 | U152: 4 | V152: 93 | W152: 85 | X152: 82 | Y152: 47 | Z152: 96 | AA152: 78 | AB152: 80
A153: 80 | B153: Wicke, Samen | C153: 1000 | D153: 8.1 | E153: 8.8 | F153: 143 | G153: 189 | H153: 106 | I153: 199 | J153: 298 | K153: 14 | L153: 69 | M153: 581 | N153: 46 | O153: 962 | P153: 38 | Q153: 1.6 | R153: 5 | S153: 1.8 | T153: 0.2 | U153: 10 | V153: 89 | W153: 87 | X153: 86 | Y153: 59 | Z153: 94 | AA153: 70 | AB153: 75
A154: 93 | B154: Zichorienwurzeln frisch | C154: 1000 | D154: 7.1 | E154: 7.7 | F154: 77 | G154: 52 | H154: 105 | I154: 73 | J154: 88 | K154: 18 | L154: 108 | M154: 688 | N154: 131 | O154: 902 | P154: 98 | Q154: 5 | R154: 2.6 | S154: 1.3 | T154: 0.7 | U154: 20 | V154: 86 | W154: 71 | X154: 60 | Y154: 77 | Z154: 90 | AA154: 85 | AB154: 65
A155: 98 | B155: Zucker, Futter- (Saccharose) | C155: 1000 | D155: 9.4 | E155: 10.9 | F155: 91 | G155: 0 | H155: 142 | I155: 0 | J155: 0 | K155: 0 | L155: 0 | M155: 978 | N155: 978 | O155: 978 | P155: 22 | Q155: 0.4 | R155: 0.2 | S155: 0 | T155: 0.1 | U155: 1 | V155: 100 | W155: 0 | X155: 0 | Y155: 0 | Z155: 100 | AA155: - | AB155: -
A156: 94 | B156: Zuckerrübe frisch | C156: 1000 | D156: 7.4 | E156: 8.2 | F156: 84 | G156: 33 | H156: 120 | I156: 44 | J156: 57 | K156: 2 | L156: 47 | M156: 827 | N156: 676 | O156: 933 | P156: 67 | Q156: 2.1 | R156: 1.5 | S156: 1.3 | T156: 0.7 | U156: 9 | V156: 90 | W156: 55 | X156: 30 | Y156: 75 | Z156: 93 | AA156: 80 | AB156: 60
A157: 97 | B157: Zuckerrübenmelasse | C157: 1000 | D157: 7.6 | E157: 8.5 | F157: 76 | G157: 74 | H157: 118 | I157: 128 | J157: 128 | K157: 0 | L157: 0 | M157: 757 | N157: 625 | O157: 885 | P157: 115 | Q157: 1.5 | R157: 0.1 | S157: 0.2 | T157: 5.7 | U157: 40 | V157: 92 | W157: 75 | X157: 0 | Y157: 0 | Z157: 95 | AA157: 100 | AB157: 0
A158: 95 | B158: Zuckerrübenschnitzel, getrocknet | C158: 1000 | D158: 7.2 | E158: 7.7 | F158: 116 | G158: 72 | H158: 108 | I158: 46 | J158: 103 | K158: 10 | L158: 209 | M158: 621 | N158: 66 | O158: 943 | P158: 57 | Q158: 7.8 | R158: 1 | S158: 2.1 | T158: 1.8 | U158: 7 | V158: 85 | W158: 60 | X158: 30 | Y158: 80 | Z158: 92 | AA158: 50 | AB158: 80
A159: 96 | B159: Zuckerrübenschnitzel, siliert | C159: 1000 | D159: 7.1 | E159: 7.7 | F159: 101 | G159: 70 | H159: 108 | I159: 53 | J159: 106 | K159: 10 | L159: 215 | M159: 612 | N159: 18 | O159: 943 | P159: 57 | Q159: 7.5 | R159: 1.2 | S159: 2.6 | T159: 1.8 | U159: 7 | V159: 85 | W159: 60 | X159: 30 | Y159: 80 | Z159: 92 | AA159: 55 | AB159: 75

Sheet FORMULE
A1: =EXPORT!A1 -> aliments | B1: =IF('Aliments Futtermittel'!H42=1,"mélange ZZ","Mischung ZZ") -> mélange ZZ
B3: =EXPORT!BC1 -> NEL dans mélange | C3: =IF(EXPORT!BC3=0,"",EXPORT!BC3) ->  | D3: ='Aliments Futtermittel'!K4 -> MJ/kg MS | E3: ='Aliments Futtermittel'!L4 -> énergie nette lait | H3: =IF('Aliments Futtermittel'!$H$42=1,"% du mélange","% in der Mischung") -> % du mélange
B4: =EXPORT!BD1 -> NEV dans mélange | C4: =IF(EXPORT!BD3=0,"",EXPORT!BD3) ->  | D4: ='Aliments Futtermittel'!K5 -> MJ/kg MS | E4: ='Aliments Futtermittel'!L5 -> énergie nette viande | G4: ='Aliments Futtermittel'!E6 -> dMO | H4: =EXPORT!AU3 -> 0
B5: =EXPORT!BE1 -> PAIE dans mélange | C5: =IF(EXPORT!BE3=0,"",EXPORT!BE3) ->  | D5: ='Aliments Futtermittel'!K6 -> g/kg MS | E5: ='Aliments Futtermittel'!L6 -> protéines absorbables dans l'intestin synthétisées à partir de l'énergie disponible | G5: ='Aliments Futtermittel'!E7 -> dMA | H5: =EXPORT!AV3 -> 0
B6: =EXPORT!BF1 -> PAIN dans mélange | C6: =IF(EXPORT!BF3=0,"",EXPORT!BF3) ->  | D6: ='Aliments Futtermittel'!K7 -> g/kg MS | E6: ='Aliments Futtermittel'!L7 -> protéines absorbables dans l'intestin, synthétisées à partir de la matière azotée dégradée | G6: ='Aliments Futtermittel'!E8 -> dMG | H6: =EXPORT!AW3 -> 0
G7: ='Aliments Futtermittel'!E9 -> dCB | H7: =EXPORT!AX3 -> 0
C8: =C29 -> 0 | D8: =IF(C8>100," >100% !!!",IF(C8<100,"<100% !!!",D29)) -> <100% !!! | G8: ='Aliments Futtermittel'!E10 -> dENA | H8: =EXPORT!AY3 -> 0
A9: 1 | B9: =IF(EXPORT!A5="","",EXPORT!A5) ->  | D9: =IF(B9<>"",EXPORT!$B$1,"") ->  | E9: =IF(B9<>"",IF(F9="table",IF('Aliments Futtermittel'!$H$42=1," ! valeurs des tables !"," ! Tabellenwerte !"),""),"") ->  | F9: =IFERROR(EXPORT!U5,"table") -> 0 | G9: ='Aliments Futtermittel'!E11 -> deMA | H9: =EXPORT!AZ3 -> 0
A10: 2 | B10: =IF(EXPORT!A6="","",EXPORT!A6) ->  | D10: =IF(B10<>"",EXPORT!$B$1,"") ->  | E10: =IF(B10<>"",IF(F10="table",IF('Aliments Futtermittel'!$H$42=1," ! valeurs des tables !"," ! Tabellenwerte !"),""),"") ->  | F10: =IFERROR(EXPORT!U6,"table") -> 0 | G10: ='Aliments Futtermittel'!E12 -> dAAA | H10: =EXPORT!BA3 -> 0
A11: 3 | B11: =IF(EXPORT!A7="","",EXPORT!A7) ->  | D11: =IF(B11<>"",EXPORT!$B$1,"") ->  | E11: =IF(B11<>"",IF(F11="table",IF('Aliments Futtermittel'!$H$42=1," ! valeurs des tables !"," ! Tabellenwerte !"),""),"") ->  | F11: =IFERROR(EXPORT!U7,"table") -> 0 | G11: ='Aliments Futtermittel'!E13 -> deAM | H11: =EXPORT!BB3 -> 0
A12: 4 | B12: =IF(EXPORT!A8="","",EXPORT!A8) ->  | D12: =IF(B12<>"",EXPORT!$B$1,"") ->  | E12: =IF(B12<>"",IF(F12="table",IF('Aliments Futtermittel'!$H$42=1," ! valeurs des tables !"," ! Tabellenwerte !"),""),"") ->  | F12: =IFERROR(EXPORT!U8,"table") -> 0
A13: 5 | B13: =IF(EXPORT!A9="","",EXPORT!A9) ->  | D13: =IF(B13<>"",EXPORT!$B$1,"") ->  | E13: =IF(B13<>"",IF(F13="table",IF('Aliments Futtermittel'!$H$42=1," ! valeurs des tables !"," ! Tabellenwerte !"),""),"") ->  | F13: =IFERROR(EXPORT!U9,"table") -> 0
A14: 6 | B14: =IF(EXPORT!A10="","",EXPORT!A10) ->  | D14: =IF(B14<>"",EXPORT!$B$1,"") ->  | E14: =IF(B14<>"",IF(F14="table",IF('Aliments Futtermittel'!$H$42=1," ! valeurs des tables !"," ! Tabellenwerte !"),""),"") ->  | F14: =IFERROR(EXPORT!U10,"table") -> 0
A15: 7 | B15: =IF(EXPORT!A11="","",EXPORT!A11) ->  | D15: =IF(B15<>"",EXPORT!$B$1,"") ->  | E15: =IF(B15<>"",IF(F15="table",IF('Aliments Futtermittel'!$H$42=1," ! valeurs des tables !"," ! Tabellenwerte !"),""),"") ->  | F15: =IFERROR(EXPORT!U11,"table") -> 0
A16: 8 | B16: =IF(EXPORT!A12="","",EXPORT!A12) ->  | D16: =IF(B16<>"",EXPORT!$B$1,"") ->  | E16: =IF(B16<>"",IF(F16="table",IF('Aliments Futtermittel'!$H$42=1," ! valeurs des tables !"," ! Tabellenwerte !"),""),"") ->  | F16: =IFERROR(EXPORT!U12,"table") -> 0
A17: 9 | B17: =IF(EXPORT!A13="","",EXPORT!A13) ->  | D17: =IF(B17<>"",EXPORT!$B$1,"") ->  | E17: =IF(B17<>"",IF(F17="table",IF('Aliments Futtermittel'!$H$42=1," ! valeurs des tables !"," ! Tabellenwerte !"),""),"") ->  | F17: =IFERROR(EXPORT!U13,"table") -> 0
A18: 10 | B18: =IF(EXPORT!A14="","",EXPORT!A14) ->  | D18: =IF(B18<>"",EXPORT!$B$1,"") ->  | E18: =IF(B18<>"",IF(F18="table",IF('Aliments Futtermittel'!$H$42=1," ! valeurs des tables !"," ! Tabellenwerte !"),""),"") ->  | F18: =IFERROR(EXPORT!U14,"table") -> 0
A19: 11 | B19: =IF(EXPORT!A15="","",EXPORT!A15) ->  | D19: =IF(B19<>"",EXPORT!$B$1,"") ->  | E19: =IF(B19<>"",IF(F19="table",IF('Aliments Futtermittel'!$H$42=1," ! valeurs des tables !"," ! Tabellenwerte !"),""),"") ->  | F19: =IFERROR(EXPORT!U15,"table") -> 0
A20: 12 | B20: =IF(EXPORT!A16="","",EXPORT!A16) ->  | D20: =IF(B20<>"",EXPORT!$B$1,"") ->  | E20: =IF(B20<>"",IF(F20="table",IF('Aliments Futtermittel'!$H$42=1," ! valeurs des tables !"," ! Tabellenwerte !"),""),"") ->  | F20: =IFERROR(EXPORT!U16,"table") -> 0
A21: 13 | B21: =IF(EXPORT!A17="","",EXPORT!A17) ->  | D21: =IF(B21<>"",EXPORT!$B$1,"") ->  | E21: =IF(B21<>"",IF(F21="table",IF('Aliments Futtermittel'!$H$42=1," ! valeurs des tables !"," ! Tabellenwerte !"),""),"") ->  | F21: =IFERROR(EXPORT!U17,"table") -> 0
A22: 14 | B22: =IF(EXPORT!A18="","",EXPORT!A18) ->  | D22: =IF(B22<>"",EXPORT!$B$1,"") ->  | E22: =IF(B22<>"",IF(F22="table",IF('Aliments Futtermittel'!$H$42=1," ! valeurs des tables !"," ! Tabellenwerte !"),""),"") ->  | F22: =IFERROR(EXPORT!U18,"table") -> 0
A23: 15 | B23: =IF(EXPORT!A19="","",EXPORT!A19) ->  | D23: =IF(B23<>"",EXPORT!$B$1,"") ->  | E23: =IF(B23<>"",IF(F23="table",IF('Aliments Futtermittel'!$H$42=1," ! valeurs des tables !"," ! Tabellenwerte !"),""),"") ->  | F23: =IFERROR(EXPORT!U19,"table") -> 0
A24: 16 | B24: =IF(EXPORT!A20="","",EXPORT!A20) ->  | D24: =IF(B24<>"",EXPORT!$B$1,"") ->  | E24: =IF(B24<>"",IF(F24="table",IF('Aliments Futtermittel'!$H$42=1," ! valeurs des tables !"," ! Tabellenwerte !"),""),"") ->  | F24: =IFERROR(EXPORT!U20,"table") -> 0
A25: 17 | B25: =IF(EXPORT!A21="","",EXPORT!A21) ->  | D25: =IF(B25<>"",EXPORT!$B$1,"") ->  | E25: =IF(B25<>"",IF(F25="table",IF('Aliments Futtermittel'!$H$42=1," ! valeurs des tables !"," ! Tabellenwerte !"),""),"") ->  | F25: =IFERROR(EXPORT!U21,"table") -> 0
A26: 18 | B26: =IF(EXPORT!A22="","",EXPORT!A22) ->  | D26: =IF(B26<>"",EXPORT!$B$1,"") ->  | E26: =IF(B26<>"",IF(F26="table",IF('Aliments Futtermittel'!$H$42=1," ! valeurs des tables !"," ! Tabellenwerte !"),""),"") ->  | F26: =IFERROR(EXPORT!U22,"table") -> 0
A27: 19 | B27: =IF(EXPORT!A23="","",EXPORT!A23) ->  | D27: =IF(B27<>"",EXPORT!$B$1,"") ->  | E27: =IF(B27<>"",IF(F27="table",IF('Aliments Futtermittel'!$H$42=1," ! valeurs des tables !"," ! Tabellenwerte !"),""),"") ->  | F27: =IFERROR(EXPORT!U23,"table") -> 0
A28: 20 | B28: =IF(EXPORT!A24="","",EXPORT!A24) ->  | D28: =IF(B28<>"",EXPORT!$B$1,"") ->  | E28: =IF(B28<>"",IF(F28="table",IF('Aliments Futtermittel'!$H$42=1," ! valeurs des tables !"," ! Tabellenwerte !"),""),"") ->  | F28: =IFERROR(EXPORT!U24,"table") -> 0 | H28: yves.arrigo@agroscope.admin.ch
